Workbook

Sheet Introduction
D20: Key
A21: Major Complete | B21: You've complete all of the requirements for the Major. Good for you.
A22: Major Complete This Quarter | B22: You'll have fulfilled the requirements for the Major at the end of the current quarter. Congratulations.
A23: Major in Progress | B23: If, over your one or two years at Kellogg you take the classes you're currently planning to enroll in, you'll complete the Major.
A24: Potential Major | B24: You've taken, are taking, or intend to take a course that fulfills a core requirement for the Major.

Sheet Course List
B1: Kellogg Course List
A4: Reference # | B4: Status | C4: Term | D4: Department | E4: Course # | F4: Course Name | G4: Bid History | H4: Credit Hours
A5: 1 | B5: Not Taken | D5: ACCT | E5: 430 | F5: Accounting for Decision Making | G5: Bid History | H5: 1
A6: 2 | B6: Not Taken | D6: ACCT | E6: 431 | F6: Managerial Accounting | G6: Bid History | H6: 1
A7: 3 | B7: Not Taken | D7: ACCT | E7: 432 | F7: Information Technology in Healthcare Management | G7: Bid History | H7: 1
A8: 4 | B8: Not Taken | D8: ACCT | E8: 434 | F8: Turbo Accounting | G8: Bid History | H8: 1
A9: 6 | B9: Not Taken | D9: ACCT | E9: 439 | F9: Accounting for Manufacturing Management | G9: Bid History | H9: 1
A10: 8 | B10: Not Taken | D10: ACCT | E10: 442 | F10: Strategic Managerial Accounting | G10: Bid History | H10: 1
A11: 9 | B11: Not Taken | D11: ACCT | E11: 444 | F11: Financial Planning For Mergers and Acquisitions | G11: Bid History | H11: 1
A12: 10 | B12: Not Taken | D12: ACCT | E12: 451 | F12: Financial Reporting & Analysis | G12: Bid History | H12: 1
A13: 11 | B13: Not Taken | D13: ACCT | E13: 452 | F13: Financial Reporting & Analysis II | G13: Bid History | H13: 1
A14: 12 | B14: Not Taken | D14: ACCT | E14: 453 | F14: Complex Financial Structures | G14: Bid History | H14: 1
A15: 13 | B15: Not Taken | D15: ACCT | E15: 454 | F15: Management Lab (M-Lab) | G15: Bid History | H15: 1
A16: 14 | B16: Not Taken | D16: ACCT | E16: 455 | F16: Accounting and Corporate Controls | G16: Bid History | H16: 1
A17: 15 | B17: Not Taken | D17: ACCT | E17: 460 | F17: Federal Income Taxation | G17: Bid History | H17: 1
A18: 16 | B18: Not Taken | D18: ACCT | E18: 479 | F18: Financial Assessment and Performance Evaluation of Healthcare Entities | G18: Bid History | H18: 1
A19: 17 | B19: Not Taken | D19: ACCT | E19: 499 | F19: Independent Study | G19: Bid History | H19: 1
A20: 5 | B20: Not Taken | D20: ACCT | E20: 438-B | F20: Accounting for Decision Making | G20: Bid History | H20: 0.5
A21: 7 | B21: Not Taken | D21: ACCT | E21: 440-A | F21: Non Profit Financial & Budget Anaylsis | G21: Bid History | H21: 1
A22: 24 | B22: Not Taken | D22: BLAW | E22: 435 | F22: Business Law I | G22: Bid History | H22: 1
A23: 25 | B23: Not Taken | D23: BLAW | E23: 437 | F23: Issues In Antitrust | G23: Bid History | H23: 1
A24: 26 | B24: Not Taken | D24: BLAW | E24: 499 | F24: Independent Study | G24: Bid History | H24: Input Value
A25: 29 | B25: Not Taken | D25: BLAW | E25: 913 | F25: Not For Profit Institutions | G25: Bid History | H25: 1
A26: 31 | B26: Not Taken | D26: BLAW | E26: 916 | F26: Managing Corporate Assets | G26: Bid History | H26: 1
A27: 32 | B27: Not Taken | D27: BLAW | E27: 917 | F27: Business Law and Contracts | G27: Bid History | H27: 1
A28: 33 | B28: Not Taken | D28: BLAW | E28: 918 | F28: Profiting From Technology: An Entrepreneur's Legal Guide/Securing, Developing, Exploiting Technology | G28: Bid History | H28: 1
A29: 34 | B29: Not Taken | D29: BLAW | E29: 921 | F29: Business Law for Entrepreneurs | G29: Bid History | H29: 1
A30: 27 | B30: Not Taken | D30: BLAW | E30: 499-A | F30: Independent Study | G30: Bid History | H30: Input Value
A31: 28 | B31: Not Taken | D31: BLAW | E31: 911-A | F31: Business Law for Entrepreneurs | G31: Bid History | H31: 0.5
A32: 30 | B32: Not Taken | D32: BLAW | E32: 913-A | F32: Not-for-Profit Institutions | G32: Bid History | H32: 0.5
A33: 35 | B33: Not Taken | D33: DECS | E33: 433 | F33: Mathematical Methods for Management Decisions | G33: Bid History | H33: 1
A34: 36 | B34: Not Taken | D34: DECS | E34: 434 | F34: Statistical Methods For Management Decisions | G34: Bid History | H34: 1
A35: 37 | B35: Not Taken | D35: DECS | E35: 436 | F35: Accelerated Mathematical Methods | G35: Bid History | H35: 1
A36: 38 | B36: Not Taken | D36: DECS | E36: 437 | F36: Accelerated Statistical Methods | G36: Bid History | H36: 1
A37: 41 | B37: Not Taken | D37: DECS | E37: 450 | F37: Decision Analysis | G37: Bid History | H37: 1
A38: 42 | B38: Not Taken | D38: DECS | E38: 452 | F38: Strategic Decision Making | G38: Bid History | H38: 1
A39: 43 | B39: Not Taken | D39: DECS | E39: 499 | F39: Independent Study | G39: Bid History | H39: Input Value
A40: 39 | B40: Not Taken | D40: DECS | E40: 438-A | F40: Managerial Decision Anaylsis | G40: Bid History | H40: 0.5
A41: 40 | B41: Not Taken | D41: DECS | E41: 439-B | F41: Statistical Decision Analysis | G41: Bid History | H41: 0.5
A42: 44 | B42: Not Taken | D42: ENTR | E42: 462 | F42: Entrepreneurship & New Venture Formulation | G42: Bid History | H42: 1
A43: 45 | B43: Not Taken | D43: ENTR | E43: 463 | F43: Succesful Entrepreneurship | G43: Bid History | H43: 1
A44: 46 | B44: Not Taken | D44: ENTR | E44: 499 | F44: Independent Study | G44: Bid History | H44: Input Value
A45: 278 | B45: Not Taken | D45: ENTR | E45: 903 | F45: Corporate Innovation & New Ventures | G45: Bid History | H45: 1
A46: 54 | B46: Not Taken | D46: ENTR | E46: 926 | F46: The Human Element in Private Equity Investing | G46: Bid History | H46: 1
A47: 47 | B47: Not Taken | D47: ENTR | E47: 499-A | F47: Independent Study | G47: Bid History | H47: 0.5
A48: 48 | B48: Not Taken | D48: ENTR | E48: 499-B | F48: Independent Study | G48: Bid History | H48: 0.5
A49: 49 | B49: Not Taken | D49: ENTR | E49: 901-A | F49: Understanding and Managing Risk | G49: Bid History | H49: 0.5
A50: 50 | B50: Not Taken | D50: ENTR | E50: 902-A | F50: Entrepreneurial Selling: Skills and Strategies | G50: Bid History | H50: 0.5
A51: 51 | B51: Not Taken | D51: ENTR | E51: 902-B | F51: Entrepreneurial Selling: Skills and Strategies | G51: Bid History | H51: 0.5
A52: 52 | B52: Not Taken | D52: ENTR | E52: 903-A | F52: Corporate Innovation & New Ventures | G52: Bid History | H52: 0.5
A53: 53 | B53: Not Taken | D53: ENTR | E53: 903-B | F53: Corporate Innovation & New Ventures | G53: Bid History | H53: 0.5
A54: 274 | B54: Not Taken | D54: ENTR | E54: 904-A | F54: Entrepreneurial Risk | G54: Bid History | H54: 0.5
A55: 275 | B55: Not Taken | D55: ENTR | E55: 904-B | F55: Entrepreneurial Risk | G55: Bid History | H55: 0.5
A56: 55 | B56: Not Taken | D56: FINC | E56: 430 | F56: Finance I | G56: Bid History | H56: 1
A57: 56 | B57: Not Taken | D57: FINC | E57: 440 | F57: Finance I & II | G57: Bid History | H57: 1
A58: 57 | B58: Not Taken | D58: FINC | E58: 441 | F58: Finance II | G58: Bid History | H58: 1
A59: 58 | B59: Not Taken | D59: FINC | E59: 442 | F59: Financial Decisions | G59: Bid History | H59: 1
A60: 59 | B60: Not Taken | D60: FINC | E60: 445 | F60: Venture Capital and Private Equity Investing | G60: Bid History | H60: 1
A61: 60 | B61: Not Taken | D61: FINC | E61: 446 | F61: Entrepreneurial Finance | G61: Bid History | H61: 1
A62: 61 | B62: Not Taken | D62: FINC | E62: 447 | F62: Financial Strategy and Tax Planning | G62: Bid History | H62: 1
A63: 62 | B63: Not Taken | D63: FINC | E63: 448 | F63: Corporate Restructuring | G63: Bid History | H63: 1
A64: 63 | B64: Not Taken | D64: FINC | E64: 451 | F64: Money Markets and the Fed | G64: Bid History | H64: 1
A65: 64 | B65: Not Taken | D65: FINC | E65: 453 | F65: Risk Bearing Markets & Insurance | G65: Bid History | H65: 1
A66: 65 | B66: Not Taken | D66: FINC | E66: 460 | F66: Investments | G66: Bid History | H66: 1
A67: 66 | B67: Not Taken | D67: FINC | E67: 461 | F67: Investment Banking | G67: Bid History | H67: 1
A68: 67 | B68: Not Taken | D68: FINC | E68: 463 | F68: Security Analysis | G68: Bid History | H68: 1
A69: 68 | B69: Not Taken | D69: FINC | E69: 464 | F69: Fixed Income Securities | G69: Bid History | H69: 1
A70: 69 | B70: Not Taken | D70: FINC | E70: 465 | F70: Derivative Markets I | G70: Bid History | H70: 1
A71: 70 | B71: Not Taken | D71: FINC | E71: 467 | F71: Derivative Markets II | G71: Bid History | H71: 1
A72: 71 | B72: Not Taken | D72: FINC | E72: 470 | F72: International Finance | G72: Bid History | H72: 1
A73: 72 | B73: Not Taken | D73: FINC | E73: 499 | F73: Independent Study | G73: Bid History | H73: Input Value
A74: 279 | B74: Not Taken | D74: FINC | E74: 915 | F74: Venture Lab (V-Lab) | G74: Bid History | H74: 1
A75: 79 | B75: Not Taken | D75: FINC | E75: 925 | F75: Advanced Topics in Finance | G75: Bid History | H75: 1
A76: 81 | B76: Not Taken | D76: FINC | E76: 929 | F76: Financial Institutions and Markets | G76: Bid History | H76: 1
A77: 84 | B77: Not Taken | D77: FINC | E77: 931 | F77: Wall Street, Hedge Funds and Private Equity (LPB) Funds | G77: Bid History | H77: 1
A78: 85 | B78: Not Taken | D78: FINC | E78: 932 | F78: Case Studies in Venture Investment and Management | G78: Bid History | H78: 1
A79: 280 | B79: Not Taken | D79: FINC | E79: 933 | F79: Assett Management Practicum I | G79: Bid History | H79: 1
A80: 290 | B80: Not Taken | D80: FINC | E80: 935 | F80: Assett Management Practicum III | G80: Bid History | H80: 1
A81: 281 | B81: Not Taken | D81: FINC | E81: 939 | F81: Buyout Lab | G81: Bid History | H81: 1
A82: 73 | B82: Not Taken | D82: FINC | E82: 499-A | F82: Independent Study | G82: Bid History | H82: 0.5
A83: 74 | B83: Not Taken | D83: FINC | E83: 499-B | F83: Independent Study | G83: Bid History | H83: 0.5
A84: 75 | B84: Not Taken | D84: FINC | E84: 901-A | F84: Understanding and Managing Risk | G84: Bid History | H84: 0.5
A85: 76 | B85: Not Taken | D85: FINC | E85: 918-A | F85: Major Project and Project Finance in Emerging Markets | G85: Bid History | H85: 0.5
A86: 254 | B86: Not Taken | D86: FINC | E86: 918-B | F86: Major Project and Project Finance in Emerging Markets | G86: Bid History | H86: 0.5
A87: 289 | B87: Not Taken | D87: FINC | E87: 919-B | F87: Advanced Topics in International Finance | G87: Bid History | H87: 0.5
A88: 77 | B88: Not Taken | D88: FINC | E88: 921-A | F88: Private Equity | G88: Bid History | H88: 0.5
A89: 78 | B89: Not Taken | D89: FINC | E89: 924-A | F89: Real Options | G89: Bid History | H89: 0.5
A90: 80 | B90: Not Taken | D90: FINC | E90: 928-A | F90: Financial Management and Strategy in Transportation | G90: Bid History | H90: 0.5
A91: 82 | B91: Not Taken | D91: FINC | E91: 930-A | F91: Environmental Finance | G91: Bid History | H91: 0.5
A92: 83 | B92: Not Taken | D92: FINC | E92: 930-B | F92: Environmental Finance | G92: Bid History | H92: 0.5
A93: 86 | B93: Not Taken | D93: FINC | E93: 933-C | F93: Asset Management Practicum I | G93: Bid History | H93: 0.5
A94: 87 | B94: Not Taken | D94: FINC | E94: 934-C | F94: Asset Management Practicum II | G94: Bid History | H94: 0.5
A95: 88 | B95: Not Taken | D95: FINC | E95: 935-C | F95: Asset Management Practicum III | G95: Bid History | H95: 0.5
A96: 89 | B96: Not Taken | D96: FINC | E96: 936-C | F96: Asset Management Practicum IV | G96: Bid History | H96: 0.5
A97: 90 | B97: Not Taken | D97: FINC | E97: 937-A | F97: Microfinance & the Role of Financial Institutions in Development | G97: Bid History | H97: 0.5
A98: 91 | B98: Not Taken | D98: FINC | E98: 938-A | F98: Due Diligence: Mergers & Acquisitions | G98: Bid History | H98: 0.5
A99: 291 | B99: Not Taken | D99: FINC | E99: 940-A | F99: Financial Modeling for Leveraged Buyout Transactions | G99: Bid History | H99: 0.5
A100: 292 | B100: Not Taken | D100: FINC | E100: 940-B | F100: Financial Modeling for Leveraged Buyout Transactions | G100: Bid History | H100: 0.5
A101: 92 | B101: Not Taken | D101: HEMA | E101: 440 | F101: Introduction to the Principles and Management of Health Industry Systems | G101: Bid History | H101: 1
A102: 93 | B102: Not Taken | D102: HEMA | E102: 441 | F102: Health Policy | G102: Bid History | H102: 1
A103: 94 | B103: Not Taken | D103: HEMA | E103: 451 | F103: Legal Issues in Health Care Delivery | G103: Bid History | H103: 1
A104: 95 | B104: Not Taken | D104: HEMA | E104: 452 | F104: Advanced Strategic Management in the Health Care Industry | G104: Bid History | H104: 1
A105: 97 | B105: Not Taken | D105: HEMA | E105: 453 | F105: Managerial Challenges in the Pharmaceutical, Biotech, and Medical Devices Industries | G105: Bid History | H105: 1
A106: 98 | B106: Not Taken | D106: HEMA | E106: 455 | F106: Special Topics in the Pharmaceutical, Biotechnology and Medical Device Industries | G106: Bid History | H106: 1
A107: 18 | B107: Not Taken | D107: HEMA | E107: 499 | F107: Independent Study | G107: Bid History | H107: Input Value
A108: 255 | B108: Not Taken | D108: HEMA | E108: 512 | F108: Health Services Management Field Study/Project Management | G108: Bid History | H108: 1
A109: 266 | B109: Not Taken | D109: HEMA | E109: 910 | F109: Biotechnology Boot Camp | G109: Bid History | H109: 0
A110: 99 | B110: Not Taken | D110: HEMA | E110: 911 | F110: Healthcare System Financing | G110: Bid History | H110: 1
A111: 19 | B111: Not Taken | D111: HEMA | E111: 911 | F111: Dynamics of the Biotechnology/Life Sciences Industry | G111: Bid History | H111: 1
A112: 20 | B112: Not Taken | D112: HEMA | E112: 912 | F112: Managing Innovation | G112: Bid History | H112: 1
A113: 21 | B113: Not Taken | D113: HEMA | E113: 913 | F113: Biotech Business Practicum | G113: Bid History | H113: 1
A114: 22 | B114: Not Taken | D114: HEMA | E114: 914 | F114: Biomedical Marketing | G114: Bid History | H114: 1
A115: 271 | B115: Not Taken | D115: HEMA | E115: 915 | F115: Medical Innovations | G115: Bid History | H115: 1
A116: 285 | B116: Not Taken | D116: HEMA | E116: 916 | F116: Medical Innovation II: Developing Biomedical Products from Patient to Market | G116: Bid History | H116: 1
A117: 23 | B117: Not Taken | D117: HEMA | E117: 919 | F117: Biotechnology: Law, Business and Regulation | G117: Bid History | H117: 1
A118: 96 | B118: Not Taken | D118: HEMA | E118: 452-B | F118: Advanced Strategic Management in Healthcare | G118: Bid History | H118: 0.5
A119: 265 | B119: Not Taken | D119: HEMA | E119: 913-A | F119: An Overview of the Health Industry | G119: Bid History | H119: 0.5
A120: 262 | B120: Not Taken | D120: IEMS | E120: 490 | F120: New Product Innovation | G120: Bid History | H120: 1
A121: 263 | B121: Not Taken | D121: IEMS | E121: 497 | F121: Innovation Mini-courses | G121: Bid History | H121: 1
A122: 100 | B122: Not Taken | D122: IEMS | E122: 471-1 | F122: Factory Physics I | G122: Bid History | H122: 1
A123: 101 | B123: Not Taken | D123: IEMS | E123: 471-2 | F123: Factory Physics II | G123: Bid History | H123: 1
A124: 102 | B124: Not Taken | D124: INTL | E124: 442 | F124: International Healthcare Systems | G124: Bid History | H124: 1
A125: 103 | B125: Not Taken | D125: INTL | E125: 456 | F125: Intercultural Management | G125: Bid History | H125: 1
A126: 104 | B126: Not Taken | D126: INTL | E126: 457 | F126: International Accounting | G126: Bid History | H126: 1
A127: 105 | B127: Not Taken | D127: INTL | E127: 460 | F127: International Business Strategy | G127: Bid History | H127: 1
A128: 106 | B128: Not Taken | D128: INTL | E128: 466 | F128: International Business Strategy in Non-Market Environments | G128: Bid History | H128: 1
A129: 107 | B129: Not Taken | D129: INTL | E129: 467 | F129: International Marketing | G129: Bid History | H129: 1
A130: 108 | B130: Not Taken | D130: INTL | E130: 473 | F130: Global Initiatives in Management (GIM) | G130: Bid History | H130: 1
A131: 109 | B131: Not Taken | D131: INTL | E131: 474 | F131: Cross-Cultural Negotiation | G131: Bid History | H131: 1
A132: 110 | B132: Not Taken | D132: INTL | E132: 490 | F132: Foreign Study | G132: Bid History | H132: Input Value
A133: 112 | B133: Not Taken | D133: INTL | E133: 499 | F133: Independent Study | G133: Bid History | H133: 1
A134: 114 | B134: Not Taken | D134: INTL | E134: 912 | F134: International Operations & Risk Management | G134: Bid History | H134: 1
A135: 284 | B135: Not Taken | D135: INTL | E135: 915 | F135: Global Lab (G-Lab) | G135: Bid History | H135: 1
A136: 111 | B136: Not Taken | D136: INTL | E136: 491-B | F136: Doing Business in Mexico | G136: Bid History | H136: 0.5
A137: 113 | B137: Not Taken | D137: INTL | E137: 499-B | F137: Independent Study | G137: Bid History | H137: 0.5
A138: 267 | B138: Not Taken | D138: INTL | E138: XXX | F138: International Exchange Program | G138: Bid History
A139: 116 | B139: Not Taken | D139: MECN | E139: 430 | F139: Microeconomic Analysis | G139: Bid History | H139: 1
A140: 117 | B140: Not Taken | D140: MECN | E140: 436 | F140: Turbo Microeconomic Analysis* | G140: Bid History | H140: 1
A141: 120 | B141: Not Taken | D141: MECN | E141: 441 | F141: Competitive Strategy & Industrial Structure | G141: Bid History | H141: 1
A142: 259 | B142: Not Taken | D142: MECN | E142: 443 | F142: Analytics of Corporate Planning & Strategy* | G142: Bid History | H142: 1
A143: 121 | B143: Not Taken | D143: MECN | E143: 446 | F143: Pricing Strategies | G143: Bid History | H143: 1
A144: 122 | B144: Not Taken | D144: MECN | E144: 450 | F144: Macroeconomic Analysis for Management | G144: Bid History | H144: 1
A145: 123 | B145: Not Taken | D145: MECN | E145: 451 | F145: Business and Economic Forecasting* | G145: Bid History | H145: 1
A146: 124 | B146: Not Taken | D146: MECN | E146: 452 | F146: International Economics | G146: Bid History | H146: 1
A147: 260 | B147: Not Taken | D147: MECN | E147: 463 | F147: Entrepreneurial Leadership* | G147: Bid History | H147: 1
A148: 125 | B148: Not Taken | D148: MECN | E148: 499 | F148: Independent Study | G148: Bid History | H148: Input Value
A149: 127 | B149: Not Taken | D149: MECN | E149: 911 | F149: Crisis Management | G149: Bid History | H149: 1
A150: 261 | B150: Not Taken | D150: MECN | E150: 912 | F150: Invention and Innovation* | G150: Bid History | H150: 1
A151: 118 | B151: Not Taken | D151: MECN | E151: 438-A | F151: Microeconomic Analysis | G151: Bid History | H151: 0.5
A152: 119 | B152: Not Taken | D152: MECN | E152: 438-B | F152: Microeconomic Analysis | G152: Bid History | H152: 0.5
A153: 126 | B153: Not Taken | D153: MECN | E153: 499-B | F153: Independent Study | G153: Bid History | H153: 0.5
A154: 128 | B154: Not Taken | D154: MEDM | E154: 431 | F154: Media and Integrated Marketing | G154: Bid History | H154: 1
A155: 129 | B155: Not Taken | D155: MEDM | E155: 499 | F155: Independent Study | G155: Bid History | H155: Input Value
A156: 130 | B156: Not Taken | D156: MEDM | E156: 911 | F156: Media Strategy and Implementation | G156: Bid History | H156: 1
A157: 131 | B157: Not Taken | D157: MEDM | E157: 912 | F157: Understanding the Media and its Content | G157: Bid History | H157: 1
A158: 132 | B158: Not Taken | D158: MGMT | E158: 431 | F158: Business Strategy | G158: Bid History | H158: 1
A159: 133 | B159: Not Taken | D159: MGMT | E159: 438 | F159: Management of Enterprise | G159: Bid History | H159: 1
A160: 134 | B160: Not Taken | D160: MGMT | E160: 440 | F160: Human Resource Management | G160: Bid History | H160: 1
A161: 135 | B161: Not Taken | D161: MGMT | E161: 444 | F161: Healthcare Economics & Strategy | G161: Bid History | H161: 1
A162: 136 | B162: Not Taken | D162: MGMT | E162: 452 | F162: Strategy & Organization | G162: Bid History | H162: 1
A163: 137 | B163: Not Taken | D163: MGMT | E163: 453 | F163: Designing Management Strategy | G163: Bid History | H163: 1
A164: 138 | B164: Not Taken | D164: MGMT | E164: 461 | F164: Economic Issues in Transportation | G164: Bid History | H164: 1
A165: 139 | B165: Not Taken | D165: MGMT | E165: 463 | F165: Management of Technology | G165: Bid History | H165: 1
A166: 140 | B166: Not Taken | D166: MGMT | E166: 464 | F166: Strategic Management of Technology and Innovation | G166: Bid History | H166: 1
A167: 141 | B167: Not Taken | D167: MGMT | E167: 465 | F167: Small Business Management | G167: Bid History | H167: 1
A168: 142 | B168: Not Taken | D168: MGMT | E168: 467 | F168: Strategic Business Issues in Transportation and Logistics | G168: Bid History | H168: 1
A169: 144 | B169: Not Taken | D169: MGMT | E169: 469 | F169: Empirical Methods in Strategy | G169: Bid History | H169: 1
A170: 145 | B170: Not Taken | D170: MGMT | E170: 499 | F170: Independent Study | G170: Bid History | H170: 1
A171: 147 | B171: Not Taken | D171: MGMT | E171: 512 | F171: International Practicum/Cross-Cultural Management Practice | G171: Bid History | H171: 1
A172: 148 | B172: Not Taken | D172: MGMT | E172: 911 | F172: Strategic Dilemmas in Business Design | G172: Bid History | H172: 1
A173: 150 | B173: Not Taken | D173: MGMT | E173: 914 | F173: The Business of Intellectual Property | G173: Bid History | H173: 1
A174: 151 | B174: Not Taken | D174: MGMT | E174: 927 | F174: Family Enterprises: Issues & Solutions | G174: Bid History | H174: 1
A175: 152 | B175: Not Taken | D175: MGMT | E175: 930 | F175: Economics of Electronic Commerce Markets | G175: Bid History | H175: 1
A176: 157 | B176: Not Taken | D176: MGMT | E176: 934 | F176: Managing Turnarounds | G176: Bid History | H176: 1
A177: 160 | B177: Not Taken | D177: MGMT | E177: 939 | F177: Airline Economics, Management and Strategy | G177: Bid History | H177: 1
A178: 161 | B178: Not Taken | D178: MGMT | E178: 940 | F178: Inudstry Evolution and the Origins of Competitive Advantage | G178: Bid History | H178: 1
A179: 162 | B179: Not Taken | D179: MGMT | E179: 941 | F179: Issues in Air Transportation | G179: Bid History | H179: 1
A180: 115 | B180: Not Taken | D180: MGMT | E180: 499-A | F180: Independent Study | G180: Bid History | H180: 0.5
A181: 146 | B181: Not Taken | D181: MGMT | E181: 499-B | F181: Independent Study | G181: Bid History | H181: 0.5
A182: 258 | B182: Not Taken | D182: MGMT | E182: 512-A | F182: International Practicum/Cross-Cultural Management Practice | G182: Bid History | H182: 0.5
A183: 149 | B183: Not Taken | D183: MGMT | E183: 913-A | F183: Corporate Governance | G183: Bid History | H183: 0.5
A184: 153 | B184: Not Taken | D184: MGMT | E184: 931-A | F184: Strategic Franchising | G184: Bid History | H184: 0.5
A185: 154 | B185: Not Taken | D185: MGMT | E185: 931-B | F185: Strategic Franchising | G185: Bid History | H185: 0.5
A186: 158 | B186: Not Taken | D186: MGMT | E186: 936-A | F186: Understanding Networked Industries | G186: Bid History | H186: 0.5
A187: 159 | B187: Not Taken | D187: MGMT | E187: 937-B | F187: Transportation and Supply Chain Economics and Strategy | G187: Bid History | H187: 0.5
A188: 163 | B188: Not Taken | D188: MKTG | E188: 430 | F188: Marketing Management | G188: Bid History | H188: 1
A189: 164 | B189: Not Taken | D189: MKTG | E189: 450 | F189: Research Methods in Marketing | G189: Bid History | H189: 1
A190: 165 | B190: Not Taken | D190: MKTG | E190: 451 | F190: Policies in Marketing Channels (Marketing Channel Strategies) | G190: Bid History | H190: 1
A191: 273 | B191: Not Taken | D191: MKTG | E191: 452 | F191: Consumer Insight Tools | G191: Bid History | H191: 1
A192: 166 | B192: Not Taken | D192: MKTG | E192: 453 | F192: Business Marketing | G192: Bid History | H192: 1
A193: 167 | B193: Not Taken | D193: MKTG | E193: 454 | F193: Advertising Strategy | G193: Bid History | H193: 1
A194: 168 | B194: Not Taken | D194: MKTG | E194: 458 | F194: Models of Consumer Behavior | G194: Bid History | H194: 1
A195: 169 | B195: Not Taken | D195: MKTG | E195: 459 | F195: Services Marketing and Management | G195: Bid History | H195: 1
A196: 170 | B196: Not Taken | D196: MKTG | E196: 462 | F196: Sales Promotion and Retailer Behavior | G196: Bid History | H196: 1
A197: 171 | B197: Not Taken | D197: MKTG | E197: 463 | F197: Sales Force Management | G197: Bid History | H197: 1
A198: 173 | B198: Not Taken | D198: MKTG | E198: 465 | F198: Introduction of New Products & Services | G198: Bid History | H198: 1
A199: 174 | B199: Not Taken | D199: MKTG | E199: 466 | F199: Marketing Strategy | G199: Bid History | H199: 1
A200: 175 | B200: Not Taken | D200: MKTG | E200: 468 | F200: Technology Marketing | G200: Bid History | H200: 1
A201: 176 | B201: Not Taken | D201: MKTG | E201: 499 | F201: Independent Study | G201: Bid History | H201: Input Value
A202: 178 | B202: Not Taken | D202: MKTG | E202: 913 | F202: Internet Marketing | G202: Bid History | H202: 1
... 96 more rows

Sheet 2008-2009 Schedule
A1: Term | B1: Department | C1: # | D1: Course Name | E1: Section | F1: Day | G1: Time | H1: Professor
A2: Fall | B2: ACCT | C2: 430 | D2: Accounting For Decision Making | E2: 61 | F2: Mon-Thu | G2: 8:30-10:00 | H2: Sridharan
A3: Fall | B3: ACCT | C3: 430 | D3: Accounting For Decision Making | E3: 62 | F3: Mon-Thu | G3: 10:30-12:00 | H3: Sridharan
A4: Fall | B4: ACCT | C4: 430 | D4: Accounting For Decision Making | E4: 63 | F4: Mon-Thu | G4: 13:30-15:00 | H4: Magee
A5: Fall | B5: ACCT | C5: 430 | D5: Accounting For Decision Making | E5: 64 | F5: Mon-Thu | G5: 15:30-17:00 | H5: Magee
A6: Fall | B6: ACCT | C6: 430 | D6: Accounting For Decision Making | E6: 65 | F6: Tue-Fri | G6: 8:30-10:00 | H6: Lansford
A7: Fall | B7: ACCT | C7: 430 | D7: Accounting For Decision Making | E7: 66 | F7: Tue-Fri | G7: 10:30-12:00 | H7: Lansford
A8: Fall | B8: ACCT | C8: 430 | D8: Accounting For Decision Making | E8: 67 | F8: Tue-Fri | G8: 13:30-15:00 | H8: Finn
A9: Fall | B9: ACCT | C9: 430 | D9: Accounting For Decision Making | E9: 68 | F9: Tue-Fri | G9: 15:30-17:00 | H9: Finn
A10: Fall | B10: ACCT | C10: 430 | D10: Accounting For Decision Making | E10: 69 | F10: Mon-Thu | G10: 10:30-12:00 | H10: Finn
A11: Fall | B11: ACCT | C11: 431 | D11: Managerial Accounting | E11: 61 | F11: Mon-Thu | G11: 10:30-12:00 | H11: Rusticus
A12: Fall | B12: ACCT | C12: 444 | D12: Financial Planning For Mergers and Acquisitions | E12: 81 | F12: Mon | G12: 18:30-21:30 | H12: Lys
A13: Fall | B13: ACCT | C13: 444 | D13: Financial Planning For Mergers and Acquisitions | E13: 82 | F13: Tue | G13: 18:30-21:30 | H13: Lys
A14: Fall | B14: ACCT | C14: 451 | D14: Financial Reporting and Analysis | E14: 61 | F14: Tue-Fri | G14: 8:30-10:00 | H14: Wongsunwai
A15: Fall | B15: ACCT | C15: 451 | D15: Financial Reporting and Analysis | E15: 62 | F15: Tue-Fri | G15: 10:30-12:00 | H15: Wongsunwai
A16: Fall | B16: ACCT | C16: 454 | D16: Management Lab (Formerly LEAP) | E16: 91 | F16: Tue | G16: 18:30-21:30 | H16: Balachandran
A17: Fall | B17: BLAW | C17: 435 | D17: Business Law I | E17: 81 | F17: Mon | G17: 18:30-21:30 | H17: McCareins
A18: Fall | B18: BLAW | C18: 911-A | D18: Business Law for Entrepreneurs | E18: 81 | F18: Thu | G18: 18:30-21:30 | H18: Bradley
A19: Fall | B19: BLAW | C19: 917 | D19: Business Law and Contracts | E19: 31 | F19: Tue | G19: 18:0-21:00 | H19: Tiller
A20: Fall | B20: DECS | C20: 433 | D20: Mathematical Methods For Management Decisions | E20: 61 | F20: Mon-Thu | G20: 8:30-10:00 | H20: Herold
A21: Fall | B21: DECS | C21: 433 | D21: Mathematical Methods For Management Decisions | E21: 62 | F21: Mon-Thu | G21: 10:30-12:00 | H21: Herold
A22: Fall | B22: DECS | C22: 433 | D22: Mathematical Methods For Management Decisions | E22: 63 | F22: Mon-Thu | G22: 13:30-15:00 | H22: Schummer
A23: Fall | B23: DECS | C23: 433 | D23: Mathematical Methods For Management Decisions | E23: 64 | F23: Mon-Thu | G23: 15:30-17:00 | H23: Schummer
A24: Fall | B24: DECS | C24: 433 | D24: Mathematical Methods For Management Decisions | E24: 65 | F24: Tue-Fri | G24: 10:30-12:00 | H24: McKeon
A25: Fall | B25: DECS | C25: 433 | D25: Mathematical Methods For Management Decisions | E25: 66 | F25: Tue-Fri | G25: 13:30-15:00 | H25: McKeon
A26: Fall | B26: DECS | C26: 434 | D26: Statistical Methods For Management Decisions | E26: 91 | F26: Tue | G26: 18:30-21:30 | H26: Dziuda
A27: Fall | B27: ENTR | C27: 462 | D27: Entrepreneurship & New Venture Formulation | E27: 91 | F27: Wed | G27: 18:30-21:30 | H27: Merkin
A28: Fall | B28: ENTR | C28: 902-A | D28: Entrepreneurial Selling: Skills and Strategies | E28: 81 | F28: Mon | G28: 18:30-21:30 | H28: Mayberry McKissack
A29: Fall | B29: ENTR | C29: 903 | D29: Corporate Innovation & New Ventures | E29: 81 | F29: Tue | G29: 18:30-21:30 | H29: Wolcott
A30: Fall | B30: FINC | C30: 430 | D30: Finance I | E30: 61 | F30: Tue-Fri | G30: 8:30-10:00 | H30: Kuhnen
A31: Fall | B31: FINC | C31: 430 | D31: Finance I | E31: 62 | F31: Tue-Fri | G31: 10:30-12:00 | H31: Kuhnen
A32: Fall | B32: FINC | C32: 430 | D32: Finance I | E32: 63 | F32: Tue-Fri | G32: 13:30-15:00 | H32: Kondo
A33: Fall | B33: FINC | C33: 430 | D33: Finance I | E33: 64 | F33: Tue-Fri | G33: 15:30-17:00 | H33: Kondo
A34: Fall | B34: FINC | C34: 440 | D34: Finance I/II | E34: 61 | F34: Mon-Thu | G34: 13:30-15:00 | H34: Eberly
A35: Fall | B35: FINC | C35: 440 | D35: Finance I/II | E35: 62 | F35: Mon-Thu | G35: 15:30-17:00 | H35: Eberly
A36: Fall | B36: FINC | C36: 441 | D36: Finance II | E36: 61 | F36: Mon-Thu | G36: 10:30-12:00 | H36: TBD
A37: Fall | B37: FINC | C37: 441 | D37: Finance II | E37: 62 | F37: Mon-Thu | G37: 13:30-15:00 | H37: TBD
A38: Fall | B38: FINC | C38: 442 | D38: Financial Decisions | E38: 61 | F38: Tue-Fri | G38: 8:30-10:00 | H38: Raviv
A39: Fall | B39: FINC | C39: 442 | D39: Financial Decisions | E39: 62 | F39: Tue-Fri | G39: 10:30-12:00 | H39: Raviv
A40: Fall | B40: FINC | C40: 445 | D40: Venture Capital and Private Equity Investing | E40: 61 | F40: Tue-Fri | G40: 13:30-15:00 | H40: Collins
A41: Fall | B41: FINC | C41: 446 | D41: Entrepreneurial Finance | E41: 61 | F41: Tue | G41: 15:15-18:15 | H41: Rogers
A42: Fall | B42: FINC | C42: 446 | D42: Entrepreneurial Finance | E42: 62 | F42: Tue-Fri | G42: 8:30-10:00 | H42: Collins
A43: Fall | B43: FINC | C43: 460 | D43: Investments | E43: 61 | F43: Mon-Thu | G43: 10:30-12:00 | H43: Papanikolaou
A44: Fall | B44: FINC | C44: 463 | D44: Security Analysis | E44: 61 | F44: Tue-Fri | G44: 10:30-12:00 | H44: Vincent
A45: Fall | B45: FINC | C45: 463 | D45: Security Analysis | E45: 62 | F45: Tue-Fri | G45: 13:30-15:00 | H45: Vincent
A46: Fall | B46: FINC | C46: 465 | D46: Derivative Markets I | E46: 61 | F46: Mon-Thu | G46: 8:30-10:00 | H46: Hagerty
A47: Fall | B47: FINC | C47: 465 | D47: Derivative Markets I | E47: 62 | F47: Mon-Thu | G47: 10:30-12:00 | H47: Todorov
A48: Fall | B48: FINC | C48: 470 | D48: International Finance | E48: 61 | F48: Mon-Thu | G48: 13:30-15:00 | H48: Rebelo
A49: Fall | B49: FINC | C49: 470 | D49: International Finance | E49: 62 | F49: Mon-Thu | G49: 15:30-17:00 | H49: Rebelo
A50: Fall | B50: FINC | C50: 915 | D50: Venture Lab (V-Lab) | E50: 61 | F50: Wed | G50: 10:15-12:15 | H50: Hochberg
A51: Fall | B51: FINC | C51: 934-C | D51: Asset Management Practicum II | E51: 81 | F51: Mon | G51: 18:30-21:30 | H51: Vincent
A52: Fall | B52: FINC | C52: 939 | D52: Buyout Lab | E52: 61 | F52: Wed | G52: 10:15-12:15 | H52: Stowell
A53: Fall | B53: HEMA | C53: 441 | D53: Health Policy | E53: 81 | F53: Wed | G53: 6:30-9:30 | H53: Hughes
A54: Fall | B54: HEMA | C54: 910 | D54: Science Boot Camp (Formerly BIOT-910-A) | E54: 61 | F54: Wed | G54: 10:15-12:15 | H54: Vohra
A55: Fall | B55: HEMA | C55: 910-A | D55: Science Boot Camp | E55: 61 | F55: Wed | G55: 10:15-12:15 | H55: Vohra
A56: Fall | B56: INTL | C56: 460 | D56: International Business Strategy | E56: 61 | F56: Tue-Fri | G56: 13:30-15:00 | H56: Spulber
A57: Fall | B57: INTL | C57: 460 | D57: International Business Strategy | E57: 81 | F57: Wed | G57: 18:30-21:30 | H57: Spulber
A58: Fall | B58: INTL | C58: 474 | D58: Cross-Cultural Negotiation | E58: 61 | F58: Mon-Thu | G58: 8:30-10:00 | H58: Brett
A59: Fall | B59: INTL | C59: 474 | D59: Cross-Cultural Negotiation | E59: 62 | F59: Mon-Thu | G59: 10:30-12:00 | H59: Brett
A60: Fall | B60: MECN | C60: 430 | D60: Microeconomic Analysis | E60: 61 | F60: Mon-Thu | G60: 8:30-10:00 | H60: Satterthwaite
A61: Fall | B61: MECN | C61: 430 | D61: Microeconomic Analysis | E61: 62 | F61: Mon-Thu | G61: 10:30-12:00 | H61: Satterthwaite
A62: Fall | B62: MECN | C62: 441 | D62: Competitive Strategy and Industrial Structure | E62: 61 | F62: Mon-Thu | G62: 10:30-12:00 | H62: Klibanoff
A63: Fall | B63: MECN | C63: 441 | D63: Competitive Strategy and Industrial Structure | E63: 62 | F63: Mon-Thu | G63: 13:30-15:00 | H63: Klibanoff
A64: Fall | B64: MEDM | C64: 911 | D64: Media Strategy and Implementation | E64: 81 | F64: Thu | G64: 18:30-21:30 | H64: Smith
A65: Fall | B65: MGMT | C65: 431 | D65: Business Strategy | E65: 61 | F65: MR | G65: 8:30-10:00 | H65: Hubbard
A66: Fall | B66: MGMT | C66: 431 | D66: Business Strategy | E66: 62 | F66: MR | G66: 10:30-12:00 | H66: Mazzeo
A67: Fall | B67: MGMT | C67: 431 | D67: Business Strategy | E67: 63 | F67: MR | G67: 13:30-15:00 | H67: Mazzeo
A68: Fall | B68: MGMT | C68: 431 | D68: Business Strategy | E68: 64 | F68: MR | G68: 15:30-17:00 | H68: Mazzeo
A69: Fall | B69: MGMT | C69: 431 | D69: Business Strategy | E69: 65 | F69: TF | G69: 8:30-10:00 | H69: Busse
A70: Fall | B70: MGMT | C70: 431 | D70: Business Strategy | E70: 66 | F70: TF | G70: 10:30-12:00 | H70: Busse
A71: Fall | B71: MGMT | C71: 431 | D71: Business Strategy | E71: 67 | F71: TF | G71: 13:30-15:00 | H71: Lenzo
A72: Fall | B72: MGMT | C72: 431 | D72: Business Strategy | E72: 68 | F72: TF | G72: 15:30-17:00 | H72: Lenzo
A73: Fall | B73: MGMT | C73: 431 | D73: Business Strategy | E73: 69 | F73: MR | G73: 13:30-15:00 | H73: Hubbard
A74: Fall | B74: MGMT | C74: 444 | D74: Health Economics | E74: 81 | F74: Mon | G74: 18:30-21:00 | H74: Dranove
A75: Fall | B75: MGMT | C75: 452 | D75: Strategy & Organization | E75: 61 | F75: MR | G75: 10:30-12:00 | H75: Ottaviani
A76: Fall | B76: MGMT | C76: 452 | D76: Strategy & Organization | E76: 62 | F76: MR | G76: 13:30-15:00 | H76: Ottaviani
A77: Fall | B77: MGMT | C77: 463 | D77: Management of Technology | E77: 61 | F77: MR | G77: 13:30-15:00 | H77: Greenstein
A78: Fall | B78: MGMT | C78: 512-A | D78: Intl Practicum/Cross-Cultural Management Practice | E78: 61 | F78: TBD | G78: TBD | H78: Haider
A79: Fall | B79: MGMT | C79: 931-A | D79: Strategic Franchising | E79: 81 | F79: Tue | G79: 18:30-21:30 | H79: Cohen
A80: Fall | B80: MGMT | C80: 934 | D80: Managing Turnarounds | E80: 81 | F80: Mon | G80: 18:30-21:30 | H80: Shein
A81: Fall | B81: MKTG | C81: 430 | D81: Marketing Management | E81: 61 | F81: MR | G81: 8:30-10:00 | H81: Grayson
A82: Fall | B82: MKTG | C82: 430 | D82: Marketing Management | E82: 62 | F82: MR | G82: 10:30-12:00 | H82: Grayson
A83: Fall | B83: MKTG | C83: 430 | D83: Marketing Management | E83: 63 | F83: MR | G83: 13:30-15:00 | H83: Zerrillo
A84: Fall | B84: MKTG | C84: 430 | D84: Marketing Management | E84: 64 | F84: MR | G84: 15:30-17:00 | H84: Zerrillo
A85: Fall | B85: MKTG | C85: 430 | D85: Marketing Management | E85: 65 | F85: TF | G85: 8:30-10:00 | H85: Hennessy
A86: Fall | B86: MKTG | C86: 430 | D86: Marketing Management | E86: 66 | F86: TF | G86: 10:30-12:00 | H86: Hennessy
A87: Fall | B87: MKTG | C87: 450 | D87: Research Methods In Marketing | E87: 61 | F87: MR | G87: 8:30-10:00 | H87: Schieffer
A88: Fall | B88: MKTG | C88: 454 | D88: Advertising Strategy | E88: 61 | F88: MR | G88: 13:30-15:00 | H88: Sternthal
A89: Fall | B89: MKTG | C89: 459 | D89: Services Marketing and Management | E89: 81 | F89: Tue | G89: 18:30-21:30 | H89: Honack
A90: Fall | B90: MKTG | C90: 463 | D90: Sales Force Management | E90: 61 | F90: MR | G90: 13:30-15:00 | H90: Zoltners
A91: Fall | B91: MKTG | C91: 464-A | D91: The Management of Product Development | E91: 81 | F91: Mon | G91: 18:30-21:30 | H91: Herbst
A92: Fall | B92: MKTG | C92: 466 | D92: Marketing Strategy | E92: 61 | F92: MR | G92: 10:30-12:00 | H92: Calkins
A93: Fall | B93: MKTG | C93: 466 | D93: Marketing Strategy | E93: 62 | F93: MR | G93: 15:30-17:00 | H93: Calkins
A94: Fall | B94: MKTG | C94: 952 | D94: Strategic Data-Driven Marketing | E94: 81 | F94: Wed | G94: 18:30-21:30 | H94: Jeffery
A95: Fall | B95: MKTG | C95: 952 | D95: Strategic Data-Driven Marketing | E95: 81 | F95: Wed | G95: 18:30-21:30 | H95: Walker
A96: Fall | B96: MORS | C96: 430 | D96: Leadership in Organizations | E96: 61 | F96: MTWRF | G96: 10:00-13:00 | H96: Medvec
A97: Fall | B97: MORS | C97: 430 | D97: Leadership in Organizations | E97: 62 | F97: MTWRF | G97: 10:00-13:00 | H97: Uzzi
A98: Fall | B98: MORS | C98: 430 | D98: Leadership in Organizations | E98: 63 | F98: MTWRF | G98: 14:00-17:00 | H98: Medvec
A99: Fall | B99: MORS | C99: 430 | D99: Leadership in Organizations | E99: 64 | F99: MTWRF | G99: 14:00-17:00 | H99: Uzzi
A100: Fall | B100: MORS | C100: 430 | D100: Leadership in Organizations | E100: 65 | F100: MTWRF | G100: 10:00-13:00 | H100: Galinsky
A101: Fall | B101: MORS | C101: 430 | D101: Leadership in Organizations | E101: 66 | F101: MTWRF | G101: 10:00-13:00 | H101: Phillips
A102: Fall | B102: MORS | C102: 430 | D102: Leadership in Organizations | E102: 67 | F102: MTWRF | G102: 14:00-17:00 | H102: Galinsky
A103: Fall | B103: MORS | C103: 430 | D103: Leadership in Organizations | E103: 68 | F103: MTWRF | G103: 14:00-17:00 | H103: Phillips
A104: Fall | B104: MORS | C104: 449-A | D104: Writing in Organizations | E104: 61 | F104: TF | G104: 13:30-15:00 | H104: Shwom
A105: Fall | B105: MORS | C105: 453 | D105: Power In Organizations: Sources, Strategies and Skills | E105: 61 | F105: Tue-Fri | G105: 10:30-12:00 | H105: Ocasio
A106: Fall | B106: MORS | C106: 453 | D106: Power In Organizations: Sources, Strategies and Skills | E106: 62 | F106: Tue-Fri | G106: 13:30-15:00 | H106: Ocasio
A107: Fall | B107: MORS | C107: 460 | D107: Leading and Managing Teams | E107: 91 | F107: Mon | G107: 18:30-21:30 | H107: Kinias
A108: Fall | B108: MORS | C108: 468 | D108: Managerial Leadership (formerly MGMT-468-0) | E108: 91 | F108: Wed | G108: 18:30-21:30 | H108: Kraemer
A109: Fall | B109: MORS | C109: 470 | D109: Negotiations | E109: 91 | F109: Mon | G109: 18:30-21:30 | H109: Thompson
A110: Fall | B110: MORS | C110: 470 | D110: Negotiations | E110: 92 | F110: Tue | G110: 18:30-21:30 | H110: TBD
A111: Fall | B111: OPNS | C111: 440 | D111: Analytical Methods for Operations | E111: 61 | F111: MR | G111: 15:30-17:00 | H111: Deshmukh
A112: Fall | B112: OPNS | C112: 450 | D112: Spreadsheet Modeling for Managerial Decisions | E112: 61 | F112: MR | G112: 10:30-12:00 | H112: Walker
A113: Fall | B113: OPNS | C113: 450 | D113: Spreadsheet Modeling for Managerial Decisions | E113: 62 | F113: MR | G113: 13:30-15:00 | H113: Walker
A114: Fall | B114: OPNS | C114: 455 | D114: Logistics and Supply Chain Management | E114: 61 | F114: TF | G114: 8:30-10:00 | H114: Chopra
A115: Fall | B115: REAL | C115: 443 | D115: Urban Economic Development and Real Estate Market Analysis | E115: 81 | F115: Thu | G115: 18:30-21:30 | H115: Mattoon
A116: Fall | B116: REAL | C116: 447 | D116: Legal Issues In Real Estate | E116: 81 | F116: Tue | G116: 18:30-21:30 | H116: Dana
A117: Fall | B117: REAL | C117: 916 | D117: RE Lab | E117: 81 | F117: Wed | G117: 10:15-12:15 | H117: TBD
A118: Fall | B118: SEEK | C118: 440-A | D118: Values and Crisis Decision Making | E118: 61 | F118: MTWRF | G118: 13:30-16:30 | H118: Feddersen
A119: Fall | B119: SEEK | C119: 440-A | D119: Values and Crisis Decision Making | E119: 62 | F119: MTWRF | G119: 13:30-16:30 | H119: Callander
A120: Fall | B120: SEEK | C120: 440-A | D120: Values and Crisis Decision Making | E120: 63 | F120: MTWRF | G120: 9:00-12:00 | H120: Feddersen
A121: Fall | B121: SEEK | C121: 440-A | D121: Values and Crisis Decision Making | E121: 64 | F121: MTWRF | G121: 9:00-12:00 | H121: Callander
A122: Fall | B122: SEEK | C122: 440-A | D122: Values and Crisis Decision Making | E122: 65 | F122: MTWRF | G122: 13:30-16:30 | H122: Baliga
A123: Fall | B123: SEEK | C123: 440-A | D123: Values and Crisis Decision Making | E123: 66 | F123: MTWRF | G123: 13:30-16:30 | H123: Austen-Smith
A124: Fall | B124: SEEK | C124: 440-A | D124: Values and Crisis Decision Making | E124: 67 | F124: MTWRF | G124: 9:00-12:00 | H124: Baliga
A125: Fall | B125: SEEK | C125: 440-A | D125: Values and Crisis Decision Making | E125: 68 | F125: MTWRF | G125: 9:00-12:00 | H125: Austen-Smith
A126: Fall | B126: SEEK | C126: 441 | D126: Strategic Management in Non-Market Environments | E126: 61 | F126: TF | G126: 10:30-12:00 | H126: TBD
A127: Fall | B127: SEEK | C127: 450 | D127: Leading the Mission Driven Enterprises | E127: 81 | F127: Mon | G127: 18:30-21:30 | H127: Haider
A128: Fall | B128: SEEK | C128: 459-A | D128: Social Impact Speaker Series | E128: 81 | F128: Wed | G128: 18:30-21:30 | H128: TBD
A129: Fall | B129: SEEK | C129: 470 | D129: Public Economics for Business Leaders | E129: 81 | F129: Thu | G129: 18:30-21:30 | H129: Besanko
A130: Fall | B130: SEEK | C130: 935 | D130: Environmental Management and Sustainability | E130: 61 | F130: MR | G130: 8:30-10:00 | H130: Kiesling
A131: Fall | B131: TECH | C131: 917 | D131: Strategic and Analytical Customer Relationship Management | E131: 81 | F131: Thu | G131: 18:30-21:30 | H131: Choudhary
A132: Winter | B132: ACCT | C132: 431 | D132: Managerial Accounting | E132: 81 | F132: Tue | G132: 18:30-21:30 | H132: TBD
A133: Winter | B133: ACCT | C133: 451 | D133: Financial Reporting and Analysis | E133: 61 | F133: Tue-Fri | G133: 10:30-12:00 | H133: Sunder
A134: Winter | B134: ACCT | C134: 451 | D134: Financial Reporting and Analysis | E134: 62 | F134: Tue-Fri | G134: 13:30-15:00 | H134: Sunder
A135: Winter | B135: ACCT | C135: 451 | D135: Financial Reporting and Analysis | E135: 81 | F135: Mon | G135: 18:30-21:30 | H135: Sunder
A136: Winter | B136: ACCT | C136: 452 | D136: Financial Reporting and Analysis II | E136: 81 | F136: Tue | G136: 18:30-21:30 | H136: Finn
A137: Winter | B137: BLAW | C137: 921 | D137: Business Law for Entrepreneurs | E137: 81 | F137: Thu | G137: 18:30-21:30 | H137: Bradley
A138: Winter | B138: DECS | C138: 434 | D138: Statistical Methods For Management Decisions | E138: 61 | F138: Mon-Thu | G138: 8:30-10:00 | H138: Ekmekci
A139: Winter | B139: DECS | C139: 434 | D139: Statistical Methods For Management Decisions | E139: 62 | F139: Mon-Thu | G139: 10:30-12:00 | H139: Ekmekci
A140: Winter | B140: DECS | C140: 434 | D140: Statistical Methods For Management Decisions | E140: 63 | F140: Mon-Thu | G140: 13:30-15:00 | H140: Kuzmics
A141: Winter | B141: DECS | C141: 434 | D141: Statistical Methods For Management Decisions | E141: 64 | F141: Mon-Thu | G141: 15:30-17:00 | H141: Kuzmics
A142: Winter | B142: DECS | C142: 434 | D142: Statistical Methods For Management Decisions | E142: 65 | F142: Tue-Fri | G142: 10:30-12:00 | H142: TBD
A143: Winter | B143: DECS | C143: 434 | D143: Statistical Methods For Management Decisions | E143: 66 | F143: Tue-Fri | G143: 13:30-15:00 | H143: TBD
A144: Winter | B144: DECS | C144: 434 | D144: Statistical Methods For Management Decisions | E144: 91 | F144: Wed | G144: 18:30-21:30 | H144: Fong
A145: Winter | B145: DECS | C145: 450 | D145: Decision Analysis | E145: 61 | F145: Mon-Thu | G145: 13:30-15:00 | H145: McKeon
A146: Winter | B146: DECS | C146: 450 | D146: Decision Analysis | E146: 62 | F146: Mon-Thu | G146: 15:30-17:00 | H146: McKeon
A147: Winter | B147: DECS | C147: 452 | D147: Strategic Decision Making | E147: 61 | F147: Tue-Fri | G147: 15:30-17:00 | H147: Kalai
A148: Winter | B148: ENTR | C148: 462 | D148: Entrepreneurship & New Venture Formulation | E148: 81 | F148: Mon | G148: 18:30-21:30 | H148: Shein
A149: Winter | B149: FINC | C149: 430 | D149: Finance I | E149: 61 | F149: Tue-Fri | G149: 8:30-10:00 | H149: Vissing-Jorgensen
A150: Winter | B150: FINC | C150: 430 | D150: Finance I | E150: 62 | F150: Tue-Fri | G150: 10:30-12:00 | H150: Vissing-Jorgensen
A151: Winter | B151: FINC | C151: 430 | D151: Finance I | E151: 63 | F151: Tue-Fri | G151: 13:30-15:00 | H151: Vissing-Jorgensen
A152: Winter | B152: FINC | C152: 430 | D152: Finance I | E152: 64 | F152: TBD | G152: TBD | H152: TBD
A153: Winter | B153: FINC | C153: 440 | D153: Finance I/II | E153: 61 | F153: Mon-Thu | G153: 13:30-15:00 | H153: Banerjee
A154: Winter | B154: FINC | C154: 441 | D154: Finance II | E154: 61 | F154: Mon-Thu | G154: 13:30-15:00 | H154: Petersen
A155: Winter | B155: FINC | C155: 441 | D155: Finance II | E155: 62 | F155: Mon-Thu | G155: 8:30-10:00 | H155: Petersen
A156: Winter | B156: FINC | C156: 441 | D156: Finance II | E156: 63 | F156: Tue-Fri | G156: 10:30-12:00 | H156: Matsa
A157: Winter | B157: FINC | C157: 442 | D157: Financial Decisions | E157: 61 | F157: Tue-Fri | G157: 8:30-10:00 | H157: Fishman
A158: Winter | B158: FINC | C158: 442 | D158: Financial Decisions | E158: 62 | F158: Tue-Fri | G158: 10:30-12:00 | H158: Fishman
A159: Winter | B159: FINC | C159: 442 | D159: Financial Decisions | E159: 63 | F159: Tue-Fri | G159: 13:30-15:00 | H159: Thomson
A160: Winter | B160: FINC | C160: 442 | D160: Financial Decisions | E160: 64 | F160: Tue-Fri | G160: 15:30-17:00 | H160: Thomson
A161: Winter | B161: FINC | C161: 445 | D161: Venture Capital and Private Equity Investing | E161: 91 | F161: Tue | G161: 18:30-21:30 | H161: TBD
A162: Winter | B162: FINC | C162: 446 | D162: Entrepreneurial Finance | E162: 61 | F162: Tue | G162: 15:15-18:15 | H162: Rogers
A163: Winter | B163: FINC | C163: 447 | D163: Financial Strategy and Tax Planning | E163: 61 | F163: Mon-Thu | G163: 13:30-15:00 | H163: Petersen
A164: Winter | B164: FINC | C164: 460 | D164: Investments | E164: 61 | F164: Tue-Fri | G164: 13:30-15:00 | H164: Schaumburg
A165: Winter | B165: FINC | C165: 461 | D165: Investment Banking | E165: 61 | F165: Tue-Fri | G165: 10:30-12:00 | H165: Stowell
A166: Winter | B166: FINC | C166: 465 | D166: Derivative Markets I | E166: 61 | F166: Mon-Thu | G166: 8:30-10:00 | H166: McDonald
A167: Winter | B167: FINC | C167: 465 | D167: Derivative Markets I | E167: 62 | F167: Mon-Thu | G167: 10:30-12:00 | H167: McDonald
A168: Winter | B168: FINC | C168: 467 | D168: Derivative Markets II | E168: 81 | F168: Tue | G168: 18:30-21:30 | H168: McDonald
A169: Winter | B169: FINC | C169: 470 | D169: International Finance | E169: 61 | F169: Mon-Thu | G169: 15:30-17:00 | H169: Andersen
A170: Winter | B170: FINC | C170: 915 | D170: Venture Lab (V-Lab) | E170: 61 | F170: Wed | G170: 13:30-15:00 | H170: Hochberg
A171: Winter | B171: FINC | C171: 918-A | D171: Major Project and Project Finance in Emerging Markets | E171: 81 | F171: Tue | G171: 18:30-21:30 | H171: Knuepfer
A172: Winter | B172: FINC | C172: 932 | D172: Case Studies in Venture Investment and Management | E172: 81 | F172: Thu | G172: 18:30-21:30 | H172: Hochberg
A173: Winter | B173: FINC | C173: 935-C | D173: Asset Management Practicum III | E173: 81 | F173: Mon | G173: 18:30-21:30 | H173: Korajczyk
A174: Winter | B174: FINC | C174: 939 | D174: Buyout Lab | E174: 61 | F174: TBD | G174: TBD | H174: Stowell
A175: Winter | B175: FINC | C175: 940-A | D175: Financial Modeling for Leveraged Buyout Transactions | E175: 91 | F175: TBD | G175: TBD | H175: Saraiya
A176: Winter | B176: INTL | C176: 442 | D176: International Healthcare Systems | E176: 81 | F176: Mon | G176: 18:30-21:30 | H176: Shalowitz
A177: Winter | B177: INTL | C177: 466 | D177: International Business Strategy in Non-Market Environments | E177: 61 | F177: Mon-Thu | G177: 10:30-12:00 | H177: Jones
A178: Winter | B178: INTL | C178: 466 | D178: International Business Strategy in Non-Market Environments | E178: 62 | F178: Mon-Thu | G178: 13:30-15:00 | H178: Jones
A179: Winter | B179: INTL | C179: 473 | D179: Global Initiatives in Management (GIM) | E179: 60 | F179: Wed | G179: 15:15-18:15 | H179: TBD
A180: Winter | B180: INTL | C180: 473 | D180: Global Initiatives in Management (GIM) | E180: 61 | F180: Wed | G180: 15:15-18:15 | H180: TBD
A181: Winter | B181: INTL | C181: 473 | D181: Global Initiatives in Management (GIM) | E181: 62 | F181: Wed | G181: 15:15-18:15 | H181: TBD
A182: Winter | B182: INTL | C182: 473 | D182: Global Initiatives in Management (GIM) | E182: 63 | F182: Wed | G182: 15:15-18:15 | H182: TBD
A183: Winter | B183: INTL | C183: 473 | D183: Global Initiatives in Management (GIM) | E183: 64 | F183: Wed | G183: 15:15-18:15 | H183: TBD
A184: Winter | B184: INTL | C184: 473 | D184: Global Initiatives in Management (GIM) | E184: 65 | F184: Wed | G184: 15:15-18:15 | H184: TBD
A185: Winter | B185: INTL | C185: 473 | D185: Global Initiatives in Management (GIM) | E185: 66 | F185: Wed | G185: 15:15-18:15 | H185: TBD
A186: Winter | B186: INTL | C186: 473 | D186: Global Initiatives in Management (GIM) | E186: 67 | F186: Wed | G186: 15:15-18:15 | H186: TBD
A187: Winter | B187: INTL | C187: 473 | D187: Global Initiatives in Management (GIM) | E187: 68 | F187: Wed | G187: 15:15-18:15 | H187: TBD
A188: Winter | B188: INTL | C188: 473 | D188: Global Initiatives in Management (GIM) | E188: 69 | F188: Wed | G188: 15:15-18:15 | H188: TBD
A189: Winter | B189: INTL | C189: 473 | D189: Global Initiatives in Management (GIM) | E189: 91 | F189: Wed | G189: 15:15-18:15 | H189: TBD
A190: Winter | B190: INTL | C190: 473 | D190: Global Initiatives in Management (GIM) | E190: 92 | F190: Wed | G190: 15:15-18:15 | H190: TBD
A191: Winter | B191: INTL | C191: 474 | D191: Cross-Cultural Negotiation | E191: 91 | F191: Thu | G191: 18:30-21:30 | H191: TBD
A192: Winter | B192: INTL | C192: 915 | D192: Global Lab (G-Lab) | E192: 61 | F192: Mon | G192: 15:30-17:00 | H192: Christensen
A193: Winter | B193: MECN | C193: 430 | D193: Microeconomic Analysis | E193: 61 | F193: Mon-Thu | G193: 8:30-10:00 | H193: Atakan
A194: Winter | B194: MECN | C194: 430 | D194: Microeconomic Analysis | E194: 62 | F194: Mon-Thu | G194: 10:30-12:00 | H194: Atakan
A195: Winter | B195: MECN | C195: 430 | D195: Microeconomic Analysis | E195: 63 | F195: Mon-Thu | G195: 13:30-15:00 | H195: Al-Najjar
A196: Winter | B196: MECN | C196: 430 | D196: Microeconomic Analysis | E196: 64 | F196: Mon-Thu | G196: 15:30-17:00 | H196: Al-Najjar
A197: Winter | B197: MECN | C197: 430 | D197: Microeconomic Analysis | E197: 65 | F197: Tue-Fri | G197: 8:30-10:00 | H197: TBD
A198: Winter | B198: MECN | C198: 430 | D198: Microeconomic Analysis | E198: 66 | F198: Tue-Fri | G198: 10:30-12:00 | H198: Loeper
A199: Winter | B199: MECN | C199: 430 | D199: Microeconomic Analysis | E199: 67 | F199: Tue-Fri | G199: 13:30-15:00 | H199: Loeper
A200: Winter | B200: MECN | C200: 430 | D200: Microeconomic Analysis | E200: 68 | F200: Tue-Fri | G200: 15:30-17:00 | H200: TBD
... 177 more rows

Sheet TCEs
A1: Course | B1: ACCT-430-0
B3: Data
A4: Professor | B4: Average of Class Ovrl | C4: Average of Instr Ovrl | D4: Average of Difficulty | E4: Average of Work Load
A5: Drebin | B5: 7.9 | C5: 8.2 | D5: 5.74 | E5: 5.82
A6: Dye | B6: 7.65 | C6: 8.15 | D6: 6.8 | E6: 6.15
A7: Finn | B7: 7.98 | C7: 8.62 | D7: 6.56 | E7: 6.24
A8: Lansford | B8: 7.55 | C8: 7.675 | D8: 6.5625 | E8: 7.0125
A9: Magee | B9: 7.5 | C9: 8.6 | D9: 6.4 | E9: 6.6
A10: Powers | B10: 8.6 | C10: 9.05 | D10: 6.7 | E10: 7.15
A11: Prince | B11: 6.066666667 | C11: 5.466666667 | D11: 5.833333333 | E11: 5.466666667
A12: Sridharan | B12: 7.575 | C12: 8.05 | D12: 6.275 | E12: 6.025
A13: Grand Total | B13: 7.61 | C13: 7.903333333 | D13: 6.333333333 | E13: 6.336666667

Sheet Majors (2Y)
A1: Kellogg Majors | D1: Core Courses
A3: Accounting Information & Management | B3: ='ACCT Info & MGMT'!A3 -> NOT MAJORING IN THIS FIELD | D3: Course | E3: Course Name | F3: Status
A4: Accounting Information & Management IY | B4: ='ACCT Info & MGMT 1Y & MMM'!A3 -> NOT MAJORING IN THIS FIELD | D4: =IF(VLOOKUP(4,'Course List'!$A:$B,2,0)<>"Not Taken","ACCT-434","ACCT-430") -> ACCT-430 | E4: =IF(D4="ACCT-430",VLOOKUP(1,'Course List'!$A:$F,6,0),IF(D4="ACCT-434",VLOOKUP(4,'Course List'!$A:$F,6,0))) -> Accounting for Decision Making | F4: =IF(D4="ACCT-430",VLOOKUP(1,'Course List'!$A:$B,2,0),IF(D4="ACCT-434",VLOOKUP(4,'Course List'!$A:$B,2,0))) -> Not Taken
A5: Analytical Consulting | B5: ='Analyt Consulting'!A3 -> NOT MAJORING IN THIS FIELD | D5: =IF(VLOOKUP(37,'Course List'!$A:$B,2,0)<>"Not Taken","DECS-436","DECS-433") -> DECS-433 | E5: =IF(D5="DECS-433",VLOOKUP(35,'Course List'!$A:$F,6,0),IF(D5="DECS-436",VLOOKUP(37,'Course List'!$A:$F,6,0),IF(D5="Waived","Decision Sciences I Waived"))) -> Mathematical Methods for Management Decisions | F5: =IF(D5="DECS-433",VLOOKUP(35,'Course List'!$A:$B,2,0),IF(D5="DECS-436",VLOOKUP(37,'Course List'!$A:$B,2,0))) -> Not Taken
A6: Analytical Finance | B6: ='Analytical Finance'!A3 -> NOT MAJORING IN THIS FIELD | D6: =IF(VLOOKUP(38,'Course List'!$A:$B,2,0)<>"Not Taken","DECS-437","DECS-434") -> DECS-434 | E6: =IF(D6="DECS-434",VLOOKUP(36,'Course List'!$A:$F,6,0),IF(D6="DECS-437",VLOOKUP(38,'Course List'!$A:$F,6,0),IF(D6="Waived","Decision Sciences II Waived"))) -> Statistical Methods For Management Decisions | F6: =IF(D6="DECS-434",VLOOKUP(36,'Course List'!$A:$B,2,0),IF(D6="DECS-437",VLOOKUP(38,'Course List'!$A:$B,2,0))) -> Not Taken
A7: Biotechnology | B7: =Biotech!A3 -> NOT MAJORING IN THIS FIELD | D7: =IF(VLOOKUP(56,'Course List'!$A:$B,2,0)<>"Not Taken","FINC-440","FINC-430") -> FINC-430 | E7: =IF(D7="FINC-430",VLOOKUP(55,'Course List'!$A:$F,6,0),IF(D7="FINC-440",VLOOKUP(56,'Course List'!$A:$F,6,0),IF(D7="Waived","Finance Waived"))) -> Finance I | F7: =IF(D7="FINC-430",VLOOKUP(55,'Course List'!$A:$B,2,0),IF(D7="FINC-440",VLOOKUP(56,'Course List'!$A:$B,2,0))) -> Not Taken
A8: Decision Sciences | B8: =DECS!A3 -> NOT MAJORING IN THIS FIELD | D8: =IF(VLOOKUP(117,'Course List'!$A:$B,2,0)<>"Not Taken","MECN-436","MECN-430") -> MECN-430 | E8: =IF(D8="MECN-430",VLOOKUP(116,'Course List'!$A:$F,6,0),IF(D8="MECN-436",VLOOKUP(117,'Course List'!$A:$F,6,0),IF(D8="Waived","Microeconomics Waived"))) -> Microeconomic Analysis | F8: =IF(D8="MECN-430",VLOOKUP(116,'Course List'!$A:$B,2,0),IF(D8="MECN-436",VLOOKUP(117,'Course List'!$A:$B,2,0))) -> Not Taken
A9: Entrepreneurship & Innovation | B9: ='ENTR & Innovation'!A3 -> NOT MAJORING IN THIS FIELD | D9: MGMT-431 | E9: =IF(D9="MGMT-431",VLOOKUP(132,'Course List'!$A:$F,6,0),IF(D9="Waived","Business Strategy Waived")) -> Business Strategy | F9: =VLOOKUP(132,'Course List'!$A:$B,2,0) -> Not Taken
A10: Finance | B10: =FINC!A3 -> NOT MAJORING IN THIS FIELD | D10: MKTG-430 | E10: =IF(D10="MKTG-430",VLOOKUP(163,'Course List'!$A:$F,6,0),IF(D10="Waived","Marketing Waived")) -> Marketing Management | F10: =VLOOKUP(163,'Course List'!$A:$B,2,0) -> Not Taken
A11: Health Enterprise Management (HEMA) - Health Industry track | B11: =HEMA!A3 -> NOT MAJORING IN THIS FIELD | D11: MORS-430 | E11: =IF(D11="MORS-430",VLOOKUP(181,'Course List'!$A:$F,6,0)) -> Leadership in Organizations | F11: =VLOOKUP(181,'Course List'!$A:$B,2,0) -> Complete
A12: HEMA - Biotech and Medical Products track | B12: =HEMA!A4 -> NOT MAJORING IN THIS FIELD | D12: OPNS-430 | E12: =IF(D12="OPNS-430",VLOOKUP(210,'Course List'!$A:$F,6,0),IF(D12="Waived","Operations Waived")) -> Operations Management | F12: =VLOOKUP(210,'Course List'!$A:$B,2,0) -> Not Taken
A13: Health Industry Management* | B13: =HIMT!A3 -> NOT MAJORING IN THIS FIELD | D13: SEEK-440-A | E13: =IF(D13="SEEK-440-A",VLOOKUP(234,'Course List'!$A:$F,6,0)) -> Values and Crisis Decision Making | F13: =VLOOKUP(234,'Course List'!$A:$B,2,0) -> Will Enroll
A14: Human Resource Management | B14: =HR!A3 -> NOT MAJORING IN THIS FIELD
A15: International Business | B15: =INTL!A3 -> NOT MAJORING IN THIS FIELD
A16: Management & Organizations | B16: ='MGMT & Org'!A3 -> NOT MAJORING IN THIS FIELD | E16: Other Graduation Requirements
A17: Management & Strategy | B17: ='MGMT & Strat'!A3 -> NOT MAJORING IN THIS FIELD
A18: Managerial Economics | B18: ='Managerial Econ'!A3 -> NOT MAJORING IN THIS FIELD | E18: Requirement | F18: Status
A19: Marketing | B19: =Marketing!A3 -> NOT MAJORING IN THIS FIELD | E19: Credit Hours | F19: =IF(F20>=24.5,"Complete",IF(F20+F21>=24.5,"Completed This Quarter",IF(F20+F21+F22>=24.5,"In Progress","Incomplete"))) -> Incomplete
A20: Marketing 1Y | B20: ='Marketing 1Y'!A3 -> NOT MAJORING IN THIS FIELD | E20: Complete | F20: =COUNTIFS('Course List'!B5:B298,"Complete",'Course List'!H5:H298,"1")+(COUNTIFS('Course List'!B5:B298,"Complete",'Course List'!H5:H298,"0.5")/2) -> 1
A21: Marketing Management | B21: ='MKTG MGMT'!A3 -> NOT MAJORING IN THIS FIELD | E21: Enrolled | F21: =COUNTIFS('Course List'!B5:B298,"Enrolled",'Course List'!H5:H298,"1")+(COUNTIFS('Course List'!B5:B298,"Enrolled",'Course List'!H5:H298,"0.5")/2) -> 0
A22: Marketing Management 1Y | B22: ='MKTG MGMT 1Y'!A3 -> NOT MAJORING IN THIS FIELD | E22: Planned | F22: =COUNTIFS('Course List'!B5:B298,"Will Enroll",'Course List'!H5:H298,"1")+(COUNTIFS('Course List'!B5:B298,"Will Enroll",'Course List'!H5:H298,"0.5")/2) -> 0.5
A23: Media Management | B23: ='Media MGMT'!A3 -> NOT MAJORING IN THIS FIELD | E23: Total Credit Hours | F23: =SUM(F20:F22) -> 1.5
A24: Operations Management | B24: =OPNS!A3 -> NOT MAJORING IN THIS FIELD | E24: At least one Major | F24: =IF(COUNTIF(B3:B29,"Complete")>=1,"Complete","Incomplete") -> Incomplete
A25: Real Estate Management | B25: ='Real Estate MGMT'!A3 -> NOT MAJORING IN THIS FIELD
A26: Special Competency in Health Enterprise Excellence | B26: =SCHEMA!A3 -> NOT MAJORING IN THIS FIELD
A27: Social Enterprise at Kellogg (SEEK) | B27: =SEEK!A3 -> POTENTIAL MAJOR
A28: SEEK - Nonprofit Specilization | B28: =SEEK!A4 -> POTENTIAL MAJOR
A29: Technology Industry Management | B29: ='Tech Industry MGMT'!A3 -> NOT MAJORING IN THIS FIELD

Sheet Majors (MMM)
A1: Kellogg Majors | D1: Core Courses
A3: Accounting Information & Management | B3: ='ACCT Info & MGMT'!A3 -> NOT MAJORING IN THIS FIELD | D3: Course | E3: Course Name | F3: Status
A4: Accounting Information & Management IY | B4: ='ACCT Info & MGMT 1Y & MMM'!A3 -> NOT MAJORING IN THIS FIELD | D4: ACCT-439 | E4: Accounting for Manufacturing Management | F4: =VLOOKUP(6,'Course List'!$A:$B,2,0) -> Not Taken
A5: Analytical Consulting | B5: ='Analyt Consulting'!A3 -> NOT MAJORING IN THIS FIELD | D5: FINC-440 | E5: =VLOOKUP(56,'Course List'!$A:$F,6,0) -> Finance I & II | F5: =VLOOKUP(56,'Course List'!$A:$B,2,0) -> Not Taken
A6: Analytical Finance | B6: ='Analytical Finance'!A3 -> NOT MAJORING IN THIS FIELD | D6: IEMS-471-1 | E6: =VLOOKUP(100,'Course List'!$A:$F,6,0) -> Factory Physics I | F6: =VLOOKUP(100,'Course List'!$A:$B,2,0) -> Not Taken
A7: Biotechnology | B7: =Biotech!A3 -> NOT MAJORING IN THIS FIELD | D7: IEMS-471-2 | E7: =VLOOKUP(101,'Course List'!$A:$F,6,0) -> Factory Physics II | F7: =VLOOKUP(101,'Course List'!$A:$B,2,0) -> Not Taken
A8: Decision Sciences | B8: =DECS!A3 -> NOT MAJORING IN THIS FIELD | D8: IEMS-490 | E8: =VLOOKUP(262,'Course List'!$A:$F,6,0) -> New Product Innovation | F8: =VLOOKUP(262,'Course List'!$A:$B,2,0) -> Not Taken
A9: Entrepreneurship & Innovation | B9: ='ENTR & Innovation'!A3 -> NOT MAJORING IN THIS FIELD | D9: IEMS-497 | E9: =VLOOKUP(263,'Course List'!$A:$F,6,0) -> Innovation Mini-courses | F9: =VLOOKUP(263,'Course List'!$A:$B,2,0) -> Not Taken
A10: Finance | B10: =FINC!A3 -> NOT MAJORING IN THIS FIELD | D10: MECN-430 | E10: =VLOOKUP(116,'Course List'!$A:$F,6,0) -> Microeconomic Analysis | F10: =VLOOKUP(116,'Course List'!$A:$B,2,0) -> Not Taken
A11: Health Enterprise Management (HEMA) - Health Industry track | B11: =HEMA!A3 -> NOT MAJORING IN THIS FIELD | D11: MGMT-431 | E11: =VLOOKUP(132,'Course List'!$A:$F,6,0) -> Business Strategy | F11: =VLOOKUP(132,'Course List'!$A:$B,2,0) -> Not Taken
A12: HEMA - Biotech and Medical Products track | B12: =HEMA!A4 -> NOT MAJORING IN THIS FIELD | D12: MKTG-430 | E12: =VLOOKUP(163,'Course List'!$A:$F,6,0) -> Marketing Management | F12: =VLOOKUP(163,'Course List'!$A:$B,2,0) -> Not Taken
A13: Health Industry Management* | B13: =HIMT!A3 -> NOT MAJORING IN THIS FIELD | D13: MORS-430 | E13: =VLOOKUP(181,'Course List'!$A:$F,6,0) -> Leadership in Organizations | F13: =VLOOKUP(181,'Course List'!$A:$B,2,0) -> Complete
A14: Human Resource Management | B14: =HR!A3 -> NOT MAJORING IN THIS FIELD | D14: =IF(VLOOKUP(215,'Course List'!$A:$B,2,0)<>"Not Taken",IF(VLOOKUP(218,'Course List'!$A:$B,2,0)<>"Not Taken","OPNS-912","OPNS-455"),IF(VLOOKUP(218,'Course List'!$A:$B,2,0)<>"Not Taken","OPNS-912","OPNS-454")) -> OPNS-454 | E14: =IF(D14="OPNS-454",VLOOKUP(214,'Course List'!$A:$F,6,0),IF(D14="OPNS-455",VLOOKUP(215,'Course List'!$A:$F,6,0),IF(D14="OPNS-912",VLOOKUP(218,'Course List'!$A:$F,6,0)))) -> Operations Strategy | F14: =IF(D14="OPNS-454",VLOOKUP(214,'Course List'!$A:$B,2,0),IF(D14="OPNS-455",VLOOKUP(215,'Course List'!$A:$B,2,0),IF(D14="OPNS-912",VLOOKUP(218,'Course List'!$A:$B,2,0)))) -> Not Taken
A15: International Business | B15: =INTL!A3 -> NOT MAJORING IN THIS FIELD | D15: SEEK-440-A | E15: =VLOOKUP(234,'Course List'!$A:$F,6,0) -> Values and Crisis Decision Making | F15: =VLOOKUP(234,'Course List'!$A:$B,2,0) -> Will Enroll
A16: Management & Organizations | B16: ='MGMT & Org'!A3 -> NOT MAJORING IN THIS FIELD | E16: Manufacturing Elective #1 | F16: Not Taken
A17: Management & Strategy | B17: ='MGMT & Strat'!A3 -> NOT MAJORING IN THIS FIELD | E17: Manufacturing Elective #2 | F17: Not Taken
A18: Managerial Economics | B18: ='Managerial Econ'!A3 -> NOT MAJORING IN THIS FIELD | E18: Manufacturing Elective #3 | F18: Not Taken
A19: Marketing | B19: =Marketing!A3 -> NOT MAJORING IN THIS FIELD
A20: Marketing 1Y | B20: ='Marketing 1Y'!A3 -> NOT MAJORING IN THIS FIELD
A21: Marketing Management | B21: ='MKTG MGMT'!A3 -> NOT MAJORING IN THIS FIELD | E21: Other Graduation Requirements
A22: Marketing Management 1Y | B22: ='MKTG MGMT 1Y'!A3 -> NOT MAJORING IN THIS FIELD
A23: Media Management | B23: ='Media MGMT'!A3 -> NOT MAJORING IN THIS FIELD | E23: Requirement | F23: Status
A24: Operations Management | B24: =OPNS!A3 -> NOT MAJORING IN THIS FIELD | E24: Credit Hours | F24: =IF(F25>=24.5,"Complete",IF(F25+F26>=24.5,"Completed This Quarter",IF(F25+F26+F27>=24.5,"In Progress","Incomplete"))) -> Incomplete
A25: Real Estate Management | B25: ='Real Estate MGMT'!A3 -> NOT MAJORING IN THIS FIELD | E25: Complete | F25: =COUNTIFS('Course List'!B5:B298,"Complete",'Course List'!H5:H298,"1")+(COUNTIFS('Course List'!B5:B298,"Complete",'Course List'!H5:H298,"0.5")/2) -> 1
A26: Special Competency in Health Enterprise Excellence | B26: =SCHEMA!A3 -> NOT MAJORING IN THIS FIELD | E26: Enrolled | F26: =COUNTIFS('Course List'!B5:B298,"Enrolled",'Course List'!H5:H298,"1")+(COUNTIFS('Course List'!B5:B298,"Enrolled",'Course List'!H5:H298,"0.5")/2) -> 0
A27: Social Enterprise at Kellogg (SEEK) | B27: =SEEK!A3 -> POTENTIAL MAJOR | E27: Planned | F27: =COUNTIFS('Course List'!B5:B298,"Will Enroll",'Course List'!H5:H298,"1")+(COUNTIFS('Course List'!B5:B298,"Will Enroll",'Course List'!H5:H298,"0.5")/2) -> 0.5
A28: SEEK - Nonprofit Specilization | B28: =SEEK!A4 -> POTENTIAL MAJOR | E28: Total Credit Hours | F28: =SUM(F25:F27) -> 1.5
A29: Technology Industry Management | B29: ='Tech Industry MGMT'!A3 -> NOT MAJORING IN THIS FIELD | E29: At least one Major | F29: =IF(COUNTIF(B3:B26,"Complete")>=1,"Complete","Incomplete") -> Incomplete

Sheet Majors (1Y)
A1: Kellogg Majors | D1: Core Courses
A3: Accounting Information & Management | B3: ='ACCT Info & MGMT'!A3 -> NOT MAJORING IN THIS FIELD | D3: Course | E3: Course Name | F3: Status
A4: Accounting Information & Management IY | B4: ='ACCT Info & MGMT 1Y & MMM'!A3 -> NOT MAJORING IN THIS FIELD | D4: MGMT-431 | E4: =VLOOKUP(132,'Course List'!$A:$F,6,0) -> Business Strategy | F4: =VLOOKUP(132,'Course List'!$A:$B,2,0) -> Not Taken
A5: Analytical Consulting | B5: ='Analyt Consulting'!A3 -> NOT MAJORING IN THIS FIELD | D5: SEEK-440-A | E5: =VLOOKUP(234,'Course List'!$A:$F,6,0) -> Values and Crisis Decision Making | F5: =VLOOKUP(234,'Course List'!$A:$B,2,0) -> Will Enroll
A6: Analytical Finance | B6: ='Analytical Finance'!A3 -> NOT MAJORING IN THIS FIELD
A7: Biotechnology | B7: =Biotech!A3 -> NOT MAJORING IN THIS FIELD
A8: Decision Sciences | B8: =DECS!A3 -> NOT MAJORING IN THIS FIELD | E8: Other Graduation Requirements
A9: Entrepreneurship & Innovation | B9: ='ENTR & Innovation'!A3 -> NOT MAJORING IN THIS FIELD
A10: Finance | B10: =FINC!A3 -> NOT MAJORING IN THIS FIELD | E10: Requirement | F10: Status
A11: Health Enterprise Management (HEMA) - Health Industry track | B11: =HEMA!A3 -> NOT MAJORING IN THIS FIELD | E11: Credit Hours | F11: =IF(F12>=15.5,"Complete",IF(F12+F13>=15.5,"Completed This Quarter",IF(F12+F13+F14>=15.5,"In Progress","Incomplete"))) -> Incomplete
A12: HEMA - Biotech and Medical Products track | B12: =HEMA!A4 -> NOT MAJORING IN THIS FIELD | E12: Complete | F12: =COUNTIFS('Course List'!B5:B298,"Complete",'Course List'!H5:H298,"1")+(COUNTIFS('Course List'!B5:B298,"Complete",'Course List'!H5:H298,"0.5")/2) -> 1
A13: Health Industry Management* | B13: =HIMT!A3 -> NOT MAJORING IN THIS FIELD | E13: Enrolled | F13: =COUNTIFS('Course List'!B5:B298,"Enrolled",'Course List'!H5:H298,"1")+(COUNTIFS('Course List'!B5:B298,"Enrolled",'Course List'!H5:H298,"0.5")/2) -> 0
A14: Human Resource Management | B14: =HR!A3 -> NOT MAJORING IN THIS FIELD | E14: Planned | F14: =COUNTIFS('Course List'!B5:B298,"Will Enroll",'Course List'!H5:H298,"1")+(COUNTIFS('Course List'!B5:B298,"Will Enroll",'Course List'!H5:H298,"0.5")/2) -> 0.5
A15: International Business | B15: =INTL!A3 -> NOT MAJORING IN THIS FIELD | E15: Total Credit Hours | F15: =SUM(F12:F14) -> 1.5
A16: Management & Organizations | B16: ='MGMT & Org'!A3 -> NOT MAJORING IN THIS FIELD | E16: At least one Major | F16: =IF(COUNTIF(B3:B26,"Complete")>=1,"Complete","Incomplete") -> Incomplete
A17: Management & Strategy | B17: ='MGMT & Strat'!A3 -> NOT MAJORING IN THIS FIELD
A18: Managerial Economics | B18: ='Managerial Econ'!A3 -> NOT MAJORING IN THIS FIELD
A19: Marketing | B19: =Marketing!A3 -> NOT MAJORING IN THIS FIELD
A20: Marketing 1Y | B20: ='Marketing 1Y'!A3 -> NOT MAJORING IN THIS FIELD
A21: Marketing Management | B21: ='MKTG MGMT'!A3 -> NOT MAJORING IN THIS FIELD
A22: Marketing Management 1Y | B22: ='MKTG MGMT 1Y'!A3 -> NOT MAJORING IN THIS FIELD
A23: Media Management | B23: ='Media MGMT'!A3 -> NOT MAJORING IN THIS FIELD
A24: Operations Management | B24: =OPNS!A3 -> NOT MAJORING IN THIS FIELD
A25: Real Estate Management | B25: ='Real Estate MGMT'!A3 -> NOT MAJORING IN THIS FIELD
A26: Special Competency in Health Enterprise Excellence | B26: =SCHEMA!A3 -> NOT MAJORING IN THIS FIELD
A27: Social Enterprise at Kellogg (SEEK) | B27: =SEEK!A3 -> POTENTIAL MAJOR
A28: SEEK - Nonprofit Specilization | B28: =SEEK!A4 -> POTENTIAL MAJOR
A29: Technology Industry Management | B29: ='Tech Industry MGMT'!A3 -> NOT MAJORING IN THIS FIELD

Sheet Majors (JDMBA)
A1: Kellogg Majors | D1: Core Courses
A3: Accounting Information & Management | B3: ='ACCT Info & MGMT'!A3 -> NOT MAJORING IN THIS FIELD | D3: Course | E3: Course Name | F3: Status
A4: Accounting Information & Management IY | B4: ='ACCT Info & MGMT 1Y & MMM'!A3 -> NOT MAJORING IN THIS FIELD | D4: =IF(VLOOKUP(4,'Course List'!$A:$B,2,0)<>"Not Taken","ACCT-434","ACCT-430") -> ACCT-430 | E4: =IF(D4="ACCT-430",VLOOKUP(1,'Course List'!$A:$F,6,0),IF(D4="ACCT-434",VLOOKUP(4,'Course List'!$A:$F,6,0))) -> Accounting for Decision Making | F4: =IF(D4="ACCT-430",VLOOKUP(1,'Course List'!$A:$B,2,0),IF(D4="ACCT-434",VLOOKUP(4,'Course List'!$A:$B,2,0))) -> Not Taken
A5: Analytical Consulting | B5: ='Analyt Consulting'!A3 -> NOT MAJORING IN THIS FIELD | D5: =IF(VLOOKUP(37,'Course List'!$A:$B,2,0)<>"Not Taken","DECS-436","DECS-433") -> DECS-433 | E5: =IF(D5="DECS-433",VLOOKUP(35,'Course List'!$A:$F,6,0),IF(D5="DECS-436",VLOOKUP(37,'Course List'!$A:$F,6,0),IF(D5="Waived","Decision Sciences I Waived"))) -> Mathematical Methods for Management Decisions | F5: =IF(D5="DECS-433",VLOOKUP(35,'Course List'!$A:$B,2,0),IF(D5="DECS-436",VLOOKUP(37,'Course List'!$A:$B,2,0))) -> Not Taken
A6: Analytical Finance | B6: ='Analytical Finance'!A3 -> NOT MAJORING IN THIS FIELD | D6: =IF(VLOOKUP(38,'Course List'!$A:$B,2,0)<>"Not Taken","DECS-437","DECS-434") -> DECS-434 | E6: =IF(D6="DECS-434",VLOOKUP(36,'Course List'!$A:$F,6,0),IF(D6="DECS-437",VLOOKUP(38,'Course List'!$A:$F,6,0),IF(D6="Waived","Decision Sciences II Waived"))) -> Statistical Methods For Management Decisions | F6: =IF(D6="DECS-434",VLOOKUP(36,'Course List'!$A:$B,2,0),IF(D6="DECS-437",VLOOKUP(38,'Course List'!$A:$B,2,0))) -> Not Taken
A7: Biotechnology | B7: =Biotech!A3 -> NOT MAJORING IN THIS FIELD | D7: =IF(VLOOKUP(56,'Course List'!$A:$B,2,0)<>"Not Taken","FINC-440","FINC-430") -> FINC-430 | E7: =IF(D7="FINC-430",VLOOKUP(55,'Course List'!$A:$F,6,0),IF(D7="FINC-440",VLOOKUP(56,'Course List'!$A:$F,6,0),IF(D7="Waived","Finance Waived"))) -> Finance I | F7: =IF(D7="FINC-430",VLOOKUP(55,'Course List'!$A:$B,2,0),IF(D7="FINC-440",VLOOKUP(56,'Course List'!$A:$B,2,0))) -> Not Taken
A8: Decision Sciences | B8: =DECS!A3 -> NOT MAJORING IN THIS FIELD | D8: =IF(VLOOKUP(117,'Course List'!$A:$B,2,0)<>"Not Taken","MECN-436","MECN-430") -> MECN-430 | E8: =IF(D8="MECN-430",VLOOKUP(116,'Course List'!$A:$F,6,0),IF(D8="MECN-436",VLOOKUP(117,'Course List'!$A:$F,6,0),IF(D8="Waived","Microeconomics Waived"))) -> Microeconomic Analysis | F8: =IF(D8="MECN-430",VLOOKUP(116,'Course List'!$A:$B,2,0),IF(D8="MECN-436",VLOOKUP(117,'Course List'!$A:$B,2,0))) -> Not Taken
A9: Entrepreneurship & Innovation | B9: ='ENTR & Innovation'!A3 -> NOT MAJORING IN THIS FIELD | D9: MGMT-431 | E9: =IF(D9="MGMT-431",VLOOKUP(132,'Course List'!$A:$F,6,0),IF(D9="Waived","Business Strategy Waived")) -> Business Strategy | F9: =VLOOKUP(132,'Course List'!$A:$B,2,0) -> Not Taken
A10: Finance | B10: =FINC!A3 -> NOT MAJORING IN THIS FIELD | D10: MKTG-430 | E10: =IF(D10="MKTG-430",VLOOKUP(163,'Course List'!$A:$F,6,0),IF(D10="Waived","Marketing Waived")) -> Marketing Management | F10: =VLOOKUP(163,'Course List'!$A:$B,2,0) -> Not Taken
A11: Health Enterprise Management (HEMA) - Health Industry track | B11: =HEMA!A3 -> NOT MAJORING IN THIS FIELD | D11: MORS-430 | E11: =IF(D11="MORS-430",VLOOKUP(181,'Course List'!$A:$F,6,0)) -> Leadership in Organizations | F11: =VLOOKUP(181,'Course List'!$A:$B,2,0) -> Complete
A12: HEMA - Biotech and Medical Products track | B12: =HEMA!A4 -> NOT MAJORING IN THIS FIELD | D12: OPNS-430 | E12: =IF(D12="OPNS-430",VLOOKUP(210,'Course List'!$A:$F,6,0),IF(D12="Waived","Operations Waived")) -> Operations Management | F12: =VLOOKUP(210,'Course List'!$A:$B,2,0) -> Not Taken
A13: Health Industry Management* | B13: =HIMT!A3 -> NOT MAJORING IN THIS FIELD
A14: Human Resource Management | B14: =HR!A3 -> NOT MAJORING IN THIS FIELD
A15: International Business | B15: =INTL!A3 -> NOT MAJORING IN THIS FIELD | E15: Other Graduation Requirements
A16: Management & Organizations | B16: ='MGMT & Org'!A3 -> NOT MAJORING IN THIS FIELD
A17: Management & Strategy | B17: ='MGMT & Strat'!A3 -> NOT MAJORING IN THIS FIELD | E17: Requirement | F17: Status
A18: Managerial Economics | B18: ='Managerial Econ'!A3 -> NOT MAJORING IN THIS FIELD | E18: Credit Hours | F18: =IF(F19>=16,"Complete",IF(F19+F20>=16,"Completed This Quarter",IF(F19+F20+F21>=16,"In Progress","Incomplete"))) -> Incomplete
A19: Marketing | B19: =Marketing!A3 -> NOT MAJORING IN THIS FIELD | E19: Complete | F19: =COUNTIFS('Course List'!B5:B298,"Complete",'Course List'!H5:H298,"1")+(COUNTIFS('Course List'!B5:B298,"Complete",'Course List'!H5:H298,"0.5")/2) -> 1
A20: Marketing 1Y | B20: ='Marketing 1Y'!A3 -> NOT MAJORING IN THIS FIELD | E20: Enrolled | F20: =COUNTIFS('Course List'!B5:B298,"Enrolled",'Course List'!H5:H298,"1")+(COUNTIFS('Course List'!B5:B298,"Enrolled",'Course List'!H5:H298,"0.5")/2) -> 0
A21: Marketing Management | B21: ='MKTG MGMT'!A3 -> NOT MAJORING IN THIS FIELD | E21: Planned | F21: =COUNTIFS('Course List'!B5:B298,"Will Enroll",'Course List'!H5:H298,"1")+(COUNTIFS('Course List'!B5:B298,"Will Enroll",'Course List'!H5:H298,"0.5")/2) -> 0.5
A22: Marketing Management 1Y | B22: ='MKTG MGMT 1Y'!A3 -> NOT MAJORING IN THIS FIELD | E22: Total Credit Hours | F22: =SUM(F19:F21) -> 1.5
A23: Media Management | B23: ='Media MGMT'!A3 -> NOT MAJORING IN THIS FIELD | E23: At least one Major | F23: =IF(COUNTIF(B3:B26,"Complete")>=1,"Complete","Incomplete") -> Incomplete
A24: Operations Management | B24: =OPNS!A3 -> NOT MAJORING IN THIS FIELD
A25: Real Estate Management | B25: ='Real Estate MGMT'!A3 -> NOT MAJORING IN THIS FIELD
A26: Special Competency in Health Enterprise Excellence | B26: =SCHEMA!A3 -> NOT MAJORING IN THIS FIELD
A27: Social Enterprise at Kellogg (SEEK) | B27: =SEEK!A3 -> POTENTIAL MAJOR
A28: SEEK - Nonprofit Specilization | B28: =SEEK!A4 -> POTENTIAL MAJOR
A29: Technology Industry Management | B29: ='Tech Industry MGMT'!A3 -> NOT MAJORING IN THIS FIELD

Sheet Majors (MDMBA)
A1: Kellogg Majors | D1: Core Courses
A3: Accounting Information & Management | B3: ='ACCT Info & MGMT'!A3 -> NOT MAJORING IN THIS FIELD | D3: Course | E3: Course Name | F3: Status
A4: Accounting Information & Management IY | B4: ='ACCT Info & MGMT 1Y & MMM'!A3 -> NOT MAJORING IN THIS FIELD | D4: =IF(VLOOKUP(4,'Course List'!$A:$B,2,0)<>"Not Taken","ACCT-434","ACCT-430") -> ACCT-430 | E4: =IF(D4="ACCT-430",VLOOKUP(1,'Course List'!$A:$F,6,0),IF(D4="ACCT-434",VLOOKUP(4,'Course List'!$A:$F,6,0))) -> Accounting for Decision Making | F4: =IF(D4="ACCT-430",VLOOKUP(1,'Course List'!$A:$B,2,0),IF(D4="ACCT-434",VLOOKUP(4,'Course List'!$A:$B,2,0))) -> Not Taken
A5: Analytical Consulting | B5: ='Analyt Consulting'!A3 -> NOT MAJORING IN THIS FIELD | D5: =IF(VLOOKUP(37,'Course List'!$A:$B,2,0)<>"Not Taken","DECS-436","DECS-433") -> DECS-433 | E5: =IF(D5="DECS-433",VLOOKUP(35,'Course List'!$A:$F,6,0),IF(D5="DECS-436",VLOOKUP(37,'Course List'!$A:$F,6,0),IF(D5="Waived","Decision Sciences I Waived"))) -> Mathematical Methods for Management Decisions | F5: =IF(D5="DECS-433",VLOOKUP(35,'Course List'!$A:$B,2,0),IF(D5="DECS-436",VLOOKUP(37,'Course List'!$A:$B,2,0))) -> Not Taken
A6: Analytical Finance | B6: ='Analytical Finance'!A3 -> NOT MAJORING IN THIS FIELD | D6: =IF(VLOOKUP(38,'Course List'!$A:$B,2,0)<>"Not Taken","DECS-437","DECS-434") -> DECS-434 | E6: =IF(D6="DECS-434",VLOOKUP(36,'Course List'!$A:$F,6,0),IF(D6="DECS-437",VLOOKUP(38,'Course List'!$A:$F,6,0),IF(D6="Waived","Decision Sciences II Waived"))) -> Statistical Methods For Management Decisions | F6: =IF(D6="DECS-434",VLOOKUP(36,'Course List'!$A:$B,2,0),IF(D6="DECS-437",VLOOKUP(38,'Course List'!$A:$B,2,0))) -> Not Taken
A7: Biotechnology | B7: =Biotech!A3 -> NOT MAJORING IN THIS FIELD | D7: =IF(VLOOKUP(56,'Course List'!$A:$B,2,0)<>"Not Taken","FINC-440","FINC-430") -> FINC-430 | E7: =IF(D7="FINC-430",VLOOKUP(55,'Course List'!$A:$F,6,0),IF(D7="FINC-440",VLOOKUP(56,'Course List'!$A:$F,6,0),IF(D7="Waived","Finance Waived"))) -> Finance I | F7: =IF(D7="FINC-430",VLOOKUP(55,'Course List'!$A:$B,2,0),IF(D7="FINC-440",VLOOKUP(56,'Course List'!$A:$B,2,0))) -> Not Taken
A8: Decision Sciences | B8: =DECS!A3 -> NOT MAJORING IN THIS FIELD | D8: =IF(VLOOKUP(117,'Course List'!$A:$B,2,0)<>"Not Taken","MECN-436","MECN-430") -> MECN-430 | E8: =IF(D8="MECN-430",VLOOKUP(116,'Course List'!$A:$F,6,0),IF(D8="MECN-436",VLOOKUP(117,'Course List'!$A:$F,6,0),IF(D8="Waived","Microeconomics Waived"))) -> Microeconomic Analysis | F8: =IF(D8="MECN-430",VLOOKUP(116,'Course List'!$A:$B,2,0),IF(D8="MECN-436",VLOOKUP(117,'Course List'!$A:$B,2,0))) -> Not Taken
A9: Entrepreneurship & Innovation | B9: ='ENTR & Innovation'!A3 -> NOT MAJORING IN THIS FIELD | D9: MGMT-431 | E9: =IF(D9="MGMT-431",VLOOKUP(132,'Course List'!$A:$F,6,0),IF(D9="Waived","Business Strategy Waived")) -> Business Strategy | F9: =VLOOKUP(132,'Course List'!$A:$B,2,0) -> Not Taken
A10: Finance | B10: =FINC!A3 -> NOT MAJORING IN THIS FIELD | D10: MKTG-430 | E10: =IF(D10="MKTG-430",VLOOKUP(163,'Course List'!$A:$F,6,0),IF(D10="Waived","Marketing Waived")) -> Marketing Management | F10: =VLOOKUP(163,'Course List'!$A:$B,2,0) -> Not Taken
A11: Health Enterprise Management (HEMA) - Health Industry track | B11: =HEMA!A3 -> NOT MAJORING IN THIS FIELD | D11: MORS-430 | E11: =IF(D11="MORS-430",VLOOKUP(181,'Course List'!$A:$F,6,0)) -> Leadership in Organizations | F11: =VLOOKUP(181,'Course List'!$A:$B,2,0) -> Complete
A12: HEMA - Biotech and Medical Products track | B12: =HEMA!A4 -> NOT MAJORING IN THIS FIELD | D12: OPNS-430 | E12: =IF(D12="OPNS-430",VLOOKUP(210,'Course List'!$A:$F,6,0),IF(D12="Waived","Operations Waived")) -> Operations Management | F12: =VLOOKUP(210,'Course List'!$A:$B,2,0) -> Not Taken
A13: Health Industry Management* | B13: =HIMT!A3 -> NOT MAJORING IN THIS FIELD | D13: SEEK-440-A | E13: =IF(D13="SEEK-440-A",VLOOKUP(234,'Course List'!$A:$F,6,0)) -> Values and Crisis Decision Making | F13: =VLOOKUP(234,'Course List'!$A:$B,2,0) -> Will Enroll
A14: Human Resource Management | B14: =HR!A3 -> NOT MAJORING IN THIS FIELD
A15: International Business | B15: =INTL!A3 -> NOT MAJORING IN THIS FIELD
A16: Management & Organizations | B16: ='MGMT & Org'!A3 -> NOT MAJORING IN THIS FIELD | E16: Other Graduation Requirements
A17: Management & Strategy | B17: ='MGMT & Strat'!A3 -> NOT MAJORING IN THIS FIELD
A18: Managerial Economics | B18: ='Managerial Econ'!A3 -> NOT MAJORING IN THIS FIELD | E18: Requirement | F18: Status
A19: Marketing | B19: =Marketing!A3 -> NOT MAJORING IN THIS FIELD | E19: Credit Hours | F19: =IF(F20>=18,"Complete",IF(F20+F21>=18,"Completed This Quarter",IF(F20+F21+F22>=18,"In Progress","Incomplete"))) -> Incomplete
A20: Marketing 1Y | B20: ='Marketing 1Y'!A3 -> NOT MAJORING IN THIS FIELD | E20: Complete | F20: =COUNTIFS('Course List'!B5:B298,"Complete",'Course List'!H5:H298,"1")+(COUNTIFS('Course List'!B5:B298,"Complete",'Course List'!H5:H298,"0.5")/2) -> 1
A21: Marketing Management | B21: ='MKTG MGMT'!A3 -> NOT MAJORING IN THIS FIELD | E21: Enrolled | F21: =COUNTIFS('Course List'!B5:B298,"Enrolled",'Course List'!H5:H298,"1")+(COUNTIFS('Course List'!B5:B298,"Enrolled",'Course List'!H5:H298,"0.5")/2) -> 0
A22: Marketing Management 1Y | B22: ='MKTG MGMT 1Y'!A3 -> NOT MAJORING IN THIS FIELD | E22: Planned | F22: =COUNTIFS('Course List'!B5:B298,"Will Enroll",'Course List'!H5:H298,"1")+(COUNTIFS('Course List'!B5:B298,"Will Enroll",'Course List'!H5:H298,"0.5")/2) -> 0.5
A23: Media Management | B23: ='Media MGMT'!A3 -> NOT MAJORING IN THIS FIELD | E23: Total Credit Hours | F23: =SUM(F20:F22) -> 1.5
A24: Operations Management | B24: =OPNS!A3 -> NOT MAJORING IN THIS FIELD | E24: Health Enterprise Management (HEMA) | F24: =IF(B11="Major Completed","Complete",IF(B12="Major Completed","Complete","Incomplete")) -> Incomplete
A25: Real Estate Management | B25: ='Real Estate MGMT'!A3 -> NOT MAJORING IN THIS FIELD
A26: Special Competency in Health Enterprise Excellence | B26: =SCHEMA!A3 -> NOT MAJORING IN THIS FIELD
A27: Social Enterprise at Kellogg (SEEK) | B27: =SEEK!A3 -> POTENTIAL MAJOR
A28: SEEK - Nonprofit Specilization | B28: =SEEK!A4 -> POTENTIAL MAJOR
A29: Technology Industry Management | B29: ='Tech Industry MGMT'!A3 -> NOT MAJORING IN THIS FIELD

Sheet 2 Yr Course Plan
A1: Course Plan
A5: Sum of Reference #
A6: Term | B6: Status | C6: Department | D6: Course # | E6: Course Name | F6: Total
A7: 1st Yr. Fall | B7: Complete | C7: MORS | D7: 430 | E7: Leadership in Organizations | F7: 181
A18: Sum of Reference #
A19: Term | B19: Status | C19: Department | D19: Course # | E19: Course Name | F19: Total
A31: Sum of Reference #
A32: Term | B32: Status | C32: Department | D32: Course # | E32: Course Name | F32: Total
A44: Sum of Reference #
A45: Term | B45: Status | C45: Department | D45: Course # | E45: Course Name | F45: Total
A46: 2nd Yr. Fall | B46: Will Enroll | C46: SEEK | D46: 440-A | E46: Values and Crisis Decision Making | F46: 234
A57: Sum of Reference #
A58: Term | B58: Status | C58: Department | D58: Course # | E58: Course Name | F58: Total
A70: Sum of Reference #
A71: Term | B71: Status | C71: Department | D71: Course # | E71: Course Name | F71: Total

Sheet 1Y Course Plan
A1: Course Plan
A5: Sum of Reference #
A6: Term | B6: Status | C6: Department | D6: Course # | E6: Course Name | F6: Total
A18: Sum of Reference #
A19: Term | B19: Status | C19: Department | D19: Course # | E19: Course Name | F19: Total
A20: 1st Yr. Fall | B20: Complete | C20: MORS | D20: 430 | E20: Leadership in Organizations | F20: 181
A31: Sum of Reference #
A32: Term | B32: Status | C32: Department | D32: Course # | E32: Course Name | F32: Total
A44: Sum of Reference #
A45: Term | B45: Status | C45: Department | D45: Course # | E45: Course Name | F45: Total

Sheet ACCT Info & MGMT
A1: Accounting Information & Management
A3: =Formulae!A2 -> NOT MAJORING IN THIS FIELD
A5: Status | B5: Term | C5: Department | D5: Course # | E5: Course Name
A7: =VLOOKUP(2,'Course List'!$A:$B,2,0) -> Not Taken | B7: =IF(VLOOKUP(2,'Course List'!$A:$B,2,0)="Not Taken","",IF(VLOOKUP(2,'Course List'!$A:$C,3,0)=0,"Unknown",VLOOKUP(2,'Course List'!$A:$C,3,0))) ->  | C7: =VLOOKUP(2,'Course List'!$A:$D,4,0) -> ACCT | D7: =VLOOKUP(2,'Course List'!$A:$E,5,0) -> 431 | E7: =VLOOKUP(2,'Course List'!$A:$F,6,0) -> Managerial Accounting
A8: =VLOOKUP(3,'Course List'!$A:$B,2,0) -> Not Taken | B8: =IF(VLOOKUP(3,'Course List'!$A:$B,2,0)="Not Taken","",IF(VLOOKUP(3,'Course List'!$A:$C,3,0)=0,"Unknown",VLOOKUP(3,'Course List'!$A:$C,3,0))) ->  | C8: =VLOOKUP(3,'Course List'!$A:$D,4,0) -> ACCT | D8: =VLOOKUP(3,'Course List'!$A:$E,5,0) -> 432 | E8: =VLOOKUP(3,'Course List'!$A:$F,6,0) -> Information Technology in Healthcare Management
A9: =VLOOKUP(10,'Course List'!$A:$B,2,0) -> Not Taken | B9: =IF(VLOOKUP(10,'Course List'!$A:$B,2,0)="Not Taken","",IF(VLOOKUP(10,'Course List'!$A:$C,3,0)=0,"Unknown",VLOOKUP(10,'Course List'!$A:$C,3,0))) ->  | C9: =VLOOKUP(10,'Course List'!$A:$D,4,0) -> ACCT | D9: =VLOOKUP(10,'Course List'!$A:$E,5,0) -> 451 | E9: =VLOOKUP(10,'Course List'!$A:$F,6,0) -> Financial Reporting & Analysis
A11: =VLOOKUP(8,'Course List'!A:B,2,0) -> Not Taken | B11: =IF(VLOOKUP(8,'Course List'!$A:$B,2,0)="Not Taken","",IF(VLOOKUP(8,'Course List'!$A:$C,3,0)=0,"Unknown",VLOOKUP(8,'Course List'!$A:$C,3,0))) ->  | C11: =VLOOKUP(8,'Course List'!A:D,4,0) -> ACCT | D11: =VLOOKUP(8,'Course List'!A:E,5,0) -> 442 | E11: =VLOOKUP(8,'Course List'!A:F,6,0) -> Strategic Managerial Accounting
A12: =VLOOKUP(9,'Course List'!A:B,2,0) -> Not Taken | B12: =IF(VLOOKUP(9,'Course List'!$A:$B,2,0)="Not Taken","",IF(VLOOKUP(9,'Course List'!$A:$C,3,0)=0,"Unknown",VLOOKUP(9,'Course List'!$A:$C,3,0))) ->  | C12: =VLOOKUP(9,'Course List'!A:D,4,0) -> ACCT | D12: =VLOOKUP(9,'Course List'!A:E,5,0) -> 444 | E12: =VLOOKUP(9,'Course List'!A:F,6,0) -> Financial Planning For Mergers and Acquisitions
A13: =VLOOKUP(11,'Course List'!A:B,2,0) -> Not Taken | B13: =IF(VLOOKUP(11,'Course List'!$A:$B,2,0)="Not Taken","",IF(VLOOKUP(11,'Course List'!$A:$C,3,0)=0,"Unknown",VLOOKUP(11,'Course List'!$A:$C,3,0))) ->  | C13: =VLOOKUP(11,'Course List'!A:D,4,0) -> ACCT | D13: =VLOOKUP(11,'Course List'!A:E,5,0) -> 452 | E13: =VLOOKUP(11,'Course List'!A:F,6,0) -> Financial Reporting & Analysis II
A14: =VLOOKUP(12,'Course List'!A:B,2,0) -> Not Taken | B14: =IF(VLOOKUP(12,'Course List'!$A:$B,2,0)="Not Taken","",IF(VLOOKUP(12,'Course List'!$A:$C,3,0)=0,"Unknown",VLOOKUP(12,'Course List'!$A:$C,3,0))) ->  | C14: =VLOOKUP(12,'Course List'!A:D,4,0) -> ACCT | D14: =VLOOKUP(12,'Course List'!A:E,5,0) -> 453 | E14: =VLOOKUP(12,'Course List'!A:F,6,0) -> Complex Financial Structures
A15: =VLOOKUP(14,'Course List'!A:B,2,0) -> Not Taken | B15: =IF(VLOOKUP(14,'Course List'!$A:$B,2,0)="Not Taken","",IF(VLOOKUP(14,'Course List'!$A:$C,3,0)=0,"Unknown",VLOOKUP(14,'Course List'!$A:$C,3,0))) ->  | C15: =VLOOKUP(14,'Course List'!A:D,4,0) -> ACCT | D15: =VLOOKUP(14,'Course List'!A:E,5,0) -> 455 | E15: =VLOOKUP(14,'Course List'!A:F,6,0) -> Accounting and Corporate Controls
A16: =VLOOKUP(16,'Course List'!A:B,2,0) -> Not Taken | B16: =IF(VLOOKUP(16,'Course List'!$A:$B,2,0)="Not Taken","",IF(VLOOKUP(16,'Course List'!$A:$C,3,0)=0,"Unknown",VLOOKUP(16,'Course List'!$A:$C,3,0))) ->  | C16: =VLOOKUP(16,'Course List'!A:D,4,0) -> ACCT | D16: =VLOOKUP(16,'Course List'!A:E,5,0) -> 479 | E16: =VLOOKUP(16,'Course List'!A:F,6,0) -> Financial Assessment and Performance Evaluation of Healthcare Entities
A17: =VLOOKUP(67,'Course List'!A:B,2,0) -> Not Taken | B17: =IF(VLOOKUP(67,'Course List'!$A:$B,2,0)="Not Taken","",IF(VLOOKUP(67,'Course List'!$A:$C,3,0)=0,"Unknown",VLOOKUP(67,'Course List'!$A:$C,3,0))) ->  | C17: =VLOOKUP(67,'Course List'!A:D,4,0) -> FINC | D17: =VLOOKUP(67,'Course List'!A:E,5,0) -> 463 | E17: =VLOOKUP(67,'Course List'!A:F,6,0) -> Security Analysis
A18: =VLOOKUP(104,'Course List'!A:B,2,0) -> Not Taken | B18: =IF(VLOOKUP(104,'Course List'!$A:$B,2,0)="Not Taken","",IF(VLOOKUP(104,'Course List'!$A:$C,3,0)=0,"Unknown",VLOOKUP(104,'Course List'!$A:$C,3,0))) ->  | C18: =VLOOKUP(104,'Course List'!A:D,4,0) -> INTL | D18: =VLOOKUP(104,'Course List'!A:E,5,0) -> 457 | E18: =VLOOKUP(104,'Course List'!A:F,6,0) -> International Accounting
A19: Not Taken | B19: =IF(VLOOKUP(13,'Course List'!$A:$B,2,0)="Not Taken","",IF(VLOOKUP(13,'Course List'!$A:$C,3,0)=0,"Unknown",VLOOKUP(13,'Course List'!$A:$C,3,0))) ->  | C19: =VLOOKUP(13,'Course List'!A:D,4,0) -> ACCT | D19: =VLOOKUP(13,'Course List'!A:E,5,0) -> 454 | E19: =VLOOKUP(13,'Course List'!A:F,6,0) -> Management Lab (M-Lab)

Sheet ACCT Info & MGMT 1Y & MMM
A1: Accounting Information & Management
A3: =Formulae!A8 -> NOT MAJORING IN THIS FIELD
A5: Status | B5: Term | C5: Department | D5: Course # | E5: Course Name
A7: =VLOOKUP(10,'Course List'!$A:$B,2,0) -> Not Taken | B7: =IF(VLOOKUP(10,'Course List'!$A:$B,2,0)="Not Taken","",IF(VLOOKUP(10,'Course List'!$A:$C,3,0)=0,"Unknown",VLOOKUP(10,'Course List'!$A:$C,3,0))) ->  | C7: =VLOOKUP(10,'Course List'!$A:$D,4,0) -> ACCT | D7: =VLOOKUP(10,'Course List'!$A:$E,5,0) -> 451 | E7: =VLOOKUP(10,'Course List'!$A:$F,6,0) -> Financial Reporting & Analysis
A9: =VLOOKUP(8,'Course List'!A:B,2,0) -> Not Taken | B9: =IF(VLOOKUP(8,'Course List'!$A:$B,2,0)="Not Taken","",IF(VLOOKUP(8,'Course List'!$A:$C,3,0)=0,"Unknown",VLOOKUP(8,'Course List'!$A:$C,3,0))) ->  | C9: =VLOOKUP(8,'Course List'!A:D,4,0) -> ACCT | D9: =VLOOKUP(8,'Course List'!A:E,5,0) -> 442 | E9: =VLOOKUP(8,'Course List'!A:F,6,0) -> Strategic Managerial Accounting
A10: =VLOOKUP(9,'Course List'!A:B,2,0) -> Not Taken | B10: =IF(VLOOKUP(9,'Course List'!$A:$B,2,0)="Not Taken","",IF(VLOOKUP(9,'Course List'!$A:$C,3,0)=0,"Unknown",VLOOKUP(9,'Course List'!$A:$C,3,0))) ->  | C10: =VLOOKUP(9,'Course List'!A:D,4,0) -> ACCT | D10: =VLOOKUP(9,'Course List'!A:E,5,0) -> 444 | E10: =VLOOKUP(9,'Course List'!A:F,6,0) -> Financial Planning For Mergers and Acquisitions
A11: =VLOOKUP(11,'Course List'!A:B,2,0) -> Not Taken | B11: =IF(VLOOKUP(11,'Course List'!$A:$B,2,0)="Not Taken","",IF(VLOOKUP(11,'Course List'!$A:$C,3,0)=0,"Unknown",VLOOKUP(11,'Course List'!$A:$C,3,0))) ->  | C11: =VLOOKUP(11,'Course List'!A:D,4,0) -> ACCT | D11: =VLOOKUP(11,'Course List'!A:E,5,0) -> 452 | E11: =VLOOKUP(11,'Course List'!A:F,6,0) -> Financial Reporting & Analysis II
A12: =VLOOKUP(12,'Course List'!A:B,2,0) -> Not Taken | B12: =IF(VLOOKUP(12,'Course List'!$A:$B,2,0)="Not Taken","",IF(VLOOKUP(12,'Course List'!$A:$C,3,0)=0,"Unknown",VLOOKUP(12,'Course List'!$A:$C,3,0))) ->  | C12: =VLOOKUP(12,'Course List'!A:D,4,0) -> ACCT | D12: =VLOOKUP(12,'Course List'!A:E,5,0) -> 453 | E12: =VLOOKUP(12,'Course List'!A:F,6,0) -> Complex Financial Structures
A13: =VLOOKUP(14,'Course List'!A:B,2,0) -> Not Taken | B13: =IF(VLOOKUP(14,'Course List'!$A:$B,2,0)="Not Taken","",IF(VLOOKUP(14,'Course List'!$A:$C,3,0)=0,"Unknown",VLOOKUP(14,'Course List'!$A:$C,3,0))) ->  | C13: =VLOOKUP(14,'Course List'!A:D,4,0) -> ACCT | D13: =VLOOKUP(14,'Course List'!A:E,5,0) -> 455 | E13: =VLOOKUP(14,'Course List'!A:F,6,0) -> Accounting and Corporate Controls
A14: =VLOOKUP(67,'Course List'!A:B,2,0) -> Not Taken | B14: =IF(VLOOKUP(67,'Course List'!$A:$B,2,0)="Not Taken","",IF(VLOOKUP(67,'Course List'!$A:$C,3,0)=0,"Unknown",VLOOKUP(67,'Course List'!$A:$C,3,0))) ->  | C14: =VLOOKUP(67,'Course List'!A:D,4,0) -> FINC | D14: =VLOOKUP(67,'Course List'!A:E,5,0) -> 463 | E14: =VLOOKUP(67,'Course List'!A:F,6,0) -> Security Analysis
A15: =VLOOKUP(104,'Course List'!A:B,2,0) -> Not Taken | B15: =IF(VLOOKUP(104,'Course List'!$A:$B,2,0)="Not Taken","",IF(VLOOKUP(104,'Course List'!$A:$C,3,0)=0,"Unknown",VLOOKUP(104,'Course List'!$A:$C,3,0))) ->  | C15: =VLOOKUP(104,'Course List'!A:D,4,0) -> INTL | D15: =VLOOKUP(104,'Course List'!A:E,5,0) -> 457 | E15: =VLOOKUP(104,'Course List'!A:F,6,0) -> International Accounting
A16: Not Taken | B16: =IF(VLOOKUP(13,'Course List'!$A:$B,2,0)="Not Taken","",IF(VLOOKUP(13,'Course List'!$A:$C,3,0)=0,"Unknown",VLOOKUP(13,'Course List'!$A:$C,3,0))) ->  | C16: =VLOOKUP(13,'Course List'!A:D,4,0) -> ACCT | D16: =VLOOKUP(13,'Course List'!A:E,5,0) -> 454 | E16: =VLOOKUP(13,'Course List'!A:F,6,0) -> Management Lab (M-Lab)

Sheet Analyt Consulting
A1: Analytical Consulting
A3: =Formulae!A13 -> NOT MAJORING IN THIS FIELD
A5: Status | B5: Term | C5: Department | D5: Course # | E5: Course Name
A7: Decision Frameworks
A8: =VLOOKUP(41,'Course List'!$A:$B,2,0) -> Not Taken | B8: =IF(VLOOKUP(41,'Course List'!$A:$B,2,0)="Not Taken","",IF(VLOOKUP(41,'Course List'!$A:$C,3,0)=0,"Unknown",VLOOKUP(41,'Course List'!$A:$C,3,0))) ->  | C8: =VLOOKUP(41,'Course List'!$A:$D,4,0) -> DECS | D8: =VLOOKUP(41,'Course List'!$A:$E,5,0) -> 450 | E8: =VLOOKUP(41,'Course List'!$A:$F,6,0) -> Decision Analysis
A9: =VLOOKUP(121,'Course List'!$A:$B,2,0) -> Not Taken | B9: =IF(VLOOKUP(121,'Course List'!$A:$B,2,0)="Not Taken","",IF(VLOOKUP(121,'Course List'!$A:$C,3,0)=0,"Unknown",VLOOKUP(121,'Course List'!$A:$C,3,0))) ->  | C9: =VLOOKUP(121,'Course List'!$A:$D,4,0) -> MECN | D9: =VLOOKUP(121,'Course List'!$A:$E,5,0) -> 446 | E9: =VLOOKUP(121,'Course List'!$A:$F,6,0) -> Pricing Strategies
A10: =VLOOKUP(42,'Course List'!$A:$B,2,0) -> Not Taken | B10: =IF(VLOOKUP(42,'Course List'!$A:$B,2,0)="Not Taken","",IF(VLOOKUP(42,'Course List'!$A:$C,3,0)=0,"Unknown",VLOOKUP(42,'Course List'!$A:$C,3,0))) ->  | C10: =VLOOKUP(42,'Course List'!$A:$D,4,0) -> DECS | D10: =VLOOKUP(42,'Course List'!$A:$E,5,0) -> 452 | E10: =VLOOKUP(42,'Course List'!$A:$F,6,0) -> Strategic Decision Making
A12: Analytical Strategy
A13: =VLOOKUP(120,'Course List'!A:B,2,0) -> Not Taken | B13: =IF(VLOOKUP(120,'Course List'!$A:$B,2,0)="Not Taken","",IF(VLOOKUP(120,'Course List'!$A:$C,3,0)=0,"Unknown",VLOOKUP(120,'Course List'!$A:$C,3,0))) ->  | C13: =VLOOKUP(120,'Course List'!A:D,4,0) -> MECN | D13: =VLOOKUP(120,'Course List'!A:E,5,0) -> 441 | E13: =VLOOKUP(120,'Course List'!A:F,6,0) -> Competitive Strategy & Industrial Structure
A14: =VLOOKUP(214,'Course List'!A:B,2,0) -> Not Taken | B14: =IF(VLOOKUP(214,'Course List'!$A:$B,2,0)="Not Taken","",IF(VLOOKUP(214,'Course List'!$A:$C,3,0)=0,"Unknown",VLOOKUP(214,'Course List'!$A:$C,3,0))) ->  | C14: =VLOOKUP(214,'Course List'!A:D,4,0) -> OPNS | D14: =VLOOKUP(214,'Course List'!A:E,5,0) -> 454 | E14: =VLOOKUP(214,'Course List'!A:F,6,0) -> Operations Strategy
A15: =VLOOKUP(136,'Course List'!A:B,2,0) -> Not Taken | B15: =IF(VLOOKUP(136,'Course List'!$A:$B,2,0)="Not Taken","",IF(VLOOKUP(136,'Course List'!$A:$C,3,0)=0,"Unknown",VLOOKUP(136,'Course List'!$A:$C,3,0))) ->  | C15: =VLOOKUP(136,'Course List'!A:D,4,0) -> MGMT | D15: =VLOOKUP(136,'Course List'!A:E,5,0) -> 452 | E15: =VLOOKUP(136,'Course List'!A:F,6,0) -> Strategy & Organization
A17: Quantitative Models
A18: =VLOOKUP(144,'Course List'!A:B,2,0) -> Not Taken | B18: =IF(VLOOKUP(144,'Course List'!$A:$B,2,0)="Not Taken","",IF(VLOOKUP(144,'Course List'!$A:$C,3,0)=0,"Unknown",VLOOKUP(144,'Course List'!$A:$C,3,0))) ->  | C18: =VLOOKUP(144,'Course List'!A:D,4,0) -> MGMT | D18: =VLOOKUP(144,'Course List'!A:E,5,0) -> 469 | E18: =VLOOKUP(144,'Course List'!A:F,6,0) -> Empirical Methods in Strategy
A19: =VLOOKUP(164,'Course List'!A:B,2,0) -> Not Taken | B19: =IF(VLOOKUP(164,'Course List'!$A:$B,2,0)="Not Taken","",IF(VLOOKUP(164,'Course List'!$A:$C,3,0)=0,"Unknown",VLOOKUP(164,'Course List'!$A:$C,3,0))) ->  | C19: =VLOOKUP(164,'Course List'!A:D,4,0) -> MKTG | D19: =VLOOKUP(164,'Course List'!A:E,5,0) -> 450 | E19: =VLOOKUP(164,'Course List'!A:F,6,0) -> Research Methods in Marketing
A20: =VLOOKUP(212,'Course List'!A:B,2,0) -> Not Taken | B20: =IF(VLOOKUP(212,'Course List'!$A:$B,2,0)="Not Taken","",IF(VLOOKUP(212,'Course List'!$A:$C,3,0)=0,"Unknown",VLOOKUP(212,'Course List'!$A:$C,3,0))) ->  | C20: =VLOOKUP(212,'Course List'!A:D,4,0) -> OPNS | D20: =VLOOKUP(212,'Course List'!A:E,5,0) -> 450 | E20: =VLOOKUP(212,'Course List'!A:F,6,0) -> Spreadsheet Modeling for Managerial Decisions
A21: =VLOOKUP(215,'Course List'!A:B,2,0) -> Not Taken | B21: =IF(VLOOKUP(215,'Course List'!$A:$B,2,0)="Not Taken","",IF(VLOOKUP(215,'Course List'!$A:$C,3,0)=0,"Unknown",VLOOKUP(215,'Course List'!$A:$C,3,0))) ->  | C21: =VLOOKUP(215,'Course List'!A:D,4,0) -> OPNS | D21: =VLOOKUP(215,'Course List'!A:E,5,0) -> 455 | E21: =VLOOKUP(215,'Course List'!A:F,6,0) -> Logistics and Supply Chain Management

Sheet Analytical Finance
A1: Analytical Finance
A3: =Formulae!A28 -> NOT MAJORING IN THIS FIELD
A5: Status | B5: Term | C5: Department | D5: Course # | E5: Course Name
A7: =VLOOKUP(55,'Course List'!A:B,2,0) -> Not Taken | B7: =IF(VLOOKUP(55,'Course List'!$A:$B,2,0)="Not Taken","",IF(VLOOKUP(55,'Course List'!$A:$C,3,0)=0,"Unknown",VLOOKUP(55,'Course List'!$A:$C,3,0))) ->  | C7: =VLOOKUP(55,'Course List'!A:D,4,0) -> FINC | D7: =VLOOKUP(55,'Course List'!A:E,5,0) -> 430 | E7: =VLOOKUP(55,'Course List'!A:F,6,0) -> Finance I
A8: =VLOOKUP(57,'Course List'!A:B,2,0) -> Not Taken | B8: =IF(VLOOKUP(57,'Course List'!$A:$B,2,0)="Not Taken","",IF(VLOOKUP(57,'Course List'!$A:$C,3,0)=0,"Unknown",VLOOKUP(57,'Course List'!$A:$C,3,0))) ->  | C8: =VLOOKUP(57,'Course List'!A:D,4,0) -> FINC | D8: =VLOOKUP(57,'Course List'!A:E,5,0) -> 441 | E8: =VLOOKUP(57,'Course List'!A:F,6,0) -> Finance II
A9: =VLOOKUP(56,'Course List'!A:B,2,0) -> Not Taken | B9: =IF(VLOOKUP(56,'Course List'!$A:$B,2,0)="Not Taken","",IF(VLOOKUP(56,'Course List'!$A:$C,3,0)=0,"Unknown",VLOOKUP(56,'Course List'!$A:$C,3,0))) ->  | C9: =VLOOKUP(56,'Course List'!A:D,4,0) -> FINC | D9: =VLOOKUP(56,'Course List'!A:E,5,0) -> 440 | E9: =VLOOKUP(56,'Course List'!A:F,6,0) -> Finance I & II
A11: =VLOOKUP(69,'Course List'!A:B,2,0) -> Not Taken | B11: =IF(VLOOKUP(69,'Course List'!$A:$B,2,0)="Not Taken","",IF(VLOOKUP(69,'Course List'!$A:$C,3,0)=0,"Unknown",VLOOKUP(69,'Course List'!$A:$C,3,0))) ->  | C11: =VLOOKUP(69,'Course List'!A:D,4,0) -> FINC | D11: =VLOOKUP(69,'Course List'!A:E,5,0) -> 465 | E11: =VLOOKUP(69,'Course List'!A:F,6,0) -> Derivative Markets I
A13: =VLOOKUP(58,'Course List'!A:B,2,0) -> Not Taken | B13: =IF(VLOOKUP(58,'Course List'!$A:$B,2,0)="Not Taken","",IF(VLOOKUP(58,'Course List'!$A:$C,3,0)=0,"Unknown",VLOOKUP(58,'Course List'!$A:$C,3,0))) ->  | C13: =VLOOKUP(64,'Course List'!A:D,4,0) -> FINC | D13: =VLOOKUP(58,'Course List'!A:E,5,0) -> 442 | E13: =VLOOKUP(58,'Course List'!A:F,6,0) -> Financial Decisions
A14: =VLOOKUP(61,'Course List'!A:B,2,0) -> Not Taken | B14: =IF(VLOOKUP(61,'Course List'!$A:$B,2,0)="Not Taken","",IF(VLOOKUP(61,'Course List'!$A:$C,3,0)=0,"Unknown",VLOOKUP(61,'Course List'!$A:$C,3,0))) ->  | C14: =VLOOKUP(61,'Course List'!A:D,4,0) -> FINC | D14: =VLOOKUP(61,'Course List'!A:E,5,0) -> 447 | E14: =VLOOKUP(61,'Course List'!A:F,6,0) -> Financial Strategy and Tax Planning
A15: =VLOOKUP(63,'Course List'!A:B,2,0) -> Not Taken | B15: =IF(VLOOKUP(63,'Course List'!$A:$B,2,0)="Not Taken","",IF(VLOOKUP(63,'Course List'!$A:$C,3,0)=0,"Unknown",VLOOKUP(63,'Course List'!$A:$C,3,0))) ->  | C15: =VLOOKUP(63,'Course List'!A:D,4,0) -> FINC | D15: =VLOOKUP(63,'Course List'!A:E,5,0) -> 451 | E15: =VLOOKUP(63,'Course List'!A:F,6,0) -> Money Markets and the Fed
A16: =VLOOKUP(65,'Course List'!A:B,2,0) -> Not Taken | B16: =IF(VLOOKUP(65,'Course List'!$A:$B,2,0)="Not Taken","",IF(VLOOKUP(65,'Course List'!$A:$C,3,0)=0,"Unknown",VLOOKUP(65,'Course List'!$A:$C,3,0))) ->  | C16: =VLOOKUP(65,'Course List'!A:D,4,0) -> FINC | D16: =VLOOKUP(65,'Course List'!A:E,5,0) -> 460 | E16: =VLOOKUP(65,'Course List'!A:F,6,0) -> Investments
A17: =VLOOKUP(68,'Course List'!A:B,2,0) -> Not Taken | B17: =IF(VLOOKUP(68,'Course List'!$A:$B,2,0)="Not Taken","",IF(VLOOKUP(68,'Course List'!$A:$C,3,0)=0,"Unknown",VLOOKUP(68,'Course List'!$A:$C,3,0))) ->  | C17: =VLOOKUP(68,'Course List'!A:D,4,0) -> FINC | D17: =VLOOKUP(68,'Course List'!A:E,5,0) -> 464 | E17: =VLOOKUP(68,'Course List'!A:F,6,0) -> Fixed Income Securities
A18: =VLOOKUP(70,'Course List'!A:B,2,0) -> Not Taken | B18: =IF(VLOOKUP(70,'Course List'!$A:$B,2,0)="Not Taken","",IF(VLOOKUP(70,'Course List'!$A:$C,3,0)=0,"Unknown",VLOOKUP(70,'Course List'!$A:$C,3,0))) ->  | C18: =VLOOKUP(70,'Course List'!A:D,4,0) -> FINC | D18: =VLOOKUP(70,'Course List'!A:E,5,0) -> 467 | E18: =VLOOKUP(70,'Course List'!A:F,6,0) -> Derivative Markets II
A19: =VLOOKUP(79,'Course List'!A:B,2,0) -> Not Taken | B19: =IF(VLOOKUP(79,'Course List'!$A:$B,2,0)="Not Taken","",IF(VLOOKUP(79,'Course List'!$A:$C,3,0)=0,"Unknown",VLOOKUP(79,'Course List'!$A:$C,3,0))) ->  | C19: =VLOOKUP(79,'Course List'!A:D,4,0) -> FINC | D19: =VLOOKUP(79,'Course List'!A:E,5,0) -> 925 | E19: =VLOOKUP(79,'Course List'!A:F,6,0) -> Advanced Topics in Finance
A20: Not Taken | B20: =IF(VLOOKUP(13,'Course List'!$A:$B,2,0)="Not Taken","",IF(VLOOKUP(13,'Course List'!$A:$C,3,0)=0,"Unknown",VLOOKUP(13,'Course List'!$A:$C,3,0))) ->  | C20: =VLOOKUP(13,'Course List'!A:D,4,0) -> ACCT | D20: =VLOOKUP(13,'Course List'!A:E,5,0) -> 454 | E20: =VLOOKUP(13,'Course List'!A:F,6,0) -> Management Lab (M-Lab)

Sheet Biotech
A1: Biotechnology
A3: =Formulae!A41 -> NOT MAJORING IN THIS FIELD
A5: Status | B5: Term | C5: Department | D5: Course # | E5: Course Name
A7: =VLOOKUP(19,'Course List'!$A:$B,2,0) -> Not Taken | B7: =IF(VLOOKUP(19,'Course List'!$A:$B,2,0)="Not Taken","",IF(VLOOKUP(19,'Course List'!$A:$C,3,0)=0,"Unknown",VLOOKUP(19,'Course List'!$A:$C,3,0))) ->  | C7: =VLOOKUP(19,'Course List'!$A:$D,4,0) -> HEMA | D7: =VLOOKUP(19,'Course List'!$A:$E,5,0) -> 911 | E7: =VLOOKUP(19,'Course List'!$A:$F,6,0) -> Dynamics of the Biotechnology/Life Sciences Industry
A8: =VLOOKUP(271,'Course List'!$A:$B,2,0) -> Not Taken | B8: =IF(VLOOKUP(271,'Course List'!$A:$B,2,0)="Not Taken","",IF(VLOOKUP(271,'Course List'!$A:$C,3,0)=0,"Unknown",VLOOKUP(271,'Course List'!$A:$C,3,0))) ->  | C8: =VLOOKUP(271,'Course List'!$A:$D,4,0) -> HEMA | D8: =VLOOKUP(271,'Course List'!$A:$E,5,0) -> 915 | E8: =VLOOKUP(271,'Course List'!$A:$F,6,0) -> Medical Innovations
A9: =VLOOKUP(285,'Course List'!$A:$B,2,0) -> Not Taken | B9: =IF(VLOOKUP(285,'Course List'!$A:$B,2,0)="Not Taken","",IF(VLOOKUP(285,'Course List'!$A:$C,3,0)=0,"Unknown",VLOOKUP(285,'Course List'!$A:$C,3,0))) ->  | C9: =VLOOKUP(285,'Course List'!$A:$D,4,0) -> HEMA | D9: =VLOOKUP(285,'Course List'!$A:$E,5,0) -> 916 | E9: =VLOOKUP(285,'Course List'!$A:$F,6,0) -> Medical Innovation II: Developing Biomedical Products from Patient to Market
A10: =VLOOKUP(139,'Course List'!A:B,2,0) -> Not Taken | B10: =IF(VLOOKUP(139,'Course List'!$A:$B,2,0)="Not Taken","",IF(VLOOKUP(139,'Course List'!$A:$C,3,0)=0,"Unknown",VLOOKUP(139,'Course List'!$A:$C,3,0))) ->  | C10: =VLOOKUP(139,'Course List'!A:D,4,0) -> MGMT | D10: =VLOOKUP(139,'Course List'!A:E,5,0) -> 463 | E10: =VLOOKUP(139,'Course List'!A:F,6,0) -> Management of Technology
A12: =VLOOKUP(21,'Course List'!A:B,2,0) -> Not Taken | B12: =IF(VLOOKUP(21,'Course List'!$A:$B,2,0)="Not Taken","",IF(VLOOKUP(21,'Course List'!$A:$C,3,0)=0,"Unknown",VLOOKUP(21,'Course List'!$A:$C,3,0))) ->  | C12: =VLOOKUP(21,'Course List'!A:D,4,0) -> HEMA | D12: =VLOOKUP(21,'Course List'!A:E,5,0) -> 913 | E12: =VLOOKUP(21,'Course List'!A:F,6,0) -> Biotech Business Practicum
A13: =VLOOKUP(22,'Course List'!A:B,2,0) -> Not Taken | B13: =IF(VLOOKUP(22,'Course List'!$A:$B,2,0)="Not Taken","",IF(VLOOKUP(22,'Course List'!$A:$C,3,0)=0,"Unknown",VLOOKUP(22,'Course List'!$A:$C,3,0))) ->  | C13: =VLOOKUP(22,'Course List'!A:D,4,0) -> HEMA | D13: =VLOOKUP(22,'Course List'!A:E,5,0) -> 914 | E13: =VLOOKUP(22,'Course List'!A:F,6,0) -> Biomedical Marketing
A14: =VLOOKUP(23,'Course List'!A:B,2,0) -> Not Taken | B14: =IF(VLOOKUP(23,'Course List'!$A:$B,2,0)="Not Taken","",IF(VLOOKUP(23,'Course List'!$A:$C,3,0)=0,"Unknown",VLOOKUP(23,'Course List'!$A:$C,3,0))) ->  | C14: =VLOOKUP(23,'Course List'!A:D,4,0) -> HEMA | D14: =VLOOKUP(23,'Course List'!A:E,5,0) -> 919 | E14: =VLOOKUP(23,'Course List'!A:F,6,0) -> Biotechnology: Law, Business and Regulation
A15: =VLOOKUP(85,'Course List'!A:B,2,0) -> Not Taken | B15: =IF(VLOOKUP(85,'Course List'!$A:$B,2,0)="Not Taken","",IF(VLOOKUP(85,'Course List'!$A:$C,3,0)=0,"Unknown",VLOOKUP(85,'Course List'!$A:$C,3,0))) ->  | C15: =VLOOKUP(85,'Course List'!A:D,4,0) -> FINC | D15: =VLOOKUP(85,'Course List'!A:E,5,0) -> 932 | E15: =VLOOKUP(85,'Course List'!A:F,6,0) -> Case Studies in Venture Investment and Management
A16: =VLOOKUP(97,'Course List'!A:B,2,0) -> Not Taken | B16: =IF(VLOOKUP(97,'Course List'!$A:$B,2,0)="Not Taken","",IF(VLOOKUP(97,'Course List'!$A:$C,3,0)=0,"Unknown",VLOOKUP(97,'Course List'!$A:$C,3,0))) ->  | C16: =VLOOKUP(97,'Course List'!A:D,4,0) -> HEMA | D16: =VLOOKUP(97,'Course List'!A:E,5,0) -> 453 | E16: =VLOOKUP(97,'Course List'!A:F,6,0) -> Managerial Challenges in the Pharmaceutical, Biotech, and Medical Devices Industries
A17: Not Taken | C17: INTL | D17: 473 | E17: Global Initiatives in Management (GIM)
A18: =VLOOKUP(171,'Course List'!A:B,2,0) -> Not Taken | B18: =IF(VLOOKUP(171,'Course List'!$A:$B,2,0)="Not Taken","",IF(VLOOKUP(171,'Course List'!$A:$C,3,0)=0,"Unknown",VLOOKUP(171,'Course List'!$A:$C,3,0))) ->  | C18: =VLOOKUP(171,'Course List'!A:D,4,0) -> MKTG | D18: =VLOOKUP(171,'Course List'!A:E,5,0) -> 463 | E18: =VLOOKUP(171,'Course List'!A:F,6,0) -> Sales Force Management
A19: =VLOOKUP(246,'Course List'!A:B,2,0) -> Not Taken | B19: =IF(VLOOKUP(246,'Course List'!$A:$B,2,0)="Not Taken","",IF(VLOOKUP(246,'Course List'!$A:$C,3,0)=0,"Unknown",VLOOKUP(246,'Course List'!$A:$C,3,0))) ->  | C19: =VLOOKUP(246,'Course List'!A:D,4,0) -> TECH | D19: =VLOOKUP(246,'Course List'!A:E,5,0) -> 441 | E19: =VLOOKUP(246,'Course List'!A:F,6,0) -> Intellectual Capital Management
A20: Not Taken | B20: =IF(VLOOKUP(13,'Course List'!$A:$B,2,0)="Not Taken","",IF(VLOOKUP(13,'Course List'!$A:$C,3,0)=0,"Unknown",VLOOKUP(13,'Course List'!$A:$C,3,0))) ->  | C20: =VLOOKUP(13,'Course List'!A:D,4,0) -> ACCT | D20: =VLOOKUP(13,'Course List'!A:E,5,0) -> 454 | E20: =VLOOKUP(13,'Course List'!A:F,6,0) -> Management Lab (M-Lab)

Sheet DECS
A1: Decision Sciences
A3: =Formulae!A46 -> NOT MAJORING IN THIS FIELD
A5: Status | B5: Term | C5: Department | D5: Course # | E5: Course Name
A7: =VLOOKUP(37,'Course List'!A:B,2,0) -> Not Taken | B7: =IF(VLOOKUP(37,'Course List'!$A:$B,2,0)="Not Taken","",IF(VLOOKUP(37,'Course List'!$A:$C,3,0)=0,"Unknown",VLOOKUP(37,'Course List'!$A:$C,3,0))) ->  | C7: =VLOOKUP(37,'Course List'!A:D,4,0) -> DECS | D7: =VLOOKUP(37,'Course List'!A:E,5,0) -> 436 | E7: =VLOOKUP(37,'Course List'!A:F,6,0) -> Accelerated Mathematical Methods
A8: =VLOOKUP(38,'Course List'!A:B,2,0) -> Not Taken | B8: =IF(VLOOKUP(38,'Course List'!$A:$B,2,0)="Not Taken","",IF(VLOOKUP(38,'Course List'!$A:$C,3,0)=0,"Unknown",VLOOKUP(38,'Course List'!$A:$C,3,0))) ->  | C8: =VLOOKUP(38,'Course List'!A:D,4,0) -> DECS | D8: =VLOOKUP(38,'Course List'!A:E,5,0) -> 437 | E8: =VLOOKUP(38,'Course List'!A:F,6,0) -> Accelerated Statistical Methods
A9: =VLOOKUP(41,'Course List'!A:B,2,0) -> Not Taken | B9: =IF(VLOOKUP(41,'Course List'!$A:$B,2,0)="Not Taken","",IF(VLOOKUP(41,'Course List'!$A:$C,3,0)=0,"Unknown",VLOOKUP(41,'Course List'!$A:$C,3,0))) ->  | C9: =VLOOKUP(41,'Course List'!A:D,4,0) -> DECS | D9: =VLOOKUP(41,'Course List'!A:E,5,0) -> 450 | E9: =VLOOKUP(41,'Course List'!A:F,6,0) -> Decision Analysis
A10: =VLOOKUP(42,'Course List'!A:B,2,0) -> Not Taken | B10: =IF(VLOOKUP(42,'Course List'!$A:$B,2,0)="Not Taken","",IF(VLOOKUP(42,'Course List'!$A:$C,3,0)=0,"Unknown",VLOOKUP(42,'Course List'!$A:$C,3,0))) ->  | C10: =VLOOKUP(42,'Course List'!A:D,4,0) -> DECS | D10: =VLOOKUP(42,'Course List'!A:E,5,0) -> 452 | E10: =VLOOKUP(42,'Course List'!A:F,6,0) -> Strategic Decision Making
A11: =VLOOKUP(43,'Course List'!A:B,2,0) -> Not Taken | B11: =IF(VLOOKUP(43,'Course List'!$A:$B,2,0)="Not Taken","",IF(VLOOKUP(43,'Course List'!$A:$C,3,0)=0,"Unknown",VLOOKUP(43,'Course List'!$A:$C,3,0))) ->  | C11: =VLOOKUP(43,'Course List'!A:D,4,0) -> DECS | D11: =VLOOKUP(43,'Course List'!A:E,5,0) -> 499 | E11: =VLOOKUP(43,'Course List'!A:F,6,0) -> Independent Study
A12: =VLOOKUP(123,'Course List'!A:B,2,0) -> Not Taken | B12: =IF(VLOOKUP(123,'Course List'!$A:$B,2,0)="Not Taken","",IF(VLOOKUP(123,'Course List'!$A:$C,3,0)=0,"Unknown",VLOOKUP(123,'Course List'!$A:$C,3,0))) ->  | C12: =VLOOKUP(123,'Course List'!A:D,4,0) -> MECN | D12: =VLOOKUP(123,'Course List'!A:E,5,0) -> 451 | E12: =VLOOKUP(123,'Course List'!A:F,6,0) -> Business and Economic Forecasting*
A13: =VLOOKUP(121,'Course List'!A:B,2,0) -> Not Taken | B13: =IF(VLOOKUP(121,'Course List'!$A:$B,2,0)="Not Taken","",IF(VLOOKUP(121,'Course List'!$A:$C,3,0)=0,"Unknown",VLOOKUP(121,'Course List'!$A:$C,3,0))) ->  | C13: =VLOOKUP(121,'Course List'!A:D,4,0) -> MECN | D13: =VLOOKUP(121,'Course List'!A:E,5,0) -> 446 | E13: =VLOOKUP(121,'Course List'!A:F,6,0) -> Pricing Strategies
A14: =VLOOKUP(212,'Course List'!A:B,2,0) -> Not Taken | B14: =IF(VLOOKUP(212,'Course List'!$A:$B,2,0)="Not Taken","",IF(VLOOKUP(212,'Course List'!$A:$C,3,0)=0,"Unknown",VLOOKUP(212,'Course List'!$A:$C,3,0))) ->  | C14: =VLOOKUP(212,'Course List'!A:D,4,0) -> OPNS | D14: =VLOOKUP(212,'Course List'!A:E,5,0) -> 450 | E14: =VLOOKUP(212,'Course List'!A:F,6,0) -> Spreadsheet Modeling for Managerial Decisions
A15: =VLOOKUP(144,'Course List'!A:B,2,0) -> Not Taken | B15: =IF(VLOOKUP(144,'Course List'!$A:$B,2,0)="Not Taken","",IF(VLOOKUP(144,'Course List'!$A:$C,3,0)=0,"Unknown",VLOOKUP(144,'Course List'!$A:$C,3,0))) ->  | C15: =VLOOKUP(144,'Course List'!A:D,4,0) -> MGMT | D15: =VLOOKUP(144,'Course List'!A:E,5,0) -> 469 | E15: =VLOOKUP(144,'Course List'!A:F,6,0) -> Empirical Methods in Strategy
A16: Not Taken | B16: =IF(VLOOKUP(13,'Course List'!$A:$B,2,0)="Not Taken","",IF(VLOOKUP(13,'Course List'!$A:$C,3,0)=0,"Unknown",VLOOKUP(13,'Course List'!$A:$C,3,0))) ->  | C16: =VLOOKUP(13,'Course List'!A:D,4,0) -> ACCT | D16: =VLOOKUP(13,'Course List'!A:E,5,0) -> 454 | E16: =VLOOKUP(13,'Course List'!A:F,6,0) -> Management Lab (M-Lab)

Sheet ENTR & Innovation
A1: Entrepreneurship & Innovation
A3: =Formulae!A48 -> NOT MAJORING IN THIS FIELD
A5: Status | B5: Term | C5: Department | D5: Course # | E5: Course Name
A7: =VLOOKUP(44,'Course List'!A:B,2,0) -> Not Taken | B7: =IF(VLOOKUP(44,'Course List'!$A:$B,2,0)="Not Taken","",IF(VLOOKUP(44,'Course List'!$A:$C,3,0)=0,"Unknown",VLOOKUP(44,'Course List'!$A:$C,3,0))) ->  | C7: =VLOOKUP(44,'Course List'!A:D,4,0) -> ENTR | D7: =VLOOKUP(44,'Course List'!A:E,5,0) -> 462 | E7: =VLOOKUP(44,'Course List'!A:F,6,0) -> Entrepreneurship & New Venture Formulation
A9: =VLOOKUP(20,'Course List'!A:B,2,0) -> Not Taken | B9: =IF(VLOOKUP(20,'Course List'!$A:$B,2,0)="Not Taken","",IF(VLOOKUP(20,'Course List'!$A:$C,3,0)=0,"Unknown",VLOOKUP(20,'Course List'!$A:$C,3,0))) ->  | C9: =VLOOKUP(20,'Course List'!A:D,4,0) -> HEMA | D9: =VLOOKUP(20,'Course List'!A:E,5,0) -> 912 | E9: =VLOOKUP(20,'Course List'!A:F,6,0) -> Managing Innovation
A10: =VLOOKUP(28,'Course List'!A:B,2,0) -> Not Taken | B10: =IF(VLOOKUP(28,'Course List'!$A:$B,2,0)="Not Taken","",IF(VLOOKUP(28,'Course List'!$A:$C,3,0)=0,"Unknown",VLOOKUP(28,'Course List'!$A:$C,3,0))) ->  | C10: =VLOOKUP(28,'Course List'!A:D,4,0) -> BLAW | D10: =VLOOKUP(28,'Course List'!A:E,5,0) -> 911-A | E10: =VLOOKUP(28,'Course List'!A:F,6,0) -> Business Law for Entrepreneurs
A11: =VLOOKUP(45,'Course List'!A:B,2,0) -> Not Taken | B11: =IF(VLOOKUP(45,'Course List'!$A:$B,2,0)="Not Taken","",IF(VLOOKUP(45,'Course List'!$A:$C,3,0)=0,"Unknown",VLOOKUP(45,'Course List'!$A:$C,3,0))) ->  | C11: =VLOOKUP(45,'Course List'!A:D,4,0) -> ENTR | D11: =VLOOKUP(45,'Course List'!A:E,5,0) -> 463 | E11: =VLOOKUP(45,'Course List'!A:F,6,0) -> Succesful Entrepreneurship
A12: =VLOOKUP(49,'Course List'!A:B,2,0) -> Not Taken | B12: =IF(VLOOKUP(49,'Course List'!$A:$B,2,0)="Not Taken","",IF(VLOOKUP(49,'Course List'!$A:$C,3,0)=0,"Unknown",VLOOKUP(49,'Course List'!$A:$C,3,0))) ->  | C12: =VLOOKUP(49,'Course List'!A:D,4,0) -> ENTR | D12: =VLOOKUP(49,'Course List'!A:E,5,0) -> 901-A | E12: =VLOOKUP(49,'Course List'!A:F,6,0) -> Understanding and Managing Risk
A13: =VLOOKUP(50,'Course List'!A:B,2,0) -> Not Taken | B13: =IF(VLOOKUP(50,'Course List'!$A:$B,2,0)="Not Taken","",IF(VLOOKUP(50,'Course List'!$A:$C,3,0)=0,"Unknown",VLOOKUP(50,'Course List'!$A:$C,3,0))) ->  | C13: =VLOOKUP(50,'Course List'!A:D,4,0) -> ENTR | D13: =VLOOKUP(50,'Course List'!A:E,5,0) -> 902-A | E13: =VLOOKUP(50,'Course List'!A:F,6,0) -> Entrepreneurial Selling: Skills and Strategies
A14: =VLOOKUP(51,'Course List'!A:B,2,0) -> Not Taken | B14: =IF(VLOOKUP(51,'Course List'!$A:$B,2,0)="Not Taken","",IF(VLOOKUP(51,'Course List'!$A:$C,3,0)=0,"Unknown",VLOOKUP(51,'Course List'!$A:$C,3,0))) ->  | C14: =VLOOKUP(51,'Course List'!A:D,4,0) -> ENTR | D14: =VLOOKUP(51,'Course List'!A:E,5,0) -> 902-B | E14: =VLOOKUP(51,'Course List'!A:F,6,0) -> Entrepreneurial Selling: Skills and Strategies
A15: =VLOOKUP(52,'Course List'!A:B,2,0) -> Not Taken | B15: =IF(VLOOKUP(52,'Course List'!$A:$B,2,0)="Not Taken","",IF(VLOOKUP(52,'Course List'!$A:$C,3,0)=0,"Unknown",VLOOKUP(52,'Course List'!$A:$C,3,0))) ->  | C15: =VLOOKUP(52,'Course List'!A:D,4,0) -> ENTR | D15: =VLOOKUP(52,'Course List'!A:E,5,0) -> 903-A | E15: =VLOOKUP(52,'Course List'!A:F,6,0) -> Corporate Innovation & New Ventures
A16: =VLOOKUP(53,'Course List'!A:B,2,0) -> Not Taken | B16: =IF(VLOOKUP(53,'Course List'!$A:$B,2,0)="Not Taken","",IF(VLOOKUP(53,'Course List'!$A:$C,3,0)=0,"Unknown",VLOOKUP(53,'Course List'!$A:$C,3,0))) ->  | C16: =VLOOKUP(53,'Course List'!A:D,4,0) -> ENTR | D16: =VLOOKUP(53,'Course List'!A:E,5,0) -> 903-B | E16: =VLOOKUP(53,'Course List'!A:F,6,0) -> Corporate Innovation & New Ventures
A17: =VLOOKUP(274,'Course List'!A:B,2,0) -> Not Taken | B17: =IF(VLOOKUP(274,'Course List'!$A:$B,2,0)="Not Taken","",IF(VLOOKUP(274,'Course List'!$A:$C,3,0)=0,"Unknown",VLOOKUP(274,'Course List'!$A:$C,3,0))) ->  | C17: =VLOOKUP(274,'Course List'!A:D,4,0) -> ENTR | D17: =VLOOKUP(274,'Course List'!A:E,5,0) -> 904-A | E17: =VLOOKUP(274,'Course List'!A:F,6,0) -> Entrepreneurial Risk
A18: =VLOOKUP(275,'Course List'!A:B,2,0) -> Not Taken | B18: =IF(VLOOKUP(275,'Course List'!$A:$B,2,0)="Not Taken","",IF(VLOOKUP(275,'Course List'!$A:$C,3,0)=0,"Unknown",VLOOKUP(275,'Course List'!$A:$C,3,0))) ->  | C18: =VLOOKUP(275,'Course List'!A:D,4,0) -> ENTR | D18: =VLOOKUP(275,'Course List'!A:E,5,0) -> 904-B | E18: =VLOOKUP(275,'Course List'!A:F,6,0) -> Entrepreneurial Risk
A19: =VLOOKUP(54,'Course List'!A:B,2,0) -> Not Taken | B19: =IF(VLOOKUP(54,'Course List'!$A:$B,2,0)="Not Taken","",IF(VLOOKUP(54,'Course List'!$A:$C,3,0)=0,"Unknown",VLOOKUP(54,'Course List'!$A:$C,3,0))) ->  | C19: =VLOOKUP(54,'Course List'!A:D,4,0) -> ENTR | D19: =VLOOKUP(54,'Course List'!A:E,5,0) -> 926 | E19: =VLOOKUP(54,'Course List'!A:F,6,0) -> The Human Element in Private Equity Investing
A20: =VLOOKUP(59,'Course List'!A:B,2,0) -> Not Taken | B20: =IF(VLOOKUP(59,'Course List'!$A:$B,2,0)="Not Taken","",IF(VLOOKUP(59,'Course List'!$A:$C,3,0)=0,"Unknown",VLOOKUP(59,'Course List'!$A:$C,3,0))) ->  | C20: =VLOOKUP(59,'Course List'!A:D,4,0) -> FINC | D20: =VLOOKUP(59,'Course List'!A:E,5,0) -> 445 | E20: =VLOOKUP(59,'Course List'!A:F,6,0) -> Venture Capital and Private Equity Investing
A21: =VLOOKUP(60,'Course List'!A:B,2,0) -> Not Taken | B21: =IF(VLOOKUP(60,'Course List'!$A:$B,2,0)="Not Taken","",IF(VLOOKUP(60,'Course List'!$A:$C,3,0)=0,"Unknown",VLOOKUP(60,'Course List'!$A:$C,3,0))) ->  | C21: =VLOOKUP(60,'Course List'!A:D,4,0) -> FINC | D21: =VLOOKUP(60,'Course List'!A:E,5,0) -> 446 | E21: =VLOOKUP(60,'Course List'!A:F,6,0) -> Entrepreneurial Finance
A22: =VLOOKUP(76,'Course List'!A:B,2,0) -> Not Taken | B22: =IF(VLOOKUP(76,'Course List'!$A:$B,2,0)="Not Taken","",IF(VLOOKUP(76,'Course List'!$A:$C,3,0)=0,"Unknown",VLOOKUP(76,'Course List'!$A:$C,3,0))) ->  | C22: =VLOOKUP(76,'Course List'!A:D,4,0) -> FINC | D22: =VLOOKUP(76,'Course List'!A:E,5,0) -> 918-A | E22: =VLOOKUP(76,'Course List'!A:F,6,0) -> Major Project and Project Finance in Emerging Markets
A23: =VLOOKUP(254,'Course List'!A:B,2,0) -> Not Taken | B23: =IF(VLOOKUP(254,'Course List'!$A:$B,2,0)="Not Taken","",IF(VLOOKUP(254,'Course List'!$A:$C,3,0)=0,"Unknown",VLOOKUP(254,'Course List'!$A:$C,3,0))) ->  | C23: =VLOOKUP(254,'Course List'!A:D,4,0) -> FINC | D23: =VLOOKUP(254,'Course List'!A:E,5,0) -> 918-B | E23: =VLOOKUP(254,'Course List'!A:F,6,0) -> Major Project and Project Finance in Emerging Markets
A24: =VLOOKUP(85,'Course List'!A:B,2,0) -> Not Taken | B24: =IF(VLOOKUP(85,'Course List'!$A:$B,2,0)="Not Taken","",IF(VLOOKUP(85,'Course List'!$A:$C,3,0)=0,"Unknown",VLOOKUP(85,'Course List'!$A:$C,3,0))) ->  | C24: =VLOOKUP(85,'Course List'!A:D,4,0) -> FINC | D24: =VLOOKUP(85,'Course List'!A:E,5,0) -> 932 | E24: =VLOOKUP(85,'Course List'!A:F,6,0) -> Case Studies in Venture Investment and Management
A25: =VLOOKUP(109,'Course List'!A:B,2,0) -> Not Taken | B25: =IF(VLOOKUP(109,'Course List'!$A:$B,2,0)="Not Taken","",IF(VLOOKUP(109,'Course List'!$A:$C,3,0)=0,"Unknown",VLOOKUP(109,'Course List'!$A:$C,3,0))) ->  | C25: =VLOOKUP(109,'Course List'!A:D,4,0) -> INTL | D25: =VLOOKUP(109,'Course List'!A:E,5,0) -> 474 | E25: =VLOOKUP(109,'Course List'!A:F,6,0) -> Cross-Cultural Negotiation
A26: =VLOOKUP(121,'Course List'!A:B,2,0) -> Not Taken | B26: =IF(VLOOKUP(121,'Course List'!$A:$B,2,0)="Not Taken","",IF(VLOOKUP(121,'Course List'!$A:$C,3,0)=0,"Unknown",VLOOKUP(121,'Course List'!$A:$C,3,0))) ->  | C26: =VLOOKUP(121,'Course List'!A:D,4,0) -> MECN | D26: =VLOOKUP(121,'Course List'!A:E,5,0) -> 446 | E26: =VLOOKUP(121,'Course List'!A:F,6,0) -> Pricing Strategies
A27: =VLOOKUP(139,'Course List'!A:B,2,0) -> Not Taken | B27: =IF(VLOOKUP(139,'Course List'!$A:$B,2,0)="Not Taken","",IF(VLOOKUP(139,'Course List'!$A:$C,3,0)=0,"Unknown",VLOOKUP(139,'Course List'!$A:$C,3,0))) ->  | C27: =VLOOKUP(139,'Course List'!A:D,4,0) -> MGMT | D27: =VLOOKUP(139,'Course List'!A:E,5,0) -> 463 | E27: =VLOOKUP(139,'Course List'!A:F,6,0) -> Management of Technology
A28: =VLOOKUP(141,'Course List'!A:B,2,0) -> Not Taken | B28: =IF(VLOOKUP(141,'Course List'!$A:$B,2,0)="Not Taken","",IF(VLOOKUP(141,'Course List'!$A:$C,3,0)=0,"Unknown",VLOOKUP(141,'Course List'!$A:$C,3,0))) ->  | C28: =VLOOKUP(141,'Course List'!A:D,4,0) -> MGMT | D28: =VLOOKUP(141,'Course List'!A:E,5,0) -> 465 | E28: =VLOOKUP(141,'Course List'!A:F,6,0) -> Small Business Management
A29: =VLOOKUP(151,'Course List'!A:B,2,0) -> Not Taken | B29: =IF(VLOOKUP(151,'Course List'!$A:$B,2,0)="Not Taken","",IF(VLOOKUP(151,'Course List'!$A:$C,3,0)=0,"Unknown",VLOOKUP(151,'Course List'!$A:$C,3,0))) ->  | C29: =VLOOKUP(151,'Course List'!A:D,4,0) -> MGMT | D29: =VLOOKUP(151,'Course List'!A:E,5,0) -> 927 | E29: =VLOOKUP(151,'Course List'!A:F,6,0) -> Family Enterprises: Issues & Solutions
A30: =VLOOKUP(153,'Course List'!A:B,2,0) -> Not Taken | B30: =IF(VLOOKUP(153,'Course List'!$A:$B,2,0)="Not Taken","",IF(VLOOKUP(153,'Course List'!$A:$C,3,0)=0,"Unknown",VLOOKUP(153,'Course List'!$A:$C,3,0))) ->  | C30: =VLOOKUP(153,'Course List'!A:D,4,0) -> MGMT | D30: =VLOOKUP(153,'Course List'!A:E,5,0) -> 931-A | E30: =VLOOKUP(153,'Course List'!A:F,6,0) -> Strategic Franchising
A31: =VLOOKUP(154,'Course List'!A:B,2,0) -> Not Taken | B31: =IF(VLOOKUP(154,'Course List'!$A:$B,2,0)="Not Taken","",IF(VLOOKUP(154,'Course List'!$A:$C,3,0)=0,"Unknown",VLOOKUP(154,'Course List'!$A:$C,3,0))) ->  | C31: =VLOOKUP(154,'Course List'!A:D,4,0) -> MGMT | D31: =VLOOKUP(154,'Course List'!A:E,5,0) -> 931-B | E31: =VLOOKUP(154,'Course List'!A:F,6,0) -> Strategic Franchising
A32: =VLOOKUP(157,'Course List'!A:B,2,0) -> Not Taken | B32: =IF(VLOOKUP(157,'Course List'!$A:$B,2,0)="Not Taken","",IF(VLOOKUP(157,'Course List'!$A:$C,3,0)=0,"Unknown",VLOOKUP(157,'Course List'!$A:$C,3,0))) ->  | C32: =VLOOKUP(157,'Course List'!A:D,4,0) -> MGMT | D32: =VLOOKUP(157,'Course List'!A:E,5,0) -> 934 | E32: =VLOOKUP(157,'Course List'!A:F,6,0) -> Managing Turnarounds
A33: =VLOOKUP(172,'Course List'!A:B,2,0) -> Not Taken | B33: =IF(VLOOKUP(172,'Course List'!$A:$B,2,0)="Not Taken","",IF(VLOOKUP(172,'Course List'!$A:$C,3,0)=0,"Unknown",VLOOKUP(172,'Course List'!$A:$C,3,0))) ->  | C33: =VLOOKUP(172,'Course List'!A:D,4,0) -> MKTG | D33: =VLOOKUP(172,'Course List'!A:E,5,0) -> 464-A | E33: =VLOOKUP(172,'Course List'!A:F,6,0) -> The Management of Product Development
A34: =VLOOKUP(173,'Course List'!A:B,2,0) -> Not Taken | B34: =IF(VLOOKUP(173,'Course List'!$A:$B,2,0)="Not Taken","",IF(VLOOKUP(173,'Course List'!$A:$C,3,0)=0,"Unknown",VLOOKUP(173,'Course List'!$A:$C,3,0))) ->  | C34: =VLOOKUP(173,'Course List'!A:D,4,0) -> MKTG | D34: =VLOOKUP(173,'Course List'!A:E,5,0) -> 465 | E34: =VLOOKUP(173,'Course List'!A:F,6,0) -> Introduction of New Products & Services
A35: =VLOOKUP(175,'Course List'!A:B,2,0) -> Not Taken | B35: =IF(VLOOKUP(175,'Course List'!$A:$B,2,0)="Not Taken","",IF(VLOOKUP(175,'Course List'!$A:$C,3,0)=0,"Unknown",VLOOKUP(175,'Course List'!$A:$C,3,0))) ->  | C35: =VLOOKUP(175,'Course List'!A:D,4,0) -> MKTG | D35: =VLOOKUP(175,'Course List'!A:E,5,0) -> 468 | E35: =VLOOKUP(175,'Course List'!A:F,6,0) -> Technology Marketing
A36: =VLOOKUP(178,'Course List'!A:B,2,0) -> Not Taken | B36: =IF(VLOOKUP(178,'Course List'!$A:$B,2,0)="Not Taken","",IF(VLOOKUP(178,'Course List'!$A:$C,3,0)=0,"Unknown",VLOOKUP(178,'Course List'!$A:$C,3,0))) ->  | C36: =VLOOKUP(178,'Course List'!A:D,4,0) -> MKTG | D36: =VLOOKUP(178,'Course List'!A:E,5,0) -> 913 | E36: =VLOOKUP(178,'Course List'!A:F,6,0) -> Internet Marketing
A37: =VLOOKUP(188,'Course List'!A:B,2,0) -> Not Taken | B37: =IF(VLOOKUP(188,'Course List'!$A:$B,2,0)="Not Taken","",IF(VLOOKUP(188,'Course List'!$A:$C,3,0)=0,"Unknown",VLOOKUP(188,'Course List'!$A:$C,3,0))) ->  | C37: =VLOOKUP(188,'Course List'!A:D,4,0) -> MORS | D37: =VLOOKUP(188,'Course List'!A:E,5,0) -> 453 | E37: =VLOOKUP(188,'Course List'!A:F,6,0) -> Power in Organizations: Sources, Strategies and Skills
A38: =VLOOKUP(197,'Course List'!A:B,2,0) -> Not Taken | B38: =IF(VLOOKUP(197,'Course List'!$A:$B,2,0)="Not Taken","",IF(VLOOKUP(197,'Course List'!$A:$C,3,0)=0,"Unknown",VLOOKUP(197,'Course List'!$A:$C,3,0))) ->  | C38: =VLOOKUP(197,'Course List'!A:D,4,0) -> MORS | D38: =VLOOKUP(197,'Course List'!A:E,5,0) -> 470 | E38: =VLOOKUP(197,'Course List'!A:F,6,0) -> Negotiations
A39: =VLOOKUP(235,'Course List'!A:B,2,0) -> Not Taken | B39: =IF(VLOOKUP(235,'Course List'!$A:$B,2,0)="Not Taken","",IF(VLOOKUP(235,'Course List'!$A:$C,3,0)=0,"Unknown",VLOOKUP(235,'Course List'!$A:$C,3,0))) ->  | C39: =VLOOKUP(235,'Course List'!A:D,4,0) -> MKTG | D39: =VLOOKUP(235,'Course List'!A:E,5,0) -> 938-B | E39: =VLOOKUP(235,'Course List'!A:F,6,0) -> Cases in Sustainability
A40: =VLOOKUP(230,'Course List'!A:B,2,0) -> Not Taken | B40: =IF(VLOOKUP(230,'Course List'!$A:$B,2,0)="Not Taken","",IF(VLOOKUP(230,'Course List'!$A:$C,3,0)=0,"Unknown",VLOOKUP(230,'Course List'!$A:$C,3,0))) ->  | C40: =VLOOKUP(230,'Course List'!A:D,4,0) -> SEEK | D40: =VLOOKUP(230,'Course List'!A:E,5,0) -> 956 | E40: =VLOOKUP(230,'Course List'!A:F,6,0) -> Social Entrepreneurship in the Developing World
A41: =VLOOKUP(246,'Course List'!A:B,2,0) -> Not Taken | B41: =IF(VLOOKUP(246,'Course List'!$A:$B,2,0)="Not Taken","",IF(VLOOKUP(246,'Course List'!$A:$C,3,0)=0,"Unknown",VLOOKUP(246,'Course List'!$A:$C,3,0))) ->  | C41: =VLOOKUP(246,'Course List'!A:D,4,0) -> TECH | D41: =VLOOKUP(246,'Course List'!A:E,5,0) -> 441 | E41: =VLOOKUP(246,'Course List'!A:F,6,0) -> Intellectual Capital Management
A42: =VLOOKUP(248,'Course List'!A:B,2,0) -> Not Taken | B42: =IF(VLOOKUP(248,'Course List'!$A:$B,2,0)="Not Taken","",IF(VLOOKUP(248,'Course List'!$A:$C,3,0)=0,"Unknown",VLOOKUP(248,'Course List'!$A:$C,3,0))) ->  | C42: =VLOOKUP(248,'Course List'!A:D,4,0) -> TECH | D42: =VLOOKUP(248,'Course List'!A:E,5,0) -> 911 | E42: =VLOOKUP(248,'Course List'!A:F,6,0) -> The Strategic Impact of Information Technology
A43: =VLOOKUP(251,'Course List'!A:B,2,0) -> Not Taken | B43: =IF(VLOOKUP(251,'Course List'!$A:$B,2,0)="Not Taken","",IF(VLOOKUP(251,'Course List'!$A:$C,3,0)=0,"Unknown",VLOOKUP(251,'Course List'!$A:$C,3,0))) ->  | C43: =VLOOKUP(251,'Course List'!A:D,4,0) -> TECH | D43: =VLOOKUP(251,'Course List'!A:E,5,0) -> 918 | E43: =VLOOKUP(251,'Course List'!A:F,6,0) -> Kellogg TechVenture
A44: Not Taken | B44: =IF(VLOOKUP(13,'Course List'!$A:$B,2,0)="Not Taken","",IF(VLOOKUP(13,'Course List'!$A:$C,3,0)=0,"Unknown",VLOOKUP(13,'Course List'!$A:$C,3,0))) ->  | C44: =VLOOKUP(13,'Course List'!A:D,4,0) -> ACCT | D44: =VLOOKUP(13,'Course List'!A:E,5,0) -> 454 | E44: =VLOOKUP(13,'Course List'!A:F,6,0) -> Management Lab (M-Lab)

Sheet FINC
A1: Finance
A3: =Formulae!A53 -> NOT MAJORING IN THIS FIELD
A5: Status | B5: Term | C5: Department | D5: Course # | E5: Course Name
A7: =VLOOKUP(55,'Course List'!A:B,2,0) -> Not Taken | B7: =IF(VLOOKUP(55,'Course List'!$A:$B,2,0)="Not Taken","",IF(VLOOKUP(55,'Course List'!$A:$C,3,0)=0,"Unknown",VLOOKUP(55,'Course List'!$A:$C,3,0))) ->  | C7: =VLOOKUP(55,'Course List'!A:D,4,0) -> FINC | D7: =VLOOKUP(55,'Course List'!A:E,5,0) -> 430 | E7: =VLOOKUP(55,'Course List'!A:F,6,0) -> Finance I
A8: =VLOOKUP(57,'Course List'!A:B,2,0) -> Not Taken | B8: =IF(VLOOKUP(57,'Course List'!$A:$B,2,0)="Not Taken","",IF(VLOOKUP(57,'Course List'!$A:$C,3,0)=0,"Unknown",VLOOKUP(57,'Course List'!$A:$C,3,0))) ->  | C8: =VLOOKUP(57,'Course List'!A:D,4,0) -> FINC | D8: =VLOOKUP(57,'Course List'!A:E,5,0) -> 441 | E8: =VLOOKUP(57,'Course List'!A:F,6,0) -> Finance II
A9: =VLOOKUP(56,'Course List'!A:B,2,0) -> Not Taken | B9: =IF(VLOOKUP(56,'Course List'!$A:$B,2,0)="Not Taken","",IF(VLOOKUP(56,'Course List'!$A:$C,3,0)=0,"Unknown",VLOOKUP(56,'Course List'!$A:$C,3,0))) ->  | C9: =VLOOKUP(56,'Course List'!A:D,4,0) -> FINC | D9: =VLOOKUP(56,'Course List'!A:E,5,0) -> 440 | E9: =VLOOKUP(56,'Course List'!A:F,6,0) -> Finance I & II
A11: =VLOOKUP(63,'Course List'!A:B,2,0) -> Not Taken | B11: =IF(VLOOKUP(63,'Course List'!$A:$B,2,0)="Not Taken","",IF(VLOOKUP(63,'Course List'!$A:$C,3,0)=0,"Unknown",VLOOKUP(63,'Course List'!$A:$C,3,0))) ->  | C11: =VLOOKUP(63,'Course List'!A:D,4,0) -> FINC | D11: =VLOOKUP(63,'Course List'!A:E,5,0) -> 451 | E11: =VLOOKUP(63,'Course List'!A:F,6,0) -> Money Markets and the Fed
A12: =VLOOKUP(65,'Course List'!A:B,2,0) -> Not Taken | B12: =IF(VLOOKUP(65,'Course List'!$A:$B,2,0)="Not Taken","",IF(VLOOKUP(65,'Course List'!$A:$C,3,0)=0,"Unknown",VLOOKUP(65,'Course List'!$A:$C,3,0))) ->  | C12: =VLOOKUP(65,'Course List'!A:D,4,0) -> FINC | D12: =VLOOKUP(65,'Course List'!A:E,5,0) -> 460 | E12: =VLOOKUP(65,'Course List'!A:F,6,0) -> Investments
A13: =VLOOKUP(68,'Course List'!A:B,2,0) -> Not Taken | B13: =IF(VLOOKUP(68,'Course List'!$A:$B,2,0)="Not Taken","",IF(VLOOKUP(68,'Course List'!$A:$C,3,0)=0,"Unknown",VLOOKUP(68,'Course List'!$A:$C,3,0))) ->  | C13: =VLOOKUP(68,'Course List'!A:D,4,0) -> FINC | D13: =VLOOKUP(68,'Course List'!A:E,5,0) -> 464 | E13: =VLOOKUP(68,'Course List'!A:F,6,0) -> Fixed Income Securities
A14: =VLOOKUP(69,'Course List'!A:B,2,0) -> Not Taken | B14: =IF(VLOOKUP(69,'Course List'!$A:$B,2,0)="Not Taken","",IF(VLOOKUP(69,'Course List'!$A:$C,3,0)=0,"Unknown",VLOOKUP(69,'Course List'!$A:$C,3,0))) ->  | C14: =VLOOKUP(69,'Course List'!A:D,4,0) -> FINC | D14: =VLOOKUP(69,'Course List'!A:E,5,0) -> 465 | E14: =VLOOKUP(69,'Course List'!A:F,6,0) -> Derivative Markets I
A15: =VLOOKUP(70,'Course List'!A:B,2,0) -> Not Taken | B15: =IF(VLOOKUP(70,'Course List'!$A:$B,2,0)="Not Taken","",IF(VLOOKUP(70,'Course List'!$A:$C,3,0)=0,"Unknown",VLOOKUP(70,'Course List'!$A:$C,3,0))) ->  | C15: =VLOOKUP(70,'Course List'!A:D,4,0) -> FINC | D15: =VLOOKUP(70,'Course List'!A:E,5,0) -> 467 | E15: =VLOOKUP(70,'Course List'!A:F,6,0) -> Derivative Markets II
A16: =VLOOKUP(71,'Course List'!A:B,2,0) -> Not Taken | B16: =IF(VLOOKUP(71,'Course List'!$A:$B,2,0)="Not Taken","",IF(VLOOKUP(71,'Course List'!$A:$C,3,0)=0,"Unknown",VLOOKUP(71,'Course List'!$A:$C,3,0))) ->  | C16: =VLOOKUP(71,'Course List'!A:D,4,0) -> FINC | D16: =VLOOKUP(71,'Course List'!A:E,5,0) -> 470 | E16: =VLOOKUP(71,'Course List'!A:F,6,0) -> International Finance
A18: =VLOOKUP(58,'Course List'!A:B,2,0) -> Not Taken | B18: =IF(VLOOKUP(58,'Course List'!$A:$B,2,0)="Not Taken","",IF(VLOOKUP(58,'Course List'!$A:$C,3,0)=0,"Unknown",VLOOKUP(58,'Course List'!$A:$C,3,0))) ->  | C18: =VLOOKUP(58,'Course List'!A:D,4,0) -> FINC | D18: =VLOOKUP(58,'Course List'!A:E,5,0) -> 442 | E18: =VLOOKUP(58,'Course List'!A:F,6,0) -> Financial Decisions
A19: =VLOOKUP(59,'Course List'!A:B,2,0) -> Not Taken | B19: =IF(VLOOKUP(59,'Course List'!$A:$B,2,0)="Not Taken","",IF(VLOOKUP(59,'Course List'!$A:$C,3,0)=0,"Unknown",VLOOKUP(59,'Course List'!$A:$C,3,0))) ->  | C19: =VLOOKUP(59,'Course List'!A:D,4,0) -> FINC | D19: =VLOOKUP(59,'Course List'!A:E,5,0) -> 445 | E19: =VLOOKUP(59,'Course List'!A:F,6,0) -> Venture Capital and Private Equity Investing
A20: =VLOOKUP(60,'Course List'!A:B,2,0) -> Not Taken | B20: =IF(VLOOKUP(60,'Course List'!$A:$B,2,0)="Not Taken","",IF(VLOOKUP(60,'Course List'!$A:$C,3,0)=0,"Unknown",VLOOKUP(60,'Course List'!$A:$C,3,0))) ->  | C20: =VLOOKUP(60,'Course List'!A:D,4,0) -> FINC | D20: =VLOOKUP(60,'Course List'!A:E,5,0) -> 446 | E20: =VLOOKUP(60,'Course List'!A:F,6,0) -> Entrepreneurial Finance
A21: =VLOOKUP(61,'Course List'!A:B,2,0) -> Not Taken | B21: =IF(VLOOKUP(61,'Course List'!$A:$B,2,0)="Not Taken","",IF(VLOOKUP(61,'Course List'!$A:$C,3,0)=0,"Unknown",VLOOKUP(61,'Course List'!$A:$C,3,0))) ->  | C21: =VLOOKUP(61,'Course List'!A:D,4,0) -> FINC | D21: =VLOOKUP(61,'Course List'!A:E,5,0) -> 447 | E21: =VLOOKUP(61,'Course List'!A:F,6,0) -> Financial Strategy and Tax Planning
A22: =VLOOKUP(62,'Course List'!A:B,2,0) -> Not Taken | B22: =IF(VLOOKUP(62,'Course List'!$A:$B,2,0)="Not Taken","",IF(VLOOKUP(62,'Course List'!$A:$C,3,0)=0,"Unknown",VLOOKUP(62,'Course List'!$A:$C,3,0))) ->  | C22: =VLOOKUP(62,'Course List'!A:D,4,0) -> FINC | D22: =VLOOKUP(62,'Course List'!A:E,5,0) -> 448 | E22: =VLOOKUP(62,'Course List'!A:F,6,0) -> Corporate Restructuring
A23: =VLOOKUP(64,'Course List'!A:B,2,0) -> Not Taken | B23: =IF(VLOOKUP(64,'Course List'!$A:$B,2,0)="Not Taken","",IF(VLOOKUP(64,'Course List'!$A:$C,3,0)=0,"Unknown",VLOOKUP(64,'Course List'!$A:$C,3,0))) ->  | C23: =VLOOKUP(64,'Course List'!A:D,4,0) -> FINC | D23: =VLOOKUP(64,'Course List'!A:E,5,0) -> 453 | E23: =VLOOKUP(64,'Course List'!A:F,6,0) -> Risk Bearing Markets & Insurance
A24: =VLOOKUP(66,'Course List'!A:B,2,0) -> Not Taken | B24: =IF(VLOOKUP(66,'Course List'!$A:$B,2,0)="Not Taken","",IF(VLOOKUP(66,'Course List'!$A:$C,3,0)=0,"Unknown",VLOOKUP(66,'Course List'!$A:$C,3,0))) ->  | C24: =VLOOKUP(66,'Course List'!A:D,4,0) -> FINC | D24: =VLOOKUP(66,'Course List'!A:E,5,0) -> 461 | E24: =VLOOKUP(66,'Course List'!A:F,6,0) -> Investment Banking
A25: =VLOOKUP(67,'Course List'!A:B,2,0) -> Not Taken | B25: =IF(VLOOKUP(67,'Course List'!$A:$B,2,0)="Not Taken","",IF(VLOOKUP(67,'Course List'!$A:$C,3,0)=0,"Unknown",VLOOKUP(67,'Course List'!$A:$C,3,0))) ->  | C25: =VLOOKUP(67,'Course List'!A:D,4,0) -> FINC | D25: =VLOOKUP(67,'Course List'!A:E,5,0) -> 463 | E25: =VLOOKUP(67,'Course List'!A:F,6,0) -> Security Analysis
A26: =VLOOKUP(72,'Course List'!A:B,2,0) -> Not Taken | B26: =IF(VLOOKUP(72,'Course List'!$A:$B,2,0)="Not Taken","",IF(VLOOKUP(72,'Course List'!$A:$C,3,0)=0,"Unknown",VLOOKUP(72,'Course List'!$A:$C,3,0))) ->  | C26: =VLOOKUP(72,'Course List'!A:D,4,0) -> FINC | D26: =VLOOKUP(72,'Course List'!A:E,5,0) -> 499 | E26: =VLOOKUP(72,'Course List'!A:F,6,0) -> Independent Study
A27: =VLOOKUP(279,'Course List'!A:B,2,0) -> Not Taken | B27: =IF(VLOOKUP(279,'Course List'!$A:$B,2,0)="Not Taken","",IF(VLOOKUP(279,'Course List'!$A:$C,3,0)=0,"Unknown",VLOOKUP(279,'Course List'!$A:$C,3,0))) ->  | C27: =VLOOKUP(279,'Course List'!A:D,4,0) -> FINC | D27: =VLOOKUP(279,'Course List'!A:E,5,0) -> 915 | E27: =VLOOKUP(279,'Course List'!A:F,6,0) -> Venture Lab (V-Lab)
A28: =VLOOKUP(79,'Course List'!A:B,2,0) -> Not Taken | B28: =IF(VLOOKUP(79,'Course List'!$A:$B,2,0)="Not Taken","",IF(VLOOKUP(79,'Course List'!$A:$C,3,0)=0,"Unknown",VLOOKUP(79,'Course List'!$A:$C,3,0))) ->  | C28: =VLOOKUP(79,'Course List'!A:D,4,0) -> FINC | D28: =VLOOKUP(79,'Course List'!A:E,5,0) -> 925 | E28: =VLOOKUP(79,'Course List'!A:F,6,0) -> Advanced Topics in Finance
A29: =VLOOKUP(81,'Course List'!A:B,2,0) -> Not Taken | B29: =IF(VLOOKUP(81,'Course List'!$A:$B,2,0)="Not Taken","",IF(VLOOKUP(81,'Course List'!$A:$C,3,0)=0,"Unknown",VLOOKUP(81,'Course List'!$A:$C,3,0))) ->  | C29: =VLOOKUP(81,'Course List'!A:D,4,0) -> FINC | D29: =VLOOKUP(81,'Course List'!A:E,5,0) -> 929 | E29: =VLOOKUP(81,'Course List'!A:F,6,0) -> Financial Institutions and Markets
A30: =VLOOKUP(84,'Course List'!A:B,2,0) -> Not Taken | B30: =IF(VLOOKUP(84,'Course List'!$A:$B,2,0)="Not Taken","",IF(VLOOKUP(84,'Course List'!$A:$C,3,0)=0,"Unknown",VLOOKUP(84,'Course List'!$A:$C,3,0))) ->  | C30: =VLOOKUP(84,'Course List'!A:D,4,0) -> FINC | D30: =VLOOKUP(84,'Course List'!A:E,5,0) -> 931 | E30: =VLOOKUP(84,'Course List'!A:F,6,0) -> Wall Street, Hedge Funds and Private Equity (LPB) Funds
A31: =VLOOKUP(85,'Course List'!A:B,2,0) -> Not Taken | B31: =IF(VLOOKUP(85,'Course List'!$A:$B,2,0)="Not Taken","",IF(VLOOKUP(85,'Course List'!$A:$C,3,0)=0,"Unknown",VLOOKUP(85,'Course List'!$A:$C,3,0))) ->  | C31: =VLOOKUP(85,'Course List'!A:D,4,0) -> FINC | D31: =VLOOKUP(85,'Course List'!A:E,5,0) -> 932 | E31: =VLOOKUP(85,'Course List'!A:F,6,0) -> Case Studies in Venture Investment and Management
A32: =VLOOKUP(280,'Course List'!A:B,2,0) -> Not Taken | B32: =IF(VLOOKUP(280,'Course List'!$A:$B,2,0)="Not Taken","",IF(VLOOKUP(280,'Course List'!$A:$C,3,0)=0,"Unknown",VLOOKUP(280,'Course List'!$A:$C,3,0))) ->  | C32: =VLOOKUP(280,'Course List'!A:D,4,0) -> FINC | D32: =VLOOKUP(280,'Course List'!A:E,5,0) -> 933 | E32: =VLOOKUP(280,'Course List'!A:F,6,0) -> Assett Management Practicum I
A33: =VLOOKUP(290,'Course List'!A:B,2,0) -> Not Taken | B33: =IF(VLOOKUP(290,'Course List'!$A:$B,2,0)="Not Taken","",IF(VLOOKUP(290,'Course List'!$A:$C,3,0)=0,"Unknown",VLOOKUP(290,'Course List'!$A:$C,3,0))) ->  | C33: =VLOOKUP(290,'Course List'!A:D,4,0) -> FINC | D33: =VLOOKUP(290,'Course List'!A:E,5,0) -> 935 | E33: =VLOOKUP(290,'Course List'!A:F,6,0) -> Assett Management Practicum III
A34: =VLOOKUP(281,'Course List'!A:B,2,0) -> Not Taken | B34: =IF(VLOOKUP(281,'Course List'!$A:$B,2,0)="Not Taken","",IF(VLOOKUP(281,'Course List'!$A:$C,3,0)=0,"Unknown",VLOOKUP(281,'Course List'!$A:$C,3,0))) ->  | C34: =VLOOKUP(281,'Course List'!A:D,4,0) -> FINC | D34: =VLOOKUP(281,'Course List'!A:E,5,0) -> 939 | E34: =VLOOKUP(281,'Course List'!A:F,6,0) -> Buyout Lab
A35: =VLOOKUP(9,'Course List'!A:B,2,0) -> Not Taken | B35: =IF(VLOOKUP(9,'Course List'!$A:$B,2,0)="Not Taken","",IF(VLOOKUP(9,'Course List'!$A:$C,3,0)=0,"Unknown",VLOOKUP(9,'Course List'!$A:$C,3,0))) ->  | C35: =VLOOKUP(9,'Course List'!A:D,4,0) -> ACCT | D35: =VLOOKUP(9,'Course List'!A:E,5,0) -> 444 | E35: =VLOOKUP(9,'Course List'!A:F,6,0) -> Financial Planning For Mergers and Acquisitions
A36: =VLOOKUP(222,'Course List'!A:B,2,0) -> Not Taken | B36: =IF(VLOOKUP(222,'Course List'!$A:$B,2,0)="Not Taken","",IF(VLOOKUP(222,'Course List'!$A:$C,3,0)=0,"Unknown",VLOOKUP(222,'Course List'!$A:$C,3,0))) ->  | C36: =VLOOKUP(222,'Course List'!A:D,4,0) -> REAL | D36: =VLOOKUP(222,'Course List'!A:E,5,0) -> 442 | E36: =VLOOKUP(222,'Course List'!A:F,6,0) -> Real Estate Finance and Investments
A37: =VLOOKUP(227,'Course List'!A:B,2,0) -> Not Taken | B37: =IF(VLOOKUP(227,'Course List'!$A:$B,2,0)="Not Taken","",IF(VLOOKUP(227,'Course List'!$A:$C,3,0)=0,"Unknown",VLOOKUP(227,'Course List'!$A:$C,3,0))) ->  | C37: =VLOOKUP(227,'Course List'!A:D,4,0) -> REAL | D37: =VLOOKUP(227,'Course List'!A:E,5,0) -> 464 | E37: =VLOOKUP(227,'Course List'!A:F,6,0) -> Real Estate Finance and Investments II
A38: =IF(COUNTIF(A47:A65,"Complete")>=2,"Complete",IF(AND(COUNTIF(A47:A65,"Complete")=1,COUNTIF(A47:A65,"Enrolled")>=1),"Enrolled",IF(COUNTIF(A47:A65,"Enrolled")>=2,"Enrolled","Not Taken"))) -> Not Taken | C38: This line denotes whether or not two half credit courses have been completed.
A39: =IF(COUNTIF(A47:A65,"Complete")>=4,"Complete",IF(AND(COUNTIF(A47:A65,"Complete")=3,COUNTIF(A47:A65,"Enrolled")>=1),"Enrolled",IF(AND(COUNTIF(A47:A65,"Complete")=2,COUNTIF(A47:A65,"Enrolled")>=2),"Enrolled",IF(AND(COUNTIF(A47:A65,"Complete")=1,COUNTIF(A47:A65,"Enrolled")>=4),"Enrolled",IF(COUNTIF(A47:A65,"Enrolled")>=4,"Enrolled","Not Taken"))))) -> Not Taken | C39: This line denotes whether or not four half credit courses have been completed.
A40: =IF(COUNTIF(A47:A65,"Complete")>=6,"Complete",IF(AND(COUNTIF(A47:A65,"Complete")=5,COUNTIF(A47:A65,"Enrolled")>=1),"Enrolled",IF(AND(COUNTIF(A47:A65,"Complete")=4,COUNTIF(A47:A65,"Enrolled")>=2),"Enrolled",IF(AND(COUNTIF(A47:A65,"Complete")=1,COUNTIF(A47:A65,"Enrolled")>=5),"Enrolled","Not Taken")))) -> Not Taken | C40: This line denotes whether or not six half credit courses have been completed.
A41: =IF(COUNTIF(A47:A65,"Complete")>=8,"Complete",IF(AND(COUNTIF(A47:A65,"Complete")=7,COUNTIF(A47:A65,"Enrolled")>=1),"Enrolled",IF(AND(COUNTIF(A47:A65,"Complete")=6,COUNTIF(A47:A65,"Enrolled")>=2),"Enrolled",IF(AND(COUNTIF(A47:A65,"Complete")=3,COUNTIF(A47:A65,"Enrolled")>=5),"Enrolled","Not Taken")))) -> Not Taken | C41: This line denotes whether or not eight half credit courses have been completed.
A42: =IF(COUNTIF(A47:A65,"Complete")>=10,"Complete",IF(AND(COUNTIF(A47:A65,"Complete")=9,COUNTIF(A47:A65,"Enrolled")>=1),"Enrolled",IF(AND(COUNTIF(A47:A65,"Complete")=8,COUNTIF(A47:A65,"Enrolled")>=2),"Enrolled",IF(AND(COUNTIF(A47:A65,"Complete")=5,COUNTIF(A47:A65,"Enrolled")>=5),"Enrolled","Not Taken")))) -> Not Taken | C42: This line denotes whether or not ten half credit courses have been completed.
A43: =IF(COUNTIF(A47:A65,"Complete")>=12,"Complete",IF(AND(COUNTIF(A47:A65,"Complete")=11,COUNTIF(A47:A65,"Enrolled")>=1),"Enrolled",IF(AND(COUNTIF(A47:A65,"Complete")=10,COUNTIF(A47:A65,"Enrolled")>=2),"Enrolled",IF(AND(COUNTIF(A47:A65,"Complete")=7,COUNTIF(A47:A65,"Enrolled")>=5),"Enrolled","Not Taken")))) -> Not Taken | C43: This line denotes whether or not twelve half credit courses have been completed.
A44: =IF(COUNTIF(A47:A65,"Complete")>=14,"Complete",IF(AND(COUNTIF(A47:A65,"Complete")=13,COUNTIF(A47:A65,"Enrolled")>=1),"Enrolled",IF(AND(COUNTIF(A47:A65,"Complete")=12,COUNTIF(A47:A65,"Enrolled")>=2),"Enrolled",IF(AND(COUNTIF(A47:A65,"Complete")=9,COUNTIF(A47:A65,"Enrolled")>=5),"Enrolled","Not Taken")))) -> Not Taken | C44: This line denotes whether or not fourteen half credit courses have been completed.
A45: =IF(COUNTIF(A48:A66,"Complete")>=16,"Complete",IF(AND(COUNTIF(A48:A66,"Complete")=15,COUNTIF(A48:A66,"Enrolled")>=1),"Enrolled",IF(AND(COUNTIF(A48:A66,"Complete")=14,COUNTIF(A48:A66,"Enrolled")>=2),"Enrolled",IF(AND(COUNTIF(A48:A66,"Complete")=11,COUNTIF(A48:A66,"Enrolled")>=5),"Enrolled","Not Taken")))) -> Not Taken | C45: This line denotes whether or not sixteen half credit courses have been completed.
A46: =IF(COUNTIF(A49:A67,"Complete")>=18,"Complete",IF(AND(COUNTIF(A49:A67,"Complete")=17,COUNTIF(A49:A67,"Enrolled")>=1),"Enrolled",IF(AND(COUNTIF(A49:A67,"Complete")=16,COUNTIF(A49:A67,"Enrolled")>=2),"Enrolled",IF(AND(COUNTIF(A49:A67,"Complete")=13,COUNTIF(A49:A67,"Enrolled")>=5),"Enrolled","Not Taken")))) -> Not Taken | C46: This line denotes whether or not eighteen half credit courses have been completed.
A47: =VLOOKUP(73,'Course List'!A:B,2,0) -> Not Taken | B47: =IF(VLOOKUP(73,'Course List'!$A:$B,2,0)="Not Taken","",IF(VLOOKUP(73,'Course List'!$A:$C,3,0)=0,"Unknown",VLOOKUP(73,'Course List'!$A:$C,3,0))) ->  | C47: =VLOOKUP(73,'Course List'!A:D,4,0) -> FINC | D47: =VLOOKUP(73,'Course List'!A:E,5,0) -> 499-A | E47: =VLOOKUP(73,'Course List'!A:F,6,0) -> Independent Study
A48: =VLOOKUP(74,'Course List'!A:B,2,0) -> Not Taken | B48: =IF(VLOOKUP(74,'Course List'!$A:$B,2,0)="Not Taken","",IF(VLOOKUP(74,'Course List'!$A:$C,3,0)=0,"Unknown",VLOOKUP(74,'Course List'!$A:$C,3,0))) ->  | C48: =VLOOKUP(74,'Course List'!A:D,4,0) -> FINC | D48: =VLOOKUP(74,'Course List'!A:E,5,0) -> 499-B | E48: =VLOOKUP(74,'Course List'!A:F,6,0) -> Independent Study
A49: =VLOOKUP(75,'Course List'!A:B,2,0) -> Not Taken | B49: =IF(VLOOKUP(75,'Course List'!$A:$B,2,0)="Not Taken","",IF(VLOOKUP(75,'Course List'!$A:$C,3,0)=0,"Unknown",VLOOKUP(75,'Course List'!$A:$C,3,0))) ->  | C49: =VLOOKUP(75,'Course List'!A:D,4,0) -> FINC | D49: =VLOOKUP(75,'Course List'!A:E,5,0) -> 901-A | E49: =VLOOKUP(75,'Course List'!A:F,6,0) -> Understanding and Managing Risk
A50: =VLOOKUP(76,'Course List'!A:B,2,0) -> Not Taken | B50: =IF(VLOOKUP(76,'Course List'!$A:$B,2,0)="Not Taken","",IF(VLOOKUP(76,'Course List'!$A:$C,3,0)=0,"Unknown",VLOOKUP(76,'Course List'!$A:$C,3,0))) ->  | C50: =VLOOKUP(76,'Course List'!A:D,4,0) -> FINC | D50: =VLOOKUP(76,'Course List'!A:E,5,0) -> 918-A | E50: =VLOOKUP(76,'Course List'!A:F,6,0) -> Major Project and Project Finance in Emerging Markets
A51: =VLOOKUP(254,'Course List'!A:B,2,0) -> Not Taken | B51: =IF(VLOOKUP(254,'Course List'!$A:$B,2,0)="Not Taken","",IF(VLOOKUP(254,'Course List'!$A:$C,3,0)=0,"Unknown",VLOOKUP(254,'Course List'!$A:$C,3,0))) ->  | C51: =VLOOKUP(254,'Course List'!A:D,4,0) -> FINC | D51: =VLOOKUP(254,'Course List'!A:E,5,0) -> 918-B | E51: =VLOOKUP(254,'Course List'!A:F,6,0) -> Major Project and Project Finance in Emerging Markets
A52: =VLOOKUP(289,'Course List'!A:B,2,0) -> Not Taken | B52: =IF(VLOOKUP(289,'Course List'!$A:$B,2,0)="Not Taken","",IF(VLOOKUP(289,'Course List'!$A:$C,3,0)=0,"Unknown",VLOOKUP(289,'Course List'!$A:$C,3,0))) ->  | C52: =VLOOKUP(289,'Course List'!A:D,4,0) -> FINC | D52: =VLOOKUP(289,'Course List'!A:E,5,0) -> 919-B | E52: =VLOOKUP(289,'Course List'!A:F,6,0) -> Advanced Topics in International Finance
A53: =VLOOKUP(77,'Course List'!A:B,2,0) -> Not Taken | B53: =IF(VLOOKUP(77,'Course List'!$A:$B,2,0)="Not Taken","",IF(VLOOKUP(77,'Course List'!$A:$C,3,0)=0,"Unknown",VLOOKUP(77,'Course List'!$A:$C,3,0))) ->  | C53: =VLOOKUP(77,'Course List'!A:D,4,0) -> FINC | D53: =VLOOKUP(77,'Course List'!A:E,5,0) -> 921-A | E53: =VLOOKUP(77,'Course List'!A:F,6,0) -> Private Equity
A54: =VLOOKUP(78,'Course List'!A:B,2,0) -> Not Taken | B54: =IF(VLOOKUP(78,'Course List'!$A:$B,2,0)="Not Taken","",IF(VLOOKUP(78,'Course List'!$A:$C,3,0)=0,"Unknown",VLOOKUP(78,'Course List'!$A:$C,3,0))) ->  | C54: =VLOOKUP(78,'Course List'!A:D,4,0) -> FINC | D54: =VLOOKUP(78,'Course List'!A:E,5,0) -> 924-A | E54: =VLOOKUP(78,'Course List'!A:F,6,0) -> Real Options
A55: =VLOOKUP(80,'Course List'!A:B,2,0) -> Not Taken | B55: =IF(VLOOKUP(80,'Course List'!$A:$B,2,0)="Not Taken","",IF(VLOOKUP(80,'Course List'!$A:$C,3,0)=0,"Unknown",VLOOKUP(80,'Course List'!$A:$C,3,0))) ->  | C55: =VLOOKUP(80,'Course List'!A:D,4,0) -> FINC | D55: =VLOOKUP(80,'Course List'!A:E,5,0) -> 928-A | E55: =VLOOKUP(80,'Course List'!A:F,6,0) -> Financial Management and Strategy in Transportation
A56: =VLOOKUP(82,'Course List'!A:B,2,0) -> Not Taken | B56: =IF(VLOOKUP(82,'Course List'!$A:$B,2,0)="Not Taken","",IF(VLOOKUP(82,'Course List'!$A:$C,3,0)=0,"Unknown",VLOOKUP(82,'Course List'!$A:$C,3,0))) ->  | C56: =VLOOKUP(82,'Course List'!A:D,4,0) -> FINC | D56: =VLOOKUP(82,'Course List'!A:E,5,0) -> 930-A | E56: =VLOOKUP(82,'Course List'!A:F,6,0) -> Environmental Finance
A57: =VLOOKUP(83,'Course List'!A:B,2,0) -> Not Taken | B57: =IF(VLOOKUP(83,'Course List'!$A:$B,2,0)="Not Taken","",IF(VLOOKUP(83,'Course List'!$A:$C,3,0)=0,"Unknown",VLOOKUP(83,'Course List'!$A:$C,3,0))) ->  | C57: =VLOOKUP(83,'Course List'!A:D,4,0) -> FINC | D57: =VLOOKUP(83,'Course List'!A:E,5,0) -> 930-B | E57: =VLOOKUP(83,'Course List'!A:F,6,0) -> Environmental Finance
A58: =VLOOKUP(86,'Course List'!A:B,2,0) -> Not Taken | B58: =IF(VLOOKUP(86,'Course List'!$A:$B,2,0)="Not Taken","",IF(VLOOKUP(86,'Course List'!$A:$C,3,0)=0,"Unknown",VLOOKUP(86,'Course List'!$A:$C,3,0))) ->  | C58: =VLOOKUP(86,'Course List'!A:D,4,0) -> FINC | D58: =VLOOKUP(86,'Course List'!A:E,5,0) -> 933-C | E58: =VLOOKUP(86,'Course List'!A:F,6,0) -> Asset Management Practicum I
A59: =VLOOKUP(87,'Course List'!A:B,2,0) -> Not Taken | B59: =IF(VLOOKUP(87,'Course List'!$A:$B,2,0)="Not Taken","",IF(VLOOKUP(87,'Course List'!$A:$C,3,0)=0,"Unknown",VLOOKUP(87,'Course List'!$A:$C,3,0))) ->  | C59: =VLOOKUP(87,'Course List'!A:D,4,0) -> FINC | D59: =VLOOKUP(87,'Course List'!A:E,5,0) -> 934-C | E59: =VLOOKUP(87,'Course List'!A:F,6,0) -> Asset Management Practicum II
A60: =VLOOKUP(88,'Course List'!A:B,2,0) -> Not Taken | B60: =IF(VLOOKUP(88,'Course List'!$A:$B,2,0)="Not Taken","",IF(VLOOKUP(88,'Course List'!$A:$C,3,0)=0,"Unknown",VLOOKUP(88,'Course List'!$A:$C,3,0))) ->  | C60: =VLOOKUP(88,'Course List'!A:D,4,0) -> FINC | D60: =VLOOKUP(88,'Course List'!A:E,5,0) -> 935-C | E60: =VLOOKUP(88,'Course List'!A:F,6,0) -> Asset Management Practicum III
A61: =VLOOKUP(89,'Course List'!A:B,2,0) -> Not Taken | B61: =IF(VLOOKUP(89,'Course List'!$A:$B,2,0)="Not Taken","",IF(VLOOKUP(89,'Course List'!$A:$C,3,0)=0,"Unknown",VLOOKUP(89,'Course List'!$A:$C,3,0))) ->  | C61: =VLOOKUP(89,'Course List'!A:D,4,0) -> FINC | D61: =VLOOKUP(89,'Course List'!A:E,5,0) -> 936-C | E61: =VLOOKUP(89,'Course List'!A:F,6,0) -> Asset Management Practicum IV
A62: =VLOOKUP(90,'Course List'!A:B,2,0) -> Not Taken | B62: =IF(VLOOKUP(90,'Course List'!$A:$B,2,0)="Not Taken","",IF(VLOOKUP(90,'Course List'!$A:$C,3,0)=0,"Unknown",VLOOKUP(90,'Course List'!$A:$C,3,0))) ->  | C62: =VLOOKUP(90,'Course List'!A:D,4,0) -> FINC | D62: =VLOOKUP(90,'Course List'!A:E,5,0) -> 937-A | E62: =VLOOKUP(90,'Course List'!A:F,6,0) -> Microfinance & the Role of Financial Institutions in Development
A63: =VLOOKUP(91,'Course List'!A:B,2,0) -> Not Taken | B63: =IF(VLOOKUP(91,'Course List'!$A:$B,2,0)="Not Taken","",IF(VLOOKUP(91,'Course List'!$A:$C,3,0)=0,"Unknown",VLOOKUP(91,'Course List'!$A:$C,3,0))) ->  | C63: =VLOOKUP(91,'Course List'!A:D,4,0) -> FINC | D63: =VLOOKUP(91,'Course List'!A:E,5,0) -> 938-A | E63: =VLOOKUP(91,'Course List'!A:F,6,0) -> Due Diligence: Mergers & Acquisitions
A64: =VLOOKUP(291,'Course List'!A:B,2,0) -> Not Taken | B64: =IF(VLOOKUP(291,'Course List'!$A:$B,2,0)="Not Taken","",IF(VLOOKUP(291,'Course List'!$A:$C,3,0)=0,"Unknown",VLOOKUP(291,'Course List'!$A:$C,3,0))) ->  | C64: =VLOOKUP(291,'Course List'!A:D,4,0) -> FINC | D64: =VLOOKUP(291,'Course List'!A:E,5,0) -> 940-A | E64: =VLOOKUP(291,'Course List'!A:F,6,0) -> Financial Modeling for Leveraged Buyout Transactions
A65: =VLOOKUP(292,'Course List'!A:B,2,0) -> Not Taken | B65: =IF(VLOOKUP(292,'Course List'!$A:$B,2,0)="Not Taken","",IF(VLOOKUP(292,'Course List'!$A:$C,3,0)=0,"Unknown",VLOOKUP(292,'Course List'!$A:$C,3,0))) ->  | C65: =VLOOKUP(292,'Course List'!A:D,4,0) -> FINC | D65: =VLOOKUP(292,'Course List'!A:E,5,0) -> 940-B | E65: =VLOOKUP(292,'Course List'!A:F,6,0) -> Financial Modeling for Leveraged Buyout Transactions

Sheet HEMA
A1: Health Enterprise Management
A3: =Formulae!A68 -> NOT MAJORING IN THIS FIELD | F3: Health Industry track
A4: =Formulae!A75 -> NOT MAJORING IN THIS FIELD | F4: Biotech & Medical Products track
A6: Status | B6: Term | C6: Department | D6: Course # | E6: Course Name
A8: =VLOOKUP(92,'Course List'!A:B,2,0) -> Not Taken | B8: =IF(VLOOKUP(92,'Course List'!$A:$B,2,0)="Not Taken","",IF(VLOOKUP(92,'Course List'!$A:$C,3,0)=0,"Unknown",VLOOKUP(92,'Course List'!$A:$C,3,0))) ->  | C8: =VLOOKUP(92,'Course List'!A:D,4,0) -> HEMA | D8: =VLOOKUP(92,'Course List'!A:E,5,0) -> 440 | E8: =VLOOKUP(92,'Course List'!A:F,6,0) -> Introduction to the Principles and Management of Health Industry Systems
A10: Health Industry track courses
A11: =VLOOKUP(135,'Course List'!A:B,2,0) -> Not Taken | B11: =IF(VLOOKUP(135,'Course List'!$A:$B,2,0)="Not Taken","",IF(VLOOKUP(135,'Course List'!$A:$C,3,0)=0,"Unknown",VLOOKUP(135,'Course List'!$A:$C,3,0))) ->  | C11: =VLOOKUP(135,'Course List'!A:D,4,0) -> MGMT | D11: =VLOOKUP(135,'Course List'!A:E,5,0) -> 444 | E11: =VLOOKUP(135,'Course List'!A:F,6,0) -> Healthcare Economics & Strategy
A12: =VLOOKUP(102,'Course List'!A:B,2,0) -> Not Taken | B12: =IF(VLOOKUP(102,'Course List'!$A:$B,2,0)="Not Taken","",IF(VLOOKUP(102,'Course List'!$A:$C,3,0)=0,"Unknown",VLOOKUP(102,'Course List'!$A:$C,3,0))) ->  | C12: =VLOOKUP(102,'Course List'!A:D,4,0) -> INTL | D12: =VLOOKUP(102,'Course List'!A:E,5,0) -> 442 | E12: =VLOOKUP(102,'Course List'!A:F,6,0) -> International Healthcare Systems
A13: =VLOOKUP(94,'Course List'!A:B,2,0) -> Not Taken | B13: =IF(VLOOKUP(94,'Course List'!$A:$B,2,0)="Not Taken","",IF(VLOOKUP(94,'Course List'!$A:$C,3,0)=0,"Unknown",VLOOKUP(94,'Course List'!$A:$C,3,0))) ->  | C13: =VLOOKUP(94,'Course List'!A:D,4,0) -> HEMA | D13: =VLOOKUP(94,'Course List'!A:E,5,0) -> 451 | E13: =VLOOKUP(94,'Course List'!A:F,6,0) -> Legal Issues in Health Care Delivery
A14: =VLOOKUP(255,'Course List'!A:B,2,0) -> Not Taken | B14: =IF(VLOOKUP(255,'Course List'!$A:$B,2,0)="Not Taken","",IF(VLOOKUP(255,'Course List'!$A:$C,3,0)=0,"Unknown",VLOOKUP(255,'Course List'!$A:$C,3,0))) ->  | C14: =VLOOKUP(255,'Course List'!A:D,4,0) -> HEMA | D14: =VLOOKUP(255,'Course List'!A:E,5,0) -> 512 | E14: =VLOOKUP(255,'Course List'!A:F,6,0) -> Health Services Management Field Study/Project Management
A15: =VLOOKUP(93,'Course List'!A:B,2,0) -> Not Taken | B15: =IF(VLOOKUP(93,'Course List'!$A:$B,2,0)="Not Taken","",IF(VLOOKUP(93,'Course List'!$A:$C,3,0)=0,"Unknown",VLOOKUP(93,'Course List'!$A:$C,3,0))) ->  | C15: =VLOOKUP(93,'Course List'!A:D,4,0) -> HEMA | D15: =VLOOKUP(93,'Course List'!A:E,5,0) -> 441 | E15: =VLOOKUP(93,'Course List'!A:F,6,0) -> Health Policy
A16: =VLOOKUP(3,'Course List'!A:B,2,0) -> Not Taken | B16: =IF(VLOOKUP(3,'Course List'!$A:$B,2,0)="Not Taken","",IF(VLOOKUP(3,'Course List'!$A:$C,3,0)=0,"Unknown",VLOOKUP(3,'Course List'!$A:$C,3,0))) ->  | C16: =VLOOKUP(3,'Course List'!A:D,4,0) -> ACCT | D16: =VLOOKUP(3,'Course List'!A:E,5,0) -> 432 | E16: =VLOOKUP(3,'Course List'!A:F,6,0) -> Information Technology in Healthcare Management
A17: =VLOOKUP(16,'Course List'!A:B,2,0) -> Not Taken | B17: =IF(VLOOKUP(16,'Course List'!$A:$B,2,0)="Not Taken","",IF(VLOOKUP(16,'Course List'!$A:$C,3,0)=0,"Unknown",VLOOKUP(16,'Course List'!$A:$C,3,0))) ->  | C17: =VLOOKUP(16,'Course List'!A:D,4,0) -> ACCT | D17: =VLOOKUP(16,'Course List'!A:E,5,0) -> 479 | E17: =VLOOKUP(16,'Course List'!A:F,6,0) -> Financial Assessment and Performance Evaluation of Healthcare Entities
A18: =VLOOKUP(144,'Course List'!A:B,2,0) -> Not Taken | B18: =IF(VLOOKUP(144,'Course List'!$A:$B,2,0)="Not Taken","",IF(VLOOKUP(144,'Course List'!$A:$C,3,0)=0,"Unknown",VLOOKUP(144,'Course List'!$A:$C,3,0))) ->  | C18: =VLOOKUP(144,'Course List'!A:D,4,0) -> MGMT | D18: =VLOOKUP(144,'Course List'!A:E,5,0) -> 469 | E18: =VLOOKUP(144,'Course List'!A:F,6,0) -> Empirical Methods in Strategy
A19: =VLOOKUP(99,'Course List'!A:B,2,0) -> Not Taken | B19: =IF(VLOOKUP(99,'Course List'!$A:$B,2,0)="Not Taken","",IF(VLOOKUP(99,'Course List'!$A:$C,3,0)=0,"Unknown",VLOOKUP(99,'Course List'!$A:$C,3,0))) ->  | C19: =VLOOKUP(99,'Course List'!A:D,4,0) -> HEMA | D19: =VLOOKUP(99,'Course List'!A:E,5,0) -> 911 | E19: =VLOOKUP(99,'Course List'!A:F,6,0) -> Healthcare System Financing
A20: =IF(AND(A21="Complete",A22="Complete"),"Complete",IF(AND(A21="Enrolled",A22="Enrolled"),"Enrolled",IF(AND(A21="Complete",A22="Will Enroll"),"In Progress",IF(AND(A21="Complete",A22="Enrolled"),"In Progress",IF(AND(A21="Will Enroll",A22="Will Enroll"),"Will Enroll","Not Taken"))))) -> Not Taken | C20: MORS-454A & HEMA-452B must be taken together to count towards the HEMA Major
A21: =VLOOKUP(189,'Course List'!A:B,2,0) -> Not Taken | B21: =IF(VLOOKUP(189,'Course List'!$A:$B,2,0)="Not Taken","",IF(VLOOKUP(189,'Course List'!$A:$C,3,0)=0,"Unknown",VLOOKUP(189,'Course List'!$A:$C,3,0))) ->  | C21: =VLOOKUP(189,'Course List'!A:D,4,0) -> MORS | D21: =VLOOKUP(189,'Course List'!A:E,5,0) -> 454-A | E21: =VLOOKUP(189,'Course List'!A:F,6,0) -> Creating and Managing Strategic Alliances
A22: =VLOOKUP(96,'Course List'!A:B,2,0) -> Not Taken | B22: =IF(VLOOKUP(96,'Course List'!$A:$B,2,0)="Not Taken","",IF(VLOOKUP(96,'Course List'!$A:$C,3,0)=0,"Unknown",VLOOKUP(96,'Course List'!$A:$C,3,0))) ->  | C22: =VLOOKUP(96,'Course List'!A:D,4,0) -> HEMA | D22: =VLOOKUP(96,'Course List'!A:E,5,0) -> 452-B | E22: =VLOOKUP(96,'Course List'!A:F,6,0) -> Advanced Strategic Management in Healthcare
A24: Biotech and Medical Products track courses
A25: =VLOOKUP(135,'Course List'!A:B,2,0) -> Not Taken | B25: =IF(VLOOKUP(135,'Course List'!$A:$B,2,0)="Not Taken","",IF(VLOOKUP(135,'Course List'!$A:$C,3,0)=0,"Unknown",VLOOKUP(135,'Course List'!$A:$C,3,0))) ->  | C25: =VLOOKUP(135,'Course List'!A:D,4,0) -> MGMT | D25: =VLOOKUP(135,'Course List'!A:E,5,0) -> 444 | E25: =VLOOKUP(135,'Course List'!A:F,6,0) -> Healthcare Economics & Strategy
A26: =VLOOKUP(102,'Course List'!A:B,2,0) -> Not Taken | B26: =IF(VLOOKUP(102,'Course List'!$A:$B,2,0)="Not Taken","",IF(VLOOKUP(102,'Course List'!$A:$C,3,0)=0,"Unknown",VLOOKUP(102,'Course List'!$A:$C,3,0))) ->  | C26: =VLOOKUP(102,'Course List'!A:D,4,0) -> INTL | D26: =VLOOKUP(102,'Course List'!A:E,5,0) -> 442 | E26: =VLOOKUP(102,'Course List'!A:F,6,0) -> International Healthcare Systems
A27: =VLOOKUP(21,'Course List'!A:B,2,0) -> Not Taken | B27: =IF(VLOOKUP(21,'Course List'!$A:$B,2,0)="Not Taken","",IF(VLOOKUP(21,'Course List'!$A:$C,3,0)=0,"Unknown",VLOOKUP(21,'Course List'!$A:$C,3,0))) ->  | C27: =VLOOKUP(21,'Course List'!A:D,4,0) -> HEMA | D27: =VLOOKUP(21,'Course List'!A:E,5,0) -> 913 | E27: =VLOOKUP(21,'Course List'!A:F,6,0) -> Biotech Business Practicum
A28: =VLOOKUP(271,'Course List'!A:B,2,0) -> Not Taken | B28: =IF(VLOOKUP(271,'Course List'!$A:$B,2,0)="Not Taken","",IF(VLOOKUP(271,'Course List'!$A:$C,3,0)=0,"Unknown",VLOOKUP(271,'Course List'!$A:$C,3,0))) ->  | C28: =VLOOKUP(271,'Course List'!A:D,4,0) -> HEMA | D28: =VLOOKUP(271,'Course List'!A:E,5,0) -> 915 | E28: =VLOOKUP(271,'Course List'!A:F,6,0) -> Medical Innovations
A29: =VLOOKUP(285,'Course List'!A:B,2,0) -> Not Taken | B29: =IF(VLOOKUP(285,'Course List'!$A:$B,2,0)="Not Taken","",IF(VLOOKUP(285,'Course List'!$A:$C,3,0)=0,"Unknown",VLOOKUP(285,'Course List'!$A:$C,3,0))) ->  | C29: =VLOOKUP(285,'Course List'!A:D,4,0) -> HEMA | D29: =VLOOKUP(285,'Course List'!A:E,5,0) -> 916 | E29: =VLOOKUP(285,'Course List'!A:F,6,0) -> Medical Innovation II: Developing Biomedical Products from Patient to Market
A30: =VLOOKUP(139,'Course List'!A:B,2,0) -> Not Taken | B30: =IF(VLOOKUP(139,'Course List'!$A:$B,2,0)="Not Taken","",IF(VLOOKUP(139,'Course List'!$A:$C,3,0)=0,"Unknown",VLOOKUP(139,'Course List'!$A:$C,3,0))) ->  | C30: =VLOOKUP(139,'Course List'!A:D,4,0) -> MGMT | D30: =VLOOKUP(139,'Course List'!A:E,5,0) -> 463 | E30: =VLOOKUP(139,'Course List'!A:F,6,0) -> Management of Technology
A31: =VLOOKUP(22,'Course List'!A:B,2,0) -> Not Taken | B31: =IF(VLOOKUP(22,'Course List'!$A:$B,2,0)="Not Taken","",IF(VLOOKUP(22,'Course List'!$A:$C,3,0)=0,"Unknown",VLOOKUP(22,'Course List'!$A:$C,3,0))) ->  | C31: =VLOOKUP(22,'Course List'!A:D,4,0) -> HEMA | D31: =VLOOKUP(22,'Course List'!A:E,5,0) -> 914 | E31: =VLOOKUP(22,'Course List'!A:F,6,0) -> Biomedical Marketing
A32: =VLOOKUP(85,'Course List'!A:B,2,0) -> Not Taken | B32: =IF(VLOOKUP(85,'Course List'!$A:$B,2,0)="Not Taken","",IF(VLOOKUP(85,'Course List'!$A:$C,3,0)=0,"Unknown",VLOOKUP(85,'Course List'!$A:$C,3,0))) ->  | C32: =VLOOKUP(85,'Course List'!A:D,4,0) -> FINC | D32: =VLOOKUP(85,'Course List'!A:E,5,0) -> 932 | E32: =VLOOKUP(85,'Course List'!A:F,6,0) -> Case Studies in Venture Investment and Management
A33: =VLOOKUP(246,'Course List'!A:B,2,0) -> Not Taken | B33: =IF(VLOOKUP(246,'Course List'!$A:$B,2,0)="Not Taken","",IF(VLOOKUP(246,'Course List'!$A:$C,3,0)=0,"Unknown",VLOOKUP(246,'Course List'!$A:$C,3,0))) ->  | C33: =VLOOKUP(246,'Course List'!A:D,4,0) -> TECH | D33: =VLOOKUP(246,'Course List'!A:E,5,0) -> 441 | E33: =VLOOKUP(246,'Course List'!A:F,6,0) -> Intellectual Capital Management
A34: =VLOOKUP(97,'Course List'!A:B,2,0) -> Not Taken | B34: =IF(VLOOKUP(97,'Course List'!$A:$B,2,0)="Not Taken","",IF(VLOOKUP(97,'Course List'!$A:$C,3,0)=0,"Unknown",VLOOKUP(97,'Course List'!$A:$C,3,0))) ->  | C34: =VLOOKUP(97,'Course List'!A:D,4,0) -> HEMA | D34: =VLOOKUP(97,'Course List'!A:E,5,0) -> 453 | E34: =VLOOKUP(97,'Course List'!A:F,6,0) -> Managerial Challenges in the Pharmaceutical, Biotech, and Medical Devices Industries
A35: =IF(AND(A36="Complete",A37="Complete"),"Complete",IF(AND(A36="Enrolled",A37="Enrolled"),"Enrolled",IF(AND(A36="Complete",A37="Will Enroll"),"In Progress",IF(AND(A36="Complete",A37="Enrolled"),"In Progress",IF(AND(A36="Will Enroll",A37="Will Enroll"),"Will Enroll","Not Taken"))))) -> Not Taken | C35: MORS-454A & HEMA-452B must be taken together to count towards the HEMA Major
A36: =VLOOKUP(189,'Course List'!A:B,2,0) -> Not Taken | B36: =IF(VLOOKUP(189,'Course List'!$A:$B,2,0)="Not Taken","",IF(VLOOKUP(189,'Course List'!$A:$C,3,0)=0,"Unknown",VLOOKUP(189,'Course List'!$A:$C,3,0))) ->  | C36: =VLOOKUP(189,'Course List'!A:D,4,0) -> MORS | D36: =VLOOKUP(189,'Course List'!A:E,5,0) -> 454-A | E36: =VLOOKUP(189,'Course List'!A:F,6,0) -> Creating and Managing Strategic Alliances
A37: =VLOOKUP(96,'Course List'!A:B,2,0) -> Not Taken | B37: =IF(VLOOKUP(96,'Course List'!$A:$B,2,0)="Not Taken","",IF(VLOOKUP(96,'Course List'!$A:$C,3,0)=0,"Unknown",VLOOKUP(96,'Course List'!$A:$C,3,0))) ->  | C37: =VLOOKUP(96,'Course List'!A:D,4,0) -> HEMA | D37: =VLOOKUP(96,'Course List'!A:E,5,0) -> 452-B | E37: =VLOOKUP(96,'Course List'!A:F,6,0) -> Advanced Strategic Management in Healthcare

Sheet HIMT
A1: Health Industry Management
A3: =Formulae!A82 -> NOT MAJORING IN THIS FIELD
A5: Status | B5: Term | C5: Department | D5: Course # | E5: Course Name
A7: Industry-specific courses
A8: =VLOOKUP(102,'Course List'!A:B,2,0) -> Not Taken | B8: =IF(VLOOKUP(102,'Course List'!$A:$B,2,0)="Not Taken","",IF(VLOOKUP(102,'Course List'!$A:$C,3,0)=0,"Unknown",VLOOKUP(102,'Course List'!$A:$C,3,0))) ->  | C8: =VLOOKUP(102,'Course List'!A:D,4,0) -> INTL | D8: =VLOOKUP(102,'Course List'!A:E,5,0) -> 442 | E8: =VLOOKUP(102,'Course List'!A:F,6,0) -> International Healthcare Systems
A9: =VLOOKUP(92,'Course List'!A:B,2,0) -> Not Taken | B9: =IF(VLOOKUP(92,'Course List'!$A:$B,2,0)="Not Taken","",IF(VLOOKUP(92,'Course List'!$A:$C,3,0)=0,"Unknown",VLOOKUP(92,'Course List'!$A:$C,3,0))) ->  | C9: =VLOOKUP(92,'Course List'!A:D,4,0) -> HEMA | D9: =VLOOKUP(92,'Course List'!A:E,5,0) -> 440 | E9: =VLOOKUP(92,'Course List'!A:F,6,0) -> Introduction to the Principles and Management of Health Industry Systems
A10: =VLOOKUP(93,'Course List'!A:B,2,0) -> Not Taken | B10: =IF(VLOOKUP(93,'Course List'!$A:$B,2,0)="Not Taken","",IF(VLOOKUP(93,'Course List'!$A:$C,3,0)=0,"Unknown",VLOOKUP(93,'Course List'!$A:$C,3,0))) ->  | C10: =VLOOKUP(93,'Course List'!A:D,4,0) -> HEMA | D10: =VLOOKUP(93,'Course List'!A:E,5,0) -> 441 | E10: =VLOOKUP(93,'Course List'!A:F,6,0) -> Health Policy
A11: =VLOOKUP(94,'Course List'!A:B,2,0) -> Not Taken | B11: =IF(VLOOKUP(94,'Course List'!$A:$B,2,0)="Not Taken","",IF(VLOOKUP(94,'Course List'!$A:$C,3,0)=0,"Unknown",VLOOKUP(94,'Course List'!$A:$C,3,0))) ->  | C11: =VLOOKUP(94,'Course List'!A:D,4,0) -> HEMA | D11: =VLOOKUP(94,'Course List'!A:E,5,0) -> 451 | E11: =VLOOKUP(94,'Course List'!A:F,6,0) -> Legal Issues in Health Care Delivery
A12: =VLOOKUP(97,'Course List'!A:B,2,0) -> Not Taken | B12: =IF(VLOOKUP(97,'Course List'!$A:$B,2,0)="Not Taken","",IF(VLOOKUP(97,'Course List'!$A:$C,3,0)=0,"Unknown",VLOOKUP(97,'Course List'!$A:$C,3,0))) ->  | C12: =VLOOKUP(97,'Course List'!A:D,4,0) -> HEMA | D12: =VLOOKUP(97,'Course List'!A:E,5,0) -> 453 | E12: =VLOOKUP(97,'Course List'!A:F,6,0) -> Managerial Challenges in the Pharmaceutical, Biotech, and Medical Devices Industries
A13: =VLOOKUP(98,'Course List'!A:B,2,0) -> Not Taken | B13: =IF(VLOOKUP(98,'Course List'!$A:$B,2,0)="Not Taken","",IF(VLOOKUP(98,'Course List'!$A:$C,3,0)=0,"Unknown",VLOOKUP(98,'Course List'!$A:$C,3,0))) ->  | C13: =VLOOKUP(98,'Course List'!A:D,4,0) -> HEMA | D13: =VLOOKUP(98,'Course List'!A:E,5,0) -> 455 | E13: =VLOOKUP(98,'Course List'!A:F,6,0) -> Special Topics in the Pharmaceutical, Biotechnology and Medical Device Industries
A14: =VLOOKUP(255,'Course List'!A:B,2,0) -> Not Taken | B14: =IF(VLOOKUP(255,'Course List'!$A:$B,2,0)="Not Taken","",IF(VLOOKUP(255,'Course List'!$A:$C,3,0)=0,"Unknown",VLOOKUP(255,'Course List'!$A:$C,3,0))) ->  | C14: =VLOOKUP(255,'Course List'!A:D,4,0) -> HEMA | D14: =VLOOKUP(255,'Course List'!A:E,5,0) -> 512 | E14: =VLOOKUP(255,'Course List'!A:F,6,0) -> Health Services Management Field Study/Project Management
A15: =VLOOKUP(19,'Course List'!A:B,2,0) -> Not Taken | B15: =IF(VLOOKUP(19,'Course List'!$A:$B,2,0)="Not Taken","",IF(VLOOKUP(19,'Course List'!$A:$C,3,0)=0,"Unknown",VLOOKUP(19,'Course List'!$A:$C,3,0))) ->  | C15: =VLOOKUP(19,'Course List'!A:D,4,0) -> HEMA | D15: =VLOOKUP(19,'Course List'!A:E,5,0) -> 911 | E15: =VLOOKUP(19,'Course List'!A:F,6,0) -> Dynamics of the Biotechnology/Life Sciences Industry
A17: Function-specific courses
A18: =VLOOKUP(3,'Course List'!A:B,2,0) -> Not Taken | B18: =IF(VLOOKUP(3,'Course List'!$A:$B,2,0)="Not Taken","",IF(VLOOKUP(3,'Course List'!$A:$C,3,0)=0,"Unknown",VLOOKUP(3,'Course List'!$A:$C,3,0))) ->  | C18: =VLOOKUP(3,'Course List'!A:D,4,0) -> ACCT | D18: =VLOOKUP(3,'Course List'!A:E,5,0) -> 432 | E18: =VLOOKUP(3,'Course List'!A:F,6,0) -> Information Technology in Healthcare Management
A19: =VLOOKUP(16,'Course List'!A:B,2,0) -> Not Taken | B19: =IF(VLOOKUP(16,'Course List'!$A:$B,2,0)="Not Taken","",IF(VLOOKUP(16,'Course List'!$A:$C,3,0)=0,"Unknown",VLOOKUP(16,'Course List'!$A:$C,3,0))) ->  | C19: =VLOOKUP(16,'Course List'!A:D,4,0) -> ACCT | D19: =VLOOKUP(16,'Course List'!A:E,5,0) -> 479 | E19: =VLOOKUP(16,'Course List'!A:F,6,0) -> Financial Assessment and Performance Evaluation of Healthcare Entities
A20: =VLOOKUP(135,'Course List'!A:B,2,0) -> Not Taken | B20: =IF(VLOOKUP(135,'Course List'!$A:$B,2,0)="Not Taken","",IF(VLOOKUP(135,'Course List'!$A:$C,3,0)=0,"Unknown",VLOOKUP(135,'Course List'!$A:$C,3,0))) ->  | C20: =VLOOKUP(135,'Course List'!A:D,4,0) -> MGMT | D20: =VLOOKUP(135,'Course List'!A:E,5,0) -> 444 | E20: =VLOOKUP(135,'Course List'!A:F,6,0) -> Healthcare Economics & Strategy
A21: =VLOOKUP(144,'Course List'!A:B,2,0) -> Not Taken | B21: =IF(VLOOKUP(144,'Course List'!$A:$B,2,0)="Not Taken","",IF(VLOOKUP(144,'Course List'!$A:$C,3,0)=0,"Unknown",VLOOKUP(144,'Course List'!$A:$C,3,0))) ->  | C21: =VLOOKUP(144,'Course List'!A:D,4,0) -> MGMT | D21: =VLOOKUP(144,'Course List'!A:E,5,0) -> 469 | E21: =VLOOKUP(144,'Course List'!A:F,6,0) -> Empirical Methods in Strategy
A22: =VLOOKUP(139,'Course List'!A:B,2,0) -> Not Taken | B22: =IF(VLOOKUP(139,'Course List'!$A:$B,2,0)="Not Taken","",IF(VLOOKUP(139,'Course List'!$A:$C,3,0)=0,"Unknown",VLOOKUP(139,'Course List'!$A:$C,3,0))) ->  | C22: =VLOOKUP(139,'Course List'!A:D,4,0) -> MGMT | D22: =VLOOKUP(139,'Course List'!A:E,5,0) -> 463 | E22: =VLOOKUP(139,'Course List'!A:F,6,0) -> Management of Technology
A23: =IF(AND(A24="Complete",A25="Complete"),"Complete",IF(AND(A24="Enrolled",A25="Enrolled"),"Enrolled",IF(AND(A24="Complete",A25="Will Enroll"),"In Progress",IF(AND(A24="Complete",A25="Enrolled"),"In Progress",IF(AND(A24="Will Enroll",A25="Will Enroll"),"Will Enroll","Not Taken"))))) -> Not Taken | C23: MORS 454A & HIMT 452B must be taken together to count towards the HIMT major
A24: =VLOOKUP(189,'Course List'!A:B,2,0) -> Not Taken | B24: =IF(VLOOKUP(189,'Course List'!$A:$B,2,0)="Not Taken","",IF(VLOOKUP(189,'Course List'!$A:$C,3,0)=0,"Unknown",VLOOKUP(189,'Course List'!$A:$C,3,0))) ->  | C24: =VLOOKUP(189,'Course List'!A:D,4,0) -> MORS | D24: =VLOOKUP(189,'Course List'!A:E,5,0) -> 454-A | E24: =VLOOKUP(189,'Course List'!A:F,6,0) -> Creating and Managing Strategic Alliances
A25: =VLOOKUP(96,'Course List'!A:B,2,0) -> Not Taken | B25: =IF(VLOOKUP(96,'Course List'!$A:$B,2,0)="Not Taken","",IF(VLOOKUP(96,'Course List'!$A:$C,3,0)=0,"Unknown",VLOOKUP(96,'Course List'!$A:$C,3,0))) ->  | C25: =VLOOKUP(96,'Course List'!A:D,4,0) -> HEMA | D25: =VLOOKUP(96,'Course List'!A:E,5,0) -> 452-B | E25: =VLOOKUP(96,'Course List'!A:F,6,0) -> Advanced Strategic Management in Healthcare

Sheet HR
A1: Human Resource Management
A3: =Formulae!A87 -> NOT MAJORING IN THIS FIELD
A5: Status | B5: Term | C5: Department | D5: Course # | E5: Course Name
A7: =VLOOKUP(134,'Course List'!A:B,2,0) -> Not Taken | B7: =IF(VLOOKUP(134,'Course List'!$A:$B,2,0)="Not Taken","",IF(VLOOKUP(134,'Course List'!$A:$C,3,0)=0,"Unknown",VLOOKUP(134,'Course List'!$A:$C,3,0))) ->  | C7: =VLOOKUP(134,'Course List'!A:D,4,0) -> MGMT | D7: =VLOOKUP(134,'Course List'!A:E,5,0) -> 440 | E7: =VLOOKUP(134,'Course List'!A:F,6,0) -> Human Resource Management
A8: =VLOOKUP(187,'Course List'!A:B,2,0) -> Not Taken | B8: =IF(VLOOKUP(187,'Course List'!$A:$B,2,0)="Not Taken","",IF(VLOOKUP(187,'Course List'!$A:$C,3,0)=0,"Unknown",VLOOKUP(187,'Course List'!$A:$C,3,0))) ->  | C8: =VLOOKUP(187,'Course List'!A:D,4,0) -> MORS | D8: =VLOOKUP(187,'Course List'!A:E,5,0) -> 452 | E8: =VLOOKUP(187,'Course List'!A:F,6,0) -> Leading the Strategic Change Process
A10: =VLOOKUP(186,'Course List'!A:B,2,0) -> Not Taken | B10: =IF(VLOOKUP(186,'Course List'!$A:$B,2,0)="Not Taken","",IF(VLOOKUP(186,'Course List'!$A:$C,3,0)=0,"Unknown",VLOOKUP(186,'Course List'!$A:$C,3,0))) ->  | C10: =VLOOKUP(186,'Course List'!A:D,4,0) -> MORS | D10: =VLOOKUP(186,'Course List'!A:E,5,0) -> 451 | E10: =VLOOKUP(186,'Course List'!A:F,6,0) -> Designing Organizational Systems
A11: =VLOOKUP(188,'Course List'!A:B,2,0) -> Not Taken | B11: =IF(VLOOKUP(188,'Course List'!$A:$B,2,0)="Not Taken","",IF(VLOOKUP(188,'Course List'!$A:$C,3,0)=0,"Unknown",VLOOKUP(188,'Course List'!$A:$C,3,0))) ->  | C11: =VLOOKUP(188,'Course List'!A:D,4,0) -> MORS | D11: =VLOOKUP(188,'Course List'!A:E,5,0) -> 453 | E11: =VLOOKUP(188,'Course List'!A:F,6,0) -> Power in Organizations: Sources, Strategies and Skills
A12: =VLOOKUP(191,'Course List'!A:B,2,0) -> Not Taken | B12: =IF(VLOOKUP(191,'Course List'!$A:$B,2,0)="Not Taken","",IF(VLOOKUP(191,'Course List'!$A:$C,3,0)=0,"Unknown",VLOOKUP(191,'Course List'!$A:$C,3,0))) ->  | C12: =VLOOKUP(191,'Course List'!A:D,4,0) -> MORS | D12: =VLOOKUP(191,'Course List'!A:E,5,0) -> 457 | E12: =VLOOKUP(191,'Course List'!A:F,6,0) -> Gender in Management
A13: =VLOOKUP(195,'Course List'!A:B,2,0) -> Not Taken | B13: =IF(VLOOKUP(195,'Course List'!$A:$B,2,0)="Not Taken","",IF(VLOOKUP(195,'Course List'!$A:$C,3,0)=0,"Unknown",VLOOKUP(195,'Course List'!$A:$C,3,0))) ->  | C13: =VLOOKUP(195,'Course List'!A:D,4,0) -> MORS | D13: =VLOOKUP(195,'Course List'!A:E,5,0) -> 460 | E13: =VLOOKUP(195,'Course List'!A:F,6,0) -> Leading and Managing Teams
A14: =VLOOKUP(196,'Course List'!A:B,2,0) -> Not Taken | B14: =IF(VLOOKUP(196,'Course List'!$A:$B,2,0)="Not Taken","",IF(VLOOKUP(196,'Course List'!$A:$C,3,0)=0,"Unknown",VLOOKUP(196,'Course List'!$A:$C,3,0))) ->  | C14: =VLOOKUP(196,'Course List'!A:D,4,0) -> MORS | D14: =VLOOKUP(196,'Course List'!A:E,5,0) -> 462 | E14: =VLOOKUP(196,'Course List'!A:F,6,0) -> Managing Workforce Diversity
A15: Not Taken | B15: =IF(VLOOKUP(13,'Course List'!$A:$B,2,0)="Not Taken","",IF(VLOOKUP(13,'Course List'!$A:$C,3,0)=0,"Unknown",VLOOKUP(13,'Course List'!$A:$C,3,0))) ->  | C15: =VLOOKUP(13,'Course List'!A:D,4,0) -> ACCT | D15: =VLOOKUP(13,'Course List'!A:E,5,0) -> 454 | E15: =VLOOKUP(13,'Course List'!A:F,6,0) -> Management Lab (M-Lab)

Sheet INTL
A1: International Business
A3: =Formulae!A92 -> NOT MAJORING IN THIS FIELD
A5: Status | B5: Term | C5: Department | D5: Course # | E5: Course Name
A7: =VLOOKUP(71,'Course List'!A:B,2,0) -> Not Taken | B7: =IF(VLOOKUP(71,'Course List'!$A:$B,2,0)="Not Taken","",IF(VLOOKUP(71,'Course List'!$A:$C,3,0)=0,"Unknown",VLOOKUP(71,'Course List'!$A:$C,3,0))) ->  | C7: =VLOOKUP(71,'Course List'!A:D,4,0) -> FINC | D7: =VLOOKUP(71,'Course List'!A:E,5,0) -> 470 | E7: =VLOOKUP(71,'Course List'!A:F,6,0) -> International Finance
A8: =VLOOKUP(105,'Course List'!A:B,2,0) -> Not Taken | B8: =IF(VLOOKUP(105,'Course List'!$A:$B,2,0)="Not Taken","",IF(VLOOKUP(105,'Course List'!$A:$C,3,0)=0,"Unknown",VLOOKUP(105,'Course List'!$A:$C,3,0))) ->  | C8: =VLOOKUP(105,'Course List'!A:D,4,0) -> INTL | D8: =VLOOKUP(105,'Course List'!A:E,5,0) -> 460 | E8: =VLOOKUP(105,'Course List'!A:F,6,0) -> International Business Strategy
A9: =VLOOKUP(106,'Course List'!A:B,2,0) -> Not Taken | B9: =IF(VLOOKUP(106,'Course List'!$A:$B,2,0)="Not Taken","",IF(VLOOKUP(106,'Course List'!$A:$C,3,0)=0,"Unknown",VLOOKUP(106,'Course List'!$A:$C,3,0))) ->  | C9: =VLOOKUP(106,'Course List'!A:D,4,0) -> INTL | D9: =VLOOKUP(106,'Course List'!A:E,5,0) -> 466 | E9: =VLOOKUP(106,'Course List'!A:F,6,0) -> International Business Strategy in Non-Market Environments
A10: =VLOOKUP(109,'Course List'!A:B,2,0) -> Not Taken | B10: =IF(VLOOKUP(109,'Course List'!$A:$B,2,0)="Not Taken","",IF(VLOOKUP(109,'Course List'!$A:$C,3,0)=0,"Unknown",VLOOKUP(109,'Course List'!$A:$C,3,0))) ->  | C10: =VLOOKUP(109,'Course List'!A:D,4,0) -> INTL | D10: =VLOOKUP(109,'Course List'!A:E,5,0) -> 474 | E10: =VLOOKUP(109,'Course List'!A:F,6,0) -> Cross-Cultural Negotiation
A12: =VLOOKUP(102,'Course List'!A:B,2,0) -> Not Taken | B12: =IF(VLOOKUP(102,'Course List'!$A:$B,2,0)="Not Taken","",IF(VLOOKUP(102,'Course List'!$A:$C,3,0)=0,"Unknown",VLOOKUP(102,'Course List'!$A:$C,3,0))) ->  | C12: =VLOOKUP(102,'Course List'!A:D,4,0) -> INTL | D12: =VLOOKUP(102,'Course List'!A:E,5,0) -> 442 | E12: =VLOOKUP(102,'Course List'!A:F,6,0) -> International Healthcare Systems
A13: =VLOOKUP(103,'Course List'!A:B,2,0) -> Not Taken | B13: =IF(VLOOKUP(103,'Course List'!$A:$B,2,0)="Not Taken","",IF(VLOOKUP(103,'Course List'!$A:$C,3,0)=0,"Unknown",VLOOKUP(103,'Course List'!$A:$C,3,0))) ->  | C13: =VLOOKUP(103,'Course List'!A:D,4,0) -> INTL | D13: =VLOOKUP(103,'Course List'!A:E,5,0) -> 456 | E13: =VLOOKUP(103,'Course List'!A:F,6,0) -> Intercultural Management
A14: =VLOOKUP(107,'Course List'!A:B,2,0) -> Not Taken | B14: =IF(VLOOKUP(107,'Course List'!$A:$B,2,0)="Not Taken","",IF(VLOOKUP(107,'Course List'!$A:$C,3,0)=0,"Unknown",VLOOKUP(107,'Course List'!$A:$C,3,0))) ->  | C14: =VLOOKUP(107,'Course List'!A:D,4,0) -> INTL | D14: =VLOOKUP(107,'Course List'!A:E,5,0) -> 467 | E14: =VLOOKUP(107,'Course List'!A:F,6,0) -> International Marketing
A15: =VLOOKUP(108,'Course List'!A:B,2,0) -> Not Taken | B15: =IF(VLOOKUP(108,'Course List'!$A:$B,2,0)="Not Taken","",IF(VLOOKUP(108,'Course List'!$A:$C,3,0)=0,"Unknown",VLOOKUP(108,'Course List'!$A:$C,3,0))) ->  | C15: =VLOOKUP(108,'Course List'!A:D,4,0) -> INTL | D15: =VLOOKUP(108,'Course List'!A:E,5,0) -> 473 | E15: =VLOOKUP(108,'Course List'!A:F,6,0) -> Global Initiatives in Management (GIM)
A16: =VLOOKUP(284,'Course List'!A:B,2,0) -> Not Taken | B16: =IF(VLOOKUP(284,'Course List'!$A:$B,2,0)="Not Taken","",IF(VLOOKUP(284,'Course List'!$A:$C,3,0)=0,"Unknown",VLOOKUP(284,'Course List'!$A:$C,3,0))) ->  | C16: =VLOOKUP(284,'Course List'!A:D,4,0) -> INTL | D16: =VLOOKUP(284,'Course List'!A:E,5,0) -> 915 | E16: =VLOOKUP(284,'Course List'!A:F,6,0) -> Global Lab (G-Lab)
A17: =VLOOKUP(230,'Course List'!A:B,2,0) -> Not Taken | B17: =IF(VLOOKUP(230,'Course List'!$A:$B,2,0)="Not Taken","",IF(VLOOKUP(230,'Course List'!$A:$C,3,0)=0,"Unknown",VLOOKUP(230,'Course List'!$A:$C,3,0))) ->  | C17: =VLOOKUP(230,'Course List'!A:D,4,0) -> SEEK | D17: =VLOOKUP(230,'Course List'!A:E,5,0) -> 956 | E17: =VLOOKUP(230,'Course List'!A:F,6,0) -> Social Entrepreneurship in the Developing World
A18: Not Taken | B18: =IF(VLOOKUP(13,'Course List'!$A:$B,2,0)="Not Taken","",IF(VLOOKUP(13,'Course List'!$A:$C,3,0)=0,"Unknown",VLOOKUP(13,'Course List'!$A:$C,3,0))) ->  | C18: =VLOOKUP(13,'Course List'!A:D,4,0) -> ACCT | D18: =VLOOKUP(13,'Course List'!A:E,5,0) -> 454 | E18: =VLOOKUP(13,'Course List'!A:F,6,0) -> Management Lab (M-Lab)
A19: =VLOOKUP(267,'Course List'!A:B,2,0) -> Not Taken | B19: =IF(VLOOKUP(267,'Course List'!$A:$B,2,0)="Not Taken","",IF(VLOOKUP(267,'Course List'!$A:$C,3,0)=0,"Unknown",VLOOKUP(267,'Course List'!$A:$C,3,0))) ->  | C19: =VLOOKUP(267,'Course List'!A:D,4,0) -> INTL | D19: =VLOOKUP(267,'Course List'!A:E,5,0) -> XXX | E19: =VLOOKUP(267,'Course List'!A:F,6,0) -> International Exchange Program

Sheet MGMT & Org
A1: Management & Organizations
A3: =Formulae!A97 -> NOT MAJORING IN THIS FIELD
A5: Status | B5: Term | C5: Department | D5: Course # | E5: Course Name
A7: =VLOOKUP(182,'Course List'!A:B,2,0) -> Not Taken | B7: =IF(VLOOKUP(182,'Course List'!$A:$B,2,0)="Not Taken","",IF(VLOOKUP(182,'Course List'!$A:$C,3,0)=0,"Unknown",VLOOKUP(182,'Course List'!$A:$C,3,0))) ->  | C7: =VLOOKUP(182,'Course List'!A:D,4,0) -> MORS | D7: =VLOOKUP(182,'Course List'!A:E,5,0) -> 441 | E7: =VLOOKUP(182,'Course List'!A:F,6,0) -> Managing People for Competitive Advantage
A8: =VLOOKUP(186,'Course List'!A:B,2,0) -> Not Taken | B8: =IF(VLOOKUP(186,'Course List'!$A:$B,2,0)="Not Taken","",IF(VLOOKUP(186,'Course List'!$A:$C,3,0)=0,"Unknown",VLOOKUP(186,'Course List'!$A:$C,3,0))) ->  | C8: =VLOOKUP(186,'Course List'!A:D,4,0) -> MORS | D8: =VLOOKUP(186,'Course List'!A:E,5,0) -> 451 | E8: =VLOOKUP(186,'Course List'!A:F,6,0) -> Designing Organizational Systems
A9: =VLOOKUP(187,'Course List'!A:B,2,0) -> Not Taken | B9: =IF(VLOOKUP(187,'Course List'!$A:$B,2,0)="Not Taken","",IF(VLOOKUP(187,'Course List'!$A:$C,3,0)=0,"Unknown",VLOOKUP(187,'Course List'!$A:$C,3,0))) ->  | C9: =VLOOKUP(187,'Course List'!A:D,4,0) -> MORS | D9: =VLOOKUP(187,'Course List'!A:E,5,0) -> 452 | E9: =VLOOKUP(187,'Course List'!A:F,6,0) -> Leading the Strategic Change Process
A10: =VLOOKUP(188,'Course List'!A:B,2,0) -> Not Taken | B10: =IF(VLOOKUP(188,'Course List'!$A:$B,2,0)="Not Taken","",IF(VLOOKUP(188,'Course List'!$A:$C,3,0)=0,"Unknown",VLOOKUP(188,'Course List'!$A:$C,3,0))) ->  | C10: =VLOOKUP(188,'Course List'!A:D,4,0) -> MORS | D10: =VLOOKUP(188,'Course List'!A:E,5,0) -> 453 | E10: =VLOOKUP(188,'Course List'!A:F,6,0) -> Power in Organizations: Sources, Strategies and Skills
A11: =VLOOKUP(189,'Course List'!A:B,2,0) -> Not Taken | B11: =IF(VLOOKUP(189,'Course List'!$A:$B,2,0)="Not Taken","",IF(VLOOKUP(189,'Course List'!$A:$C,3,0)=0,"Unknown",VLOOKUP(189,'Course List'!$A:$C,3,0))) ->  | C11: =VLOOKUP(189,'Course List'!A:D,4,0) -> MORS | D11: =VLOOKUP(189,'Course List'!A:E,5,0) -> 454-A | E11: =VLOOKUP(189,'Course List'!A:F,6,0) -> Creating and Managing Strategic Alliances
A12: =VLOOKUP(190,'Course List'!A:B,2,0) -> Not Taken | B12: =IF(VLOOKUP(190,'Course List'!$A:$B,2,0)="Not Taken","",IF(VLOOKUP(190,'Course List'!$A:$C,3,0)=0,"Unknown",VLOOKUP(190,'Course List'!$A:$C,3,0))) ->  | C12: =VLOOKUP(190,'Course List'!A:D,4,0) -> MORS | D12: =VLOOKUP(190,'Course List'!A:E,5,0) -> 455 | E12: =VLOOKUP(190,'Course List'!A:F,6,0) -> Strategy Implementation
A13: =VLOOKUP(191,'Course List'!A:B,2,0) -> Not Taken | B13: =IF(VLOOKUP(191,'Course List'!$A:$B,2,0)="Not Taken","",IF(VLOOKUP(191,'Course List'!$A:$C,3,0)=0,"Unknown",VLOOKUP(191,'Course List'!$A:$C,3,0))) ->  | C13: =VLOOKUP(191,'Course List'!A:D,4,0) -> MORS | D13: =VLOOKUP(191,'Course List'!A:E,5,0) -> 457 | E13: =VLOOKUP(191,'Course List'!A:F,6,0) -> Gender in Management
A14: =VLOOKUP(192,'Course List'!A:B,2,0) -> Not Taken | B14: =IF(VLOOKUP(192,'Course List'!$A:$B,2,0)="Not Taken","",IF(VLOOKUP(192,'Course List'!$A:$C,3,0)=0,"Unknown",VLOOKUP(192,'Course List'!$A:$C,3,0))) ->  | C14: =VLOOKUP(192,'Course List'!A:D,4,0) -> MORS | D14: =VLOOKUP(192,'Course List'!A:E,5,0) -> 458 | E14: =VLOOKUP(192,'Course List'!A:F,6,0) -> Managing With Professionals
A15: =VLOOKUP(193,'Course List'!A:B,2,0) -> Not Taken | B15: =IF(VLOOKUP(193,'Course List'!$A:$B,2,0)="Not Taken","",IF(VLOOKUP(193,'Course List'!$A:$C,3,0)=0,"Unknown",VLOOKUP(193,'Course List'!$A:$C,3,0))) ->  | C15: =VLOOKUP(193,'Course List'!A:D,4,0) -> MORS | D15: =VLOOKUP(193,'Course List'!A:E,5,0) -> 459 | E15: =VLOOKUP(193,'Course List'!A:F,6,0) -> Managing Technology: Development and Deployment
A16: =VLOOKUP(195,'Course List'!A:B,2,0) -> Not Taken | B16: =IF(VLOOKUP(195,'Course List'!$A:$B,2,0)="Not Taken","",IF(VLOOKUP(195,'Course List'!$A:$C,3,0)=0,"Unknown",VLOOKUP(195,'Course List'!$A:$C,3,0))) ->  | C16: =VLOOKUP(195,'Course List'!A:D,4,0) -> MORS | D16: =VLOOKUP(195,'Course List'!A:E,5,0) -> 460 | E16: =VLOOKUP(195,'Course List'!A:F,6,0) -> Leading and Managing Teams
A17: =VLOOKUP(196,'Course List'!A:B,2,0) -> Not Taken | B17: =IF(VLOOKUP(196,'Course List'!$A:$B,2,0)="Not Taken","",IF(VLOOKUP(196,'Course List'!$A:$C,3,0)=0,"Unknown",VLOOKUP(196,'Course List'!$A:$C,3,0))) ->  | C17: =VLOOKUP(196,'Course List'!A:D,4,0) -> MORS | D17: =VLOOKUP(196,'Course List'!A:E,5,0) -> 462 | E17: =VLOOKUP(196,'Course List'!A:F,6,0) -> Managing Workforce Diversity
A18: =VLOOKUP(143,'Course List'!A:B,2,0) -> Not Taken | B18: =IF(VLOOKUP(143,'Course List'!$A:$B,2,0)="Not Taken","",IF(VLOOKUP(143,'Course List'!$A:$C,3,0)=0,"Unknown",VLOOKUP(143,'Course List'!$A:$C,3,0))) ->  | C18: =VLOOKUP(143,'Course List'!A:D,4,0) -> MORS | D18: =VLOOKUP(143,'Course List'!A:E,5,0) -> 468 | E18: =VLOOKUP(143,'Course List'!A:F,6,0) -> Managerial Leadership
A19: =VLOOKUP(197,'Course List'!A:B,2,0) -> Not Taken | B19: =IF(VLOOKUP(197,'Course List'!$A:$B,2,0)="Not Taken","",IF(VLOOKUP(197,'Course List'!$A:$C,3,0)=0,"Unknown",VLOOKUP(197,'Course List'!$A:$C,3,0))) ->  | C19: =VLOOKUP(197,'Course List'!A:D,4,0) -> MORS | D19: =VLOOKUP(197,'Course List'!A:E,5,0) -> 470 | E19: =VLOOKUP(197,'Course List'!A:F,6,0) -> Negotiations
A20: =VLOOKUP(198,'Course List'!A:B,2,0) -> Not Taken | B20: =IF(VLOOKUP(198,'Course List'!$A:$B,2,0)="Not Taken","",IF(VLOOKUP(198,'Course List'!$A:$C,3,0)=0,"Unknown",VLOOKUP(198,'Course List'!$A:$C,3,0))) ->  | C20: =VLOOKUP(198,'Course List'!A:D,4,0) -> MORS | D20: =VLOOKUP(198,'Course List'!A:E,5,0) -> 471 | E20: =VLOOKUP(198,'Course List'!A:F,6,0) -> Individual & Competitive Decision Making
A21: =VLOOKUP(199,'Course List'!A:B,2,0) -> Not Taken | B21: =IF(VLOOKUP(199,'Course List'!$A:$B,2,0)="Not Taken","",IF(VLOOKUP(199,'Course List'!$A:$C,3,0)=0,"Unknown",VLOOKUP(199,'Course List'!$A:$C,3,0))) ->  | C21: =VLOOKUP(199,'Course List'!A:D,4,0) -> MORS | D21: =VLOOKUP(199,'Course List'!A:E,5,0) -> 499 | E21: =VLOOKUP(199,'Course List'!A:F,6,0) -> Independent Study
A22: =VLOOKUP(202,'Course List'!A:B,2,0) -> Not Taken | B22: =IF(VLOOKUP(202,'Course List'!$A:$B,2,0)="Not Taken","",IF(VLOOKUP(202,'Course List'!$A:$C,3,0)=0,"Unknown",VLOOKUP(202,'Course List'!$A:$C,3,0))) ->  | C22: =VLOOKUP(202,'Course List'!A:D,4,0) -> MORS | D22: =VLOOKUP(202,'Course List'!A:E,5,0) -> 476 | E22: =VLOOKUP(202,'Course List'!A:F,6,0) -> Bargaining
A23: =VLOOKUP(268,'Course List'!A:B,2,0) -> Not Taken | B23: =IF(VLOOKUP(268,'Course List'!$A:$B,2,0)="Not Taken","",IF(VLOOKUP(268,'Course List'!$A:$C,3,0)=0,"Unknown",VLOOKUP(268,'Course List'!$A:$C,3,0))) ->  | C23: =VLOOKUP(268,'Course List'!A:D,4,0) -> MORS | D23: =VLOOKUP(268,'Course List'!A:E,5,0) -> 916 | E23: =VLOOKUP(268,'Course List'!A:F,6,0) -> Socially Responsible Business Practices
A24: =VLOOKUP(203,'Course List'!A:B,2,0) -> Not Taken | B24: =IF(VLOOKUP(203,'Course List'!$A:$B,2,0)="Not Taken","",IF(VLOOKUP(203,'Course List'!$A:$C,3,0)=0,"Unknown",VLOOKUP(203,'Course List'!$A:$C,3,0))) ->  | C24: =VLOOKUP(203,'Course List'!A:D,4,0) -> MORS | D24: =VLOOKUP(203,'Course List'!A:E,5,0) -> 917-A | E24: =VLOOKUP(203,'Course List'!A:F,6,0) -> Risky Decisions
A25: =VLOOKUP(204,'Course List'!A:B,2,0) -> Not Taken | B25: =IF(VLOOKUP(204,'Course List'!$A:$B,2,0)="Not Taken","",IF(VLOOKUP(204,'Course List'!$A:$C,3,0)=0,"Unknown",VLOOKUP(204,'Course List'!$A:$C,3,0))) ->  | C25: =VLOOKUP(204,'Course List'!A:D,4,0) -> MORS | D25: =VLOOKUP(204,'Course List'!A:E,5,0) -> 919 | E25: =VLOOKUP(204,'Course List'!A:F,6,0) -> Leading and Organizing an Entrepreneurial E-Business
A26: =VLOOKUP(207,'Course List'!A:B,2,0) -> Not Taken | B26: =IF(VLOOKUP(207,'Course List'!$A:$B,2,0)="Not Taken","",IF(VLOOKUP(207,'Course List'!$A:$C,3,0)=0,"Unknown",VLOOKUP(207,'Course List'!$A:$C,3,0))) ->  | C26: =VLOOKUP(207,'Course List'!A:D,4,0) -> MORS | D26: =VLOOKUP(207,'Course List'!A:E,5,0) -> 923 | E26: =VLOOKUP(207,'Course List'!A:F,6,0) -> Market Driven Strategies for Dynamic Markets
A27: =VLOOKUP(208,'Course List'!A:B,2,0) -> Not Taken | B27: =IF(VLOOKUP(208,'Course List'!$A:$B,2,0)="Not Taken","",IF(VLOOKUP(208,'Course List'!$A:$C,3,0)=0,"Unknown",VLOOKUP(208,'Course List'!$A:$C,3,0))) ->  | C27: =VLOOKUP(208,'Course List'!A:D,4,0) -> MORS | D27: =VLOOKUP(208,'Course List'!A:E,5,0) -> 924 | E27: =VLOOKUP(208,'Course List'!A:F,6,0) -> Consulting: Frameworks and Practices
A28: =VLOOKUP(209,'Course List'!A:B,2,0) -> Not Taken | B28: =IF(VLOOKUP(209,'Course List'!$A:$B,2,0)="Not Taken","",IF(VLOOKUP(209,'Course List'!$A:$C,3,0)=0,"Unknown",VLOOKUP(209,'Course List'!$A:$C,3,0))) ->  | C28: =VLOOKUP(209,'Course List'!A:D,4,0) -> MORS | D28: =VLOOKUP(209,'Course List'!A:E,5,0) -> 926 | E28: =VLOOKUP(209,'Course List'!A:F,6,0) -> Sustainable Innovation: Management & Organization
A29: =VLOOKUP(156,'Course List'!A:B,2,0) -> Not Taken | B29: =IF(VLOOKUP(156,'Course List'!$A:$B,2,0)="Not Taken","",IF(VLOOKUP(156,'Course List'!$A:$C,3,0)=0,"Unknown",VLOOKUP(156,'Course List'!$A:$C,3,0))) ->  | C29: =VLOOKUP(156,'Course List'!A:D,4,0) -> MORS | D29: =VLOOKUP(156,'Course List'!A:E,5,0) -> 933 | E29: =VLOOKUP(156,'Course List'!A:F,6,0) -> Leaders & Leadership
A30: =VLOOKUP(103,'Course List'!A:B,2,0) -> Not Taken | B30: =IF(VLOOKUP(103,'Course List'!$A:$B,2,0)="Not Taken","",IF(VLOOKUP(103,'Course List'!$A:$C,3,0)=0,"Unknown",VLOOKUP(103,'Course List'!$A:$C,3,0))) ->  | C30: =VLOOKUP(103,'Course List'!A:D,4,0) -> INTL | D30: =VLOOKUP(103,'Course List'!A:E,5,0) -> 456 | E30: =VLOOKUP(103,'Course List'!A:F,6,0) -> Intercultural Management
A31: =VLOOKUP(109,'Course List'!A:B,2,0) -> Not Taken | B31: =IF(VLOOKUP(109,'Course List'!$A:$B,2,0)="Not Taken","",IF(VLOOKUP(109,'Course List'!$A:$C,3,0)=0,"Unknown",VLOOKUP(109,'Course List'!$A:$C,3,0))) ->  | C31: =VLOOKUP(109,'Course List'!A:D,4,0) -> INTL | D31: =VLOOKUP(109,'Course List'!A:E,5,0) -> 474 | E31: =VLOOKUP(109,'Course List'!A:F,6,0) -> Cross-Cultural Negotiation
A32: Not Taken | B32: =IF(VLOOKUP(13,'Course List'!$A:$B,2,0)="Not Taken","",IF(VLOOKUP(13,'Course List'!$A:$C,3,0)=0,"Unknown",VLOOKUP(13,'Course List'!$A:$C,3,0))) ->  | C32: =VLOOKUP(13,'Course List'!A:D,4,0) -> ACCT | D32: =VLOOKUP(13,'Course List'!A:E,5,0) -> 454 | E32: =VLOOKUP(13,'Course List'!A:F,6,0) -> Management Lab (M-Lab)

Sheet MGMT & Strat
A1: Management & Strategy
A3: =Formulae!A99 -> NOT MAJORING IN THIS FIELD
A5: Status | B5: Term | C5: Department | D5: Course # | E5: Course Name
A7: =VLOOKUP(132,'Course List'!A:B,2,0) -> Not Taken | B7: =IF(VLOOKUP(132,'Course List'!$A:$B,2,0)="Not Taken","",IF(VLOOKUP(132,'Course List'!$A:$C,3,0)=0,"Unknown",VLOOKUP(132,'Course List'!$A:$C,3,0))) ->  | C7: =VLOOKUP(132,'Course List'!A:D,4,0) -> MGMT | D7: =VLOOKUP(132,'Course List'!A:E,5,0) -> 431 | E7: =VLOOKUP(132,'Course List'!A:F,6,0) -> Business Strategy
A9: =VLOOKUP(231,'Course List'!A:B,2,0) -> Not Taken | B9: =IF(VLOOKUP(231,'Course List'!$A:$B,2,0)="Not Taken","",IF(VLOOKUP(231,'Course List'!$A:$C,3,0)=0,"Unknown",VLOOKUP(231,'Course List'!$A:$C,3,0))) ->  | C9: =VLOOKUP(231,'Course List'!A:D,4,0) -> SEEK | D9: =VLOOKUP(231,'Course List'!A:E,5,0) -> 441 | E9: =VLOOKUP(231,'Course List'!A:F,6,0) -> Strategic Management in Non-Market Environments
A10: =VLOOKUP(136,'Course List'!A:B,2,0) -> Not Taken | B10: =IF(VLOOKUP(136,'Course List'!$A:$B,2,0)="Not Taken","",IF(VLOOKUP(136,'Course List'!$A:$C,3,0)=0,"Unknown",VLOOKUP(136,'Course List'!$A:$C,3,0))) ->  | C10: =VLOOKUP(136,'Course List'!A:D,4,0) -> MGMT | D10: =VLOOKUP(136,'Course List'!A:E,5,0) -> 452 | E10: =VLOOKUP(136,'Course List'!A:F,6,0) -> Strategy & Organization
A11: =VLOOKUP(139,'Course List'!A:B,2,0) -> Not Taken | B11: =IF(VLOOKUP(139,'Course List'!$A:$B,2,0)="Not Taken","",IF(VLOOKUP(139,'Course List'!$A:$C,3,0)=0,"Unknown",VLOOKUP(139,'Course List'!$A:$C,3,0))) ->  | C11: =VLOOKUP(139,'Course List'!A:D,4,0) -> MGMT | D11: =VLOOKUP(139,'Course List'!A:E,5,0) -> 463 | E11: =VLOOKUP(139,'Course List'!A:F,6,0) -> Management of Technology
A12: =VLOOKUP(144,'Course List'!A:B,2,0) -> Not Taken | B12: =IF(VLOOKUP(144,'Course List'!$A:$B,2,0)="Not Taken","",IF(VLOOKUP(144,'Course List'!$A:$C,3,0)=0,"Unknown",VLOOKUP(144,'Course List'!$A:$C,3,0))) ->  | C12: =VLOOKUP(144,'Course List'!A:D,4,0) -> MGMT | D12: =VLOOKUP(144,'Course List'!A:E,5,0) -> 469 | E12: =VLOOKUP(144,'Course List'!A:F,6,0) -> Empirical Methods in Strategy
A13: =VLOOKUP(105,'Course List'!A:B,2,0) -> Not Taken | B13: =IF(VLOOKUP(105,'Course List'!$A:$B,2,0)="Not Taken","",IF(VLOOKUP(105,'Course List'!$A:$C,3,0)=0,"Unknown",VLOOKUP(105,'Course List'!$A:$C,3,0))) ->  | C13: =VLOOKUP(105,'Course List'!A:D,4,0) -> INTL | D13: =VLOOKUP(105,'Course List'!A:E,5,0) -> 460 | E13: =VLOOKUP(105,'Course List'!A:F,6,0) -> International Business Strategy
A14: =VLOOKUP(120,'Course List'!A:B,2,0) -> Not Taken | B14: =IF(VLOOKUP(120,'Course List'!$A:$B,2,0)="Not Taken","",IF(VLOOKUP(120,'Course List'!$A:$C,3,0)=0,"Unknown",VLOOKUP(120,'Course List'!$A:$C,3,0))) ->  | C14: =VLOOKUP(120,'Course List'!A:D,4,0) -> MECN | D14: =VLOOKUP(120,'Course List'!A:E,5,0) -> 441 | E14: =VLOOKUP(120,'Course List'!A:F,6,0) -> Competitive Strategy & Industrial Structure
A16: =VLOOKUP(134,'Course List'!A:B,2,0) -> Not Taken | B16: =IF(VLOOKUP(134,'Course List'!$A:$B,2,0)="Not Taken","",IF(VLOOKUP(134,'Course List'!$A:$C,3,0)=0,"Unknown",VLOOKUP(134,'Course List'!$A:$C,3,0))) ->  | C16: =VLOOKUP(134,'Course List'!A:D,4,0) -> MGMT | D16: =VLOOKUP(134,'Course List'!A:E,5,0) -> 440 | E16: =VLOOKUP(134,'Course List'!A:F,6,0) -> Human Resource Management
A17: =VLOOKUP(135,'Course List'!A:B,2,0) -> Not Taken | B17: =IF(VLOOKUP(135,'Course List'!$A:$B,2,0)="Not Taken","",IF(VLOOKUP(135,'Course List'!$A:$C,3,0)=0,"Unknown",VLOOKUP(135,'Course List'!$A:$C,3,0))) ->  | C17: =VLOOKUP(135,'Course List'!A:D,4,0) -> MGMT | D17: =VLOOKUP(135,'Course List'!A:E,5,0) -> 444 | E17: =VLOOKUP(135,'Course List'!A:F,6,0) -> Healthcare Economics & Strategy
A18: =VLOOKUP(140,'Course List'!A:B,2,0) -> Not Taken | B18: =IF(VLOOKUP(140,'Course List'!$A:$B,2,0)="Not Taken","",IF(VLOOKUP(140,'Course List'!$A:$C,3,0)=0,"Unknown",VLOOKUP(140,'Course List'!$A:$C,3,0))) ->  | C18: =VLOOKUP(140,'Course List'!A:D,4,0) -> MGMT | D18: =VLOOKUP(140,'Course List'!A:E,5,0) -> 464 | E18: =VLOOKUP(140,'Course List'!A:F,6,0) -> Strategic Management of Technology and Innovation
A19: =VLOOKUP(141,'Course List'!A:B,2,0) -> Not Taken | B19: =IF(VLOOKUP(141,'Course List'!$A:$B,2,0)="Not Taken","",IF(VLOOKUP(141,'Course List'!$A:$C,3,0)=0,"Unknown",VLOOKUP(141,'Course List'!$A:$C,3,0))) ->  | C19: =VLOOKUP(141,'Course List'!A:D,4,0) -> MGMT | D19: =VLOOKUP(141,'Course List'!A:E,5,0) -> 465 | E19: =VLOOKUP(141,'Course List'!A:F,6,0) -> Small Business Management
A20: =VLOOKUP(142,'Course List'!A:B,2,0) -> Not Taken | B20: =IF(VLOOKUP(142,'Course List'!$A:$B,2,0)="Not Taken","",IF(VLOOKUP(142,'Course List'!$A:$C,3,0)=0,"Unknown",VLOOKUP(142,'Course List'!$A:$C,3,0))) ->  | C20: =VLOOKUP(142,'Course List'!A:D,4,0) -> MGMT | D20: =VLOOKUP(142,'Course List'!A:E,5,0) -> 467 | E20: =VLOOKUP(142,'Course List'!A:F,6,0) -> Strategic Business Issues in Transportation and Logistics
A21: =VLOOKUP(145,'Course List'!A:B,2,0) -> Not Taken | B21: =IF(VLOOKUP(145,'Course List'!$A:$B,2,0)="Not Taken","",IF(VLOOKUP(145,'Course List'!$A:$C,3,0)=0,"Unknown",VLOOKUP(145,'Course List'!$A:$C,3,0))) ->  | C21: =VLOOKUP(145,'Course List'!A:D,4,0) -> MGMT | D21: =VLOOKUP(145,'Course List'!A:E,5,0) -> 499 | E21: =VLOOKUP(145,'Course List'!A:F,6,0) -> Independent Study
A22: =VLOOKUP(148,'Course List'!A:B,2,0) -> Not Taken | B22: =IF(VLOOKUP(148,'Course List'!$A:$B,2,0)="Not Taken","",IF(VLOOKUP(148,'Course List'!$A:$C,3,0)=0,"Unknown",VLOOKUP(148,'Course List'!$A:$C,3,0))) ->  | C22: =VLOOKUP(148,'Course List'!A:D,4,0) -> MGMT | D22: =VLOOKUP(148,'Course List'!A:E,5,0) -> 911 | E22: =VLOOKUP(148,'Course List'!A:F,6,0) -> Strategic Dilemmas in Business Design
A23: =VLOOKUP(151,'Course List'!A:B,2,0) -> Not Taken | B23: =IF(VLOOKUP(151,'Course List'!$A:$B,2,0)="Not Taken","",IF(VLOOKUP(151,'Course List'!$A:$C,3,0)=0,"Unknown",VLOOKUP(151,'Course List'!$A:$C,3,0))) ->  | C23: =VLOOKUP(151,'Course List'!A:D,4,0) -> MGMT | D23: =VLOOKUP(151,'Course List'!A:E,5,0) -> 927 | E23: =VLOOKUP(151,'Course List'!A:F,6,0) -> Family Enterprises: Issues & Solutions
A24: =VLOOKUP(157,'Course List'!A:B,2,0) -> Not Taken | B24: =IF(VLOOKUP(157,'Course List'!$A:$B,2,0)="Not Taken","",IF(VLOOKUP(157,'Course List'!$A:$C,3,0)=0,"Unknown",VLOOKUP(157,'Course List'!$A:$C,3,0))) ->  | C24: =VLOOKUP(157,'Course List'!A:D,4,0) -> MGMT | D24: =VLOOKUP(157,'Course List'!A:E,5,0) -> 934 | E24: =VLOOKUP(157,'Course List'!A:F,6,0) -> Managing Turnarounds
A25: =VLOOKUP(160,'Course List'!A:B,2,0) -> Not Taken | B25: =IF(VLOOKUP(160,'Course List'!$A:$B,2,0)="Not Taken","",IF(VLOOKUP(160,'Course List'!$A:$C,3,0)=0,"Unknown",VLOOKUP(160,'Course List'!$A:$C,3,0))) ->  | C25: =VLOOKUP(160,'Course List'!A:D,4,0) -> MGMT | D25: =VLOOKUP(160,'Course List'!A:E,5,0) -> 939 | E25: =VLOOKUP(160,'Course List'!A:F,6,0) -> Airline Economics, Management and Strategy
A26: =VLOOKUP(162,'Course List'!A:B,2,0) -> Not Taken | B26: =IF(VLOOKUP(162,'Course List'!$A:$B,2,0)="Not Taken","",IF(VLOOKUP(162,'Course List'!$A:$C,3,0)=0,"Unknown",VLOOKUP(162,'Course List'!$A:$C,3,0))) ->  | C26: =VLOOKUP(162,'Course List'!A:D,4,0) -> MGMT | D26: =VLOOKUP(162,'Course List'!A:E,5,0) -> 941 | E26: =VLOOKUP(162,'Course List'!A:F,6,0) -> Issues in Air Transportation
A27: =VLOOKUP(44,'Course List'!A:B,2,0) -> Not Taken | B27: =IF(VLOOKUP(44,'Course List'!$A:$B,2,0)="Not Taken","",IF(VLOOKUP(44,'Course List'!$A:$C,3,0)=0,"Unknown",VLOOKUP(44,'Course List'!$A:$C,3,0))) ->  | C27: =VLOOKUP(44,'Course List'!A:D,4,0) -> ENTR | D27: =VLOOKUP(44,'Course List'!A:E,5,0) -> 462 | E27: =VLOOKUP(44,'Course List'!A:F,6,0) -> Entrepreneurship & New Venture Formulation
A28: =VLOOKUP(106,'Course List'!A:B,2,0) -> Not Taken | B28: =IF(VLOOKUP(106,'Course List'!$A:$B,2,0)="Not Taken","",IF(VLOOKUP(106,'Course List'!$A:$C,3,0)=0,"Unknown",VLOOKUP(106,'Course List'!$A:$C,3,0))) ->  | C28: =VLOOKUP(106,'Course List'!A:D,4,0) -> INTL | D28: =VLOOKUP(106,'Course List'!A:E,5,0) -> 466 | E28: =VLOOKUP(106,'Course List'!A:F,6,0) -> International Business Strategy in Non-Market Environments
A29: =VLOOKUP(143,'Course List'!A:B,2,0) -> Not Taken | B29: =IF(VLOOKUP(143,'Course List'!$A:$B,2,0)="Not Taken","",IF(VLOOKUP(143,'Course List'!$A:$C,3,0)=0,"Unknown",VLOOKUP(143,'Course List'!$A:$C,3,0))) ->  | C29: =VLOOKUP(143,'Course List'!A:D,4,0) -> MORS | D29: =VLOOKUP(143,'Course List'!A:E,5,0) -> 468 | E29: =VLOOKUP(143,'Course List'!A:F,6,0) -> Managerial Leadership
A30: =VLOOKUP(156,'Course List'!A:B,2,0) -> Not Taken | B30: =IF(VLOOKUP(156,'Course List'!$A:$B,2,0)="Not Taken","",IF(VLOOKUP(156,'Course List'!$A:$C,3,0)=0,"Unknown",VLOOKUP(156,'Course List'!$A:$C,3,0))) ->  | C30: =VLOOKUP(156,'Course List'!A:D,4,0) -> MORS | D30: =VLOOKUP(156,'Course List'!A:E,5,0) -> 933 | E30: =VLOOKUP(156,'Course List'!A:F,6,0) -> Leaders & Leadership
A31: =VLOOKUP(269,'Course List'!A:B,2,0) -> Not Taken | B31: =IF(VLOOKUP(269,'Course List'!$A:$B,2,0)="Not Taken","",IF(VLOOKUP(269,'Course List'!$A:$C,3,0)=0,"Unknown",VLOOKUP(269,'Course List'!$A:$C,3,0))) ->  | C31: =VLOOKUP(269,'Course List'!A:D,4,0) -> REAL | D31: =VLOOKUP(269,'Course List'!A:E,5,0) -> 448 | E31: =VLOOKUP(269,'Course List'!A:F,6,0) -> Urban Public Finance
A32: =VLOOKUP(240,'Course List'!A:B,2,0) -> Not Taken | B32: =IF(VLOOKUP(240,'Course List'!$A:$B,2,0)="Not Taken","",IF(VLOOKUP(240,'Course List'!$A:$C,3,0)=0,"Unknown",VLOOKUP(240,'Course List'!$A:$C,3,0))) ->  | C32: =VLOOKUP(240,'Course List'!A:D,4,0) -> SEEK | D32: =VLOOKUP(240,'Course List'!A:E,5,0) -> 470 | E32: =VLOOKUP(240,'Course List'!A:F,6,0) -> Public Policy Analysis for Managers
A33: Not Taken | B33: =IF(VLOOKUP(13,'Course List'!$A:$B,2,0)="Not Taken","",IF(VLOOKUP(13,'Course List'!$A:$C,3,0)=0,"Unknown",VLOOKUP(13,'Course List'!$A:$C,3,0))) ->  | C33: =VLOOKUP(13,'Course List'!A:D,4,0) -> ACCT | D33: =VLOOKUP(13,'Course List'!A:E,5,0) -> 454 | E33: =VLOOKUP(13,'Course List'!A:F,6,0) -> Management Lab (M-Lab)
A34: =IF(COUNTIF(A36:A39,"Complete")>=2,"Complete",IF(AND(COUNTIF(A36:A39,"Complete")=1,COUNTIF(A36:A39,"Enrolled")>=1),"Enrolled",IF(COUNTIF(A36:A39,"Enrolled")>=2,"Enrolled","Not Taken"))) -> Not Taken | C34: This line denotes whether or not two half credit courses have been completed.
A35: =IF(COUNTIF(A36:A39,"Complete")>=4,"Complete",IF(AND(COUNTIF(A36:A39,"Complete")=3,COUNTIF(A36:A39,"Enrolled")>=1),"Enrolled",IF(AND(COUNTIF(A36:A39,"Complete")=2,COUNTIF(A36:A39,"Enrolled")>=2),"Enrolled",IF(AND(COUNTIF(A36:A39,"Complete")=1,COUNTIF(A36:A39,"Enrolled")>=4),"Enrolled",IF(COUNTIF(A36:A39,"Enrolled")>=4,"Enrolled","Not Taken"))))) -> Not Taken | C35: This line denotes whether or not four half credit courses have been completed.
A36: =VLOOKUP(149,'Course List'!A:B,2,0) -> Not Taken | B36: =IF(VLOOKUP(149,'Course List'!$A:$B,2,0)="Not Taken","",IF(VLOOKUP(149,'Course List'!$A:$C,3,0)=0,"Unknown",VLOOKUP(149,'Course List'!$A:$C,3,0))) ->  | C36: =VLOOKUP(149,'Course List'!A:D,4,0) -> MGMT | D36: =VLOOKUP(149,'Course List'!A:E,5,0) -> 913-A | E36: =VLOOKUP(149,'Course List'!A:F,6,0) -> Corporate Governance
A37: =VLOOKUP(153,'Course List'!A:B,2,0) -> Not Taken | B37: =IF(VLOOKUP(153,'Course List'!$A:$B,2,0)="Not Taken","",IF(VLOOKUP(153,'Course List'!$A:$C,3,0)=0,"Unknown",VLOOKUP(153,'Course List'!$A:$C,3,0))) ->  | C37: =VLOOKUP(153,'Course List'!A:D,4,0) -> MGMT | D37: =VLOOKUP(153,'Course List'!A:E,5,0) -> 931-A | E37: =VLOOKUP(153,'Course List'!A:F,6,0) -> Strategic Franchising
A38: =VLOOKUP(158,'Course List'!A:B,2,0) -> Not Taken | B38: =IF(VLOOKUP(158,'Course List'!$A:$B,2,0)="Not Taken","",IF(VLOOKUP(158,'Course List'!$A:$C,3,0)=0,"Unknown",VLOOKUP(158,'Course List'!$A:$C,3,0))) ->  | C38: =VLOOKUP(158,'Course List'!A:D,4,0) -> MGMT | D38: =VLOOKUP(158,'Course List'!A:E,5,0) -> 936-A | E38: =VLOOKUP(158,'Course List'!A:F,6,0) -> Understanding Networked Industries
A39: =VLOOKUP(159,'Course List'!A:B,2,0) -> Not Taken | B39: =IF(VLOOKUP(159,'Course List'!$A:$B,2,0)="Not Taken","",IF(VLOOKUP(159,'Course List'!$A:$C,3,0)=0,"Unknown",VLOOKUP(159,'Course List'!$A:$C,3,0))) ->  | C39: =VLOOKUP(159,'Course List'!A:D,4,0) -> MGMT | D39: =VLOOKUP(159,'Course List'!A:E,5,0) -> 937-B | E39: =VLOOKUP(159,'Course List'!A:F,6,0) -> Transportation and Supply Chain Economics and Strategy

Sheet Managerial Econ
A1: Managerial Economics
A3: =Formulae!A105 -> NOT MAJORING IN THIS FIELD
A5: Status | B5: Term | C5: Department | D5: Course # | E5: Course Name
A7: =VLOOKUP(117,'Course List'!A:B,2,0) -> Not Taken | B7: =IF(VLOOKUP(117,'Course List'!$A:$B,2,0)="Not Taken","",IF(VLOOKUP(117,'Course List'!$A:$C,3,0)=0,"Unknown",VLOOKUP(117,'Course List'!$A:$C,3,0))) ->  | C7: =VLOOKUP(117,'Course List'!A:D,4,0) -> MECN | D7: =VLOOKUP(117,'Course List'!A:E,5,0) -> 436 | E7: =VLOOKUP(117,'Course List'!A:F,6,0) -> Turbo Microeconomic Analysis*
A8: =VLOOKUP(120,'Course List'!A:B,2,0) -> Not Taken | B8: =IF(VLOOKUP(120,'Course List'!$A:$B,2,0)="Not Taken","",IF(VLOOKUP(120,'Course List'!$A:$C,3,0)=0,"Unknown",VLOOKUP(120,'Course List'!$A:$C,3,0))) ->  | C8: =VLOOKUP(120,'Course List'!A:D,4,0) -> MECN | D8: =VLOOKUP(120,'Course List'!A:E,5,0) -> 441 | E8: =VLOOKUP(120,'Course List'!A:F,6,0) -> Competitive Strategy & Industrial Structure
A9: =VLOOKUP(259,'Course List'!A:B,2,0) -> Not Taken | B9: =IF(VLOOKUP(259,'Course List'!$A:$B,2,0)="Not Taken","",IF(VLOOKUP(259,'Course List'!$A:$C,3,0)=0,"Unknown",VLOOKUP(259,'Course List'!$A:$C,3,0))) ->  | C9: =VLOOKUP(259,'Course List'!A:D,4,0) -> MECN | D9: =VLOOKUP(259,'Course List'!A:E,5,0) -> 443 | E9: =VLOOKUP(259,'Course List'!A:F,6,0) -> Analytics of Corporate Planning & Strategy*
A10: =VLOOKUP(121,'Course List'!A:B,2,0) -> Not Taken | B10: =IF(VLOOKUP(121,'Course List'!$A:$B,2,0)="Not Taken","",IF(VLOOKUP(121,'Course List'!$A:$C,3,0)=0,"Unknown",VLOOKUP(121,'Course List'!$A:$C,3,0))) ->  | C10: =VLOOKUP(121,'Course List'!A:D,4,0) -> MECN | D10: =VLOOKUP(121,'Course List'!A:E,5,0) -> 446 | E10: =VLOOKUP(121,'Course List'!A:F,6,0) -> Pricing Strategies
A11: =VLOOKUP(122,'Course List'!A:B,2,0) -> Not Taken | B11: =IF(VLOOKUP(122,'Course List'!$A:$B,2,0)="Not Taken","",IF(VLOOKUP(122,'Course List'!$A:$C,3,0)=0,"Unknown",VLOOKUP(122,'Course List'!$A:$C,3,0))) ->  | C11: =VLOOKUP(122,'Course List'!A:D,4,0) -> MECN | D11: =VLOOKUP(122,'Course List'!A:E,5,0) -> 450 | E11: =VLOOKUP(122,'Course List'!A:F,6,0) -> Macroeconomic Analysis for Management
A12: =VLOOKUP(123,'Course List'!A:B,2,0) -> Not Taken | B12: =IF(VLOOKUP(123,'Course List'!$A:$B,2,0)="Not Taken","",IF(VLOOKUP(123,'Course List'!$A:$C,3,0)=0,"Unknown",VLOOKUP(123,'Course List'!$A:$C,3,0))) ->  | C12: =VLOOKUP(123,'Course List'!A:D,4,0) -> MECN | D12: =VLOOKUP(123,'Course List'!A:E,5,0) -> 451 | E12: =VLOOKUP(123,'Course List'!A:F,6,0) -> Business and Economic Forecasting*
A13: =VLOOKUP(124,'Course List'!A:B,2,0) -> Not Taken | B13: =IF(VLOOKUP(124,'Course List'!$A:$B,2,0)="Not Taken","",IF(VLOOKUP(124,'Course List'!$A:$C,3,0)=0,"Unknown",VLOOKUP(124,'Course List'!$A:$C,3,0))) ->  | C13: =VLOOKUP(124,'Course List'!A:D,4,0) -> MECN | D13: =VLOOKUP(124,'Course List'!A:E,5,0) -> 452 | E13: =VLOOKUP(124,'Course List'!A:F,6,0) -> International Economics
A14: =VLOOKUP(260,'Course List'!A:B,2,0) -> Not Taken | B14: =IF(VLOOKUP(260,'Course List'!$A:$B,2,0)="Not Taken","",IF(VLOOKUP(260,'Course List'!$A:$C,3,0)=0,"Unknown",VLOOKUP(260,'Course List'!$A:$C,3,0))) ->  | C14: =VLOOKUP(260,'Course List'!A:D,4,0) -> MECN | D14: =VLOOKUP(260,'Course List'!A:E,5,0) -> 463 | E14: =VLOOKUP(260,'Course List'!A:F,6,0) -> Entrepreneurial Leadership*
A15: =VLOOKUP(125,'Course List'!A:B,2,0) -> Not Taken | B15: =IF(VLOOKUP(125,'Course List'!$A:$B,2,0)="Not Taken","",IF(VLOOKUP(125,'Course List'!$A:$C,3,0)=0,"Unknown",VLOOKUP(125,'Course List'!$A:$C,3,0))) ->  | C15: =VLOOKUP(125,'Course List'!A:D,4,0) -> MECN | D15: =VLOOKUP(125,'Course List'!A:E,5,0) -> 499 | E15: =VLOOKUP(125,'Course List'!A:F,6,0) -> Independent Study
A16: =VLOOKUP(261,'Course List'!A:B,2,0) -> Not Taken | B16: =IF(VLOOKUP(261,'Course List'!$A:$B,2,0)="Not Taken","",IF(VLOOKUP(261,'Course List'!$A:$C,3,0)=0,"Unknown",VLOOKUP(261,'Course List'!$A:$C,3,0))) ->  | C16: =VLOOKUP(261,'Course List'!A:D,4,0) -> MECN | D16: =VLOOKUP(261,'Course List'!A:E,5,0) -> 912 | E16: =VLOOKUP(261,'Course List'!A:F,6,0) -> Invention and Innovation*
A17: =VLOOKUP(246,'Course List'!A:B,2,0) -> Not Taken | B17: =IF(VLOOKUP(246,'Course List'!$A:$B,2,0)="Not Taken","",IF(VLOOKUP(246,'Course List'!$A:$C,3,0)=0,"Unknown",VLOOKUP(246,'Course List'!$A:$C,3,0))) ->  | C17: =VLOOKUP(246,'Course List'!A:D,4,0) -> TECH | D17: =VLOOKUP(246,'Course List'!A:E,5,0) -> 441 | E17: =VLOOKUP(246,'Course List'!A:F,6,0) -> Intellectual Capital Management
A18: =VLOOKUP(135,'Course List'!A:B,2,0) -> Not Taken | B18: =IF(VLOOKUP(135,'Course List'!$A:$B,2,0)="Not Taken","",IF(VLOOKUP(135,'Course List'!$A:$C,3,0)=0,"Unknown",VLOOKUP(135,'Course List'!$A:$C,3,0))) ->  | C18: =VLOOKUP(135,'Course List'!A:D,4,0) -> MGMT | D18: =VLOOKUP(135,'Course List'!A:E,5,0) -> 444 | E18: =VLOOKUP(135,'Course List'!A:F,6,0) -> Healthcare Economics & Strategy
A19: =VLOOKUP(136,'Course List'!A:B,2,0) -> Not Taken | B19: =IF(VLOOKUP(136,'Course List'!$A:$B,2,0)="Not Taken","",IF(VLOOKUP(136,'Course List'!$A:$C,3,0)=0,"Unknown",VLOOKUP(136,'Course List'!$A:$C,3,0))) ->  | C19: =VLOOKUP(136,'Course List'!A:D,4,0) -> MGMT | D19: =VLOOKUP(136,'Course List'!A:E,5,0) -> 452 | E19: =VLOOKUP(136,'Course List'!A:F,6,0) -> Strategy & Organization
A20: Not Taken | B20: =IF(VLOOKUP(13,'Course List'!$A:$B,2,0)="Not Taken","",IF(VLOOKUP(13,'Course List'!$A:$C,3,0)=0,"Unknown",VLOOKUP(13,'Course List'!$A:$C,3,0))) ->  | C20: =VLOOKUP(13,'Course List'!A:D,4,0) -> ACCT | D20: =VLOOKUP(13,'Course List'!A:E,5,0) -> 454 | E20: =VLOOKUP(13,'Course List'!A:F,6,0) -> Management Lab (M-Lab)

Sheet Marketing
A1: Marketing
A3: =Formulae!A107 -> NOT MAJORING IN THIS FIELD
A5: Status | B5: Term | C5: Department | D5: Course # | E5: Course Name
A7: =VLOOKUP(163,'Course List'!A:B,2,0) -> Not Taken | B7: =IF(VLOOKUP(163,'Course List'!$A:$B,2,0)="Not Taken","",IF(VLOOKUP(163,'Course List'!$A:$C,3,0)=0,"Unknown",VLOOKUP(163,'Course List'!$A:$C,3,0))) ->  | C7: =VLOOKUP(163,'Course List'!A:D,4,0) -> MKTG | D7: =VLOOKUP(163,'Course List'!A:E,5,0) -> 430 | E7: =VLOOKUP(163,'Course List'!A:F,6,0) -> Marketing Management
A8: =VLOOKUP(164,'Course List'!A:B,2,0) -> Not Taken | B8: =IF(VLOOKUP(164,'Course List'!$A:$B,2,0)="Not Taken","",IF(VLOOKUP(164,'Course List'!$A:$C,3,0)=0,"Unknown",VLOOKUP(164,'Course List'!$A:$C,3,0))) ->  | C8: =VLOOKUP(164,'Course List'!A:D,4,0) -> MKTG | D8: =VLOOKUP(164,'Course List'!A:E,5,0) -> 450 | E8: =VLOOKUP(164,'Course List'!A:F,6,0) -> Research Methods in Marketing
A10: =VLOOKUP(165,'Course List'!A:B,2,0) -> Not Taken | B10: =IF(VLOOKUP(165,'Course List'!$A:$B,2,0)="Not Taken","",IF(VLOOKUP(165,'Course List'!$A:$C,3,0)=0,"Unknown",VLOOKUP(165,'Course List'!$A:$C,3,0))) ->  | C10: =VLOOKUP(165,'Course List'!A:D,4,0) -> MKTG | D10: =VLOOKUP(165,'Course List'!A:E,5,0) -> 451 | E10: =VLOOKUP(165,'Course List'!A:F,6,0) -> Policies in Marketing Channels (Marketing Channel Strategies)
A11: =VLOOKUP(273,'Course List'!A:B,2,0) -> Not Taken | B11: =IF(VLOOKUP(273,'Course List'!$A:$B,2,0)="Not Taken","",IF(VLOOKUP(273,'Course List'!$A:$C,3,0)=0,"Unknown",VLOOKUP(273,'Course List'!$A:$C,3,0))) ->  | C11: =VLOOKUP(273,'Course List'!A:D,4,0) -> MKTG | D11: =VLOOKUP(273,'Course List'!A:E,5,0) -> 452 | E11: =VLOOKUP(273,'Course List'!A:F,6,0) -> Consumer Insight Tools
A12: =VLOOKUP(166,'Course List'!A:B,2,0) -> Not Taken | B12: =IF(VLOOKUP(166,'Course List'!$A:$B,2,0)="Not Taken","",IF(VLOOKUP(166,'Course List'!$A:$C,3,0)=0,"Unknown",VLOOKUP(166,'Course List'!$A:$C,3,0))) ->  | C12: =VLOOKUP(166,'Course List'!A:D,4,0) -> MKTG | D12: =VLOOKUP(166,'Course List'!A:E,5,0) -> 453 | E12: =VLOOKUP(166,'Course List'!A:F,6,0) -> Business Marketing
A13: =VLOOKUP(167,'Course List'!A:B,2,0) -> Not Taken | B13: =IF(VLOOKUP(167,'Course List'!$A:$B,2,0)="Not Taken","",IF(VLOOKUP(167,'Course List'!$A:$C,3,0)=0,"Unknown",VLOOKUP(167,'Course List'!$A:$C,3,0))) ->  | C13: =VLOOKUP(167,'Course List'!A:D,4,0) -> MKTG | D13: =VLOOKUP(167,'Course List'!A:E,5,0) -> 454 | E13: =VLOOKUP(167,'Course List'!A:F,6,0) -> Advertising Strategy
A14: =VLOOKUP(168,'Course List'!A:B,2,0) -> Not Taken | B14: =IF(VLOOKUP(168,'Course List'!$A:$B,2,0)="Not Taken","",IF(VLOOKUP(168,'Course List'!$A:$C,3,0)=0,"Unknown",VLOOKUP(168,'Course List'!$A:$C,3,0))) ->  | C14: =VLOOKUP(168,'Course List'!A:D,4,0) -> MKTG | D14: =VLOOKUP(168,'Course List'!A:E,5,0) -> 458 | E14: =VLOOKUP(168,'Course List'!A:F,6,0) -> Models of Consumer Behavior
A15: =VLOOKUP(169,'Course List'!A:B,2,0) -> Not Taken | B15: =IF(VLOOKUP(169,'Course List'!$A:$B,2,0)="Not Taken","",IF(VLOOKUP(169,'Course List'!$A:$C,3,0)=0,"Unknown",VLOOKUP(169,'Course List'!$A:$C,3,0))) ->  | C15: =VLOOKUP(169,'Course List'!A:D,4,0) -> MKTG | D15: =VLOOKUP(169,'Course List'!A:E,5,0) -> 459 | E15: =VLOOKUP(169,'Course List'!A:F,6,0) -> Services Marketing and Management
A16: =VLOOKUP(170,'Course List'!A:B,2,0) -> Not Taken | B16: =IF(VLOOKUP(170,'Course List'!$A:$B,2,0)="Not Taken","",IF(VLOOKUP(170,'Course List'!$A:$C,3,0)=0,"Unknown",VLOOKUP(170,'Course List'!$A:$C,3,0))) ->  | C16: =VLOOKUP(170,'Course List'!A:D,4,0) -> MKTG | D16: =VLOOKUP(170,'Course List'!A:E,5,0) -> 462 | E16: =VLOOKUP(170,'Course List'!A:F,6,0) -> Sales Promotion and Retailer Behavior
A17: =VLOOKUP(171,'Course List'!A:B,2,0) -> Not Taken | B17: =IF(VLOOKUP(171,'Course List'!$A:$B,2,0)="Not Taken","",IF(VLOOKUP(171,'Course List'!$A:$C,3,0)=0,"Unknown",VLOOKUP(171,'Course List'!$A:$C,3,0))) ->  | C17: =VLOOKUP(171,'Course List'!A:D,4,0) -> MKTG | D17: =VLOOKUP(171,'Course List'!A:E,5,0) -> 463 | E17: =VLOOKUP(171,'Course List'!A:F,6,0) -> Sales Force Management
A18: =VLOOKUP(173,'Course List'!A:B,2,0) -> Not Taken | B18: =IF(VLOOKUP(173,'Course List'!$A:$B,2,0)="Not Taken","",IF(VLOOKUP(173,'Course List'!$A:$C,3,0)=0,"Unknown",VLOOKUP(173,'Course List'!$A:$C,3,0))) ->  | C18: =VLOOKUP(173,'Course List'!A:D,4,0) -> MKTG | D18: =VLOOKUP(173,'Course List'!A:E,5,0) -> 465 | E18: =VLOOKUP(173,'Course List'!A:F,6,0) -> Introduction of New Products & Services
A19: =VLOOKUP(174,'Course List'!A:B,2,0) -> Not Taken | B19: =IF(VLOOKUP(174,'Course List'!$A:$B,2,0)="Not Taken","",IF(VLOOKUP(174,'Course List'!$A:$C,3,0)=0,"Unknown",VLOOKUP(174,'Course List'!$A:$C,3,0))) ->  | C19: =VLOOKUP(174,'Course List'!A:D,4,0) -> MKTG | D19: =VLOOKUP(174,'Course List'!A:E,5,0) -> 466 | E19: =VLOOKUP(174,'Course List'!A:F,6,0) -> Marketing Strategy
A20: =VLOOKUP(175,'Course List'!A:B,2,0) -> Not Taken | B20: =IF(VLOOKUP(175,'Course List'!$A:$B,2,0)="Not Taken","",IF(VLOOKUP(175,'Course List'!$A:$C,3,0)=0,"Unknown",VLOOKUP(175,'Course List'!$A:$C,3,0))) ->  | C20: =VLOOKUP(175,'Course List'!A:D,4,0) -> MKTG | D20: =VLOOKUP(175,'Course List'!A:E,5,0) -> 468 | E20: =VLOOKUP(175,'Course List'!A:F,6,0) -> Technology Marketing
A21: =VLOOKUP(176,'Course List'!A:B,2,0) -> Not Taken | B21: =IF(VLOOKUP(176,'Course List'!$A:$B,2,0)="Not Taken","",IF(VLOOKUP(176,'Course List'!$A:$C,3,0)=0,"Unknown",VLOOKUP(176,'Course List'!$A:$C,3,0))) ->  | C21: =VLOOKUP(176,'Course List'!A:D,4,0) -> MKTG | D21: =VLOOKUP(176,'Course List'!A:E,5,0) -> 499 | E21: =VLOOKUP(176,'Course List'!A:F,6,0) -> Independent Study
A22: =VLOOKUP(178,'Course List'!A:B,2,0) -> Not Taken | B22: =IF(VLOOKUP(178,'Course List'!$A:$B,2,0)="Not Taken","",IF(VLOOKUP(178,'Course List'!$A:$C,3,0)=0,"Unknown",VLOOKUP(178,'Course List'!$A:$C,3,0))) ->  | C22: =VLOOKUP(178,'Course List'!A:D,4,0) -> MKTG | D22: =VLOOKUP(178,'Course List'!A:E,5,0) -> 913 | E22: =VLOOKUP(178,'Course List'!A:F,6,0) -> Internet Marketing
A23: =VLOOKUP(179,'Course List'!A:B,2,0) -> Not Taken | B23: =IF(VLOOKUP(179,'Course List'!$A:$B,2,0)="Not Taken","",IF(VLOOKUP(179,'Course List'!$A:$C,3,0)=0,"Unknown",VLOOKUP(179,'Course List'!$A:$C,3,0))) ->  | C23: =VLOOKUP(179,'Course List'!A:D,4,0) -> MKTG | D23: =VLOOKUP(179,'Course List'!A:E,5,0) -> 922 | E23: =VLOOKUP(179,'Course List'!A:F,6,0) -> Advanced Topics in Marketing
A24: =VLOOKUP(294,'Course List'!A:B,2,0) -> Not Taken | B24: =IF(VLOOKUP(294,'Course List'!$A:$B,2,0)="Not Taken","",IF(VLOOKUP(294,'Course List'!$A:$C,3,0)=0,"Unknown",VLOOKUP(294,'Course List'!$A:$C,3,0))) ->  | C24: =VLOOKUP(294,'Course List'!A:D,4,0) -> MKTG | D24: =VLOOKUP(294,'Course List'!A:E,5,0) -> 951 | E24: =VLOOKUP(294,'Course List'!A:F,6,0) -> Sports Marketing
A25: =VLOOKUP(225,'Course List'!A:B,2,0) -> Not Taken | B25: =IF(VLOOKUP(225,'Course List'!$A:$B,2,0)="Not Taken","",IF(VLOOKUP(225,'Course List'!$A:$C,3,0)=0,"Unknown",VLOOKUP(225,'Course List'!$A:$C,3,0))) ->  | C25: =VLOOKUP(225,'Course List'!A:D,4,0) -> MKTG | D25: =VLOOKUP(225,'Course List'!A:E,5,0) -> 952 | E25: =VLOOKUP(225,'Course List'!A:F,6,0) -> Strategic Data-Driven Marketing
A26: =VLOOKUP(22,'Course List'!A:B,2,0) -> Not Taken | B26: =IF(VLOOKUP(22,'Course List'!$A:$B,2,0)="Not Taken","",IF(VLOOKUP(22,'Course List'!$A:$C,3,0)=0,"Unknown",VLOOKUP(22,'Course List'!$A:$C,3,0))) ->  | C26: =VLOOKUP(22,'Course List'!A:D,4,0) -> HEMA | D26: =VLOOKUP(22,'Course List'!A:E,5,0) -> 914 | E26: =VLOOKUP(22,'Course List'!A:F,6,0) -> Biomedical Marketing
A27: =VLOOKUP(107,'Course List'!A:B,2,0) -> Not Taken | B27: =IF(VLOOKUP(107,'Course List'!$A:$B,2,0)="Not Taken","",IF(VLOOKUP(107,'Course List'!$A:$C,3,0)=0,"Unknown",VLOOKUP(107,'Course List'!$A:$C,3,0))) ->  | C27: =VLOOKUP(107,'Course List'!A:D,4,0) -> INTL | D27: =VLOOKUP(107,'Course List'!A:E,5,0) -> 467 | E27: =VLOOKUP(107,'Course List'!A:F,6,0) -> International Marketing
A28: =VLOOKUP(128,'Course List'!A:B,2,0) -> Not Taken | B28: =IF(VLOOKUP(128,'Course List'!$A:$B,2,0)="Not Taken","",IF(VLOOKUP(128,'Course List'!$A:$C,3,0)=0,"Unknown",VLOOKUP(128,'Course List'!$A:$C,3,0))) ->  | C28: =VLOOKUP(128,'Course List'!A:D,4,0) -> MEDM | D28: =VLOOKUP(128,'Course List'!A:E,5,0) -> 431 | E28: =VLOOKUP(128,'Course List'!A:F,6,0) -> Media and Integrated Marketing
A29: =VLOOKUP(250,'Course List'!A:B,2,0) -> Not Taken | B29: =IF(VLOOKUP(250,'Course List'!$A:$B,2,0)="Not Taken","",IF(VLOOKUP(250,'Course List'!$A:$C,3,0)=0,"Unknown",VLOOKUP(250,'Course List'!$A:$C,3,0))) ->  | C29: =VLOOKUP(250,'Course List'!A:D,4,0) -> TECH | D29: =VLOOKUP(250,'Course List'!A:E,5,0) -> 917 | E29: =VLOOKUP(250,'Course List'!A:F,6,0) -> Analytical Marketing and Customer Relationship Management
A30: Not Taken | B30: =IF(VLOOKUP(13,'Course List'!$A:$B,2,0)="Not Taken","",IF(VLOOKUP(13,'Course List'!$A:$C,3,0)=0,"Unknown",VLOOKUP(13,'Course List'!$A:$C,3,0))) ->  | C30: =VLOOKUP(13,'Course List'!A:D,4,0) -> ACCT | D30: =VLOOKUP(13,'Course List'!A:E,5,0) -> 454 | E30: =VLOOKUP(13,'Course List'!A:F,6,0) -> Management Lab (M-Lab)
A31: =VLOOKUP(172,'Course List'!A:B,2,0) -> Not Taken | B31: =IF(VLOOKUP(172,'Course List'!$A:$B,2,0)="Not Taken","",IF(VLOOKUP(172,'Course List'!$A:$C,3,0)=0,"Unknown",VLOOKUP(172,'Course List'!$A:$C,3,0))) ->  | C31: =VLOOKUP(172,'Course List'!A:D,4,0) -> MKTG | D31: =VLOOKUP(172,'Course List'!A:E,5,0) -> 464-A | E31: =VLOOKUP(172,'Course List'!A:F,6,0) -> The Management of Product Development

Sheet Marketing 1Y
A1: Marketing
A3: =Formulae!A116 -> NOT MAJORING IN THIS FIELD
A5: Status | B5: Term | C5: Department | D5: Course # | E5: Course Name
A7: =VLOOKUP(164,'Course List'!A:B,2,0) -> Not Taken | B7: =IF(VLOOKUP(164,'Course List'!$A:$B,2,0)="Not Taken","",IF(VLOOKUP(164,'Course List'!$A:$C,3,0)=0,"Unknown",VLOOKUP(164,'Course List'!$A:$C,3,0))) ->  | C7: =VLOOKUP(164,'Course List'!A:D,4,0) -> MKTG | D7: =VLOOKUP(164,'Course List'!A:E,5,0) -> 450 | E7: =VLOOKUP(164,'Course List'!A:F,6,0) -> Research Methods in Marketing
A9: =VLOOKUP(165,'Course List'!A:B,2,0) -> Not Taken | B9: =IF(VLOOKUP(165,'Course List'!$A:$B,2,0)="Not Taken","",IF(VLOOKUP(165,'Course List'!$A:$C,3,0)=0,"Unknown",VLOOKUP(165,'Course List'!$A:$C,3,0))) ->  | C9: =VLOOKUP(165,'Course List'!A:D,4,0) -> MKTG | D9: =VLOOKUP(165,'Course List'!A:E,5,0) -> 451 | E9: =VLOOKUP(165,'Course List'!A:F,6,0) -> Policies in Marketing Channels (Marketing Channel Strategies)
A10: =VLOOKUP(273,'Course List'!A:B,2,0) -> Not Taken | B10: =IF(VLOOKUP(273,'Course List'!$A:$B,2,0)="Not Taken","",IF(VLOOKUP(273,'Course List'!$A:$C,3,0)=0,"Unknown",VLOOKUP(273,'Course List'!$A:$C,3,0))) ->  | C10: =VLOOKUP(273,'Course List'!A:D,4,0) -> MKTG | D10: =VLOOKUP(273,'Course List'!A:E,5,0) -> 452 | E10: =VLOOKUP(273,'Course List'!A:F,6,0) -> Consumer Insight Tools
A11: =VLOOKUP(166,'Course List'!A:B,2,0) -> Not Taken | B11: =IF(VLOOKUP(166,'Course List'!$A:$B,2,0)="Not Taken","",IF(VLOOKUP(166,'Course List'!$A:$C,3,0)=0,"Unknown",VLOOKUP(166,'Course List'!$A:$C,3,0))) ->  | C11: =VLOOKUP(166,'Course List'!A:D,4,0) -> MKTG | D11: =VLOOKUP(166,'Course List'!A:E,5,0) -> 453 | E11: =VLOOKUP(166,'Course List'!A:F,6,0) -> Business Marketing
A12: =VLOOKUP(167,'Course List'!A:B,2,0) -> Not Taken | B12: =IF(VLOOKUP(167,'Course List'!$A:$B,2,0)="Not Taken","",IF(VLOOKUP(167,'Course List'!$A:$C,3,0)=0,"Unknown",VLOOKUP(167,'Course List'!$A:$C,3,0))) ->  | C12: =VLOOKUP(167,'Course List'!A:D,4,0) -> MKTG | D12: =VLOOKUP(167,'Course List'!A:E,5,0) -> 454 | E12: =VLOOKUP(167,'Course List'!A:F,6,0) -> Advertising Strategy
A13: =VLOOKUP(168,'Course List'!A:B,2,0) -> Not Taken | B13: =IF(VLOOKUP(168,'Course List'!$A:$B,2,0)="Not Taken","",IF(VLOOKUP(168,'Course List'!$A:$C,3,0)=0,"Unknown",VLOOKUP(168,'Course List'!$A:$C,3,0))) ->  | C13: =VLOOKUP(168,'Course List'!A:D,4,0) -> MKTG | D13: =VLOOKUP(168,'Course List'!A:E,5,0) -> 458 | E13: =VLOOKUP(168,'Course List'!A:F,6,0) -> Models of Consumer Behavior
A14: =VLOOKUP(169,'Course List'!A:B,2,0) -> Not Taken | B14: =IF(VLOOKUP(169,'Course List'!$A:$B,2,0)="Not Taken","",IF(VLOOKUP(169,'Course List'!$A:$C,3,0)=0,"Unknown",VLOOKUP(169,'Course List'!$A:$C,3,0))) ->  | C14: =VLOOKUP(169,'Course List'!A:D,4,0) -> MKTG | D14: =VLOOKUP(169,'Course List'!A:E,5,0) -> 459 | E14: =VLOOKUP(169,'Course List'!A:F,6,0) -> Services Marketing and Management
A15: =VLOOKUP(170,'Course List'!A:B,2,0) -> Not Taken | B15: =IF(VLOOKUP(170,'Course List'!$A:$B,2,0)="Not Taken","",IF(VLOOKUP(170,'Course List'!$A:$C,3,0)=0,"Unknown",VLOOKUP(170,'Course List'!$A:$C,3,0))) ->  | C15: =VLOOKUP(170,'Course List'!A:D,4,0) -> MKTG | D15: =VLOOKUP(170,'Course List'!A:E,5,0) -> 462 | E15: =VLOOKUP(170,'Course List'!A:F,6,0) -> Sales Promotion and Retailer Behavior
A16: =VLOOKUP(171,'Course List'!A:B,2,0) -> Not Taken | B16: =IF(VLOOKUP(171,'Course List'!$A:$B,2,0)="Not Taken","",IF(VLOOKUP(171,'Course List'!$A:$C,3,0)=0,"Unknown",VLOOKUP(171,'Course List'!$A:$C,3,0))) ->  | C16: =VLOOKUP(171,'Course List'!A:D,4,0) -> MKTG | D16: =VLOOKUP(171,'Course List'!A:E,5,0) -> 463 | E16: =VLOOKUP(171,'Course List'!A:F,6,0) -> Sales Force Management
A17: =VLOOKUP(173,'Course List'!A:B,2,0) -> Not Taken | B17: =IF(VLOOKUP(173,'Course List'!$A:$B,2,0)="Not Taken","",IF(VLOOKUP(173,'Course List'!$A:$C,3,0)=0,"Unknown",VLOOKUP(173,'Course List'!$A:$C,3,0))) ->  | C17: =VLOOKUP(173,'Course List'!A:D,4,0) -> MKTG | D17: =VLOOKUP(173,'Course List'!A:E,5,0) -> 465 | E17: =VLOOKUP(173,'Course List'!A:F,6,0) -> Introduction of New Products & Services
A18: =VLOOKUP(174,'Course List'!A:B,2,0) -> Not Taken | B18: =IF(VLOOKUP(174,'Course List'!$A:$B,2,0)="Not Taken","",IF(VLOOKUP(174,'Course List'!$A:$C,3,0)=0,"Unknown",VLOOKUP(174,'Course List'!$A:$C,3,0))) ->  | C18: =VLOOKUP(174,'Course List'!A:D,4,0) -> MKTG | D18: =VLOOKUP(174,'Course List'!A:E,5,0) -> 466 | E18: =VLOOKUP(174,'Course List'!A:F,6,0) -> Marketing Strategy
A19: =VLOOKUP(175,'Course List'!A:B,2,0) -> Not Taken | B19: =IF(VLOOKUP(175,'Course List'!$A:$B,2,0)="Not Taken","",IF(VLOOKUP(175,'Course List'!$A:$C,3,0)=0,"Unknown",VLOOKUP(175,'Course List'!$A:$C,3,0))) ->  | C19: =VLOOKUP(175,'Course List'!A:D,4,0) -> MKTG | D19: =VLOOKUP(175,'Course List'!A:E,5,0) -> 468 | E19: =VLOOKUP(175,'Course List'!A:F,6,0) -> Technology Marketing
A20: =VLOOKUP(176,'Course List'!A:B,2,0) -> Not Taken | B20: =IF(VLOOKUP(176,'Course List'!$A:$B,2,0)="Not Taken","",IF(VLOOKUP(176,'Course List'!$A:$C,3,0)=0,"Unknown",VLOOKUP(176,'Course List'!$A:$C,3,0))) ->  | C20: =VLOOKUP(176,'Course List'!A:D,4,0) -> MKTG | D20: =VLOOKUP(176,'Course List'!A:E,5,0) -> 499 | E20: =VLOOKUP(176,'Course List'!A:F,6,0) -> Independent Study
A21: =VLOOKUP(178,'Course List'!A:B,2,0) -> Not Taken | B21: =IF(VLOOKUP(178,'Course List'!$A:$B,2,0)="Not Taken","",IF(VLOOKUP(178,'Course List'!$A:$C,3,0)=0,"Unknown",VLOOKUP(178,'Course List'!$A:$C,3,0))) ->  | C21: =VLOOKUP(178,'Course List'!A:D,4,0) -> MKTG | D21: =VLOOKUP(178,'Course List'!A:E,5,0) -> 913 | E21: =VLOOKUP(178,'Course List'!A:F,6,0) -> Internet Marketing
A22: =VLOOKUP(179,'Course List'!A:B,2,0) -> Not Taken | B22: =IF(VLOOKUP(179,'Course List'!$A:$B,2,0)="Not Taken","",IF(VLOOKUP(179,'Course List'!$A:$C,3,0)=0,"Unknown",VLOOKUP(179,'Course List'!$A:$C,3,0))) ->  | C22: =VLOOKUP(179,'Course List'!A:D,4,0) -> MKTG | D22: =VLOOKUP(179,'Course List'!A:E,5,0) -> 922 | E22: =VLOOKUP(179,'Course List'!A:F,6,0) -> Advanced Topics in Marketing
A23: =VLOOKUP(294,'Course List'!A:B,2,0) -> Not Taken | B23: =IF(VLOOKUP(294,'Course List'!$A:$B,2,0)="Not Taken","",IF(VLOOKUP(294,'Course List'!$A:$C,3,0)=0,"Unknown",VLOOKUP(294,'Course List'!$A:$C,3,0))) ->  | C23: =VLOOKUP(294,'Course List'!A:D,4,0) -> MKTG | D23: =VLOOKUP(294,'Course List'!A:E,5,0) -> 951 | E23: =VLOOKUP(294,'Course List'!A:F,6,0) -> Sports Marketing
A24: =VLOOKUP(225,'Course List'!A:B,2,0) -> Not Taken | B24: =IF(VLOOKUP(225,'Course List'!$A:$B,2,0)="Not Taken","",IF(VLOOKUP(225,'Course List'!$A:$C,3,0)=0,"Unknown",VLOOKUP(225,'Course List'!$A:$C,3,0))) ->  | C24: =VLOOKUP(225,'Course List'!A:D,4,0) -> MKTG | D24: =VLOOKUP(225,'Course List'!A:E,5,0) -> 952 | E24: =VLOOKUP(225,'Course List'!A:F,6,0) -> Strategic Data-Driven Marketing
A25: =VLOOKUP(22,'Course List'!A:B,2,0) -> Not Taken | B25: =IF(VLOOKUP(22,'Course List'!$A:$B,2,0)="Not Taken","",IF(VLOOKUP(22,'Course List'!$A:$C,3,0)=0,"Unknown",VLOOKUP(22,'Course List'!$A:$C,3,0))) ->  | C25: =VLOOKUP(22,'Course List'!A:D,4,0) -> HEMA | D25: =VLOOKUP(22,'Course List'!A:E,5,0) -> 914 | E25: =VLOOKUP(22,'Course List'!A:F,6,0) -> Biomedical Marketing
A26: =VLOOKUP(107,'Course List'!A:B,2,0) -> Not Taken | B26: =IF(VLOOKUP(107,'Course List'!$A:$B,2,0)="Not Taken","",IF(VLOOKUP(107,'Course List'!$A:$C,3,0)=0,"Unknown",VLOOKUP(107,'Course List'!$A:$C,3,0))) ->  | C26: =VLOOKUP(107,'Course List'!A:D,4,0) -> INTL | D26: =VLOOKUP(107,'Course List'!A:E,5,0) -> 467 | E26: =VLOOKUP(107,'Course List'!A:F,6,0) -> International Marketing
A27: =VLOOKUP(128,'Course List'!A:B,2,0) -> Not Taken | B27: =IF(VLOOKUP(128,'Course List'!$A:$B,2,0)="Not Taken","",IF(VLOOKUP(128,'Course List'!$A:$C,3,0)=0,"Unknown",VLOOKUP(128,'Course List'!$A:$C,3,0))) ->  | C27: =VLOOKUP(128,'Course List'!A:D,4,0) -> MEDM | D27: =VLOOKUP(128,'Course List'!A:E,5,0) -> 431 | E27: =VLOOKUP(128,'Course List'!A:F,6,0) -> Media and Integrated Marketing
A28: =VLOOKUP(250,'Course List'!A:B,2,0) -> Not Taken | B28: =IF(VLOOKUP(250,'Course List'!$A:$B,2,0)="Not Taken","",IF(VLOOKUP(250,'Course List'!$A:$C,3,0)=0,"Unknown",VLOOKUP(250,'Course List'!$A:$C,3,0))) ->  | C28: =VLOOKUP(250,'Course List'!A:D,4,0) -> TECH | D28: =VLOOKUP(250,'Course List'!A:E,5,0) -> 917 | E28: =VLOOKUP(250,'Course List'!A:F,6,0) -> Analytical Marketing and Customer Relationship Management
A29: Not Taken | B29: =IF(VLOOKUP(13,'Course List'!$A:$B,2,0)="Not Taken","",IF(VLOOKUP(13,'Course List'!$A:$C,3,0)=0,"Unknown",VLOOKUP(13,'Course List'!$A:$C,3,0))) ->  | C29: =VLOOKUP(13,'Course List'!A:D,4,0) -> ACCT | D29: =VLOOKUP(13,'Course List'!A:E,5,0) -> 454 | E29: =VLOOKUP(13,'Course List'!A:F,6,0) -> Management Lab (M-Lab)
A30: =VLOOKUP(172,'Course List'!A:B,2,0) -> Not Taken | B30: =IF(VLOOKUP(172,'Course List'!$A:$B,2,0)="Not Taken","",IF(VLOOKUP(172,'Course List'!$A:$C,3,0)=0,"Unknown",VLOOKUP(172,'Course List'!$A:$C,3,0))) ->  | C30: =VLOOKUP(172,'Course List'!A:D,4,0) -> MKTG | D30: =VLOOKUP(172,'Course List'!A:E,5,0) -> 464-A | E30: =VLOOKUP(172,'Course List'!A:F,6,0) -> The Management of Product Development

Sheet MKTG MGMT
A1: Marketing Management
A3: =Formulae!$A$122 -> NOT MAJORING IN THIS FIELD
A5: Status | B5: Term | C5: Department | D5: Course # | E5: Course Name
A7: =VLOOKUP(163,'Course List'!A:B,2,0) -> Not Taken | B7: =IF(VLOOKUP(163,'Course List'!$A:$B,2,0)="Not Taken","",IF(VLOOKUP(163,'Course List'!$A:$C,3,0)=0,"Unknown",VLOOKUP(163,'Course List'!$A:$C,3,0))) ->  | C7: =VLOOKUP(163,'Course List'!A:D,4,0) -> MKTG | D7: =VLOOKUP(163,'Course List'!A:E,5,0) -> 430 | E7: =VLOOKUP(163,'Course List'!A:F,6,0) -> Marketing Management
A8: =VLOOKUP(164,'Course List'!A:B,2,0) -> Not Taken | B8: =IF(VLOOKUP(164,'Course List'!$A:$B,2,0)="Not Taken","",IF(VLOOKUP(164,'Course List'!$A:$C,3,0)=0,"Unknown",VLOOKUP(164,'Course List'!$A:$C,3,0))) ->  | C8: =VLOOKUP(164,'Course List'!A:D,4,0) -> MKTG | D8: =VLOOKUP(164,'Course List'!A:E,5,0) -> 450 | E8: =VLOOKUP(164,'Course List'!A:F,6,0) -> Research Methods in Marketing
A9: =VLOOKUP(179,'Course List'!A:B,2,0) -> Not Taken | B9: =IF(VLOOKUP(179,'Course List'!$A:$B,2,0)="Not Taken","",IF(VLOOKUP(179,'Course List'!$A:$C,3,0)=0,"Unknown",VLOOKUP(179,'Course List'!$A:$C,3,0))) ->  | C9: =VLOOKUP(179,'Course List'!A:D,4,0) -> MKTG | D9: =VLOOKUP(179,'Course List'!A:E,5,0) -> 922 | E9: =VLOOKUP(179,'Course List'!A:F,6,0) -> Advanced Topics in Marketing
A11: =VLOOKUP(165,'Course List'!A:B,2,0) -> Not Taken | B11: =IF(VLOOKUP(165,'Course List'!$A:$B,2,0)="Not Taken","",IF(VLOOKUP(165,'Course List'!$A:$C,3,0)=0,"Unknown",VLOOKUP(165,'Course List'!$A:$C,3,0))) ->  | C11: =VLOOKUP(165,'Course List'!A:D,4,0) -> MKTG | D11: =VLOOKUP(165,'Course List'!A:E,5,0) -> 451 | E11: =VLOOKUP(165,'Course List'!A:F,6,0) -> Policies in Marketing Channels (Marketing Channel Strategies)
A12: =VLOOKUP(273,'Course List'!A:B,2,0) -> Not Taken | B12: =IF(VLOOKUP(273,'Course List'!$A:$B,2,0)="Not Taken","",IF(VLOOKUP(273,'Course List'!$A:$C,3,0)=0,"Unknown",VLOOKUP(273,'Course List'!$A:$C,3,0))) ->  | C12: =VLOOKUP(273,'Course List'!A:D,4,0) -> MKTG | D12: =VLOOKUP(273,'Course List'!A:E,5,0) -> 452 | E12: =VLOOKUP(273,'Course List'!A:F,6,0) -> Consumer Insight Tools
A13: =VLOOKUP(166,'Course List'!A:B,2,0) -> Not Taken | B13: =IF(VLOOKUP(166,'Course List'!$A:$B,2,0)="Not Taken","",IF(VLOOKUP(166,'Course List'!$A:$C,3,0)=0,"Unknown",VLOOKUP(166,'Course List'!$A:$C,3,0))) ->  | C13: =VLOOKUP(166,'Course List'!A:D,4,0) -> MKTG | D13: =VLOOKUP(166,'Course List'!A:E,5,0) -> 453 | E13: =VLOOKUP(166,'Course List'!A:F,6,0) -> Business Marketing
A14: =VLOOKUP(167,'Course List'!A:B,2,0) -> Not Taken | B14: =IF(VLOOKUP(167,'Course List'!$A:$B,2,0)="Not Taken","",IF(VLOOKUP(167,'Course List'!$A:$C,3,0)=0,"Unknown",VLOOKUP(167,'Course List'!$A:$C,3,0))) ->  | C14: =VLOOKUP(167,'Course List'!A:D,4,0) -> MKTG | D14: =VLOOKUP(167,'Course List'!A:E,5,0) -> 454 | E14: =VLOOKUP(167,'Course List'!A:F,6,0) -> Advertising Strategy
A15: =VLOOKUP(168,'Course List'!A:B,2,0) -> Not Taken | B15: =IF(VLOOKUP(168,'Course List'!$A:$B,2,0)="Not Taken","",IF(VLOOKUP(168,'Course List'!$A:$C,3,0)=0,"Unknown",VLOOKUP(168,'Course List'!$A:$C,3,0))) ->  | C15: =VLOOKUP(168,'Course List'!A:D,4,0) -> MKTG | D15: =VLOOKUP(168,'Course List'!A:E,5,0) -> 458 | E15: =VLOOKUP(168,'Course List'!A:F,6,0) -> Models of Consumer Behavior
A16: =VLOOKUP(169,'Course List'!A:B,2,0) -> Not Taken | B16: =IF(VLOOKUP(169,'Course List'!$A:$B,2,0)="Not Taken","",IF(VLOOKUP(169,'Course List'!$A:$C,3,0)=0,"Unknown",VLOOKUP(169,'Course List'!$A:$C,3,0))) ->  | C16: =VLOOKUP(169,'Course List'!A:D,4,0) -> MKTG | D16: =VLOOKUP(169,'Course List'!A:E,5,0) -> 459 | E16: =VLOOKUP(169,'Course List'!A:F,6,0) -> Services Marketing and Management
A17: =VLOOKUP(170,'Course List'!A:B,2,0) -> Not Taken | B17: =IF(VLOOKUP(170,'Course List'!$A:$B,2,0)="Not Taken","",IF(VLOOKUP(170,'Course List'!$A:$C,3,0)=0,"Unknown",VLOOKUP(170,'Course List'!$A:$C,3,0))) ->  | C17: =VLOOKUP(170,'Course List'!A:D,4,0) -> MKTG | D17: =VLOOKUP(170,'Course List'!A:E,5,0) -> 462 | E17: =VLOOKUP(170,'Course List'!A:F,6,0) -> Sales Promotion and Retailer Behavior
A18: =VLOOKUP(171,'Course List'!A:B,2,0) -> Not Taken | B18: =IF(VLOOKUP(171,'Course List'!$A:$B,2,0)="Not Taken","",IF(VLOOKUP(171,'Course List'!$A:$C,3,0)=0,"Unknown",VLOOKUP(171,'Course List'!$A:$C,3,0))) ->  | C18: =VLOOKUP(171,'Course List'!A:D,4,0) -> MKTG | D18: =VLOOKUP(171,'Course List'!A:E,5,0) -> 463 | E18: =VLOOKUP(171,'Course List'!A:F,6,0) -> Sales Force Management
A19: =VLOOKUP(173,'Course List'!A:B,2,0) -> Not Taken | B19: =IF(VLOOKUP(173,'Course List'!$A:$B,2,0)="Not Taken","",IF(VLOOKUP(173,'Course List'!$A:$C,3,0)=0,"Unknown",VLOOKUP(173,'Course List'!$A:$C,3,0))) ->  | C19: =VLOOKUP(173,'Course List'!A:D,4,0) -> MKTG | D19: =VLOOKUP(173,'Course List'!A:E,5,0) -> 465 | E19: =VLOOKUP(173,'Course List'!A:F,6,0) -> Introduction of New Products & Services
A20: =VLOOKUP(174,'Course List'!A:B,2,0) -> Not Taken | B20: =IF(VLOOKUP(174,'Course List'!$A:$B,2,0)="Not Taken","",IF(VLOOKUP(174,'Course List'!$A:$C,3,0)=0,"Unknown",VLOOKUP(174,'Course List'!$A:$C,3,0))) ->  | C20: =VLOOKUP(174,'Course List'!A:D,4,0) -> MKTG | D20: =VLOOKUP(174,'Course List'!A:E,5,0) -> 466 | E20: =VLOOKUP(174,'Course List'!A:F,6,0) -> Marketing Strategy
A21: =VLOOKUP(175,'Course List'!A:B,2,0) -> Not Taken | B21: =IF(VLOOKUP(175,'Course List'!$A:$B,2,0)="Not Taken","",IF(VLOOKUP(175,'Course List'!$A:$C,3,0)=0,"Unknown",VLOOKUP(175,'Course List'!$A:$C,3,0))) ->  | C21: =VLOOKUP(175,'Course List'!A:D,4,0) -> MKTG | D21: =VLOOKUP(175,'Course List'!A:E,5,0) -> 468 | E21: =VLOOKUP(175,'Course List'!A:F,6,0) -> Technology Marketing
A22: =VLOOKUP(176,'Course List'!A:B,2,0) -> Not Taken | B22: =IF(VLOOKUP(176,'Course List'!$A:$B,2,0)="Not Taken","",IF(VLOOKUP(176,'Course List'!$A:$C,3,0)=0,"Unknown",VLOOKUP(176,'Course List'!$A:$C,3,0))) ->  | C22: =VLOOKUP(176,'Course List'!A:D,4,0) -> MKTG | D22: =VLOOKUP(176,'Course List'!A:E,5,0) -> 499 | E22: =VLOOKUP(176,'Course List'!A:F,6,0) -> Independent Study
A23: =VLOOKUP(178,'Course List'!A:B,2,0) -> Not Taken | B23: =IF(VLOOKUP(178,'Course List'!$A:$B,2,0)="Not Taken","",IF(VLOOKUP(178,'Course List'!$A:$C,3,0)=0,"Unknown",VLOOKUP(178,'Course List'!$A:$C,3,0))) ->  | C23: =VLOOKUP(178,'Course List'!A:D,4,0) -> MKTG | D23: =VLOOKUP(178,'Course List'!A:E,5,0) -> 913 | E23: =VLOOKUP(178,'Course List'!A:F,6,0) -> Internet Marketing
A24: =VLOOKUP(294,'Course List'!A:B,2,0) -> Not Taken | B24: =IF(VLOOKUP(294,'Course List'!$A:$B,2,0)="Not Taken","",IF(VLOOKUP(294,'Course List'!$A:$C,3,0)=0,"Unknown",VLOOKUP(294,'Course List'!$A:$C,3,0))) ->  | C24: =VLOOKUP(294,'Course List'!A:D,4,0) -> MKTG | D24: =VLOOKUP(294,'Course List'!A:E,5,0) -> 951 | E24: =VLOOKUP(294,'Course List'!A:F,6,0) -> Sports Marketing
A25: =VLOOKUP(22,'Course List'!A:B,2,0) -> Not Taken | B25: =IF(VLOOKUP(22,'Course List'!$A:$B,2,0)="Not Taken","",IF(VLOOKUP(22,'Course List'!$A:$C,3,0)=0,"Unknown",VLOOKUP(22,'Course List'!$A:$C,3,0))) ->  | C25: =VLOOKUP(22,'Course List'!A:D,4,0) -> HEMA | D25: =VLOOKUP(22,'Course List'!A:E,5,0) -> 914 | E25: =VLOOKUP(22,'Course List'!A:F,6,0) -> Biomedical Marketing
A26: =VLOOKUP(107,'Course List'!A:B,2,0) -> Not Taken | B26: =IF(VLOOKUP(107,'Course List'!$A:$B,2,0)="Not Taken","",IF(VLOOKUP(107,'Course List'!$A:$C,3,0)=0,"Unknown",VLOOKUP(107,'Course List'!$A:$C,3,0))) ->  | C26: =VLOOKUP(107,'Course List'!A:D,4,0) -> INTL | D26: =VLOOKUP(107,'Course List'!A:E,5,0) -> 467 | E26: =VLOOKUP(107,'Course List'!A:F,6,0) -> International Marketing
A27: =VLOOKUP(128,'Course List'!A:B,2,0) -> Not Taken | B27: =IF(VLOOKUP(128,'Course List'!$A:$B,2,0)="Not Taken","",IF(VLOOKUP(128,'Course List'!$A:$C,3,0)=0,"Unknown",VLOOKUP(128,'Course List'!$A:$C,3,0))) ->  | C27: =VLOOKUP(128,'Course List'!A:D,4,0) -> MEDM | D27: =VLOOKUP(128,'Course List'!A:E,5,0) -> 431 | E27: =VLOOKUP(128,'Course List'!A:F,6,0) -> Media and Integrated Marketing
A28: =VLOOKUP(250,'Course List'!A:B,2,0) -> Not Taken | B28: =IF(VLOOKUP(250,'Course List'!$A:$B,2,0)="Not Taken","",IF(VLOOKUP(250,'Course List'!$A:$C,3,0)=0,"Unknown",VLOOKUP(250,'Course List'!$A:$C,3,0))) ->  | C28: =VLOOKUP(250,'Course List'!A:D,4,0) -> TECH | D28: =VLOOKUP(250,'Course List'!A:E,5,0) -> 917 | E28: =VLOOKUP(250,'Course List'!A:F,6,0) -> Analytical Marketing and Customer Relationship Management
A29: Not Taken | B29: =IF(VLOOKUP(13,'Course List'!$A:$B,2,0)="Not Taken","",IF(VLOOKUP(13,'Course List'!$A:$C,3,0)=0,"Unknown",VLOOKUP(13,'Course List'!$A:$C,3,0))) ->  | C29: =VLOOKUP(13,'Course List'!A:D,4,0) -> ACCT | D29: =VLOOKUP(13,'Course List'!A:E,5,0) -> 454 | E29: =VLOOKUP(13,'Course List'!A:F,6,0) -> Management Lab (M-Lab)
A30: =VLOOKUP(172,'Course List'!A:B,2,0) -> Not Taken | B30: =IF(VLOOKUP(172,'Course List'!$A:$B,2,0)="Not Taken","",IF(VLOOKUP(172,'Course List'!$A:$C,3,0)=0,"Unknown",VLOOKUP(172,'Course List'!$A:$C,3,0))) ->  | C30: =VLOOKUP(172,'Course List'!A:D,4,0) -> MKTG | D30: =VLOOKUP(172,'Course List'!A:E,5,0) -> 464-A | E30: =VLOOKUP(172,'Course List'!A:F,6,0) -> The Management of Product Development

Sheet MKTG MGMT 1Y
A1: Marketing Management
A3: =Formulae!A132 -> NOT MAJORING IN THIS FIELD
A5: Status | B5: Term | C5: Department | D5: Course # | E5: Course Name
A7: =VLOOKUP(164,'Course List'!A:B,2,0) -> Not Taken | B7: =IF(VLOOKUP(164,'Course List'!$A:$B,2,0)="Not Taken","",IF(VLOOKUP(164,'Course List'!$A:$C,3,0)=0,"Unknown",VLOOKUP(164,'Course List'!$A:$C,3,0))) ->  | C7: =VLOOKUP(164,'Course List'!A:D,4,0) -> MKTG | D7: =VLOOKUP(164,'Course List'!A:E,5,0) -> 450 | E7: =VLOOKUP(164,'Course List'!A:F,6,0) -> Research Methods in Marketing
A8: =VLOOKUP(179,'Course List'!A:B,2,0) -> Not Taken | B8: =IF(VLOOKUP(179,'Course List'!$A:$B,2,0)="Not Taken","",IF(VLOOKUP(179,'Course List'!$A:$C,3,0)=0,"Unknown",VLOOKUP(179,'Course List'!$A:$C,3,0))) ->  | C8: =VLOOKUP(179,'Course List'!A:D,4,0) -> MKTG | D8: =VLOOKUP(179,'Course List'!A:E,5,0) -> 922 | E8: =VLOOKUP(179,'Course List'!A:F,6,0) -> Advanced Topics in Marketing
A10: =VLOOKUP(165,'Course List'!A:B,2,0) -> Not Taken | B10: =IF(VLOOKUP(165,'Course List'!$A:$B,2,0)="Not Taken","",IF(VLOOKUP(165,'Course List'!$A:$C,3,0)=0,"Unknown",VLOOKUP(165,'Course List'!$A:$C,3,0))) ->  | C10: =VLOOKUP(165,'Course List'!A:D,4,0) -> MKTG | D10: =VLOOKUP(165,'Course List'!A:E,5,0) -> 451 | E10: =VLOOKUP(165,'Course List'!A:F,6,0) -> Policies in Marketing Channels (Marketing Channel Strategies)
A11: =VLOOKUP(273,'Course List'!A:B,2,0) -> Not Taken | B11: =IF(VLOOKUP(273,'Course List'!$A:$B,2,0)="Not Taken","",IF(VLOOKUP(273,'Course List'!$A:$C,3,0)=0,"Unknown",VLOOKUP(273,'Course List'!$A:$C,3,0))) ->  | C11: =VLOOKUP(273,'Course List'!A:D,4,0) -> MKTG | D11: =VLOOKUP(273,'Course List'!A:E,5,0) -> 452 | E11: =VLOOKUP(273,'Course List'!A:F,6,0) -> Consumer Insight Tools
A12: =VLOOKUP(166,'Course List'!A:B,2,0) -> Not Taken | B12: =IF(VLOOKUP(166,'Course List'!$A:$B,2,0)="Not Taken","",IF(VLOOKUP(166,'Course List'!$A:$C,3,0)=0,"Unknown",VLOOKUP(166,'Course List'!$A:$C,3,0))) ->  | C12: =VLOOKUP(166,'Course List'!A:D,4,0) -> MKTG | D12: =VLOOKUP(166,'Course List'!A:E,5,0) -> 453 | E12: =VLOOKUP(166,'Course List'!A:F,6,0) -> Business Marketing
A13: =VLOOKUP(167,'Course List'!A:B,2,0) -> Not Taken | B13: =IF(VLOOKUP(167,'Course List'!$A:$B,2,0)="Not Taken","",IF(VLOOKUP(167,'Course List'!$A:$C,3,0)=0,"Unknown",VLOOKUP(167,'Course List'!$A:$C,3,0))) ->  | C13: =VLOOKUP(167,'Course List'!A:D,4,0) -> MKTG | D13: =VLOOKUP(167,'Course List'!A:E,5,0) -> 454 | E13: =VLOOKUP(167,'Course List'!A:F,6,0) -> Advertising Strategy
A14: =VLOOKUP(168,'Course List'!A:B,2,0) -> Not Taken | B14: =IF(VLOOKUP(168,'Course List'!$A:$B,2,0)="Not Taken","",IF(VLOOKUP(168,'Course List'!$A:$C,3,0)=0,"Unknown",VLOOKUP(168,'Course List'!$A:$C,3,0))) ->  | C14: =VLOOKUP(168,'Course List'!A:D,4,0) -> MKTG | D14: =VLOOKUP(168,'Course List'!A:E,5,0) -> 458 | E14: =VLOOKUP(168,'Course List'!A:F,6,0) -> Models of Consumer Behavior
A15: =VLOOKUP(169,'Course List'!A:B,2,0) -> Not Taken | B15: =IF(VLOOKUP(169,'Course List'!$A:$B,2,0)="Not Taken","",IF(VLOOKUP(169,'Course List'!$A:$C,3,0)=0,"Unknown",VLOOKUP(169,'Course List'!$A:$C,3,0))) ->  | C15: =VLOOKUP(169,'Course List'!A:D,4,0) -> MKTG | D15: =VLOOKUP(169,'Course List'!A:E,5,0) -> 459 | E15: =VLOOKUP(169,'Course List'!A:F,6,0) -> Services Marketing and Management
A16: =VLOOKUP(170,'Course List'!A:B,2,0) -> Not Taken | B16: =IF(VLOOKUP(170,'Course List'!$A:$B,2,0)="Not Taken","",IF(VLOOKUP(170,'Course List'!$A:$C,3,0)=0,"Unknown",VLOOKUP(170,'Course List'!$A:$C,3,0))) ->  | C16: =VLOOKUP(170,'Course List'!A:D,4,0) -> MKTG | D16: =VLOOKUP(170,'Course List'!A:E,5,0) -> 462 | E16: =VLOOKUP(170,'Course List'!A:F,6,0) -> Sales Promotion and Retailer Behavior
A17: =VLOOKUP(171,'Course List'!A:B,2,0) -> Not Taken | B17: =IF(VLOOKUP(171,'Course List'!$A:$B,2,0)="Not Taken","",IF(VLOOKUP(171,'Course List'!$A:$C,3,0)=0,"Unknown",VLOOKUP(171,'Course List'!$A:$C,3,0))) ->  | C17: =VLOOKUP(171,'Course List'!A:D,4,0) -> MKTG | D17: =VLOOKUP(171,'Course List'!A:E,5,0) -> 463 | E17: =VLOOKUP(171,'Course List'!A:F,6,0) -> Sales Force Management
A18: =VLOOKUP(173,'Course List'!A:B,2,0) -> Not Taken | B18: =IF(VLOOKUP(173,'Course List'!$A:$B,2,0)="Not Taken","",IF(VLOOKUP(173,'Course List'!$A:$C,3,0)=0,"Unknown",VLOOKUP(173,'Course List'!$A:$C,3,0))) ->  | C18: =VLOOKUP(173,'Course List'!A:D,4,0) -> MKTG | D18: =VLOOKUP(173,'Course List'!A:E,5,0) -> 465 | E18: =VLOOKUP(173,'Course List'!A:F,6,0) -> Introduction of New Products & Services
A19: =VLOOKUP(174,'Course List'!A:B,2,0) -> Not Taken | B19: =IF(VLOOKUP(174,'Course List'!$A:$B,2,0)="Not Taken","",IF(VLOOKUP(174,'Course List'!$A:$C,3,0)=0,"Unknown",VLOOKUP(174,'Course List'!$A:$C,3,0))) ->  | C19: =VLOOKUP(174,'Course List'!A:D,4,0) -> MKTG | D19: =VLOOKUP(174,'Course List'!A:E,5,0) -> 466 | E19: =VLOOKUP(174,'Course List'!A:F,6,0) -> Marketing Strategy
A20: =VLOOKUP(175,'Course List'!A:B,2,0) -> Not Taken | B20: =IF(VLOOKUP(175,'Course List'!$A:$B,2,0)="Not Taken","",IF(VLOOKUP(175,'Course List'!$A:$C,3,0)=0,"Unknown",VLOOKUP(175,'Course List'!$A:$C,3,0))) ->  | C20: =VLOOKUP(175,'Course List'!A:D,4,0) -> MKTG | D20: =VLOOKUP(175,'Course List'!A:E,5,0) -> 468 | E20: =VLOOKUP(175,'Course List'!A:F,6,0) -> Technology Marketing
A21: =VLOOKUP(176,'Course List'!A:B,2,0) -> Not Taken | B21: =IF(VLOOKUP(176,'Course List'!$A:$B,2,0)="Not Taken","",IF(VLOOKUP(176,'Course List'!$A:$C,3,0)=0,"Unknown",VLOOKUP(176,'Course List'!$A:$C,3,0))) ->  | C21: =VLOOKUP(176,'Course List'!A:D,4,0) -> MKTG | D21: =VLOOKUP(176,'Course List'!A:E,5,0) -> 499 | E21: =VLOOKUP(176,'Course List'!A:F,6,0) -> Independent Study
A22: =VLOOKUP(178,'Course List'!A:B,2,0) -> Not Taken | B22: =IF(VLOOKUP(178,'Course List'!$A:$B,2,0)="Not Taken","",IF(VLOOKUP(178,'Course List'!$A:$C,3,0)=0,"Unknown",VLOOKUP(178,'Course List'!$A:$C,3,0))) ->  | C22: =VLOOKUP(178,'Course List'!A:D,4,0) -> MKTG | D22: =VLOOKUP(178,'Course List'!A:E,5,0) -> 913 | E22: =VLOOKUP(178,'Course List'!A:F,6,0) -> Internet Marketing
A23: =VLOOKUP(294,'Course List'!A:B,2,0) -> Not Taken | B23: =IF(VLOOKUP(294,'Course List'!$A:$B,2,0)="Not Taken","",IF(VLOOKUP(294,'Course List'!$A:$C,3,0)=0,"Unknown",VLOOKUP(294,'Course List'!$A:$C,3,0))) ->  | C23: =VLOOKUP(294,'Course List'!A:D,4,0) -> MKTG | D23: =VLOOKUP(294,'Course List'!A:E,5,0) -> 951 | E23: =VLOOKUP(294,'Course List'!A:F,6,0) -> Sports Marketing
A24: =VLOOKUP(22,'Course List'!A:B,2,0) -> Not Taken | B24: =IF(VLOOKUP(22,'Course List'!$A:$B,2,0)="Not Taken","",IF(VLOOKUP(22,'Course List'!$A:$C,3,0)=0,"Unknown",VLOOKUP(22,'Course List'!$A:$C,3,0))) ->  | C24: =VLOOKUP(22,'Course List'!A:D,4,0) -> HEMA | D24: =VLOOKUP(22,'Course List'!A:E,5,0) -> 914 | E24: =VLOOKUP(22,'Course List'!A:F,6,0) -> Biomedical Marketing
A25: =VLOOKUP(107,'Course List'!A:B,2,0) -> Not Taken | B25: =IF(VLOOKUP(107,'Course List'!$A:$B,2,0)="Not Taken","",IF(VLOOKUP(107,'Course List'!$A:$C,3,0)=0,"Unknown",VLOOKUP(107,'Course List'!$A:$C,3,0))) ->  | C25: =VLOOKUP(107,'Course List'!A:D,4,0) -> INTL | D25: =VLOOKUP(107,'Course List'!A:E,5,0) -> 467 | E25: =VLOOKUP(107,'Course List'!A:F,6,0) -> International Marketing
A26: =VLOOKUP(128,'Course List'!A:B,2,0) -> Not Taken | B26: =IF(VLOOKUP(128,'Course List'!$A:$B,2,0)="Not Taken","",IF(VLOOKUP(128,'Course List'!$A:$C,3,0)=0,"Unknown",VLOOKUP(128,'Course List'!$A:$C,3,0))) ->  | C26: =VLOOKUP(128,'Course List'!A:D,4,0) -> MEDM | D26: =VLOOKUP(128,'Course List'!A:E,5,0) -> 431 | E26: =VLOOKUP(128,'Course List'!A:F,6,0) -> Media and Integrated Marketing
A27: =VLOOKUP(250,'Course List'!A:B,2,0) -> Not Taken | B27: =IF(VLOOKUP(250,'Course List'!$A:$B,2,0)="Not Taken","",IF(VLOOKUP(250,'Course List'!$A:$C,3,0)=0,"Unknown",VLOOKUP(250,'Course List'!$A:$C,3,0))) ->  | C27: =VLOOKUP(250,'Course List'!A:D,4,0) -> TECH | D27: =VLOOKUP(250,'Course List'!A:E,5,0) -> 917 | E27: =VLOOKUP(250,'Course List'!A:F,6,0) -> Analytical Marketing and Customer Relationship Management
A28: Not Taken | B28: =IF(VLOOKUP(13,'Course List'!$A:$B,2,0)="Not Taken","",IF(VLOOKUP(13,'Course List'!$A:$C,3,0)=0,"Unknown",VLOOKUP(13,'Course List'!$A:$C,3,0))) ->  | C28: =VLOOKUP(13,'Course List'!A:D,4,0) -> ACCT | D28: =VLOOKUP(13,'Course List'!A:E,5,0) -> 454 | E28: =VLOOKUP(13,'Course List'!A:F,6,0) -> Management Lab (M-Lab)
A29: =VLOOKUP(172,'Course List'!A:B,2,0) -> Not Taken | B29: =IF(VLOOKUP(172,'Course List'!$A:$B,2,0)="Not Taken","",IF(VLOOKUP(172,'Course List'!$A:$C,3,0)=0,"Unknown",VLOOKUP(172,'Course List'!$A:$C,3,0))) ->  | C29: =VLOOKUP(172,'Course List'!A:D,4,0) -> MKTG | D29: =VLOOKUP(172,'Course List'!A:E,5,0) -> 464-A | E29: =VLOOKUP(172,'Course List'!A:F,6,0) -> The Management of Product Development

Sheet Media MGMT
A1: Media Management
A3: =Formulae!A140 -> NOT MAJORING IN THIS FIELD
A5: Status | B5: Term | C5: Department | D5: Course # | E5: Course Name
A7: =VLOOKUP(128,'Course List'!A:B,2,0) -> Not Taken | B7: =IF(VLOOKUP(128,'Course List'!$A:$B,2,0)="Not Taken","",IF(VLOOKUP(128,'Course List'!$A:$C,3,0)=0,"Unknown",VLOOKUP(128,'Course List'!$A:$C,3,0))) ->  | C7: =VLOOKUP(128,'Course List'!A:D,4,0) -> MEDM | D7: =VLOOKUP(128,'Course List'!A:E,5,0) -> 431 | E7: =VLOOKUP(128,'Course List'!A:F,6,0) -> Media and Integrated Marketing
A8: =VLOOKUP(130,'Course List'!A:B,2,0) -> Not Taken | B8: =IF(VLOOKUP(130,'Course List'!$A:$B,2,0)="Not Taken","",IF(VLOOKUP(130,'Course List'!$A:$C,3,0)=0,"Unknown",VLOOKUP(130,'Course List'!$A:$C,3,0))) ->  | C8: =VLOOKUP(130,'Course List'!A:D,4,0) -> MEDM | D8: =VLOOKUP(130,'Course List'!A:E,5,0) -> 911 | E8: =VLOOKUP(130,'Course List'!A:F,6,0) -> Media Strategy and Implementation
A9: =VLOOKUP(131,'Course List'!A:B,2,0) -> Not Taken | B9: =IF(VLOOKUP(131,'Course List'!$A:$B,2,0)="Not Taken","",IF(VLOOKUP(131,'Course List'!$A:$C,3,0)=0,"Unknown",VLOOKUP(131,'Course List'!$A:$C,3,0))) ->  | C9: =VLOOKUP(131,'Course List'!A:D,4,0) -> MEDM | D9: =VLOOKUP(131,'Course List'!A:E,5,0) -> 912 | E9: =VLOOKUP(131,'Course List'!A:F,6,0) -> Understanding the Media and its Content
A10: Not Taken | B10: =IF(VLOOKUP(13,'Course List'!$A:$B,2,0)="Not Taken","",IF(VLOOKUP(13,'Course List'!$A:$C,3,0)=0,"Unknown",VLOOKUP(13,'Course List'!$A:$C,3,0))) ->  | C10: =VLOOKUP(13,'Course List'!A:D,4,0) -> ACCT | D10: =VLOOKUP(13,'Course List'!A:E,5,0) -> 454 | E10: =VLOOKUP(13,'Course List'!A:F,6,0) -> Management Lab (M-Lab)
A12: =VLOOKUP(129,'Course List'!A:B,2,0) -> Not Taken | B12: =IF(VLOOKUP(129,'Course List'!$A:$B,2,0)="Not Taken","",IF(VLOOKUP(129,'Course List'!$A:$C,3,0)=0,"Unknown",VLOOKUP(129,'Course List'!$A:$C,3,0))) ->  | C12: =VLOOKUP(129,'Course List'!A:D,4,0) -> MEDM | D12: =VLOOKUP(129,'Course List'!A:E,5,0) -> 499 | E12: =VLOOKUP(129,'Course List'!A:F,6,0) -> Independent Study
A45: =IF(AND(AND(A7="Enrolled",COUNTIF(A12:A12,"Complete")>=2),COUNTIF(A12:A12,"Enrolled")>=1),"MAJOR COMPLETED THIS QUARTER",IF(AND(AND(A7="Enrolled",COUNTIF(A12:A12,"Complete")>=1),COUNTIF(A12:A12,"Enrolled")>=2),"MAJOR COMPLETED THIS QUARTER",IF(AND(A7="Enrolled",COUNTIF(A12:A12,"Complete")>=3),"MAJOR COMPLETED THIS QUARTER",IF(A7="Complete","MAJOR IN PROGRESS",IF(A7="Enrolled","MAJOR IN PROGRESS",IF(A7="Considering","MAJOR IN PROGRESS","NOT MAJORING IN THIS FIELD")))))) -> NOT MAJORING IN THIS FIELD

Sheet OPNS
A1: Operations Management
A3: =Formulae!A142 -> NOT MAJORING IN THIS FIELD
A5: Status | B5: Term | C5: Department | D5: Course # | E5: Course Name
A7: =VLOOKUP(212,'Course List'!A:B,2,0) -> Not Taken | B7: =IF(VLOOKUP(212,'Course List'!$A:$B,2,0)="Not Taken","",IF(VLOOKUP(212,'Course List'!$A:$C,3,0)=0,"Unknown",VLOOKUP(212,'Course List'!$A:$C,3,0))) ->  | C7: =VLOOKUP(212,'Course List'!A:D,4,0) -> OPNS | D7: =VLOOKUP(212,'Course List'!A:E,5,0) -> 450 | E7: =VLOOKUP(212,'Course List'!A:F,6,0) -> Spreadsheet Modeling for Managerial Decisions
A8: =VLOOKUP(213,'Course List'!A:B,2,0) -> Not Taken | B8: =IF(VLOOKUP(213,'Course List'!$A:$B,2,0)="Not Taken","",IF(VLOOKUP(213,'Course List'!$A:$C,3,0)=0,"Unknown",VLOOKUP(213,'Course List'!$A:$C,3,0))) ->  | C8: =VLOOKUP(213,'Course List'!A:D,4,0) -> OPNS | D8: =VLOOKUP(213,'Course List'!A:E,5,0) -> 453 | E8: =VLOOKUP(213,'Course List'!A:F,6,0) -> Inventory Management
A9: =VLOOKUP(214,'Course List'!A:B,2,0) -> Not Taken | B9: =IF(VLOOKUP(214,'Course List'!$A:$B,2,0)="Not Taken","",IF(VLOOKUP(214,'Course List'!$A:$C,3,0)=0,"Unknown",VLOOKUP(214,'Course List'!$A:$C,3,0))) ->  | C9: =VLOOKUP(214,'Course List'!A:D,4,0) -> OPNS | D9: =VLOOKUP(214,'Course List'!A:E,5,0) -> 454 | E9: =VLOOKUP(214,'Course List'!A:F,6,0) -> Operations Strategy
A10: =VLOOKUP(215,'Course List'!A:B,2,0) -> Not Taken | B10: =IF(VLOOKUP(215,'Course List'!$A:$B,2,0)="Not Taken","",IF(VLOOKUP(215,'Course List'!$A:$C,3,0)=0,"Unknown",VLOOKUP(215,'Course List'!$A:$C,3,0))) ->  | C10: =VLOOKUP(215,'Course List'!A:D,4,0) -> OPNS | D10: =VLOOKUP(215,'Course List'!A:E,5,0) -> 455 | E10: =VLOOKUP(215,'Course List'!A:F,6,0) -> Logistics and Supply Chain Management
A11: =VLOOKUP(218,'Course List'!A:B,2,0) -> Not Taken | B11: =IF(VLOOKUP(218,'Course List'!$A:$B,2,0)="Not Taken","",IF(VLOOKUP(218,'Course List'!$A:$C,3,0)=0,"Unknown",VLOOKUP(218,'Course List'!$A:$C,3,0))) ->  | C11: =VLOOKUP(218,'Course List'!A:D,4,0) -> OPNS | D11: =VLOOKUP(218,'Course List'!A:E,5,0) -> 482 | E11: =VLOOKUP(218,'Course List'!A:F,6,0) -> Service Operations
A12: =VLOOKUP(219,'Course List'!A:B,2,0) -> Not Taken | B12: =IF(VLOOKUP(219,'Course List'!$A:$B,2,0)="Not Taken","",IF(VLOOKUP(219,'Course List'!$A:$C,3,0)=0,"Unknown",VLOOKUP(219,'Course List'!$A:$C,3,0))) ->  | C12: =VLOOKUP(219,'Course List'!A:D,4,0) -> OPNS | D12: =VLOOKUP(219,'Course List'!A:E,5,0) -> 915 | E12: =VLOOKUP(219,'Course List'!A:F,6,0) -> Information Technology and Business Process Management
A13: =VLOOKUP(220,'Course List'!A:B,2,0) -> Not Taken | B13: =IF(VLOOKUP(220,'Course List'!$A:$B,2,0)="Not Taken","",IF(VLOOKUP(220,'Course List'!$A:$C,3,0)=0,"Unknown",VLOOKUP(220,'Course List'!$A:$C,3,0))) ->  | C13: =VLOOKUP(220,'Course List'!A:D,4,0) -> OPNS | D13: =VLOOKUP(220,'Course List'!A:E,5,0) -> 916 | E13: =VLOOKUP(220,'Course List'!A:F,6,0) -> Process Management
A14: =VLOOKUP(221,'Course List'!A:B,2,0) -> Not Taken | B14: =IF(VLOOKUP(221,'Course List'!$A:$B,2,0)="Not Taken","",IF(VLOOKUP(221,'Course List'!$A:$C,3,0)=0,"Unknown",VLOOKUP(221,'Course List'!$A:$C,3,0))) ->  | C14: =VLOOKUP(221,'Course List'!A:D,4,0) -> OPNS | D14: =VLOOKUP(221,'Course List'!A:E,5,0) -> 917 | E14: =VLOOKUP(221,'Course List'!A:F,6,0) -> Project Management
A15: =VLOOKUP(276,'Course List'!A:B,2,0) -> Not Taken | B15: =IF(VLOOKUP(276,'Course List'!$A:$B,2,0)="Not Taken","",IF(VLOOKUP(276,'Course List'!$A:$C,3,0)=0,"Unknown",VLOOKUP(276,'Course List'!$A:$C,3,0))) ->  | C15: =VLOOKUP(276,'Course List'!A:D,4,0) -> OPNS | D15: =VLOOKUP(276,'Course List'!A:E,5,0) -> 918 | E15: =VLOOKUP(276,'Course List'!A:F,6,0) -> Disruptive Technolgy & Business Models
A16: =VLOOKUP(282,'Course List'!A:B,2,0) -> Not Taken | B16: =IF(VLOOKUP(282,'Course List'!$A:$B,2,0)="Not Taken","",IF(VLOOKUP(282,'Course List'!$A:$C,3,0)=0,"Unknown",VLOOKUP(282,'Course List'!$A:$C,3,0))) ->  | C16: =VLOOKUP(282,'Course List'!A:D,4,0) -> OPNS | D16: =VLOOKUP(282,'Course List'!A:E,5,0) -> 919-A | E16: =VLOOKUP(282,'Course List'!A:F,6,0) -> Operational Risk
A17: =VLOOKUP(283,'Course List'!A:B,2,0) -> Not Taken | B17: =IF(VLOOKUP(283,'Course List'!$A:$B,2,0)="Not Taken","",IF(VLOOKUP(283,'Course List'!$A:$C,3,0)=0,"Unknown",VLOOKUP(283,'Course List'!$A:$C,3,0))) ->  | C17: =VLOOKUP(283,'Course List'!A:D,4,0) -> OPNS | D17: =VLOOKUP(283,'Course List'!A:E,5,0) -> 920-B | E17: =VLOOKUP(283,'Course List'!A:F,6,0) -> Business and Nanotechnology
A18: =VLOOKUP(252,'Course List'!A:B,2,0) -> Not Taken | B18: =IF(VLOOKUP(252,'Course List'!$A:$B,2,0)="Not Taken","",IF(VLOOKUP(252,'Course List'!$A:$C,3,0)=0,"Unknown",VLOOKUP(252,'Course List'!$A:$C,3,0))) ->  | C18: =VLOOKUP(252,'Course List'!A:D,4,0) -> TECH | D18: =VLOOKUP(252,'Course List'!A:E,5,0) -> 919 | E18: =VLOOKUP(252,'Course List'!A:F,6,0) -> Innovation Process Management
A19: Not Taken | B19: =IF(VLOOKUP(13,'Course List'!$A:$B,2,0)="Not Taken","",IF(VLOOKUP(13,'Course List'!$A:$C,3,0)=0,"Unknown",VLOOKUP(13,'Course List'!$A:$C,3,0))) ->  | C19: =VLOOKUP(13,'Course List'!A:D,4,0) -> ACCT | D19: =VLOOKUP(13,'Course List'!A:E,5,0) -> 454 | E19: =VLOOKUP(13,'Course List'!A:F,6,0) -> Management Lab (M-Lab)
A49: =IF(AND(AND(A7="Enrolled",COUNTIF(A11:A11,"Complete")>=2),COUNTIF(A11:A11,"Enrolled")>=1),"MAJOR COMPLETED THIS QUARTER",IF(AND(AND(A7="Enrolled",COUNTIF(A11:A11,"Complete")>=1),COUNTIF(A11:A11,"Enrolled")>=2),"MAJOR COMPLETED THIS QUARTER",IF(AND(A7="Enrolled",COUNTIF(A11:A11,"Complete")>=3),"MAJOR COMPLETED THIS QUARTER",IF(A7="Complete","MAJOR IN PROGRESS",IF(A7="Enrolled","MAJOR IN PROGRESS",IF(A7="Considering","MAJOR IN PROGRESS","NOT MAJORING IN THIS FIELD")))))) -> NOT MAJORING IN THIS FIELD

Sheet Real Estate MGMT
A1: Real Estate Management
A3: =Formulae!A144 -> NOT MAJORING IN THIS FIELD
A5: Status | B5: Term | C5: Department | D5: Course # | E5: Course Name
A7: =VLOOKUP(222,'Course List'!A:B,2,0) -> Not Taken | B7: =IF(VLOOKUP(222,'Course List'!$A:$B,2,0)="Not Taken","",IF(VLOOKUP(222,'Course List'!$A:$C,3,0)=0,"Unknown",VLOOKUP(222,'Course List'!$A:$C,3,0))) ->  | C7: =VLOOKUP(222,'Course List'!A:D,4,0) -> REAL | D7: =VLOOKUP(222,'Course List'!A:E,5,0) -> 442 | E7: =VLOOKUP(222,'Course List'!A:F,6,0) -> Real Estate Finance and Investments
A9: =VLOOKUP(223,'Course List'!A:B,2,0) -> Not Taken | B9: =IF(VLOOKUP(223,'Course List'!$A:$B,2,0)="Not Taken","",IF(VLOOKUP(223,'Course List'!$A:$C,3,0)=0,"Unknown",VLOOKUP(223,'Course List'!$A:$C,3,0))) ->  | C9: =VLOOKUP(223,'Course List'!A:D,4,0) -> REAL | D9: =VLOOKUP(223,'Course List'!A:E,5,0) -> 443 | E9: =VLOOKUP(223,'Course List'!A:F,6,0) -> Urban Economic Development and Real Estate Market Analysis
A10: =VLOOKUP(270,'Course List'!A:B,2,0) -> Not Taken | B10: =IF(VLOOKUP(270,'Course List'!$A:$B,2,0)="Not Taken","",IF(VLOOKUP(270,'Course List'!$A:$C,3,0)=0,"Unknown",VLOOKUP(270,'Course List'!$A:$C,3,0))) ->  | C10: =VLOOKUP(270,'Course List'!A:D,4,0) -> REAL | D10: =VLOOKUP(270,'Course List'!A:E,5,0) -> 444-A | E10: =VLOOKUP(270,'Course List'!A:F,6,0) -> Real Estate Development
A11: =VLOOKUP(226,'Course List'!A:B,2,0) -> Not Taken | B11: =IF(VLOOKUP(226,'Course List'!$A:$B,2,0)="Not Taken","",IF(VLOOKUP(226,'Course List'!$A:$C,3,0)=0,"Unknown",VLOOKUP(226,'Course List'!$A:$C,3,0))) ->  | C11: =VLOOKUP(226,'Course List'!A:D,4,0) -> REAL | D11: =VLOOKUP(226,'Course List'!A:E,5,0) -> 447 | E11: =VLOOKUP(226,'Course List'!A:F,6,0) -> Legal Issues in Real Estate
A12: =VLOOKUP(269,'Course List'!A:B,2,0) -> Not Taken | B12: =IF(VLOOKUP(269,'Course List'!$A:$B,2,0)="Not Taken","",IF(VLOOKUP(269,'Course List'!$A:$C,3,0)=0,"Unknown",VLOOKUP(269,'Course List'!$A:$C,3,0))) ->  | C12: =VLOOKUP(269,'Course List'!A:D,4,0) -> REAL | D12: =VLOOKUP(269,'Course List'!A:E,5,0) -> 448 | E12: =VLOOKUP(269,'Course List'!A:F,6,0) -> Urban Public Finance
A13: =VLOOKUP(227,'Course List'!A:B,2,0) -> Not Taken | B13: =IF(VLOOKUP(227,'Course List'!$A:$B,2,0)="Not Taken","",IF(VLOOKUP(227,'Course List'!$A:$C,3,0)=0,"Unknown",VLOOKUP(227,'Course List'!$A:$C,3,0))) ->  | C13: =VLOOKUP(227,'Course List'!A:D,4,0) -> REAL | D13: =VLOOKUP(227,'Course List'!A:E,5,0) -> 464 | E13: =VLOOKUP(227,'Course List'!A:F,6,0) -> Real Estate Finance and Investments II
A14: =VLOOKUP(228,'Course List'!A:B,2,0) -> Not Taken | B14: =IF(VLOOKUP(228,'Course List'!$A:$B,2,0)="Not Taken","",IF(VLOOKUP(228,'Course List'!$A:$C,3,0)=0,"Unknown",VLOOKUP(228,'Course List'!$A:$C,3,0))) ->  | C14: =VLOOKUP(228,'Course List'!A:D,4,0) -> REAL | D14: =VLOOKUP(228,'Course List'!A:E,5,0) -> 499 | E14: =VLOOKUP(228,'Course List'!A:F,6,0) -> Independent Study
A15: =VLOOKUP(272,'Course List'!A:B,2,0) -> Not Taken | B15: =IF(VLOOKUP(272,'Course List'!$A:$B,2,0)="Not Taken","",IF(VLOOKUP(272,'Course List'!$A:$C,3,0)=0,"Unknown",VLOOKUP(272,'Course List'!$A:$C,3,0))) ->  | C15: =VLOOKUP(272,'Course List'!A:D,4,0) -> REAL | D15: =VLOOKUP(272,'Course List'!A:E,5,0) -> 910 | E15: =VLOOKUP(272,'Course List'!A:F,6,0) -> Advanced Real Estate Development and Corporate Strategy
A16: Not Taken | B16: =IF(VLOOKUP(13,'Course List'!$A:$B,2,0)="Not Taken","",IF(VLOOKUP(13,'Course List'!$A:$C,3,0)=0,"Unknown",VLOOKUP(13,'Course List'!$A:$C,3,0))) ->  | C16: =VLOOKUP(13,'Course List'!A:D,4,0) -> ACCT | D16: =VLOOKUP(13,'Course List'!A:E,5,0) -> 454 | E16: =VLOOKUP(13,'Course List'!A:F,6,0) -> Management Lab (M-Lab)

Sheet SCHEMA
A1: Special Competency in Health Enterprise Excellence
A3: =Formulae!A160 -> NOT MAJORING IN THIS FIELD
A5: Status | B5: Term | C5: Department | D5: Course # | E5: Course Name
A7: =VLOOKUP(92,'Course List'!A:B,2,0) -> Not Taken | B7: =IF(VLOOKUP(92,'Course List'!$A:$B,2,0)="Not Taken","",IF(VLOOKUP(92,'Course List'!$A:$C,3,0)=0,"Unknown",VLOOKUP(92,'Course List'!$A:$C,3,0))) ->  | C7: =VLOOKUP(92,'Course List'!A:D,4,0) -> HEMA | D7: =VLOOKUP(92,'Course List'!A:E,5,0) -> 440 | E7: =VLOOKUP(92,'Course List'!A:F,6,0) -> Introduction to the Principles and Management of Health Industry Systems
A9: =VLOOKUP(135,'Course List'!A:B,2,0) -> Not Taken | B9: =IF(VLOOKUP(135,'Course List'!$A:$B,2,0)="Not Taken","",IF(VLOOKUP(135,'Course List'!$A:$C,3,0)=0,"Unknown",VLOOKUP(135,'Course List'!$A:$C,3,0))) ->  | C9: =VLOOKUP(135,'Course List'!A:D,4,0) -> MGMT | D9: =VLOOKUP(135,'Course List'!A:E,5,0) -> 444 | E9: =VLOOKUP(135,'Course List'!A:F,6,0) -> Healthcare Economics & Strategy
A10: =VLOOKUP(102,'Course List'!A:B,2,0) -> Not Taken | B10: =IF(VLOOKUP(102,'Course List'!$A:$B,2,0)="Not Taken","",IF(VLOOKUP(102,'Course List'!$A:$C,3,0)=0,"Unknown",VLOOKUP(102,'Course List'!$A:$C,3,0))) ->  | C10: =VLOOKUP(102,'Course List'!A:D,4,0) -> INTL | D10: =VLOOKUP(102,'Course List'!A:E,5,0) -> 442 | E10: =VLOOKUP(102,'Course List'!A:F,6,0) -> International Healthcare Systems
A11: =VLOOKUP(21,'Course List'!A:B,2,0) -> Not Taken | B11: =IF(VLOOKUP(21,'Course List'!$A:$B,2,0)="Not Taken","",IF(VLOOKUP(21,'Course List'!$A:$C,3,0)=0,"Unknown",VLOOKUP(21,'Course List'!$A:$C,3,0))) ->  | C11: =VLOOKUP(21,'Course List'!A:D,4,0) -> HEMA | D11: =VLOOKUP(21,'Course List'!A:E,5,0) -> 913 | E11: =VLOOKUP(21,'Course List'!A:F,6,0) -> Biotech Business Practicum
A12: =VLOOKUP(271,'Course List'!A:B,2,0) -> Not Taken | B12: =IF(VLOOKUP(271,'Course List'!$A:$B,2,0)="Not Taken","",IF(VLOOKUP(271,'Course List'!$A:$C,3,0)=0,"Unknown",VLOOKUP(271,'Course List'!$A:$C,3,0))) ->  | C12: =VLOOKUP(271,'Course List'!A:D,4,0) -> HEMA | D12: =VLOOKUP(271,'Course List'!A:E,5,0) -> 915 | E12: =VLOOKUP(271,'Course List'!A:F,6,0) -> Medical Innovations
A13: =VLOOKUP(285,'Course List'!A:B,2,0) -> Not Taken | B13: =IF(VLOOKUP(285,'Course List'!$A:$B,2,0)="Not Taken","",IF(VLOOKUP(285,'Course List'!$A:$C,3,0)=0,"Unknown",VLOOKUP(285,'Course List'!$A:$C,3,0))) ->  | C13: =VLOOKUP(285,'Course List'!A:D,4,0) -> HEMA | D13: =VLOOKUP(285,'Course List'!A:E,5,0) -> 916 | E13: =VLOOKUP(285,'Course List'!A:F,6,0) -> Medical Innovation II: Developing Biomedical Products from Patient to Market
A14: =VLOOKUP(139,'Course List'!A:B,2,0) -> Not Taken | B14: =IF(VLOOKUP(139,'Course List'!$A:$B,2,0)="Not Taken","",IF(VLOOKUP(139,'Course List'!$A:$C,3,0)=0,"Unknown",VLOOKUP(139,'Course List'!$A:$C,3,0))) ->  | C14: =VLOOKUP(139,'Course List'!A:D,4,0) -> MGMT | D14: =VLOOKUP(139,'Course List'!A:E,5,0) -> 463 | E14: =VLOOKUP(139,'Course List'!A:F,6,0) -> Management of Technology
A15: =VLOOKUP(22,'Course List'!A:B,2,0) -> Not Taken | B15: =IF(VLOOKUP(22,'Course List'!$A:$B,2,0)="Not Taken","",IF(VLOOKUP(22,'Course List'!$A:$C,3,0)=0,"Unknown",VLOOKUP(22,'Course List'!$A:$C,3,0))) ->  | C15: =VLOOKUP(22,'Course List'!A:D,4,0) -> HEMA | D15: =VLOOKUP(22,'Course List'!A:E,5,0) -> 914 | E15: =VLOOKUP(22,'Course List'!A:F,6,0) -> Biomedical Marketing
A16: =VLOOKUP(85,'Course List'!A:B,2,0) -> Not Taken | B16: =IF(VLOOKUP(85,'Course List'!$A:$B,2,0)="Not Taken","",IF(VLOOKUP(85,'Course List'!$A:$C,3,0)=0,"Unknown",VLOOKUP(85,'Course List'!$A:$C,3,0))) ->  | C16: =VLOOKUP(85,'Course List'!A:D,4,0) -> FINC | D16: =VLOOKUP(85,'Course List'!A:E,5,0) -> 932 | E16: =VLOOKUP(85,'Course List'!A:F,6,0) -> Case Studies in Venture Investment and Management
A17: =VLOOKUP(246,'Course List'!A:B,2,0) -> Not Taken | B17: =IF(VLOOKUP(246,'Course List'!$A:$B,2,0)="Not Taken","",IF(VLOOKUP(246,'Course List'!$A:$C,3,0)=0,"Unknown",VLOOKUP(246,'Course List'!$A:$C,3,0))) ->  | C17: =VLOOKUP(246,'Course List'!A:D,4,0) -> TECH | D17: =VLOOKUP(246,'Course List'!A:E,5,0) -> 441 | E17: =VLOOKUP(246,'Course List'!A:F,6,0) -> Intellectual Capital Management
A18: =VLOOKUP(97,'Course List'!A:B,2,0) -> Not Taken | B18: =IF(VLOOKUP(97,'Course List'!$A:$B,2,0)="Not Taken","",IF(VLOOKUP(97,'Course List'!$A:$C,3,0)=0,"Unknown",VLOOKUP(97,'Course List'!$A:$C,3,0))) ->  | C18: =VLOOKUP(97,'Course List'!A:D,4,0) -> HEMA | D18: =VLOOKUP(97,'Course List'!A:E,5,0) -> 453 | E18: =VLOOKUP(97,'Course List'!A:F,6,0) -> Managerial Challenges in the Pharmaceutical, Biotech, and Medical Devices Industries
A19: =VLOOKUP(94,'Course List'!A:B,2,0) -> Not Taken | B19: =IF(VLOOKUP(94,'Course List'!$A:$B,2,0)="Not Taken","",IF(VLOOKUP(94,'Course List'!$A:$C,3,0)=0,"Unknown",VLOOKUP(94,'Course List'!$A:$C,3,0))) ->  | C19: =VLOOKUP(94,'Course List'!A:D,4,0) -> HEMA | D19: =VLOOKUP(94,'Course List'!A:E,5,0) -> 451 | E19: =VLOOKUP(94,'Course List'!A:F,6,0) -> Legal Issues in Health Care Delivery
A20: =VLOOKUP(255,'Course List'!A:B,2,0) -> Not Taken | B20: =IF(VLOOKUP(255,'Course List'!$A:$B,2,0)="Not Taken","",IF(VLOOKUP(255,'Course List'!$A:$C,3,0)=0,"Unknown",VLOOKUP(255,'Course List'!$A:$C,3,0))) ->  | C20: =VLOOKUP(255,'Course List'!A:D,4,0) -> HEMA | D20: =VLOOKUP(255,'Course List'!A:E,5,0) -> 512 | E20: =VLOOKUP(255,'Course List'!A:F,6,0) -> Health Services Management Field Study/Project Management
A21: =VLOOKUP(93,'Course List'!A:B,2,0) -> Not Taken | B21: =IF(VLOOKUP(93,'Course List'!$A:$B,2,0)="Not Taken","",IF(VLOOKUP(93,'Course List'!$A:$C,3,0)=0,"Unknown",VLOOKUP(93,'Course List'!$A:$C,3,0))) ->  | C21: =VLOOKUP(93,'Course List'!A:D,4,0) -> HEMA | D21: =VLOOKUP(93,'Course List'!A:E,5,0) -> 441 | E21: =VLOOKUP(93,'Course List'!A:F,6,0) -> Health Policy
A22: =VLOOKUP(3,'Course List'!A:B,2,0) -> Not Taken | B22: =IF(VLOOKUP(3,'Course List'!$A:$B,2,0)="Not Taken","",IF(VLOOKUP(3,'Course List'!$A:$C,3,0)=0,"Unknown",VLOOKUP(3,'Course List'!$A:$C,3,0))) ->  | C22: =VLOOKUP(3,'Course List'!A:D,4,0) -> ACCT | D22: =VLOOKUP(3,'Course List'!A:E,5,0) -> 432 | E22: =VLOOKUP(3,'Course List'!A:F,6,0) -> Information Technology in Healthcare Management
A23: =VLOOKUP(16,'Course List'!A:B,2,0) -> Not Taken | B23: =IF(VLOOKUP(16,'Course List'!$A:$B,2,0)="Not Taken","",IF(VLOOKUP(16,'Course List'!$A:$C,3,0)=0,"Unknown",VLOOKUP(16,'Course List'!$A:$C,3,0))) ->  | C23: =VLOOKUP(16,'Course List'!A:D,4,0) -> ACCT | D23: =VLOOKUP(16,'Course List'!A:E,5,0) -> 479 | E23: =VLOOKUP(16,'Course List'!A:F,6,0) -> Financial Assessment and Performance Evaluation of Healthcare Entities
A24: =VLOOKUP(144,'Course List'!A:B,2,0) -> Not Taken | B24: =IF(VLOOKUP(144,'Course List'!$A:$B,2,0)="Not Taken","",IF(VLOOKUP(144,'Course List'!$A:$C,3,0)=0,"Unknown",VLOOKUP(144,'Course List'!$A:$C,3,0))) ->  | C24: =VLOOKUP(144,'Course List'!A:D,4,0) -> MGMT | D24: =VLOOKUP(144,'Course List'!A:E,5,0) -> 469 | E24: =VLOOKUP(144,'Course List'!A:F,6,0) -> Empirical Methods in Strategy
A25: =VLOOKUP(99,'Course List'!A:B,2,0) -> Not Taken | B25: =IF(VLOOKUP(99,'Course List'!$A:$B,2,0)="Not Taken","",IF(VLOOKUP(99,'Course List'!$A:$C,3,0)=0,"Unknown",VLOOKUP(99,'Course List'!$A:$C,3,0))) ->  | C25: =VLOOKUP(99,'Course List'!A:D,4,0) -> HEMA | D25: =VLOOKUP(99,'Course List'!A:E,5,0) -> 911 | E25: =VLOOKUP(99,'Course List'!A:F,6,0) -> Healthcare System Financing
A26: =IF(AND(A27="Complete",A28="Complete"),"Complete",IF(AND(A27="Enrolled",A28="Enrolled"),"Enrolled",IF(AND(A27="Complete",A28="Will Enroll"),"In Progress",IF(AND(A27="Complete",A28="Enrolled"),"In Progress",IF(AND(A27="Will Enroll",A28="Will Enroll"),"Will Enroll","Not Taken"))))) -> Not Taken | C26: MORS-454A & HEMA-452B must be taken together to count towards the HEMA Major
A27: =VLOOKUP(189,'Course List'!A:B,2,0) -> Not Taken | B27: =IF(VLOOKUP(189,'Course List'!$A:$B,2,0)="Not Taken","",IF(VLOOKUP(189,'Course List'!$A:$C,3,0)=0,"Unknown",VLOOKUP(189,'Course List'!$A:$C,3,0))) ->  | C27: =VLOOKUP(189,'Course List'!A:D,4,0) -> MORS | D27: =VLOOKUP(189,'Course List'!A:E,5,0) -> 454-A | E27: =VLOOKUP(189,'Course List'!A:F,6,0) -> Creating and Managing Strategic Alliances
A28: =VLOOKUP(96,'Course List'!A:B,2,0) -> Not Taken | B28: =IF(VLOOKUP(96,'Course List'!$A:$B,2,0)="Not Taken","",IF(VLOOKUP(96,'Course List'!$A:$C,3,0)=0,"Unknown",VLOOKUP(96,'Course List'!$A:$C,3,0))) ->  | C28: =VLOOKUP(96,'Course List'!A:D,4,0) -> HEMA | D28: =VLOOKUP(96,'Course List'!A:E,5,0) -> 452-B | E28: =VLOOKUP(96,'Course List'!A:F,6,0) -> Advanced Strategic Management in Healthcare

Sheet SEEK
A1: Social Enterprise at Kellogg (SEEK)
A3: =Formulae!A149 -> POTENTIAL MAJOR | F3: Normal major
A4: =Formulae!A153 -> POTENTIAL MAJOR | F4: Nonprofit specialization
A6: Status | B6: Term | C6: Department | D6: Course # | E6: Course Name
A8: =VLOOKUP(234,'Course List'!A:B,2,0) -> Will Enroll | B8: =IF(VLOOKUP(234,'Course List'!$A:$B,2,0)="Not Taken","",IF(VLOOKUP(234,'Course List'!$A:$C,3,0)=0,"Unknown",VLOOKUP(234,'Course List'!$A:$C,3,0))) -> 2nd Yr. Fall | C8: =VLOOKUP(234,'Course List'!A:D,4,0) -> SEEK | D8: =VLOOKUP(234,'Course List'!A:E,5,0) -> 440-A | E8: =VLOOKUP(234,'Course List'!A:F,6,0) -> Values and Crisis Decision Making
A9: =VLOOKUP(231,'Course List'!A:B,2,0) -> Not Taken | B9: =IF(VLOOKUP(231,'Course List'!$A:$B,2,0)="Not Taken","",IF(VLOOKUP(231,'Course List'!$A:$C,3,0)=0,"Unknown",VLOOKUP(231,'Course List'!$A:$C,3,0))) ->  | C9: =VLOOKUP(231,'Course List'!A:D,4,0) -> SEEK | D9: =VLOOKUP(231,'Course List'!A:E,5,0) -> 441 | E9: =VLOOKUP(231,'Course List'!A:F,6,0) -> Strategic Management in Non-Market Environments
A11: =VLOOKUP(232,'Course List'!A:B,2,0) -> Not Taken | B11: =IF(VLOOKUP(232,'Course List'!$A:$B,2,0)="Not Taken","",IF(VLOOKUP(232,'Course List'!$A:$C,3,0)=0,"Unknown",VLOOKUP(232,'Course List'!$A:$C,3,0))) ->  | C11: =VLOOKUP(232,'Course List'!A:D,4,0) -> SEEK | D11: =VLOOKUP(232,'Course List'!A:E,5,0) -> 450 | E11: =VLOOKUP(232,'Course List'!A:F,6,0) -> Mission, Stategy and Finance in the Nonprofit Sector
A12: =VLOOKUP(239,'Course List'!A:B,2,0) -> Not Taken | B12: =IF(VLOOKUP(239,'Course List'!$A:$B,2,0)="Not Taken","",IF(VLOOKUP(239,'Course List'!$A:$C,3,0)=0,"Unknown",VLOOKUP(239,'Course List'!$A:$C,3,0))) ->  | C12: =VLOOKUP(239,'Course List'!A:D,4,0) -> SEEK | D12: =VLOOKUP(239,'Course List'!A:E,5,0) -> 460 | E12: =VLOOKUP(239,'Course List'!A:F,6,0) -> Values-Based Leadership
A13: =VLOOKUP(240,'Course List'!A:B,2,0) -> Not Taken | B13: =IF(VLOOKUP(240,'Course List'!$A:$B,2,0)="Not Taken","",IF(VLOOKUP(240,'Course List'!$A:$C,3,0)=0,"Unknown",VLOOKUP(240,'Course List'!$A:$C,3,0))) ->  | C13: =VLOOKUP(240,'Course List'!A:D,4,0) -> SEEK | D13: =VLOOKUP(240,'Course List'!A:E,5,0) -> 470 | E13: =VLOOKUP(240,'Course List'!A:F,6,0) -> Public Policy Analysis for Managers
A15: =VLOOKUP(233,'Course List'!A:B,2,0) -> Not Taken | B15: =IF(VLOOKUP(233,'Course List'!$A:$B,2,0)="Not Taken","",IF(VLOOKUP(233,'Course List'!$A:$C,3,0)=0,"Unknown",VLOOKUP(233,'Course List'!$A:$C,3,0))) ->  | C15: =VLOOKUP(233,'Course List'!A:D,4,0) -> SEEK | D15: =VLOOKUP(233,'Course List'!A:E,5,0) -> 451 | E15: =VLOOKUP(233,'Course List'!A:F,6,0) -> Leadership in Fundraising and Marketing
A16: =VLOOKUP(264,'Course List'!A:B,2,0) -> Not Taken | B16: =IF(VLOOKUP(264,'Course List'!$A:$B,2,0)="Not Taken","",IF(VLOOKUP(264,'Course List'!$A:$C,3,0)=0,"Unknown",VLOOKUP(264,'Course List'!$A:$C,3,0))) ->  | C16: =VLOOKUP(264,'Course List'!A:D,4,0) -> SEEK | D16: =VLOOKUP(264,'Course List'!A:E,5,0) -> 454 | E16: =VLOOKUP(264,'Course List'!A:F,6,0) -> The Education Industry
A17: =VLOOKUP(241,'Course List'!A:B,2,0) -> Not Taken | B17: =IF(VLOOKUP(241,'Course List'!$A:$B,2,0)="Not Taken","",IF(VLOOKUP(241,'Course List'!$A:$C,3,0)=0,"Unknown",VLOOKUP(241,'Course List'!$A:$C,3,0))) ->  | C17: =VLOOKUP(241,'Course List'!A:D,4,0) -> SEEK | D17: =VLOOKUP(241,'Course List'!A:E,5,0) -> 499 | E17: =VLOOKUP(241,'Course List'!A:F,6,0) -> Independent Study
A18: =VLOOKUP(256,'Course List'!A:B,2,0) -> Not Taken | B18: =IF(VLOOKUP(256,'Course List'!$A:$B,2,0)="Not Taken","",IF(VLOOKUP(256,'Course List'!$A:$C,3,0)=0,"Unknown",VLOOKUP(256,'Course List'!$A:$C,3,0))) ->  | C18: =VLOOKUP(256,'Course List'!A:D,4,0) -> SEEK | D18: =VLOOKUP(256,'Course List'!A:E,5,0) -> 935 | E18: =VLOOKUP(256,'Course List'!A:F,6,0) -> Environmental Management
A19: =VLOOKUP(245,'Course List'!A:B,2,0) -> Not Taken | B19: =IF(VLOOKUP(245,'Course List'!$A:$B,2,0)="Not Taken","",IF(VLOOKUP(245,'Course List'!$A:$C,3,0)=0,"Unknown",VLOOKUP(245,'Course List'!$A:$C,3,0))) ->  | C19: =VLOOKUP(245,'Course List'!A:D,4,0) -> SEEK | D19: =VLOOKUP(245,'Course List'!A:E,5,0) -> 955 | E19: =VLOOKUP(245,'Course List'!A:F,6,0) -> Advanced Studies in Board Governance
A20: =VLOOKUP(230,'Course List'!A:B,2,0) -> Not Taken | B20: =IF(VLOOKUP(230,'Course List'!$A:$B,2,0)="Not Taken","",IF(VLOOKUP(230,'Course List'!$A:$C,3,0)=0,"Unknown",VLOOKUP(230,'Course List'!$A:$C,3,0))) ->  | C20: =VLOOKUP(230,'Course List'!A:D,4,0) -> SEEK | D20: =VLOOKUP(230,'Course List'!A:E,5,0) -> 956 | E20: =VLOOKUP(230,'Course List'!A:F,6,0) -> Social Entrepreneurship in the Developing World
A21: =VLOOKUP(106,'Course List'!A:B,2,0) -> Not Taken | B21: =IF(VLOOKUP(106,'Course List'!$A:$B,2,0)="Not Taken","",IF(VLOOKUP(106,'Course List'!$A:$C,3,0)=0,"Unknown",VLOOKUP(106,'Course List'!$A:$C,3,0))) ->  | C21: =VLOOKUP(106,'Course List'!A:D,4,0) -> INTL | D21: =VLOOKUP(106,'Course List'!A:E,5,0) -> 466 | E21: =VLOOKUP(106,'Course List'!A:F,6,0) -> International Business Strategy in Non-Market Environments
A22: =VLOOKUP(269,'Course List'!A:B,2,0) -> Not Taken | B22: =IF(VLOOKUP(269,'Course List'!$A:$B,2,0)="Not Taken","",IF(VLOOKUP(269,'Course List'!$A:$C,3,0)=0,"Unknown",VLOOKUP(269,'Course List'!$A:$C,3,0))) ->  | C22: =VLOOKUP(269,'Course List'!A:D,4,0) -> REAL | D22: =VLOOKUP(269,'Course List'!A:E,5,0) -> 448 | E22: =VLOOKUP(269,'Course List'!A:F,6,0) -> Urban Public Finance
A23: Not Taken | B23: =IF(VLOOKUP(13,'Course List'!$A:$B,2,0)="Not Taken","",IF(VLOOKUP(13,'Course List'!$A:$C,3,0)=0,"Unknown",VLOOKUP(13,'Course List'!$A:$C,3,0))) ->  | C23: =VLOOKUP(13,'Course List'!A:D,4,0) -> ACCT | D23: =VLOOKUP(13,'Course List'!A:E,5,0) -> 454 | E23: =VLOOKUP(13,'Course List'!A:F,6,0) -> Management Lab (M-Lab)
A24: =IF(COUNTIF(A26:A29,"Complete")>=2,"Complete",IF(AND(COUNTIF(A26:A29,"Complete")=1,COUNTIF(A26:A29,"Enrolled")>=1),"Enrolled",IF(COUNTIF(A26:A29,"Enrolled")>=2,"Enrolled","Not Taken"))) -> Not Taken | C24: Two half credit courses must be taken to count for one credit towards the SEEK major.
A25: =VLOOKUP(238,'Course List'!A:B,2,0) -> Not Taken | B25: =IF(VLOOKUP(238,'Course List'!$A:$B,2,0)="Not Taken","",IF(VLOOKUP(238,'Course List'!$A:$C,3,0)=0,"Unknown",VLOOKUP(238,'Course List'!$A:$C,3,0))) ->  | C25: =VLOOKUP(238,'Course List'!A:D,4,0) -> SEEK | D25: =VLOOKUP(238,'Course List'!A:E,5,0) -> 453-B | E25: =VLOOKUP(238,'Course List'!A:F,6,0) -> Board Governance of Nonprofit Organizations
A26: =VLOOKUP(237,'Course List'!A:B,2,0) -> Not Taken | B26: =IF(VLOOKUP(237,'Course List'!$A:$B,2,0)="Not Taken","",IF(VLOOKUP(237,'Course List'!$A:$C,3,0)=0,"Unknown",VLOOKUP(237,'Course List'!$A:$C,3,0))) ->  | C26: =VLOOKUP(237,'Course List'!A:D,4,0) -> SEEK | D26: =VLOOKUP(237,'Course List'!A:E,5,0) -> 453-A | E26: =VLOOKUP(237,'Course List'!A:F,6,0) -> Board Governance of Nonprofit Organizations
A27: =VLOOKUP(82,'Course List'!A:B,2,0) -> Not Taken | B27: =IF(VLOOKUP(82,'Course List'!$A:$B,2,0)="Not Taken","",IF(VLOOKUP(82,'Course List'!$A:$C,3,0)=0,"Unknown",VLOOKUP(82,'Course List'!$A:$C,3,0))) ->  | C27: =VLOOKUP(82,'Course List'!A:D,4,0) -> FINC | D27: =VLOOKUP(82,'Course List'!A:E,5,0) -> 930-A | E27: =VLOOKUP(82,'Course List'!A:F,6,0) -> Environmental Finance
A28: =VLOOKUP(83,'Course List'!A:B,2,0) -> Not Taken | B28: =IF(VLOOKUP(83,'Course List'!$A:$B,2,0)="Not Taken","",IF(VLOOKUP(83,'Course List'!$A:$C,3,0)=0,"Unknown",VLOOKUP(83,'Course List'!$A:$C,3,0))) ->  | C28: =VLOOKUP(83,'Course List'!A:D,4,0) -> FINC | D28: =VLOOKUP(83,'Course List'!A:E,5,0) -> 930-B | E28: =VLOOKUP(83,'Course List'!A:F,6,0) -> Environmental Finance
A29: =VLOOKUP(90,'Course List'!A:B,2,0) -> Not Taken | B29: =IF(VLOOKUP(90,'Course List'!$A:$B,2,0)="Not Taken","",IF(VLOOKUP(90,'Course List'!$A:$C,3,0)=0,"Unknown",VLOOKUP(90,'Course List'!$A:$C,3,0))) ->  | C29: =VLOOKUP(90,'Course List'!A:D,4,0) -> FINC | D29: =VLOOKUP(90,'Course List'!A:E,5,0) -> 937-A | E29: =VLOOKUP(90,'Course List'!A:F,6,0) -> Microfinance & the Role of Financial Institutions in Development
A33: SEEK major with Nonprofit specialization
A35: =VLOOKUP(234,'Course List'!A:B,2,0) -> Will Enroll | B35: =IF(VLOOKUP(234,'Course List'!$A:$B,2,0)="Not Taken","",IF(VLOOKUP(234,'Course List'!$A:$C,3,0)=0,"Unknown",VLOOKUP(234,'Course List'!$A:$C,3,0))) -> 2nd Yr. Fall | C35: =VLOOKUP(234,'Course List'!A:D,4,0) -> SEEK | D35: =VLOOKUP(234,'Course List'!A:E,5,0) -> 440-A | E35: =VLOOKUP(234,'Course List'!A:F,6,0) -> Values and Crisis Decision Making
A36: =VLOOKUP(231,'Course List'!A:B,2,0) -> Not Taken | B36: =IF(VLOOKUP(231,'Course List'!$A:$B,2,0)="Not Taken","",IF(VLOOKUP(231,'Course List'!$A:$C,3,0)=0,"Unknown",VLOOKUP(231,'Course List'!$A:$C,3,0))) ->  | C36: =VLOOKUP(231,'Course List'!A:D,4,0) -> SEEK | D36: =VLOOKUP(231,'Course List'!A:E,5,0) -> 441 | E36: =VLOOKUP(231,'Course List'!A:F,6,0) -> Strategic Management in Non-Market Environments
A37: =VLOOKUP(232,'Course List'!A:B,2,0) -> Not Taken | B37: =IF(VLOOKUP(232,'Course List'!$A:$B,2,0)="Not Taken","",IF(VLOOKUP(232,'Course List'!$A:$C,3,0)=0,"Unknown",VLOOKUP(232,'Course List'!$A:$C,3,0))) ->  | C37: =VLOOKUP(232,'Course List'!A:D,4,0) -> SEEK | D37: =VLOOKUP(232,'Course List'!A:E,5,0) -> 450 | E37: =VLOOKUP(232,'Course List'!A:F,6,0) -> Mission, Stategy and Finance in the Nonprofit Sector
A39: =VLOOKUP(233,'Course List'!A:B,2,0) -> Not Taken | B39: =IF(VLOOKUP(233,'Course List'!$A:$B,2,0)="Not Taken","",IF(VLOOKUP(233,'Course List'!$A:$C,3,0)=0,"Unknown",VLOOKUP(233,'Course List'!$A:$C,3,0))) ->  | C39: =VLOOKUP(233,'Course List'!A:D,4,0) -> SEEK | D39: =VLOOKUP(233,'Course List'!A:E,5,0) -> 451 | E39: =VLOOKUP(233,'Course List'!A:F,6,0) -> Leadership in Fundraising and Marketing
A40: =VLOOKUP(245,'Course List'!A:B,2,0) -> Not Taken | B40: =IF(VLOOKUP(245,'Course List'!$A:$B,2,0)="Not Taken","",IF(VLOOKUP(245,'Course List'!$A:$C,3,0)=0,"Unknown",VLOOKUP(245,'Course List'!$A:$C,3,0))) ->  | C40: =VLOOKUP(245,'Course List'!A:D,4,0) -> SEEK | D40: =VLOOKUP(245,'Course List'!A:E,5,0) -> 955 | E40: =VLOOKUP(245,'Course List'!A:F,6,0) -> Advanced Studies in Board Governance
A41: =VLOOKUP(230,'Course List'!A:B,2,0) -> Not Taken | B41: =IF(VLOOKUP(230,'Course List'!$A:$B,2,0)="Not Taken","",IF(VLOOKUP(230,'Course List'!$A:$C,3,0)=0,"Unknown",VLOOKUP(230,'Course List'!$A:$C,3,0))) ->  | C41: =VLOOKUP(230,'Course List'!A:D,4,0) -> SEEK | D41: =VLOOKUP(230,'Course List'!A:E,5,0) -> 956 | E41: =VLOOKUP(230,'Course List'!A:F,6,0) -> Social Entrepreneurship in the Developing World
A42: =IF(COUNTIF(A43:A44,"Complete")>=2,"Complete",IF(AND(COUNTIF(A43:A44,"Complete")=1,COUNTIF(A43:A44,"Enrolled")>=1),"Enrolled",IF(COUNTIF(A43:A44,"Enrolled")>=2,"Enrolled","Not Taken"))) -> Not Taken | C42: Two half credit courses must be taken to count for one credit towards the SEEK major.
A43: =VLOOKUP(236,'Course List'!A:B,2,0) -> Not Taken | B43: =IF(VLOOKUP(236,'Course List'!$A:$B,2,0)="Not Taken","",IF(VLOOKUP(236,'Course List'!$A:$C,3,0)=0,"Unknown",VLOOKUP(236,'Course List'!$A:$C,3,0))) ->  | C43: =VLOOKUP(236,'Course List'!A:D,4,0) -> SEEK | D43: =VLOOKUP(236,'Course List'!A:E,5,0) -> 452-B | E43: =VLOOKUP(236,'Course List'!A:F,6,0) -> Social Entrepreneurship
A44: =VLOOKUP(238,'Course List'!A:B,2,0) -> Not Taken | B44: =IF(VLOOKUP(238,'Course List'!$A:$B,2,0)="Not Taken","",IF(VLOOKUP(238,'Course List'!$A:$C,3,0)=0,"Unknown",VLOOKUP(238,'Course List'!$A:$C,3,0))) ->  | C44: =VLOOKUP(238,'Course List'!A:D,4,0) -> SEEK | D44: =VLOOKUP(238,'Course List'!A:E,5,0) -> 453-B | E44: =VLOOKUP(238,'Course List'!A:F,6,0) -> Board Governance of Nonprofit Organizations
A46: =VLOOKUP(233,'Course List'!A:B,2,0) -> Not Taken | B46: =IF(VLOOKUP(233,'Course List'!$A:$B,2,0)="Not Taken","",IF(VLOOKUP(233,'Course List'!$A:$C,3,0)=0,"Unknown",VLOOKUP(233,'Course List'!$A:$C,3,0))) ->  | C46: =VLOOKUP(233,'Course List'!A:D,4,0) -> SEEK | D46: =VLOOKUP(233,'Course List'!A:E,5,0) -> 451 | E46: =VLOOKUP(233,'Course List'!A:F,6,0) -> Leadership in Fundraising and Marketing
A47: =VLOOKUP(264,'Course List'!A:B,2,0) -> Not Taken | B47: =IF(VLOOKUP(264,'Course List'!$A:$B,2,0)="Not Taken","",IF(VLOOKUP(264,'Course List'!$A:$C,3,0)=0,"Unknown",VLOOKUP(264,'Course List'!$A:$C,3,0))) ->  | C47: =VLOOKUP(264,'Course List'!A:D,4,0) -> SEEK | D47: =VLOOKUP(264,'Course List'!A:E,5,0) -> 454 | E47: =VLOOKUP(264,'Course List'!A:F,6,0) -> The Education Industry
A48: =VLOOKUP(239,'Course List'!A:B,2,0) -> Not Taken | B48: =IF(VLOOKUP(239,'Course List'!$A:$B,2,0)="Not Taken","",IF(VLOOKUP(239,'Course List'!$A:$C,3,0)=0,"Unknown",VLOOKUP(239,'Course List'!$A:$C,3,0))) ->  | C48: =VLOOKUP(239,'Course List'!A:D,4,0) -> SEEK | D48: =VLOOKUP(239,'Course List'!A:E,5,0) -> 460 | E48: =VLOOKUP(239,'Course List'!A:F,6,0) -> Values-Based Leadership
A49: =VLOOKUP(240,'Course List'!A:B,2,0) -> Not Taken | B49: =IF(VLOOKUP(240,'Course List'!$A:$B,2,0)="Not Taken","",IF(VLOOKUP(240,'Course List'!$A:$C,3,0)=0,"Unknown",VLOOKUP(240,'Course List'!$A:$C,3,0))) ->  | C49: =VLOOKUP(240,'Course List'!A:D,4,0) -> SEEK | D49: =VLOOKUP(240,'Course List'!A:E,5,0) -> 470 | E49: =VLOOKUP(240,'Course List'!A:F,6,0) -> Public Policy Analysis for Managers
A50: =VLOOKUP(241,'Course List'!A:B,2,0) -> Not Taken | B50: =IF(VLOOKUP(241,'Course List'!$A:$B,2,0)="Not Taken","",IF(VLOOKUP(241,'Course List'!$A:$C,3,0)=0,"Unknown",VLOOKUP(241,'Course List'!$A:$C,3,0))) ->  | C50: =VLOOKUP(241,'Course List'!A:D,4,0) -> SEEK | D50: =VLOOKUP(241,'Course List'!A:E,5,0) -> 499 | E50: =VLOOKUP(241,'Course List'!A:F,6,0) -> Independent Study
A51: =VLOOKUP(256,'Course List'!A:B,2,0) -> Not Taken | B51: =IF(VLOOKUP(256,'Course List'!$A:$B,2,0)="Not Taken","",IF(VLOOKUP(256,'Course List'!$A:$C,3,0)=0,"Unknown",VLOOKUP(256,'Course List'!$A:$C,3,0))) ->  | C51: =VLOOKUP(256,'Course List'!A:D,4,0) -> SEEK | D51: =VLOOKUP(256,'Course List'!A:E,5,0) -> 935 | E51: =VLOOKUP(256,'Course List'!A:F,6,0) -> Environmental Management
A52: =VLOOKUP(245,'Course List'!A:B,2,0) -> Not Taken | B52: =IF(VLOOKUP(245,'Course List'!$A:$B,2,0)="Not Taken","",IF(VLOOKUP(245,'Course List'!$A:$C,3,0)=0,"Unknown",VLOOKUP(245,'Course List'!$A:$C,3,0))) ->  | C52: =VLOOKUP(245,'Course List'!A:D,4,0) -> SEEK | D52: =VLOOKUP(245,'Course List'!A:E,5,0) -> 955 | E52: =VLOOKUP(245,'Course List'!A:F,6,0) -> Advanced Studies in Board Governance
A53: =VLOOKUP(230,'Course List'!A:B,2,0) -> Not Taken | B53: =IF(VLOOKUP(230,'Course List'!$A:$B,2,0)="Not Taken","",IF(VLOOKUP(230,'Course List'!$A:$C,3,0)=0,"Unknown",VLOOKUP(230,'Course List'!$A:$C,3,0))) ->  | C53: =VLOOKUP(230,'Course List'!A:D,4,0) -> SEEK | D53: =VLOOKUP(230,'Course List'!A:E,5,0) -> 956 | E53: =VLOOKUP(230,'Course List'!A:F,6,0) -> Social Entrepreneurship in the Developing World
A54: =VLOOKUP(106,'Course List'!A:B,2,0) -> Not Taken | B54: =IF(VLOOKUP(106,'Course List'!$A:$B,2,0)="Not Taken","",IF(VLOOKUP(106,'Course List'!$A:$C,3,0)=0,"Unknown",VLOOKUP(106,'Course List'!$A:$C,3,0))) ->  | C54: =VLOOKUP(106,'Course List'!A:D,4,0) -> INTL | D54: =VLOOKUP(106,'Course List'!A:E,5,0) -> 466 | E54: =VLOOKUP(106,'Course List'!A:F,6,0) -> International Business Strategy in Non-Market Environments
A55: =VLOOKUP(269,'Course List'!A:B,2,0) -> Not Taken | B55: =IF(VLOOKUP(269,'Course List'!$A:$B,2,0)="Not Taken","",IF(VLOOKUP(269,'Course List'!$A:$C,3,0)=0,"Unknown",VLOOKUP(269,'Course List'!$A:$C,3,0))) ->  | C55: =VLOOKUP(269,'Course List'!A:D,4,0) -> REAL | D55: =VLOOKUP(269,'Course List'!A:E,5,0) -> 448 | E55: =VLOOKUP(269,'Course List'!A:F,6,0) -> Urban Public Finance
A56: Not Taken | B56: =IF(VLOOKUP(13,'Course List'!$A:$B,2,0)="Not Taken","",IF(VLOOKUP(13,'Course List'!$A:$C,3,0)=0,"Unknown",VLOOKUP(13,'Course List'!$A:$C,3,0))) ->  | C56: =VLOOKUP(13,'Course List'!A:D,4,0) -> ACCT | D56: =VLOOKUP(13,'Course List'!A:E,5,0) -> 454 | E56: =VLOOKUP(13,'Course List'!A:F,6,0) -> Management Lab (M-Lab)
A57: =IF(COUNTIF(A59:A62,"Complete")>=2,"Complete",IF(AND(COUNTIF(A59:A62,"Complete")=1,COUNTIF(A59:A62,"Enrolled")>=1),"Enrolled",IF(COUNTIF(A59:A62,"Enrolled")>=2,"Enrolled","Not Taken"))) -> Not Taken | C57: Two half credit courses must be taken to count for one credit towards the SEEK major.
A58: =VLOOKUP(238,'Course List'!A:B,2,0) -> Not Taken | B58: =IF(VLOOKUP(238,'Course List'!$A:$B,2,0)="Not Taken","",IF(VLOOKUP(238,'Course List'!$A:$C,3,0)=0,"Unknown",VLOOKUP(238,'Course List'!$A:$C,3,0))) ->  | C58: =VLOOKUP(238,'Course List'!A:D,4,0) -> SEEK | D58: =VLOOKUP(238,'Course List'!A:E,5,0) -> 453-B | E58: =VLOOKUP(238,'Course List'!A:F,6,0) -> Board Governance of Nonprofit Organizations
A59: =VLOOKUP(237,'Course List'!A:B,2,0) -> Not Taken | B59: =IF(VLOOKUP(237,'Course List'!$A:$B,2,0)="Not Taken","",IF(VLOOKUP(237,'Course List'!$A:$C,3,0)=0,"Unknown",VLOOKUP(237,'Course List'!$A:$C,3,0))) ->  | C59: =VLOOKUP(237,'Course List'!A:D,4,0) -> SEEK | D59: =VLOOKUP(237,'Course List'!A:E,5,0) -> 453-A | E59: =VLOOKUP(237,'Course List'!A:F,6,0) -> Board Governance of Nonprofit Organizations
A60: =VLOOKUP(82,'Course List'!A:B,2,0) -> Not Taken | B60: =IF(VLOOKUP(82,'Course List'!$A:$B,2,0)="Not Taken","",IF(VLOOKUP(82,'Course List'!$A:$C,3,0)=0,"Unknown",VLOOKUP(82,'Course List'!$A:$C,3,0))) ->  | C60: =VLOOKUP(82,'Course List'!A:D,4,0) -> FINC | D60: =VLOOKUP(82,'Course List'!A:E,5,0) -> 930-A | E60: =VLOOKUP(82,'Course List'!A:F,6,0) -> Environmental Finance
A61: =VLOOKUP(83,'Course List'!A:B,2,0) -> Not Taken | B61: =IF(VLOOKUP(83,'Course List'!$A:$B,2,0)="Not Taken","",IF(VLOOKUP(83,'Course List'!$A:$C,3,0)=0,"Unknown",VLOOKUP(83,'Course List'!$A:$C,3,0))) ->  | C61: =VLOOKUP(83,'Course List'!A:D,4,0) -> FINC | D61: =VLOOKUP(83,'Course List'!A:E,5,0) -> 930-B | E61: =VLOOKUP(83,'Course List'!A:F,6,0) -> Environmental Finance
A62: =VLOOKUP(90,'Course List'!A:B,2,0) -> Not Taken | B62: =IF(VLOOKUP(90,'Course List'!$A:$B,2,0)="Not Taken","",IF(VLOOKUP(90,'Course List'!$A:$C,3,0)=0,"Unknown",VLOOKUP(90,'Course List'!$A:$C,3,0))) ->  | C62: =VLOOKUP(90,'Course List'!A:D,4,0) -> FINC | D62: =VLOOKUP(90,'Course List'!A:E,5,0) -> 937-A | E62: =VLOOKUP(90,'Course List'!A:F,6,0) -> Microfinance & the Role of Financial Institutions in Development

Sheet Tech Industry MGMT
A1: Technology Industry Management
A3: =Formulae!A166 -> NOT MAJORING IN THIS FIELD
A5: Status | B5: Term | C5: Department | D5: Course # | E5: Course Name
A7: =VLOOKUP(249,'Course List'!A:B,2,0) -> Not Taken | B7: =IF(VLOOKUP(249,'Course List'!$A:$B,2,0)="Not Taken","",IF(VLOOKUP(249,'Course List'!$A:$C,3,0)=0,"Unknown",VLOOKUP(249,'Course List'!$A:$C,3,0))) ->  | C7: =VLOOKUP(249,'Course List'!A:D,4,0) -> TECH | D7: =VLOOKUP(249,'Course List'!A:E,5,0) -> 442 | E7: =VLOOKUP(249,'Course List'!A:F,6,0) -> Enterprise Technology for General Managers
A9: =VLOOKUP(246,'Course List'!A:B,2,0) -> Not Taken | B9: =IF(VLOOKUP(246,'Course List'!$A:$B,2,0)="Not Taken","",IF(VLOOKUP(246,'Course List'!$A:$C,3,0)=0,"Unknown",VLOOKUP(246,'Course List'!$A:$C,3,0))) ->  | C9: =VLOOKUP(246,'Course List'!A:D,4,0) -> TECH | D9: =VLOOKUP(246,'Course List'!A:E,5,0) -> 441 | E9: =VLOOKUP(246,'Course List'!A:F,6,0) -> Intellectual Capital Management
A10: =VLOOKUP(248,'Course List'!A:B,2,0) -> Not Taken | B10: =IF(VLOOKUP(248,'Course List'!$A:$B,2,0)="Not Taken","",IF(VLOOKUP(248,'Course List'!$A:$C,3,0)=0,"Unknown",VLOOKUP(248,'Course List'!$A:$C,3,0))) ->  | C10: =VLOOKUP(248,'Course List'!A:D,4,0) -> TECH | D10: =VLOOKUP(248,'Course List'!A:E,5,0) -> 911 | E10: =VLOOKUP(248,'Course List'!A:F,6,0) -> The Strategic Impact of Information Technology
A11: =VLOOKUP(250,'Course List'!A:B,2,0) -> Not Taken | B11: =IF(VLOOKUP(250,'Course List'!$A:$B,2,0)="Not Taken","",IF(VLOOKUP(250,'Course List'!$A:$C,3,0)=0,"Unknown",VLOOKUP(250,'Course List'!$A:$C,3,0))) ->  | C11: =VLOOKUP(250,'Course List'!A:D,4,0) -> TECH | D11: =VLOOKUP(250,'Course List'!A:E,5,0) -> 917 | E11: =VLOOKUP(250,'Course List'!A:F,6,0) -> Analytical Marketing and Customer Relationship Management
A12: =VLOOKUP(251,'Course List'!A:B,2,0) -> Not Taken | B12: =IF(VLOOKUP(251,'Course List'!$A:$B,2,0)="Not Taken","",IF(VLOOKUP(251,'Course List'!$A:$C,3,0)=0,"Unknown",VLOOKUP(251,'Course List'!$A:$C,3,0))) ->  | C12: =VLOOKUP(251,'Course List'!A:D,4,0) -> TECH | D12: =VLOOKUP(251,'Course List'!A:E,5,0) -> 918 | E12: =VLOOKUP(251,'Course List'!A:F,6,0) -> Kellogg TechVenture
A13: =VLOOKUP(252,'Course List'!A:B,2,0) -> Not Taken | B13: =IF(VLOOKUP(252,'Course List'!$A:$B,2,0)="Not Taken","",IF(VLOOKUP(252,'Course List'!$A:$C,3,0)=0,"Unknown",VLOOKUP(252,'Course List'!$A:$C,3,0))) ->  | C13: =VLOOKUP(252,'Course List'!A:D,4,0) -> TECH | D13: =VLOOKUP(252,'Course List'!A:E,5,0) -> 919 | E13: =VLOOKUP(252,'Course List'!A:F,6,0) -> Innovation Process Management
A14: =VLOOKUP(277,'Course List'!A:B,2,0) -> Not Taken | B14: =IF(VLOOKUP(277,'Course List'!$A:$B,2,0)="Not Taken","",IF(VLOOKUP(277,'Course List'!$A:$C,3,0)=0,"Unknown",VLOOKUP(277,'Course List'!$A:$C,3,0))) ->  | C14: =VLOOKUP(277,'Course List'!A:D,4,0) -> TECH | D14: =VLOOKUP(277,'Course List'!A:E,5,0) -> 443 | E14: =VLOOKUP(277,'Course List'!A:F,6,0) -> Managing Portfolios and Projects
A15: =VLOOKUP(97,'Course List'!A:B,2,0) -> Not Taken | B15: =IF(VLOOKUP(97,'Course List'!$A:$B,2,0)="Not Taken","",IF(VLOOKUP(97,'Course List'!$A:$C,3,0)=0,"Unknown",VLOOKUP(97,'Course List'!$A:$C,3,0))) ->  | C15: =VLOOKUP(97,'Course List'!A:D,4,0) -> HEMA | D15: =VLOOKUP(97,'Course List'!A:E,5,0) -> 453 | E15: =VLOOKUP(97,'Course List'!A:F,6,0) -> Managerial Challenges in the Pharmaceutical, Biotech, and Medical Devices Industries
A16: =VLOOKUP(98,'Course List'!A:B,2,0) -> Not Taken | B16: =IF(VLOOKUP(98,'Course List'!$A:$B,2,0)="Not Taken","",IF(VLOOKUP(98,'Course List'!$A:$C,3,0)=0,"Unknown",VLOOKUP(98,'Course List'!$A:$C,3,0))) ->  | C16: =VLOOKUP(98,'Course List'!A:D,4,0) -> HEMA | D16: =VLOOKUP(98,'Course List'!A:E,5,0) -> 455 | E16: =VLOOKUP(98,'Course List'!A:F,6,0) -> Special Topics in the Pharmaceutical, Biotechnology and Medical Device Industries
A17: =VLOOKUP(139,'Course List'!A:B,2,0) -> Not Taken | B17: =IF(VLOOKUP(139,'Course List'!$A:$B,2,0)="Not Taken","",IF(VLOOKUP(139,'Course List'!$A:$C,3,0)=0,"Unknown",VLOOKUP(139,'Course List'!$A:$C,3,0))) ->  | C17: =VLOOKUP(139,'Course List'!A:D,4,0) -> MGMT | D17: =VLOOKUP(139,'Course List'!A:E,5,0) -> 463 | E17: =VLOOKUP(139,'Course List'!A:F,6,0) -> Management of Technology
A18: =VLOOKUP(175,'Course List'!A:B,2,0) -> Not Taken | B18: =IF(VLOOKUP(175,'Course List'!$A:$B,2,0)="Not Taken","",IF(VLOOKUP(175,'Course List'!$A:$C,3,0)=0,"Unknown",VLOOKUP(175,'Course List'!$A:$C,3,0))) ->  | C18: =VLOOKUP(175,'Course List'!A:D,4,0) -> MKTG | D18: =VLOOKUP(175,'Course List'!A:E,5,0) -> 468 | E18: =VLOOKUP(175,'Course List'!A:F,6,0) -> Technology Marketing
A19: =VLOOKUP(178,'Course List'!A:B,2,0) -> Not Taken | B19: =IF(VLOOKUP(178,'Course List'!$A:$B,2,0)="Not Taken","",IF(VLOOKUP(178,'Course List'!$A:$C,3,0)=0,"Unknown",VLOOKUP(178,'Course List'!$A:$C,3,0))) ->  | C19: =VLOOKUP(178,'Course List'!A:D,4,0) -> MKTG | D19: =VLOOKUP(178,'Course List'!A:E,5,0) -> 913 | E19: =VLOOKUP(178,'Course List'!A:F,6,0) -> Internet Marketing
A20: =VLOOKUP(178,'Course List'!A:B,2,0) -> Not Taken | B20: =IF(VLOOKUP(178,'Course List'!$A:$B,2,0)="Not Taken","",IF(VLOOKUP(178,'Course List'!$A:$C,3,0)=0,"Unknown",VLOOKUP(178,'Course List'!$A:$C,3,0))) ->  | C20: =VLOOKUP(178,'Course List'!A:D,4,0) -> MKTG | D20: =VLOOKUP(178,'Course List'!A:E,5,0) -> 913 | E20: =VLOOKUP(178,'Course List'!A:F,6,0) -> Internet Marketing
A21: =VLOOKUP(225,'Course List'!A:B,2,0) -> Not Taken | B21: =IF(VLOOKUP(225,'Course List'!$A:$B,2,0)="Not Taken","",IF(VLOOKUP(225,'Course List'!$A:$C,3,0)=0,"Unknown",VLOOKUP(225,'Course List'!$A:$C,3,0))) ->  | C21: =VLOOKUP(225,'Course List'!A:D,4,0) -> MKTG | D21: =VLOOKUP(225,'Course List'!A:E,5,0) -> 952 | E21: =VLOOKUP(225,'Course List'!A:F,6,0) -> Strategic Data-Driven Marketing
A22: =VLOOKUP(219,'Course List'!A:B,2,0) -> Not Taken | B22: =IF(VLOOKUP(219,'Course List'!$A:$B,2,0)="Not Taken","",IF(VLOOKUP(219,'Course List'!$A:$C,3,0)=0,"Unknown",VLOOKUP(219,'Course List'!$A:$C,3,0))) ->  | C22: =VLOOKUP(219,'Course List'!A:D,4,0) -> OPNS | D22: =VLOOKUP(219,'Course List'!A:E,5,0) -> 915 | E22: =VLOOKUP(219,'Course List'!A:F,6,0) -> Information Technology and Business Process Management
A23: Not Taken | B23: =IF(VLOOKUP(13,'Course List'!$A:$B,2,0)="Not Taken","",IF(VLOOKUP(13,'Course List'!$A:$C,3,0)=0,"Unknown",VLOOKUP(13,'Course List'!$A:$C,3,0))) ->  | C23: =VLOOKUP(13,'Course List'!A:D,4,0) -> ACCT | D23: =VLOOKUP(13,'Course List'!A:E,5,0) -> 454 | E23: =VLOOKUP(13,'Course List'!A:F,6,0) -> Management Lab (M-Lab)

Sheet Formulae (hidden)
A1: Accounting Information & Management
A2: =IF(AND(AND('ACCT Info & MGMT'!A9="Complete",COUNTIF('ACCT Info & MGMT'!A7:A8,"Complete")>=1),COUNTIF('ACCT Info & MGMT'!A11:A19,"Complete")>=1),"MAJOR COMPLETED",IF(AND(AND('ACCT Info & MGMT'!A9="Enrolled",COUNTIF('ACCT Info & MGMT'!A7:A8,"Complete")>=1),COUNTIF('ACCT Info & MGMT'!A11:A19,"Complete")>=1),"MAJOR COMPLETED THIS QUARTER",IF(AND(AND('ACCT Info & MGMT'!A9="Enrolled",COUNTIF('ACCT Info & MGMT'!A7:A8,"Complete")>=1),COUNTIF('ACCT Info & MGMT'!A11:A19,"Enrolled")>=1),"MAJOR COMPLETED THIS QUARTER",IF(AND(AND('ACCT Info & MGMT'!A9="Enrolled",COUNTIF('ACCT Info & MGMT'!A7:A8,"Enrolled")>=1),COUNTIF('ACCT Info & MGMT'!A11:A19,"Enrolled")>=1),"MAJOR COMPLETED THIS QUARTER",IF(AND(AND('ACCT Info & MGMT'!A9="Complete",COUNTIF('ACCT Info & MGMT'!A7:A8,"Complete")>=1),COUNTIF('ACCT Info & MGMT'!A11:A19,"Enrolled")>=1),"MAJOR COMPLETED THIS QUARTER",IF(AND(AND('ACCT Info & MGMT'!A9="Complete",COUNTIF('ACCT Info & MGMT'!A7:A8,"Enrolled")>=1),COUNTIF('ACCT Info & MGMT'!A11:A19,"Complete")>=1),"MAJOR COMPLETED THIS QUARTER",IF(AND(AND('ACCT Info & MGMT'!A9="Enrolled",COUNTIF('ACCT Info & MGMT'!A7:A8,"Enrolled")>=1),COUNTIF('ACCT Info & MGMT'!A11:A19,"Complete")>=1),"MAJOR COMPLETED THIS QUARTER",IF(AND(AND('ACCT Info & MGMT'!A9="Complete",COUNTIF('ACCT Info & MGMT'!A7:A8,"Enrolled")>=1),COUNTIF('ACCT Info & MGMT'!A11:A19,"Enrolled")>=1),"MAJOR COMPLETED THIS QUARTER",$A$3)))))))) -> NOT MAJORING IN THIS FIELD
A3: =IF(OR(OR('ACCT Info & MGMT'!A9="Complete",'ACCT Info & MGMT'!A9="Enrolled",'ACCT Info & MGMT'!A9="Will Enroll")),A4,A6) -> NOT MAJORING IN THIS FIELD
A4: =IF(OR(COUNTIF('ACCT Info & MGMT'!A7:A8,"Complete")>=1,COUNTIF('ACCT Info & MGMT'!A7:A8,"Enrolled")>=1),A5,IF(OR(COUNTIF('ACCT Info & MGMT'!A7:A8,"Complete")>=1,COUNTIF('ACCT Info & MGMT'!A7:A8,"Will Enroll")>=1),A5,IF(OR(COUNTIF('ACCT Info & MGMT'!A7:A8,"Enrolled")>=1,COUNTIF('ACCT Info & MGMT'!A7:A8,"Will Enroll")>=1),A5,IF(COUNTIF('ACCT Info & MGMT'!A7:A8,"Will Enroll")>=1,A5,IF(COUNTIF('ACCT Info & MGMT'!A7:A8,"Enrolled")>1,A5,A6))))) -> NOT MAJORING IN THIS FIELD
A5: =IF(OR(OR(COUNTIF('ACCT Info & MGMT'!A11:A19,"Complete")>=1),COUNTIF('ACCT Info & MGMT'!A11:A19,"Enrolled")>=1,COUNTIF('ACCT Info & MGMT'!A11:A19,"Will Enroll")>=1),"MAJOR IN PROGRESS",A6) -> NOT MAJORING IN THIS FIELD
A6: =IF(COUNTIF('ACCT Info & MGMT'!A7:A9,"Enrolled")>=1,"POTENTIAL MAJOR",IF(COUNTIF('ACCT Info & MGMT'!A7:A9,"Complete")>=1,"POTENTIAL MAJOR",IF(COUNTIF('ACCT Info & MGMT'!A7:A9,"Will Enroll")>=1,"POTENTIAL MAJOR","NOT MAJORING IN THIS FIELD"))) -> NOT MAJORING IN THIS FIELD
A7: Accounting Information & Management 1Y
A8: =IF(AND('ACCT Info & MGMT 1Y & MMM'!$A$7="Complete",COUNTIF('ACCT Info & MGMT 1Y & MMM'!$A$9:$A$16,"Complete")>=2),"MAJOR COMPLETED",IF(AND(AND('ACCT Info & MGMT 1Y & MMM'!$A$7="Complete",COUNTIF('ACCT Info & MGMT 1Y & MMM'!$A$9:$A$16,"Complete")>=1,COUNTIF('ACCT Info & MGMT 1Y & MMM'!$A$9:$A$16,"Enrolled")>=1)),"MAJOR COMPLETED THIS QUARTER",IF(AND('ACCT Info & MGMT 1Y & MMM'!$A$7="Complete",COUNTIF('ACCT Info & MGMT 1Y & MMM'!$A$9:$A$16,"Enrolled")>=2),"MAJOR COMPLETED THIS QUARTER",IF(AND('ACCT Info & MGMT 1Y & MMM'!$A$7="Enrolled",COUNTIF('ACCT Info & MGMT 1Y & MMM'!$A$9:$A$16,"Enrolled")>=2),"MAJOR COMPLETED THIS QUARTER",IF(AND(AND('ACCT Info & MGMT 1Y & MMM'!$A$7="Enrolled",COUNTIF('ACCT Info & MGMT 1Y & MMM'!$A$9:$A$16,"Complete")>=1),COUNTIF('ACCT Info & MGMT 1Y & MMM'!$A$9:$A$16,"Enrolled")>=1),"MAJOR COMPLETED THIS QUARTER",IF(AND('ACCT Info & MGMT 1Y & MMM'!$A$7="Enrolled",COUNTIF('ACCT Info & MGMT 1Y & MMM'!$A$9:$A$16,"Complete")>=2),"MAJOR COMPLETED THIS QUARTER",$A$9)))))) -> NOT MAJORING IN THIS FIELD
A9: =IF(OR(OR('ACCT Info & MGMT 1Y & MMM'!A7="Complete",'ACCT Info & MGMT 1Y & MMM'!A7="Enrolled",'ACCT Info & MGMT 1Y & MMM'!A7="Will Enroll")),A10,A11) -> NOT MAJORING IN THIS FIELD
A10: =IF(OR(OR(COUNTIF('ACCT Info & MGMT 1Y & MMM'!A9:A16,"Complete")>=1),COUNTIF('ACCT Info & MGMT 1Y & MMM'!A9:A16,"Enrolled")>=1,COUNTIF('ACCT Info & MGMT 1Y & MMM'!A9:A16,"Will Enroll")>=1),"MAJOR IN PROGRESS",A11) -> NOT MAJORING IN THIS FIELD
A11: =IF('ACCT Info & MGMT 1Y & MMM'!$A$7="Complete","POTENTIAL MAJOR",IF('ACCT Info & MGMT 1Y & MMM'!$A$7="Enrolled","POTENTIAL MAJOR",IF('ACCT Info & MGMT 1Y & MMM'!$A$7="Will Enroll","POTENTIAL MAJOR","NOT MAJORING IN THIS FIELD"))) -> NOT MAJORING IN THIS FIELD
A12: Analytical Consulting
A13: =IF(AND(AND(COUNTIF('Analyt Consulting'!A8:A10,"Complete")>=2,COUNTIF('Analyt Consulting'!A13:A15,"Complete")>=1),COUNTIF('Analyt Consulting'!A18:A21,"Complete")>=1),"MAJOR COMPLETED",IF(AND(AND(COUNTIF('Analyt Consulting'!A8:A10,"Complete")>=1,COUNTIF('Analyt Consulting'!A13:A15,"Complete")>=2),COUNTIF('Analyt Consulting'!A18:A21,"Complete")>=1),"MAJOR COMPLETED",IF(AND(AND(COUNTIF('Analyt Consulting'!A8:A10,"Complete")>=1,COUNTIF('Analyt Consulting'!A13:A15,"Complete")>=1),COUNTIF('Analyt Consulting'!A18:A21,"Complete")>=2),"MAJOR COMPLETED",IF(AND(AND(COUNTIF('Analyt Consulting'!A8:A10,"Enrolled")>=2,COUNTIF('Analyt Consulting'!A13:A15,"Complete")>=1),COUNTIF('Analyt Consulting'!A18:A21,"Complete")>=1),"MAJOR COMPLETED THIS QUARTER",IF(AND(AND(COUNTIF('Analyt Consulting'!A8:A10,"Complete")>=1,COUNTIF('Analyt Consulting'!A13:A15,"Enrolled")>=2),COUNTIF('Analyt Consulting'!A18:A21,"Complete")>=1),"MAJOR COMPLETED THIS QUARTER",IF(AND(AND(COUNTIF('Analyt Consulting'!A8:A10,"Complete")>=1,COUNTIF('Analyt Consulting'!A13:A15,"Complete")>=1),COUNTIF('Analyt Consulting'!A18:A21,"Enrolled")>=2),"MAJOR COMPLETED THIS QUARTER",IF(AND(AND(COUNTIF('Analyt Consulting'!A8:A10,"Complete")>=2,COUNTIF('Analyt Consulting'!A13:A15,"Enrolled")>=1),COUNTIF('Analyt Consulting'!A18:A21,"Complete")>=1),"MAJOR COMPLETED THIS QUARTER",IF(AND(AND(COUNTIF('Analyt Consulting'!A8:A10,"Complete")>=2,COUNTIF('Analyt Consulting'!A13:A15,"Complete")>=1),COUNTIF('Analyt Consulting'!A18:A21,"Enrolled")>=1),"MAJOR COMPLETED THIS QUARTER",IF(AND(AND(COUNTIF('Analyt Consulting'!A8:A10,"Enrolled")>=1,COUNTIF('Analyt Consulting'!A13:A15,"Complete")>=2),COUNTIF('Analyt Consulting'!A18:A21,"Complete")>=1),"MAJOR COMPLETED THIS QUARTER",IF(AND(AND(COUNTIF('Analyt Consulting'!A8:A10,"Complete")>=1,COUNTIF('Analyt Consulting'!A13:A15,"Complete")>=2),COUNTIF('Analyt Consulting'!A18:A21,"Enrolled")>=1),"MAJOR COMPLETED THIS QUARTER",IF(AND(AND(COUNTIF('Analyt Consulting'!A8:A10,"Enrolled")>=1,COUNTIF('Analyt Consulting'!A13:A15,"Complete")>=1),COUNTIF('Analyt Consulting'!A18:A21,"Complete")>=2),"MAJOR COMPLETED THIS QUARTER",IF(AND(AND(COUNTIF('Analyt Consulting'!A8:A10,"Complete")>=1,COUNTIF('Analyt Consulting'!A13:A15,"Enrolled")>=1),COUNTIF('Analyt Consulting'!A18:A21,"Complete")>=2),"MAJOR COMPLETED THIS QUARTER",IF(AND(AND(COUNTIF('Analyt Consulting'!A8:A10,"Enrolled")>=2,COUNTIF('Analyt Consulting'!A13:A15,"Enrolled")>=1),COUNTIF('Analyt Consulting'!A18:A21,"Enrolled")>=1),"MAJOR COMPLETED THIS QUARTER",IF(AND(AND(COUNTIF('Analyt Consulting'!A8:A10,"Enrolled")>=1,COUNTIF('Analyt Consulting'!A13:A15,"Enrolled")>=2),COUNTIF('Analyt Consulting'!A18:A21,"Enrolled")>=1),"MAJOR COMPLETED THIS QUARTER",IF(AND(AND(COUNTIF('Analyt Consulting'!A8:A10,"Enrolled")>=1,COUNTIF('Analyt Consulting'!A13:A15,"Enrolled")>=1),COUNTIF('Analyt Consulting'!A18:A21,"Enrolled")>=2),"MAJOR COMPLETED THIS QUARTER",IF(AND(AND(COUNTIF('Analyt Consulting'!A8:A10,"Complete")>=2,COUNTIF('Analyt Consulting'!A13:A15,"Enrolled")>=1),COUNTIF('Analyt Consulting'!A18:A21,"Enrolled")>=1),"MAJOR COMPLETED THIS QUARTER",IF(AND(AND(COUNTIF('Analyt Consulting'!A8:A10,"Enrolled")>=1,COUNTIF('Analyt Consulting'!A13:A15,"Complete")>=2),COUNTIF('Analyt Consulting'!A18:A21,"Enrolled")>=1),"MAJOR COMPLETED THIS QUARTER",IF(AND(AND(COUNTIF('Analyt Consulting'!A8:A10,"Enrolled")>=1,COUNTIF('Analyt Consulting'!A13:A15,"Enrolled")>=1),COUNTIF('Analyt Consulting'!A18:A21,"Complete")>=2),"MAJOR COMPLETED THIS QUARTER",IF(AND(AND(AND(COUNTIF('Analyt Consulting'!A8:A10,"Complete")>=1,COUNTIF('Analyt Consulting'!A13:A15,"Complete")>=1),COUNTIF('Analyt Consulting'!A18:A21,"Complete")>=1),COUNTIF('Analyt Consulting'!A8:A10,"Enrolled")>=1),"MAJOR COMPLETED THIS QUARTER",IF(AND(AND(AND(COUNTIF('Analyt Consulting'!A8:A10,"Complete")>=1,COUNTIF('Analyt Consulting'!A13:A15,"Complete")>=1),COUNTIF('Analyt Consulting'!A18:A21,"Complete")>=1),COUNTIF('Analyt Consulting'!A13:A15,"Enrolled")>=1),"MAJOR COMPLETED THIS QUARTER",IF(AND(AND(AND(COUNTIF('Analyt Consulting'!A8:A10,"Complete")>=1,COUNTIF('Analyt Consulting'!A13:A15,"Complete")>=1),COUNTIF('Analyt Consulting'!A18:A21,"Complete")>=1),COUNTIF('Analyt Consulting'!A18:A21,"Enrolled")>=1),"MAJOR COMPLETED THIS QUARTER",IF(AND(AND(COUNTIF('Analyt Consulting'!A8:A10,"Complete")>=1,COUNTIF('Analyt Consulting'!A13:A15,"Enrolled")>=2),COUNTIF('Analyt Consulting'!A18:A21,"Enrolled")>=1),"MAJOR COMPLETED THIS QUARTER",IF(AND(AND(COUNTIF('Analyt Consulting'!A8:A10,"Complete")>=1,COUNTIF('Analyt Consulting'!A13:A15,"Enrolled")>=1),COUNTIF('Analyt Consulting'!A18:A21,"Enrolled")>=2),"MAJOR COMPLETED THIS QUARTER",IF(AND(AND(COUNTIF('Analyt Consulting'!A8:A10,"Enrolled")>=2,COUNTIF('Analyt Consulting'!A13:A15,"Complete")>=1),COUNTIF('Analyt Consulting'!A18:A21,"Enrolled")>=1),"MAJOR COMPLETED THIS QUARTER",IF(AND(AND(COUNTIF('Analyt Consulting'!A8:A10,"Enrolled")>=1,COUNTIF('Analyt Consulting'!A13:A15,"Complete")>=1),COUNTIF('Analyt Consulting'!A18:A21,"Enrolled")>=2),"MAJOR COMPLETED THIS QUARTER",IF(AND(AND(COUNTIF('Analyt Consulting'!A8:A10,"Enrolled")>=2,COUNTIF('Analyt Consulting'!A13:A15,"Enrolled")>=1),COUNTIF('Analyt Consulting'!A18:A21,"Complete")>=1),"MAJOR COMPLETED THIS QUARTER",IF(AND(AND(COUNTIF('Analyt Consulting'!A8:A10,"Enrolled")>=1,COUNTIF('Analyt Consulting'!A13:A15,"Enrolled")>=2),COUNTIF('Analyt Consulting'!A18:A21,"Complete")>=1),"MAJOR COMPLETED THIS QUARTER",IF(AND(AND(AND(COUNTIF('Analyt Consulting'!A8:A10,"Complete")>=1,COUNTIF('Analyt Consulting'!A13:A15,"Complete")>=1),COUNTIF('Analyt Consulting'!A18:A21,"Enrolled")>=1),COUNTIF('Analyt Consulting'!A8:A10,"Enrolled")>=1),"MAJOR COMPLETED THIS QUARTER",IF(AND(AND(AND(COUNTIF('Analyt Consulting'!A8:A10,"Complete")>=1,COUNTIF('Analyt Consulting'!A13:A15,"Complete")>=1),COUNTIF('Analyt Consulting'!A18:A21,"Enrolled")>=1),COUNTIF('Analyt Consulting'!A13:A15,"Enrolled")>=1),"MAJOR COMPLETED THIS QUARTER",IF(AND(AND(AND(COUNTIF('Analyt Consulting'!A8:A10,"Enrolled")>=1,COUNTIF('Analyt Consulting'!A13:A15,"Complete")>=1),COUNTIF('Analyt Consulting'!A18:A21,"Complete")>=1),COUNTIF('Analyt Consulting'!A18:A21,"Enrolled")>=1),"MAJOR COMPLETED THIS QUARTER",IF(AND(AND(AND(COUNTIF('Analyt Consulting'!A8:A10,"Complete")>=1,COUNTIF('Analyt Consulting'!A13:A15,"Complete")>=1),COUNTIF('Analyt Consulting'!A18:A21,"Enrolled")>=1),COUNTIF('Analyt Consulting'!A8:A10,"Enrolled")>=1),"MAJOR COMPLETED THIS QUARTER",IF(AND(AND(AND(COUNTIF('Analyt Consulting'!A8:A10,"Complete")>=1,COUNTIF('Analyt Consulting'!A13:A15,"Enrolled")>=1),COUNTIF('Analyt Consulting'!A18:A21,"Complete")>=1),COUNTIF('Analyt Consulting'!A8:A10,"Enrolled")>=1),"MAJOR COMPLETED THIS QUARTER",IF(AND(AND(AND(COUNTIF('Analyt Consulting'!A8:A10,"Enrolled")>=1,COUNTIF('Analyt Consulting'!A13:A15,"Complete")>=1),COUNTIF('Analyt Consulting'!A18:A21,"Complete")>=1),COUNTIF('Analyt Consulting'!A13:A15,"Enrolled")>=1),"MAJOR COMPLETED THIS QUARTER",IF(AND(AND(AND(COUNTIF('Analyt Consulting'!A8:A10,"Complete")>=1,COUNTIF('Analyt Consulting'!A13:A15,"Enrolled")>=1),COUNTIF('Analyt Consulting'!A18:A21,"Complete")>=1),COUNTIF('Analyt Consulting'!A18:A21,"Enrolled")>=1),"MAJOR COMPLETED THIS QUARTER",IF(AND(AND(AND(COUNTIF('Analyt Consulting'!A8:A10,"Complete")>=1,COUNTIF('Analyt Consulting'!A8:A10,"Enrolled")>=1),COUNTIF('Analyt Consulting'!A13:A15,"Enrolled")>=1),COUNTIF('Analyt Consulting'!A18:A21,"Enrolled")>=1),"MAJOR COMPLETED THIS QUARTER",IF(AND(AND(AND(COUNTIF('Analyt Consulting'!A8:A10,"Enrolled")>=1,COUNTIF('Analyt Consulting'!A13:A15,"Complete")>=1),COUNTIF('Analyt Consulting'!A13:A15,"Enrolled")>=1),COUNTIF('Analyt Consulting'!A18:A21,"Enrolled")>=1),"MAJOR COMPLETED THIS QUARTER",IF(AND(AND(AND(COUNTIF('Analyt Consulting'!A8:A10,"Enrolled")>=1,COUNTIF('Analyt Consulting'!A13:A15,"Enrolled")>=1),COUNTIF('Analyt Consulting'!A18:A21,"Complete")>=1),COUNTIF('Analyt Consulting'!A18:A21,"Enrolled")>=1),"MAJOR COMPLETED THIS QUARTER",$A$14))))))))))))))))))))))))))))))))))))) -> NOT MAJORING IN THIS FIELD
A14: =IF(COUNTIF('Analyt Consulting'!A8:A10,"Complete")>1,A16,IF(COUNTIF('Analyt Consulting'!A8:A10,"Will Enroll")>1,A16,IF(COUNTIF('Analyt Consulting'!A8:A10,"Enrolled")>1,A16,A15))) -> NOT MAJORING IN THIS FIELD
A15: =IF(AND(COUNTIF('Analyt Consulting'!A8:A10,"Complete")>=1,COUNTIF('Analyt Consulting'!A8:A10,"Enrolled")>=1),A16,IF(AND(COUNTIF('Analyt Consulting'!A8:A10,"Complete")>=1,COUNTIF('Analyt Consulting'!A8:A10,"Will Enroll")>=1),A16,IF(AND(COUNTIF('Analyt Consulting'!A8:A10,"Enrolled")>=1,COUNTIF('Analyt Consulting'!A8:A10,"Will Enroll")>=1),A16,A18))) -> NOT MAJORING IN THIS FIELD
A16: =IF(OR(COUNTIF('Analyt Consulting'!A13:A15,"Complete")>=1,COUNTIF('Analyt Consulting'!A13:A15,"Enrolled")>=1),A17,IF(OR(COUNTIF('Analyt Consulting'!A13:A15,"Complete")>=1,COUNTIF('Analyt Consulting'!A13:A15,"Will Enroll")>=1),A17,IF(OR(COUNTIF('Analyt Consulting'!A13:A15,"Enrolled")>=1,COUNTIF('Analyt Consulting'!A13:A15,"Will Enroll")>=1),A17,A18))) -> NOT MAJORING IN THIS FIELD
A17: =IF(OR(COUNTIF('Analyt Consulting'!A18:A21,"Complete")>=1,COUNTIF('Analyt Consulting'!A18:A21,"Enrolled")>=1),"MAJOR IN PROGRESS",IF(OR(COUNTIF('Analyt Consulting'!A18:A21,"Complete")>=1,COUNTIF('Analyt Consulting'!A18:A21,"Will Enroll")>=1),"MAJOR IN PROGRESS",IF(OR(COUNTIF('Analyt Consulting'!A18:A21,"Enrolled")>=1,COUNTIF('Analyt Consulting'!A18:A21,"Will Enroll")>=1),"MAJOR IN PROGRESS",A18))) -> NOT MAJORING IN THIS FIELD
A18: =IF(COUNTIF('Analyt Consulting'!A13:A15,"Complete")>1,A20,IF(COUNTIF('Analyt Consulting'!A13:A15,"Will Enroll")>1,A20,IF(COUNTIF('Analyt Consulting'!A13:A15,"Enrolled")>1,A20,A19))) -> NOT MAJORING IN THIS FIELD
A19: =IF(AND(COUNTIF('Analyt Consulting'!A13:A15,"Complete")>=1,COUNTIF('Analyt Consulting'!A13:A15,"Enrolled")>=1),A20,IF(AND(COUNTIF('Analyt Consulting'!A13:A15,"Complete")>=1,COUNTIF('Analyt Consulting'!A13:A15,"Will Enroll")>=1),A20,IF(AND(COUNTIF('Analyt Consulting'!A13:A15,"Enrolled")>=1,COUNTIF('Analyt Consulting'!A13:A15,"Will Enroll")>=1),A20,A22))) -> NOT MAJORING IN THIS FIELD
A20: =IF(OR(COUNTIF('Analyt Consulting'!A8:A10,"Complete")>=1,COUNTIF('Analyt Consulting'!A8:A10,"Enrolled")>=1),A21,IF(OR(COUNTIF('Analyt Consulting'!A8:A10,"Complete")>=1,COUNTIF('Analyt Consulting'!A8:A10,"Will Enroll")>=1),A21,IF(OR(COUNTIF('Analyt Consulting'!A8:A10,"Enrolled")>=1,COUNTIF('Analyt Consulting'!A8:A10,"Will Enroll")>=1),A21,A22))) -> NOT MAJORING IN THIS FIELD
A21: =IF(OR(COUNTIF('Analyt Consulting'!A18:A21,"Complete")>=1,COUNTIF('Analyt Consulting'!A18:A21,"Enrolled")>=1),"MAJOR IN PROGRESS",IF(OR(COUNTIF('Analyt Consulting'!A18:A21,"Complete")>=1,COUNTIF('Analyt Consulting'!A18:A21,"Will Enroll")>=1),"MAJOR IN PROGRESS",IF(OR(COUNTIF('Analyt Consulting'!A18:A21,"Enrolled")>=1,COUNTIF('Analyt Consulting'!A18:A21,"Will Enroll")>=1),"MAJOR IN PROGRESS",A22))) -> NOT MAJORING IN THIS FIELD
A22: =IF(COUNTIF('Analyt Consulting'!A18:A21,"Complete")>1,A24,IF(COUNTIF('Analyt Consulting'!A18:A21,"Will Enroll")>1,A24,IF(COUNTIF('Analyt Consulting'!A18:A21,"Enrolled")>1,A24,A23))) -> NOT MAJORING IN THIS FIELD
A23: =IF(AND(COUNTIF('Analyt Consulting'!A18:A21,"Complete")>=1,COUNTIF('Analyt Consulting'!A18:A21,"Enrolled")>=1),A24,IF(AND(COUNTIF('Analyt Consulting'!A18:A21,"Complete")>=1,COUNTIF('Analyt Consulting'!A18:A21,"Will Enroll")>=1),A24,IF(AND(COUNTIF('Analyt Consulting'!A18:A21,"Enrolled")>=1,COUNTIF('Analyt Consulting'!A18:A21,"Will Enroll")>=1),A24,A26))) -> NOT MAJORING IN THIS FIELD
A24: =IF(OR(COUNTIF('Analyt Consulting'!A8:A10,"Complete")>=1,COUNTIF('Analyt Consulting'!A8:A10,"Enrolled")>=1),A25,IF(OR(COUNTIF('Analyt Consulting'!A8:A10,"Complete")>=1,COUNTIF('Analyt Consulting'!A8:A10,"Will Enroll")>=1),A25,IF(OR(COUNTIF('Analyt Consulting'!A8:A10,"Enrolled")>=1,COUNTIF('Analyt Consulting'!A8:A10,"Will Enroll")>=1),A25,A26))) -> NOT MAJORING IN THIS FIELD
A25: =IF(OR(COUNTIF('Analyt Consulting'!A13:A15,"Complete")>=1,COUNTIF('Analyt Consulting'!A13:A15,"Enrolled")>=1),"MAJOR IN PROGRESS",IF(OR(COUNTIF('Analyt Consulting'!A13:A15,"Complete")>=1,COUNTIF('Analyt Consulting'!A13:A15,"Will Enroll")>=1),"MAJOR IN PROGRESS",IF(OR(COUNTIF('Analyt Consulting'!A13:A15,"Enrolled")>=1,COUNTIF('Analyt Consulting'!A13:A15,"Will Enroll")>=1),"MAJOR IN PROGRESS",A26))) -> NOT MAJORING IN THIS FIELD
A26: =IF(COUNTIF('Analyt Consulting'!A8:A21,"Complete")>=1,"POTENTIAL MAJOR",IF(COUNTIF('Analyt Consulting'!A8:A21,"Enrolled")>=1,"POTENTIAL MAJOR",IF(COUNTIF('Analyt Consulting'!A8:A21,"Will Enroll")>=1,"POTENTIAL MAJOR","NOT MAJORING IN THIS FIELD"))) -> NOT MAJORING IN THIS FIELD
A27: Analytical Finance
